Workbook

Sheet Notes
A1: RSMK_Indicator.xlsm; Traders Tip spreadsheet created for the March 2020 Issue
A2: Coded beginning 2020-January-07 by Ronald McAllister (rpmac_xltt@sprynet.com)
A4: This Workbook demonstrates an EXCEL version of the ideas presented
A5: by Markos Katsanos in an article titled "Using Relative Strength To Outperform The Market"
A6: which originally appeared in the March 2020 issue of
A7: "Technical Analysis of Stocks and Commodities" magazine.
A9: * * * * * * * * * * * * * * * *
A10: NOTE: This spreadsheet ALWAYS retrieves data twice!
A11: Once for the Comparison Index and then immediately after for the symbol of interest.
A12: This is necessary to keep the two data sets in sync for the relative strength comparison.
A14: As downloaded from the magazine, the Comparison Index is SPY.
A15: You may experiment with other choices of index by changing the symbol on the InputIndexPriceData tab.
A17: You may replicate the price chart from the article by double-clicking on the symbol ALGN on the "Follow" tab.
A18: Then plot the date range 11/1/2016 thru 12/4/2019.
A20: Development Notes:
C21: This workbook contains and uses VBA macros and may use VBA Class structures.
C22: Input Data
C23: The data in this workbook is sorted date descending (most recent date at the top). All cell formulas and
C24: VBA routines are built accordingly.
A26: ERROR 9 and FIX
A27: On or about Jan 29, 2020 Yahoo Finance changed their split factor expression from using "/" as in "New Share Number/Old Share Number"
A28: to using ":" as in "New Share Number:Old Share Number". This causes a "Runtime error '9': subscript out of range".
A29: Selecting the Debug option takes one into the VBA at the following code line as the cause of the failure:
A30: CellArray(C_A_RowNdx, C_A_ColNdx + 1) = SplitFactors(1)
A31: This Fault can be easily fixed. Two lines above the failing code line you will find
A32: SplitFactors = Split(CsvColumns(CsvColNdx), "/")
A33: Simply change the slash (/) to a full colon (:) and then save and exit the spreadsheet.
A34: Then re-open the spreadsheet which should now work as expected.
A36: 2019-06-04 Vertical Axis clutter control: Dynamicaly set price chart vertical axis to show tick marks and labels at each 1/10th of the vertical price spread
A38: 2019-04-04 Finally came up with a mechanism to align the left location and overall length of the cursor scroll bar so that the left most and right most
A39: scroll bar thumb positions visually align reasonably well with the left and right ends of the price chart horizontal axis.
A40: Makes it a little easier to visually align the Thumb and thus the cursor with points of interest on the charts.
A42: Older:
B43: My sincere apologies to our Macintosh based readers: Neither MSXML nor WinHttpRequest are supported in your environment. So as it stands this version of the spreadsheet will not work for you.
B44: See "Why this approach does not work for Macintosh" below.
B45: I am investigating cURL as a non-Querytable based approach for the Macintosh environment.
A47: The new Yahoo Finance history download interface has changed rather radically. The biggest hurdle being a pseudo-security requirement of adding a
B48: crumb character string to any URL requesting any type of history download. That crumb must match up (by way of some sort of hash algorithm) with
B49: the Yahoo Finance cookie that must also be sent with any request to the new Yahoo History down load interface.
B51: A crumb value is returned, buried in the HTML for any of what I call the "entry level" Yahoo Finance web pages (no crumb security requirement for entry level pages).
B52: A crumb may come with other Yahoo Finance pages. A crumb may even accompany some of the secured pages as well. I have not checked.
B54: Entry level pages are the top level pages of the various Yahoo Finance dialogs and include: Quote Lookup, Stock Summary Quote, and any of the pages
B55: with links in the horizontal row with the "Summary" link on the quote summary page such as Options, Historical Data, and the rest.
B57: To date I have found no way to get at this crumb value using any native EXCEL capabilities.
B59: So this crumb requirement effectively shuts out any solution that attempts to exclusively use built-in facilities of EXCEL, which is to say a purely Querytables solution.
B61: The approach built for this Traders Tip spreadsheet uses WINHTTP calls to Load the InputPriceData worksheet.
B63: First I call to get the HTML text for the Yahoo Summary Quote page using the requested symbol. From this HTML text I extract the full company name,
B64: the market it trades, the market status and time stamp, and finally the associated crumb string. There is a bunch of other useful bits buried in this HTML
B65: text that do not necessarily appear on the web page your browser presents. Perhaps some day I will go after and build a worksheet with these other bits.
B67: Next I add the freshly extracted crumb string to the URLs I use in three separate WINHTTP calls to retrieve Price history, Split history, and Dividend history respectively.
B69: From there VBA code proceeds as in the past to fill in the cell formulas and formatting that make the "prettied up" InputPriceData sheet.
A71: Why this approach works for Windows:
B72: WINHTTP maintains a temporary computer memory cache where cookies are maintained for as long as the WINHTTP object is instantiated.
B73: WINHTTP updates this cache any time a "set cookie" header accompanies a web response.
B74: Subsequent WINHTTP calls automatically search this cache for cookies and add any "appropriate" cookies to the headers
B75: of any web requests that get sent out.
B76: This cookie handling automation means that even if the response to our WINHTTP call for the Summary web page includes a new version of
B77: the Yahoo Finance cookie, the imbedded Crumb value will always match the cookie newly installed in the cache!
A80: Why this approach does not work for Macintosh:
B81: For what it is worth, the Macintosh version of the MS Office suite of products do in fact maintain a special, shared amongst themselves only, cookie cache.
B82: They automate cookie handling into and from this cache JUST for the Office products and any Querytable activity they might originate.
B84: This cache is not tied to, nor shared with, any browser that might be installed on the MAC. And I have not found anything with HTTP capabilities similar to
B85: MSXML that can work with that Office product cookie cache.
B87: When working in the MAC EXCEL environment, I have have not yet become conversant with a Mac based WINHTTP like capability.
B88: So l currently have no mechanism to replicate the non-Querytable data retrieval process I am using in Windows environments.
B89: A software product called CURL has been suggested as providing this capability in the MAC environment.
B90: A version of CURL is availble for the Windows So some day I may explore its capbilities and how to access those capabilities from VBA.
A92: Calculation and Chart Worksheet Usage Comments:
C93: In General, Items in Bolded BLUE are items you may freely change to play what-if games.
C94: Be sure to have a backup copy of the spreadsheet before you alter anything else.
A96: Features carried forward from the June 2016 version of my T-Tips Template
A97: Added a pair of buttons near cell F12 that will allow the user to step the charting window forward or backward one bar for each click.
A98: I find this to be a good way to test my understanding of the author's ideas as I step through the evolution of the price behavior and the indicators.
B100: First: In the "Help! I would like to plot data" area.
B101: Added button to resolve #NA problems by locating the bar in the input data with a slightly more recent date than what the user actually requested.
B102: I find this particularly useful when I have a general idea of where I want to be date wise. Now I can pick a set of dates "out of the air".
B103: If either (or both) of my date specifications fall between dates that are available in the price history,
B104: this button will resolve them to the dates of the nearest, slightly more recent input bars.
B105: I can then refine my data interval search as necessary from there.
B106: Really great when working with Weekly or Monthly studies!
C107: 2016Jun11 - added logic to the "I would like to chart.." button to detect #N/A values and terminate
C108: gracefully with a message instead of blowing up in the charting logic.
B110: Second: In the "Price Chart Windowing Controls" area. (A11 and A12)
B111: When retrieving data for a new symbol or when changing from daily to weekly or monthly data, there was the possibility that the
B112: residual settings in A11 and A12 would fall outside of the number bars available on the input data tab after the new data retrieval.
B113: In certain combinations, this could create a serious error in the chart sizing logic and crash the spreadsheet.
B114: I have taken this opportunity to update the validity checking logic used in the chart sizing macros
B115: to adjust these values as necessary so that they fall within the boundaries of the newly retrieved input data.
A116: Features carried forward from the October 2015 Traders Tips Template
B117: Improved automation: changes to any of the following will automatically initiate calculations appropriate to reflect a change.
C118: Changing either of cells A11 (pan) or A12 (zoom) will automatically initiate the same chart sizing macros that the manual
C119: "Set Chart" button uses.

Sheet InputPriceData
A1: Align Technology, Inc. (ALGN) -NasdaqGS (Daily)
IJ2: 241.79
A3: Request Online Yahoo History for: | F3: Market State == > | G3: At close: | H3: 16:00:00 | I3: EST
A4: Symbol | B4: ALGN | D4: Valid | I4: =OFFSET(I4,-2,0,1,1) -> 0
A5: From | B5: 1950-01-01 | D5: Data | AD5: Trailing 12 Div return (Cur Close)
A6: To | B6: =NOW() -> 2020-01-30T22:35:43.050 | D6: Types | E6: =VLOOKUP(B7,D7:E10,2,FALSE) -> d
A7: Data Type | B7: Daily | D7: Daily | E7: d
A8: Crumb | B8: mnoK54XQyA6 | D8: Weekly | E8: w
A9: Available Data | D9: Monthly | E9: m
A10: Bar Count: | B10: 4780 | AD10: =OFFSET(AC15,1,0,1,1)/OFFSET(N15,1,0,1,1) -> 0
A11: From: | B11: =IF(B10<=0,"",OFFSET(B15,B10,IF(HistReqDataType="v",1,0),1,1)) -> 2001-01-30 | W11: Trailing 12 Month Dividend Returns
A12: To: | B12: =IF(B10<=0,"",IF(HistReqDataType="v",OFFSET(B15,2,1,1,1),OFFSET(B15,1,0,1,1))) -> 2020-01-30 | W12: Raw Close price on Dividend date | X12: Div Year and Month | Y12: Looking for year ago Div Year and Month | Z12: Year ago Div Date we found | AA12: row offset to year ago div Date | AB12: Same month flag | AC12: Trailing 12 Div Total | AD12: Trailing 12 Div return
Q13: Split History | S13: 0 | T13: Running | U13: Dividend History
B14: Raw Data Values | H14: Adjusted | I14: Price Adjust | J14: Vol Adjust | K14: Adjusted Values | P14: Last | Q14: Effective | R14: Shares | T14: Vol Adjust | V14: 0
A15: RelRow | B15: Date | C15: Open | D15: High | E15: Low | F15: Close | G15: Volume | H15: Close | I15: Factor | J15: Factor | K15: Open | L15: High | M15: Low | N15: Close | O15: Volume | P15: Trade | Q15: 43861 | R15: New | S15: Old | T15: 1 | U15: Date | V15: $ / Share
A16: 1 | B16: 2020-01-30 | C16: 248.740005 | D16: 264.450012 | E16: 248.350006 | F16: 262.890015 | G16: 1833160 | H16: 262.890015 | I16: =IF(F16=0,1,H16/F16) -> 1 | J16: =INDEX(OFFSET($T$15,0,0,$S$13+1,1),MATCH(B16,OFFSET($Q$15,0,0,$S$13+1,1),-1)) -> 1 | K16: =ROUND($I16*C16,2) -> 248.74 | L16: =ROUND($I16*D16,2) -> 264.45 | M16: 248.35 | N16: 262.89 | O16: =G16*J16 -> 1833160
A17: 2 | B17: 2020-01-29 | C17: 266.190002 | D17: 268.920013 | E17: 261.51001 | F17: 261.600006 | G17: 1391600 | H17: 261.600006 | I17: =IF(F17=0,1,H17/F17) -> 1 | J17: =INDEX(OFFSET($T$15,0,0,$S$13+1,1),MATCH(B17,OFFSET($Q$15,0,0,$S$13+1,1),-1)) -> 1 | K17: =ROUND($I17*C17,2) -> 266.19 | L17: =ROUND($I17*D17,2) -> 268.92 | M17: =ROUND($I17*E17,2) -> 261.51 | N17: =ROUND($I17*F17,2) -> 261.6 | O17: =G17*J17 -> 1391600
A18: 3 | B18: 2020-01-28 | C18: 265.809998 | D18: 268.679993 | E18: 262.559998 | F18: 267.820007 | G18: 690400 | H18: 267.820007 | I18: 1 | J18: 1 | K18: 265.81 | L18: 268.68 | M18: 262.56 | N18: 267.82 | O18: 690400
A19: 4 | B19: 2020-01-27 | C19: 264 | D19: 264.420013 | E19: 252.5 | F19: 260.910004 | G19: 1025300 | H19: 260.910004 | I19: 1 | J19: 1 | K19: 264 | L19: 264.42 | M19: 252.5 | N19: 260.91 | O19: 1025300
A20: 5 | B20: 2020-01-24 | C20: 272.109985 | D20: 278.390015 | E20: 269.429993 | F20: 269.980011 | G20: 964400 | H20: 269.980011 | I20: 1 | J20: 1 | K20: 272.11 | L20: 278.39 | M20: 269.43 | N20: 269.98 | O20: 964400
A21: 6 | B21: 2020-01-23 | C21: 280.01001 | D21: 280.01001 | E21: 269.609985 | F21: 270.779999 | G21: 982100 | H21: 270.779999 | I21: 1 | J21: 1 | K21: 280.01 | L21: 280.01 | M21: 269.61 | N21: 270.78 | O21: 982100
A22: 7 | B22: 2020-01-22 | C22: 274.890015 | D22: 281.799988 | E22: 274.890015 | F22: 279.309998 | G22: 832500 | H22: 279.309998 | I22: 1 | J22: 1 | K22: 274.89 | L22: 281.8 | M22: 274.89 | N22: 279.31 | O22: 832500
A23: 8 | B23: 2020-01-21 | C23: 280.559998 | D23: 282 | E23: 272.290009 | F23: 273.170013 | G23: 858200 | H23: 273.170013 | I23: 1 | J23: 1 | K23: 280.56 | L23: 282 | M23: 272.29 | N23: 273.17 | O23: 858200
A24: 9 | B24: 2020-01-17 | C24: 285.690002 | D24: 287.769989 | E24: 278.640015 | F24: 280.700012 | G24: 793400 | H24: 280.700012 | I24: 1 | J24: 1 | K24: 285.69 | L24: 287.77 | M24: 278.64 | N24: 280.7 | O24: 793400
A25: 10 | B25: 2020-01-16 | C25: 271.839996 | D25: 285.23999 | E25: 271.839996 | F25: 285.029999 | G25: 959300 | H25: 285.029999 | I25: 1 | J25: 1 | K25: 271.84 | L25: 285.24 | M25: 271.84 | N25: 285.03 | O25: 959300
A26: 11 | B26: 2020-01-15 | C26: 285.690002 | D26: 287.26001 | E26: 269.459991 | F26: 274.100006 | G26: 1571500 | H26: 274.100006 | I26: 1 | J26: 1 | K26: 285.69 | L26: 287.26 | M26: 269.46 | N26: 274.1 | O26: 1571500
A27: 12 | B27: 2020-01-14 | C27: 286.179993 | D27: 294.910004 | E27: 282.01001 | F27: 287.609985 | G27: 1082300 | H27: 287.609985 | I27: 1 | J27: 1 | K27: 286.18 | L27: 294.91 | M27: 282.01 | N27: 287.61 | O27: 1082300
A28: 13 | B28: 2020-01-13 | C28: 295.649994 | D28: 299.869995 | E28: 293.070007 | F28: 298.070007 | G28: 468100 | H28: 298.070007 | I28: 1 | J28: 1 | K28: 295.65 | L28: 299.87 | M28: 293.07 | N28: 298.07 | O28: 468100
A29: 14 | B29: 2020-01-10 | C29: 297.209991 | D29: 299.070007 | E29: 292.630005 | F29: 293.329987 | G29: 589200 | H29: 293.329987 | I29: 1 | J29: 1 | K29: 297.21 | L29: 299.07 | M29: 292.63 | N29: 293.33 | O29: 589200
A30: 15 | B30: 2020-01-09 | C30: 290.769989 | D30: 301.649994 | E30: 290 | F30: 296.540009 | G30: 1331300 | H30: 296.540009 | I30: 1 | J30: 1 | K30: 290.77 | L30: 301.65 | M30: 290 | N30: 296.54 | O30: 1331300
A31: 16 | B31: 2020-01-08 | C31: 284.140015 | D31: 287.690002 | E31: 281 | F31: 286 | G31: 602600 | H31: 286 | I31: 1 | J31: 1 | K31: 284.14 | L31: 287.69 | M31: 281 | N31: 286 | O31: 602600
A32: 17 | B32: 2020-01-07 | C32: 285.920013 | D32: 286.450012 | E32: 281.470001 | F32: 283.059998 | G32: 522900 | H32: 283.059998 | I32: 1 | J32: 1 | K32: 285.92 | L32: 286.45 | M32: 281.47 | N32: 283.06 | O32: 522900
A33: 18 | B33: 2020-01-06 | C33: 276.679993 | D33: 286.179993 | E33: 276.399994 | F33: 285.880005 | G33: 775700 | H33: 285.880005 | I33: 1 | J33: 1 | K33: 276.68 | L33: 286.18 | M33: 276.4 | N33: 285.88 | O33: 775700
A34: 19 | B34: 2020-01-03 | C34: 279.100006 | D34: 282.019989 | E34: 278.679993 | F34: 280.440002 | G34: 488800 | H34: 280.440002 | I34: 1 | J34: 1 | K34: 279.1 | L34: 282.02 | M34: 278.68 | N34: 280.44 | O34: 488800
A35: 20 | B35: 2020-01-02 | C35: 281.200012 | D35: 284.140015 | E35: 278.609985 | F35: 283.679993 | G35: 789700 | H35: 283.679993 | I35: 1 | J35: 1 | K35: 281.2 | L35: 284.14 | M35: 278.61 | N35: 283.68 | O35: 789700
A36: 21 | B36: 2019-12-31 | C36: 275.170013 | D36: 280.679993 | E36: 275.170013 | F36: 279.040009 | G36: 548700 | H36: 279.040009 | I36: 1 | J36: 1 | K36: 275.17 | L36: 280.68 | M36: 275.17 | N36: 279.04 | O36: 548700
A37: 22 | B37: 2019-12-30 | C37: 277.829987 | D37: 279.329987 | E37: 274.709991 | F37: 275.630005 | G37: 429500 | H37: 275.630005 | I37: 1 | J37: 1 | K37: 277.83 | L37: 279.33 | M37: 274.71 | N37: 275.63 | O37: 429500
A38: 23 | B38: 2019-12-27 | C38: 278.75 | D38: 279.899994 | E38: 275.209991 | F38: 277.640015 | G38: 332200 | H38: 277.640015 | I38: 1 | J38: 1 | K38: 278.75 | L38: 279.9 | M38: 275.21 | N38: 277.64 | O38: 332200
A39: 24 | B39: 2019-12-26 | C39: 277.429993 | D39: 279.540009 | E39: 276.160004 | F39: 278.26001 | G39: 258500 | H39: 278.26001 | I39: 1 | J39: 1 | K39: 277.43 | L39: 279.54 | M39: 276.16 | N39: 278.26 | O39: 258500
A40: 25 | B40: 2019-12-24 | C40: 276.920013 | D40: 278.820007 | E40: 274.619995 | F40: 277.890015 | G40: 200000 | H40: 277.890015 | I40: 1 | J40: 1 | K40: 276.92 | L40: 278.82 | M40: 274.62 | N40: 277.89 | O40: 200000
A41: 26 | B41: 2019-12-23 | C41: 273.380005 | D41: 278.809998 | E41: 272.070007 | F41: 278.140015 | G41: 543800 | H41: 278.140015 | I41: 1 | J41: 1 | K41: 273.38 | L41: 278.81 | M41: 272.07 | N41: 278.14 | O41: 543800
A42: 27 | B42: 2019-12-20 | C42: 275.320007 | D42: 275.320007 | E42: 270.149994 | F42: 272.890015 | G42: 1270400 | H42: 272.890015 | I42: 1 | J42: 1 | K42: 275.32 | L42: 275.32 | M42: 270.15 | N42: 272.89 | O42: 1270400
A43: 28 | B43: 2019-12-19 | C43: 272.179993 | D43: 276.940002 | E43: 271.01001 | F43: 273.75 | G43: 589400 | H43: 273.75 | I43: 1 | J43: 1 | K43: 272.18 | L43: 276.94 | M43: 271.01 | N43: 273.75 | O43: 589400
A44: 29 | B44: 2019-12-18 | C44: 269.480011 | D44: 274.029999 | E44: 268.850006 | F44: 272.609985 | G44: 745000 | H44: 272.609985 | I44: 1 | J44: 1 | K44: 269.48 | L44: 274.03 | M44: 268.85 | N44: 272.61 | O44: 745000
A45: 30 | B45: 2019-12-17 | C45: 269.679993 | D45: 270.290009 | E45: 266.75 | F45: 268.290009 | G45: 637200 | H45: 268.290009 | I45: 1 | J45: 1 | K45: 269.68 | L45: 270.29 | M45: 266.75 | N45: 268.29 | O45: 637200
A46: 31 | B46: 2019-12-16 | C46: 267.339996 | D46: 271.980011 | E46: 267.339996 | F46: 270.01001 | G46: 726400 | H46: 270.01001 | I46: 1 | J46: 1 | K46: 267.34 | L46: 271.98 | M46: 267.34 | N46: 270.01 | O46: 726400
A47: 32 | B47: 2019-12-13 | C47: 268.149994 | D47: 268.149994 | E47: 257.429993 | F47: 266.059998 | G47: 1011700 | H47: 266.059998 | I47: 1 | J47: 1 | K47: 268.15 | L47: 268.15 | M47: 257.43 | N47: 266.06 | O47: 1011700
A48: 33 | B48: 2019-12-12 | C48: 275.899994 | D48: 276.339996 | E48: 266.290009 | F48: 268.390015 | G48: 915300 | H48: 268.390015 | I48: 1 | J48: 1 | K48: 275.9 | L48: 276.34 | M48: 266.29 | N48: 268.39 | O48: 915300
A49: 34 | B49: 2019-12-11 | C49: 273.850006 | D49: 278.929993 | E49: 273.130005 | F49: 275.230011 | G49: 539700 | H49: 275.230011 | I49: 1 | J49: 1 | K49: 273.85 | L49: 278.93 | M49: 273.13 | N49: 275.23 | O49: 539700
A50: 35 | B50: 2019-12-10 | C50: 273.049988 | D50: 274.160004 | E50: 269.5 | F50: 273.649994 | G50: 490800 | H50: 273.649994 | I50: 1 | J50: 1 | K50: 273.05 | L50: 274.16 | M50: 269.5 | N50: 273.65 | O50: 490800
A51: 36 | B51: 2019-12-09 | C51: 275.209991 | D51: 277.209991 | E51: 273.179993 | F51: 273.459991 | G51: 456400 | H51: 273.459991 | I51: 1 | J51: 1 | K51: 275.21 | L51: 277.21 | M51: 273.18 | N51: 273.46 | O51: 456400
A52: 37 | B52: 2019-12-06 | C52: 276.450012 | D52: 278.48999 | E52: 274.109985 | F52: 275.720001 | G52: 585500 | H52: 275.720001 | I52: 1 | J52: 1 | K52: 276.45 | L52: 278.49 | M52: 274.11 | N52: 275.72 | O52: 585500
A53: 38 | B53: 2019-12-05 | C53: 279.019989 | D53: 279.049988 | E53: 273.570007 | F53: 274.529999 | G53: 434600 | H53: 274.529999 | I53: 1 | J53: 1 | K53: 279.02 | L53: 279.05 | M53: 273.57 | N53: 274.53 | O53: 434600
A54: 39 | B54: 2019-12-04 | C54: 277.26001 | D54: 279.5 | E54: 275.820007 | F54: 277.709991 | G54: 486100 | H54: 277.709991 | I54: 1 | J54: 1 | K54: 277.26 | L54: 279.5 | M54: 275.82 | N54: 277.71 | O54: 486100
A55: 40 | B55: 2019-12-03 | C55: 271.119995 | D55: 276.600006 | E55: 266.109985 | F55: 276.359985 | G55: 500100 | H55: 276.359985 | I55: 1 | J55: 1 | K55: 271.12 | L55: 276.6 | M55: 266.11 | N55: 276.36 | O55: 500100
A56: 41 | B56: 2019-12-02 | C56: 276.540009 | D56: 278.98999 | E56: 269.540009 | F56: 274.339996 | G56: 616000 | H56: 274.339996 | I56: 1 | J56: 1 | K56: 276.54 | L56: 278.99 | M56: 269.54 | N56: 274.34 | O56: 616000
A57: 42 | B57: 2019-11-29 | C57: 278.850006 | D57: 279.799988 | E57: 276.019989 | F57: 277.339996 | G57: 266200 | H57: 277.339996 | I57: 1 | J57: 1 | K57: 278.85 | L57: 279.8 | M57: 276.02 | N57: 277.34 | O57: 266200
A58: 43 | B58: 2019-11-27 | C58: 279.01001 | D58: 280.720001 | E58: 278.079987 | F58: 279.619995 | G58: 442800 | H58: 279.619995 | I58: 1 | J58: 1 | K58: 279.01 | L58: 280.72 | M58: 278.08 | N58: 279.62 | O58: 442800
A59: 44 | B59: 2019-11-26 | C59: 277.670013 | D59: 281.570007 | E59: 277.200012 | F59: 277.700012 | G59: 647300 | H59: 277.700012 | I59: 1 | J59: 1 | K59: 277.67 | L59: 281.57 | M59: 277.2 | N59: 277.7 | O59: 647300
A60: 45 | B60: 2019-11-25 | C60: 276 | D60: 279.880005 | E60: 275.029999 | F60: 278.070007 | G60: 655600 | H60: 278.070007 | I60: 1 | J60: 1 | K60: 276 | L60: 279.88 | M60: 275.03 | N60: 278.07 | O60: 655600
A61: 46 | B61: 2019-11-22 | C61: 271.070007 | D61: 275.73999 | E61: 268.700012 | F61: 274.399994 | G61: 639200 | H61: 274.399994 | I61: 1 | J61: 1 | K61: 271.07 | L61: 275.74 | M61: 268.7 | N61: 274.4 | O61: 639200
A62: 47 | B62: 2019-11-21 | C62: 269 | D62: 273 | E62: 267.429993 | F62: 272.140015 | G62: 500400 | H62: 272.140015 | I62: 1 | J62: 1 | K62: 269 | L62: 273 | M62: 267.43 | N62: 272.14 | O62: 500400
A63: 48 | B63: 2019-11-20 | C63: 269.839996 | D63: 271.390015 | E63: 264.959991 | F63: 268.769989 | G63: 601900 | H63: 268.769989 | I63: 1 | J63: 1 | K63: 269.84 | L63: 271.39 | M63: 264.96 | N63: 268.77 | O63: 601900
A64: 49 | B64: 2019-11-19 | C64: 269.600006 | D64: 272.859985 | E64: 266.220001 | F64: 271.600006 | G64: 605900 | H64: 271.600006 | I64: 1 | J64: 1 | K64: 269.6 | L64: 272.86 | M64: 266.22 | N64: 271.6 | O64: 605900
A65: 50 | B65: 2019-11-18 | C65: 266.600006 | D65: 269.429993 | E65: 265 | F65: 268.51001 | G65: 801600 | H65: 268.51001 | I65: 1 | J65: 1 | K65: 266.6 | L65: 269.43 | M65: 265 | N65: 268.51 | O65: 801600
A66: 51 | B66: 2019-11-15 | C66: 260.480011 | D66: 265.23999 | E66: 259.200012 | F66: 263.920013 | G66: 602200 | H66: 263.920013 | I66: 1 | J66: 1 | K66: 260.48 | L66: 265.24 | M66: 259.2 | N66: 263.92 | O66: 602200
A67: 52 | B67: 2019-11-14 | C67: 260.26001 | D67: 262.019989 | E67: 259 | F67: 260.440002 | G67: 392300 | H67: 260.440002 | I67: 1 | J67: 1 | K67: 260.26 | L67: 262.02 | M67: 259 | N67: 260.44 | O67: 392300
A68: 53 | B68: 2019-11-13 | C68: 257.320007 | D68: 261 | E68: 255.270004 | F68: 259.630005 | G68: 382800 | H68: 259.630005 | I68: 1 | J68: 1 | K68: 257.32 | L68: 261 | M68: 255.27 | N68: 259.63 | O68: 382800
A69: 54 | B69: 2019-11-12 | C69: 258.420013 | D69: 262.5 | E69: 257.070007 | F69: 258.970001 | G69: 548200 | H69: 258.970001 | I69: 1 | J69: 1 | K69: 258.42 | L69: 262.5 | M69: 257.07 | N69: 258.97 | O69: 548200
A70: 55 | B70: 2019-11-11 | C70: 258.690002 | D70: 260.720001 | E70: 257.51001 | F70: 258.600006 | G70: 527300 | H70: 258.600006 | I70: 1 | J70: 1 | K70: 258.69 | L70: 260.72 | M70: 257.51 | N70: 258.6 | O70: 527300
A71: 56 | B71: 2019-11-08 | C71: 258.179993 | D71: 261.279999 | E71: 255.649994 | F71: 259.920013 | G71: 685500 | H71: 259.920013 | I71: 1 | J71: 1 | K71: 258.18 | L71: 261.28 | M71: 255.65 | N71: 259.92 | O71: 685500
A72: 57 | B72: 2019-11-07 | C72: 257.920013 | D72: 261.600006 | E72: 253.330002 | F72: 258.940002 | G72: 844700 | H72: 258.940002 | I72: 1 | J72: 1 | K72: 257.92 | L72: 261.6 | M72: 253.33 | N72: 258.94 | O72: 844700
A73: 58 | B73: 2019-11-06 | C73: 257.829987 | D73: 260.48999 | E73: 255.110001 | F73: 256.160004 | G73: 931100 | H73: 256.160004 | I73: 1 | J73: 1 | K73: 257.83 | L73: 260.49 | M73: 255.11 | N73: 256.16 | O73: 931100
A74: 59 | B74: 2019-11-05 | C74: 258.869995 | D74: 260.200012 | E74: 255.149994 | F74: 257.910004 | G74: 833900 | H74: 257.910004 | I74: 1 | J74: 1 | K74: 258.87 | L74: 260.2 | M74: 255.15 | N74: 257.91 | O74: 833900
A75: 60 | B75: 2019-11-04 | C75: 258.25 | D75: 260.170013 | E75: 255.110001 | F75: 258.769989 | G75: 815800 | H75: 258.769989 | I75: 1 | J75: 1 | K75: 258.25 | L75: 260.17 | M75: 255.11 | N75: 258.77 | O75: 815800
A76: 61 | B76: 2019-11-01 | C76: 254.309998 | D76: 261.869995 | E76: 253.020004 | F76: 257.040009 | G76: 935400 | H76: 257.040009 | I76: 1 | J76: 1 | K76: 254.31 | L76: 261.87 | M76: 253.02 | N76: 257.04 | O76: 935400
A77: 62 | B77: 2019-10-31 | C77: 251.320007 | D77: 253.410004 | E77: 246.160004 | F77: 252.289993 | G77: 702600 | H77: 252.289993 | I77: 1 | J77: 1 | K77: 251.32 | L77: 253.41 | M77: 246.16 | N77: 252.29 | O77: 702600
A78: 63 | B78: 2019-10-30 | C78: 255.649994 | D78: 255.649994 | E78: 247.539993 | F78: 252.710007 | G78: 812100 | H78: 252.710007 | I78: 1 | J78: 1 | K78: 255.65 | L78: 255.65 | M78: 247.54 | N78: 252.71 | O78: 812100
A79: 64 | B79: 2019-10-29 | C79: 250.039993 | D79: 257.630005 | E79: 248.259995 | F79: 256.119995 | G79: 1104000 | H79: 256.119995 | I79: 1 | J79: 1 | K79: 250.04 | L79: 257.63 | M79: 248.26 | N79: 256.12 | O79: 1104000
A80: 65 | B80: 2019-10-28 | C80: 243.360001 | D80: 253.449997 | E80: 241.759995 | F80: 250.419998 | G80: 1163500 | H80: 250.419998 | I80: 1 | J80: 1 | K80: 243.36 | L80: 253.45 | M80: 241.76 | N80: 250.42 | O80: 1163500
A81: 66 | B81: 2019-10-25 | C81: 245.839996 | D81: 246.399994 | E81: 240.229996 | F81: 243.380005 | G81: 1126900 | H81: 243.380005 | I81: =IF(F81=0,1,H81/F81) -> 1 | J81: =INDEX(OFFSET($T$15,0,0,$S$13+1,1),MATCH(B81,OFFSET($Q$15,0,0,$S$13+1,1),-1)) -> 1 | K81: =ROUND($I81*C81,2) -> 245.84 | L81: =ROUND($I81*D81,2) -> 246.4 | M81: =ROUND($I81*E81,2) -> 240.23 | N81: =ROUND($I81*F81,2) -> 243.38 | O81: =G81*J81 -> 1126900
A82: 67 | B82: 2019-10-24 | C82: 237.300003 | D82: 251.699997 | E82: 233.410004 | F82: 249.470001 | G82: 4091100 | H82: 249.470001 | I82: 1 | J82: 1 | K82: 237.3 | L82: 251.7 | M82: 233.41 | N82: 249.47 | O82: 4091100
A83: 68 | B83: 2019-10-23 | C83: 213.190002 | D83: 218.169998 | E83: 210.729996 | F83: 217.5 | G83: 1186500 | H83: 217.5 | I83: 1 | J83: 1 | K83: 213.19 | L83: 218.17 | M83: 210.73 | N83: 217.5 | O83: 1186500
A84: 69 | B84: 2019-10-22 | C84: 210.979996 | D84: 215.600006 | E84: 207.029999 | F84: 213.600006 | G84: 1157400 | H84: 213.600006 | I84: 1 | J84: 1 | K84: 210.98 | L84: 215.6 | M84: 207.03 | N84: 213.6 | O84: 1157400
A85: 70 | B85: 2019-10-21 | C85: 214.880005 | D85: 215.600006 | E85: 209.600006 | F85: 210.039993 | G85: 1393600 | H85: 210.039993 | I85: 1 | J85: 1 | K85: 214.88 | L85: 215.6 | M85: 209.6 | N85: 210.04 | O85: 1393600
A86: 71 | B86: 2019-10-18 | C86: 214.679993 | D86: 216.429993 | E86: 210.279999 | F86: 213.880005 | G86: 1027800 | H86: 213.880005 | I86: 1 | J86: 1 | K86: 214.68 | L86: 216.43 | M86: 210.28 | N86: 213.88 | O86: 1027800
A87: 72 | B87: 2019-10-17 | C87: 212.229996 | D87: 215.199997 | E87: 209.220001 | F87: 213.919998 | G87: 838400 | H87: 213.919998 | I87: 1 | J87: 1 | K87: 212.23 | L87: 215.2 | M87: 209.22 | N87: 213.92 | O87: 838400
A88: 73 | B88: 2019-10-16 | C88: 208.979996 | D88: 212.649994 | E88: 208.100006 | F88: 211.559998 | G88: 827400 | H88: 211.559998 | I88: 1 | J88: 1 | K88: 208.98 | L88: 212.65 | M88: 208.1 | N88: 211.56 | O88: 827400
A89: 74 | B89: 2019-10-15 | C89: 208.020004 | D89: 209.479996 | E89: 205.059998 | F89: 209.25 | G89: 1024400 | H89: 209.25 | I89: 1 | J89: 1 | K89: 208.02 | L89: 209.48 | M89: 205.06 | N89: 209.25 | O89: 1024400
A90: 75 | B90: 2019-10-14 | C90: 200.160004 | D90: 206.699997 | E90: 199.800003 | F90: 205.149994 | G90: 1077900 | H90: 205.149994 | I90: 1 | J90: 1 | K90: 200.16 | L90: 206.7 | M90: 199.8 | N90: 205.15 | O90: 1077900
A91: 76 | B91: 2019-10-11 | C91: 195.509995 | D91: 202.520004 | E91: 194 | F91: 200.160004 | G91: 1754000 | H91: 200.160004 | I91: 1 | J91: 1 | K91: 195.51 | L91: 202.52 | M91: 194 | N91: 200.16 | O91: 1754000
A92: 77 | B92: 2019-10-10 | C92: 189.25 | D92: 194.190002 | E92: 189.169998 | F92: 194.169998 | G92: 949300 | H92: 194.169998 | I92: 1 | J92: 1 | K92: 189.25 | L92: 194.19 | M92: 189.17 | N92: 194.17 | O92: 949300
A93: 78 | B93: 2019-10-09 | C93: 186.080002 | D93: 191.559998 | E93: 185.649994 | F93: 189.210007 | G93: 1215500 | H93: 189.210007 | I93: 1 | J93: 1 | K93: 186.08 | L93: 191.56 | M93: 185.65 | N93: 189.21 | O93: 1215500
A94: 79 | B94: 2019-10-08 | C94: 183.429993 | D94: 186.070007 | E94: 181.259995 | F94: 184.300003 | G94: 1057300 | H94: 184.300003 | I94: 1 | J94: 1 | K94: 183.43 | L94: 186.07 | M94: 181.26 | N94: 184.3 | O94: 1057300
A95: 80 | B95: 2019-10-07 | C95: 177.850006 | D95: 186.490005 | E95: 177.179993 | F95: 184.509995 | G95: 850600 | H95: 184.509995 | I95: 1 | J95: 1 | K95: 177.85 | L95: 186.49 | M95: 177.18 | N95: 184.51 | O95: 850600
A96: 81 | B96: 2019-10-04 | C96: 184.589996 | D96: 187.669998 | E96: 180.119995 | F96: 181.589996 | G96: 862500 | H96: 181.589996 | I96: 1 | J96: 1 | K96: 184.59 | L96: 187.67 | M96: 180.12 | N96: 181.59 | O96: 862500
A97: 82 | B97: 2019-10-03 | C97: 179.899994 | D97: 184.860001 | E97: 175.520004 | F97: 184.770004 | G97: 777200 | H97: 184.770004 | I97: 1 | J97: 1 | K97: 179.9 | L97: 184.86 | M97: 175.52 | N97: 184.77 | O97: 777200
A98: 83 | B98: 2019-10-02 | C98: 181.440002 | D98: 182 | E98: 176.360001 | F98: 179.75 | G98: 973200 | H98: 179.75 | I98: 1 | J98: 1 | K98: 181.44 | L98: 182 | M98: 176.36 | N98: 179.75 | O98: 973200
A99: 84 | B99: 2019-10-01 | C99: 181.220001 | D99: 183.339996 | E99: 179.529999 | F99: 182.300003 | G99: 1110800 | H99: 182.300003 | I99: 1 | J99: 1 | K99: 181.22 | L99: 183.34 | M99: 179.53 | N99: 182.3 | O99: 1110800
A100: 85 | B100: 2019-09-30 | C100: 176.509995 | D100: 181.850006 | E100: 176.509995 | F100: 180.919998 | G100: 948100 | H100: 180.919998 | I100: 1 | J100: 1 | K100: 176.51 | L100: 181.85 | M100: 176.51 | N100: 180.92 | O100: 948100
A101: 86 | B101: 2019-09-27 | C101: 179.589996 | D101: 181.839996 | E101: 175.179993 | F101: 175.839996 | G101: 687000 | H101: 175.839996 | I101: 1 | J101: 1 | K101: 179.59 | L101: 181.84 | M101: 175.18 | N101: 175.84 | O101: 687000
A102: 87 | B102: 2019-09-26 | C102: 183.270004 | D102: 185 | E102: 176.630005 | F102: 178.990005 | G102: 1160700 | H102: 178.990005 | I102: 1 | J102: 1 | K102: 183.27 | L102: 185 | M102: 176.63 | N102: 178.99 | O102: 1160700
A103: 88 | B103: 2019-09-25 | C103: 184.509995 | D103: 184.509995 | E103: 180.369995 | F103: 183.630005 | G103: 854500 | H103: 183.630005 | I103: 1 | J103: 1 | K103: 184.51 | L103: 184.51 | M103: 180.37 | N103: 183.63 | O103: 854500
A104: 89 | B104: 2019-09-24 | C104: 185.179993 | D104: 186.570007 | E104: 182.240005 | F104: 183.050003 | G104: 1810200 | H104: 183.050003 | I104: 1 | J104: 1 | K104: 185.18 | L104: 186.57 | M104: 182.24 | N104: 183.05 | O104: 1810200
A105: 90 | B105: 2019-09-23 | C105: 186.369995 | D105: 186.830002 | E105: 182.509995 | F105: 183.889999 | G105: 1224800 | H105: 183.889999 | I105: 1 | J105: 1 | K105: 186.37 | L105: 186.83 | M105: 182.51 | N105: 183.89 | O105: 1224800
A106: 91 | B106: 2019-09-20 | C106: 180.800003 | D106: 188.160004 | E106: 179.5 | F106: 186.539993 | G106: 2782000 | H106: 186.539993 | I106: 1 | J106: 1 | K106: 180.8 | L106: 188.16 | M106: 179.5 | N106: 186.54 | O106: 2782000
A107: 92 | B107: 2019-09-19 | C107: 176 | D107: 180.889999 | E107: 175.75 | F107: 180.360001 | G107: 1119900 | H107: 180.360001 | I107: 1 | J107: 1 | K107: 176 | L107: 180.89 | M107: 175.75 | N107: 180.36 | O107: 1119900
A108: 93 | B108: 2019-09-18 | C108: 177.589996 | D108: 178.020004 | E108: 171.850006 | F108: 175.800003 | G108: 952700 | H108: 175.800003 | I108: 1 | J108: 1 | K108: 177.59 | L108: 178.02 | M108: 171.85 | N108: 175.8 | O108: 952700
A109: 94 | B109: 2019-09-17 | C109: 179.369995 | D109: 180.649994 | E109: 177.389999 | F109: 177.649994 | G109: 575500 | H109: 177.649994 | I109: 1 | J109: 1 | K109: 179.37 | L109: 180.65 | M109: 177.39 | N109: 177.65 | O109: 575500
A110: 95 | B110: 2019-09-16 | C110: 176.460007 | D110: 179.539993 | E110: 176.160004 | F110: 179.369995 | G110: 1032000 | H110: 179.369995 | I110: 1 | J110: 1 | K110: 176.46 | L110: 179.54 | M110: 176.16 | N110: 179.37 | O110: 1032000
A111: 96 | B111: 2019-09-13 | C111: 176.009995 | D111: 179.490005 | E111: 175 | F111: 177.470001 | G111: 1210100 | H111: 177.470001 | I111: 1 | J111: 1 | K111: 176.01 | L111: 179.49 | M111: 175 | N111: 177.47 | O111: 1210100
A112: 97 | B112: 2019-09-12 | C112: 181.649994 | D112: 184.550003 | E112: 174.059998 | F112: 174.619995 | G112: 1616800 | H112: 174.619995 | I112: 1 | J112: 1 | K112: 181.65 | L112: 184.55 | M112: 174.06 | N112: 174.62 | O112: 1616800
A113: 98 | B113: 2019-09-11 | C113: 177.899994 | D113: 181.850006 | E113: 175.270004 | F113: 179.770004 | G113: 1278000 | H113: 179.770004 | I113: 1 | J113: 1 | K113: 177.9 | L113: 181.85 | M113: 175.27 | N113: 179.77 | O113: 1278000
A114: 99 | B114: 2019-09-10 | C114: 172.889999 | D114: 179.350006 | E114: 171.320007 | F114: 177.800003 | G114: 2024500 | H114: 177.800003 | I114: 1 | J114: 1 | K114: 172.89 | L114: 179.35 | M114: 171.32 | N114: 177.8 | O114: 2024500
A115: 100 | B115: 2019-09-09 | C115: 175.929993 | D115: 176.199997 | E115: 169.839996 | F115: 173.160004 | G115: 2014900 | H115: 173.160004 | I115: 1 | J115: 1 | K115: 175.93 | L115: 176.2 | M115: 169.84 | N115: 173.16 | O115: 2014900
A116: 101 | B116: 2019-09-06 | C116: 178.649994 | D116: 179.130005 | E116: 174.380005 | F116: 175.059998 | G116: 1554900 | H116: 175.059998 | I116: 1 | J116: 1 | K116: 178.65 | L116: 179.13 | M116: 174.38 | N116: 175.06 | O116: 1554900
A117: 102 | B117: 2019-09-05 | C117: 178.729996 | D117: 182.360001 | E117: 176.860001 | F117: 177.110001 | G117: 1222200 | H117: 177.110001 | I117: 1 | J117: 1 | K117: 178.73 | L117: 182.36 | M117: 176.86 | N117: 177.11 | O117: 1222200
A118: 103 | B118: 2019-09-04 | C118: 180.350006 | D118: 180.720001 | E118: 174.240005 | F118: 176.380005 | G118: 1283900 | H118: 176.380005 | I118: 1 | J118: 1 | K118: 180.35 | L118: 180.72 | M118: 174.24 | N118: 176.38 | O118: 1283900
A119: 104 | B119: 2019-09-03 | C119: 182.229996 | D119: 182.5 | E119: 177.25 | F119: 177.910004 | G119: 1890200 | H119: 177.910004 | I119: 1 | J119: 1 | K119: 182.23 | L119: 182.5 | M119: 177.25 | N119: 177.91 | O119: 1890200
A120: 105 | B120: 2019-08-30 | C120: 182 | D120: 186.210007 | E120: 180.550003 | F120: 183.110001 | G120: 1679300 | H120: 183.110001 | I120: 1 | J120: 1 | K120: 182 | L120: 186.21 | M120: 180.55 | N120: 183.11 | O120: 1679300
A121: 106 | B121: 2019-08-29 | C121: 178.460007 | D121: 181.25 | E121: 178.300003 | F121: 179.949997 | G121: 1028100 | H121: 179.949997 | I121: 1 | J121: 1 | K121: 178.46 | L121: 181.25 | M121: 178.3 | N121: 179.95 | O121: 1028100
A122: 107 | B122: 2019-08-28 | C122: 172.5 | D122: 178.830002 | E122: 172.110001 | F122: 177.309998 | G122: 989500 | H122: 177.309998 | I122: 1 | J122: 1 | K122: 172.5 | L122: 178.83 | M122: 172.11 | N122: 177.31 | O122: 989500
A123: 108 | B123: 2019-08-27 | C123: 175.919998 | D123: 177.240005 | E123: 173.059998 | F123: 173.800003 | G123: 874000 | H123: 173.800003 | I123: 1 | J123: 1 | K123: 175.92 | L123: 177.24 | M123: 173.06 | N123: 173.8 | O123: 874000
A124: 109 | B124: 2019-08-26 | C124: 177.169998 | D124: 179.080002 | E124: 173.300003 | F124: 175.190002 | G124: 784400 | H124: 175.190002 | I124: 1 | J124: 1 | K124: 177.17 | L124: 179.08 | M124: 173.3 | N124: 175.19 | O124: 784400
A125: 110 | B125: 2019-08-23 | C125: 177.839996 | D125: 179.149994 | E125: 173.800003 | F125: 175.039993 | G125: 1146600 | H125: 175.039993 | I125: 1 | J125: 1 | K125: 177.84 | L125: 179.15 | M125: 173.8 | N125: 175.04 | O125: 1146600
A126: 111 | B126: 2019-08-22 | C126: 177.910004 | D126: 181.410004 | E126: 177.449997 | F126: 178.970001 | G126: 972700 | H126: 178.970001 | I126: 1 | J126: 1 | K126: 177.91 | L126: 181.41 | M126: 177.45 | N126: 178.97 | O126: 972700
A127: 112 | B127: 2019-08-21 | C127: 176.070007 | D127: 177.520004 | E127: 175.020004 | F127: 176.389999 | G127: 620200 | H127: 176.389999 | I127: 1 | J127: 1 | K127: 176.07 | L127: 177.52 | M127: 175.02 | N127: 176.39 | O127: 620200
A128: 113 | B128: 2019-08-20 | C128: 177.240005 | D128: 178.160004 | E128: 174.300003 | F128: 174.5 | G128: 774500 | H128: 174.5 | I128: 1 | J128: 1 | K128: 177.24 | L128: 178.16 | M128: 174.3 | N128: 174.5 | O128: 774500
A129: 114 | B129: 2019-08-19 | C129: 180 | D129: 181.330002 | E129: 176.589996 | F129: 177.619995 | G129: 1070200 | H129: 177.619995 | I129: 1 | J129: 1 | K129: 180 | L129: 181.33 | M129: 176.59 | N129: 177.62 | O129: 1070200
A130: 115 | B130: 2019-08-16 | C130: 175.929993 | D130: 178.339996 | E130: 175.460007 | F130: 177.289993 | G130: 1047200 | H130: 177.289993 | I130: 1 | J130: 1 | K130: 175.93 | L130: 178.34 | M130: 175.46 | N130: 177.29 | O130: 1047200
A131: 116 | B131: 2019-08-15 | C131: 175.610001 | D131: 176.779999 | E131: 172.619995 | F131: 174.369995 | G131: 950800 | H131: 174.369995 | I131: 1 | J131: 1 | K131: 175.61 | L131: 176.78 | M131: 172.62 | N131: 174.37 | O131: 950800
A132: 117 | B132: 2019-08-14 | C132: 179.220001 | D132: 179.860001 | E132: 174.089996 | F132: 174.289993 | G132: 1149500 | H132: 174.289993 | I132: 1 | J132: 1 | K132: 179.22 | L132: 179.86 | M132: 174.09 | N132: 174.29 | O132: 1149500
A133: 118 | B133: 2019-08-13 | C133: 178.970001 | D133: 183.800003 | E133: 178.630005 | F133: 182 | G133: 862000 | H133: 182 | I133: 1 | J133: 1 | K133: 178.97 | L133: 183.8 | M133: 178.63 | N133: 182 | O133: 862000
A134: 119 | B134: 2019-08-12 | C134: 181.259995 | D134: 182.770004 | E134: 178.600006 | F134: 179.679993 | G134: 1121300 | H134: 179.679993 | I134: 1 | J134: 1 | K134: 181.26 | L134: 182.77 | M134: 178.6 | N134: 179.68 | O134: 1121300
A135: 120 | B135: 2019-08-09 | C135: 186.139999 | D135: 189.369995 | E135: 183.059998 | F135: 183.330002 | G135: 1079600 | H135: 183.330002 | I135: 1 | J135: 1 | K135: 186.14 | L135: 189.37 | M135: 183.06 | N135: 183.33 | O135: 1079600
A136: 121 | B136: 2019-08-08 | C136: 185.199997 | D136: 189.75 | E136: 185.199997 | F136: 188.279999 | G136: 1137800 | H136: 188.279999 | I136: 1 | J136: 1 | K136: 185.2 | L136: 189.75 | M136: 185.2 | N136: 188.28 | O136: 1137800
A137: 122 | B137: 2019-08-07 | C137: 186.130005 | D137: 186.130005 | E137: 181.949997 | F137: 183.899994 | G137: 2025100 | H137: 183.899994 | I137: 1 | J137: 1 | K137: 186.13 | L137: 186.13 | M137: 181.95 | N137: 183.9 | O137: 2025100
A138: 123 | B138: 2019-08-06 | C138: 189.070007 | D138: 192.330002 | E138: 186.509995 | F138: 188.440002 | G138: 1216300 | H138: 188.440002 | I138: 1 | J138: 1 | K138: 189.07 | L138: 192.33 | M138: 186.51 | N138: 188.44 | O138: 1216300
A139: 124 | B139: 2019-08-05 | C139: 194.399994 | D139: 194.399994 | E139: 186.289993 | F139: 188.369995 | G139: 2319800 | H139: 188.369995 | I139: 1 | J139: 1 | K139: 194.4 | L139: 194.4 | M139: 186.29 | N139: 188.37 | O139: 2319800
A140: 125 | B140: 2019-08-02 | C140: 201.550003 | D140: 205.399994 | E140: 198.679993 | F140: 199.380005 | G140: 1715800 | H140: 199.380005 | I140: 1 | J140: 1 | K140: 201.55 | L140: 205.4 | M140: 198.68 | N140: 199.38 | O140: 1715800
A141: 126 | B141: 2019-08-01 | C141: 209.089996 | D141: 209.990005 | E141: 200.259995 | F141: 202.350006 | G141: 1859000 | H141: 202.350006 | I141: 1 | J141: 1 | K141: 209.09 | L141: 209.99 | M141: 200.26 | N141: 202.35 | O141: 1859000
A142: 127 | B142: 2019-07-31 | C142: 208 | D142: 214.5 | E142: 206.270004 | F142: 209.080002 | G142: 2970400 | H142: 209.080002 | I142: 1 | J142: 1 | K142: 208 | L142: 214.5 | M142: 206.27 | N142: 209.08 | O142: 2970400
A143: 128 | B143: 2019-07-30 | C143: 194.649994 | D143: 204.050003 | E143: 194.020004 | F143: 203.25 | G143: 2281300 | H143: 203.25 | I143: 1 | J143: 1 | K143: 194.65 | L143: 204.05 | M143: 194.02 | N143: 203.25 | O143: 2281300
A144: 129 | B144: 2019-07-29 | C144: 199.179993 | D144: 199.639999 | E144: 189.600006 | F144: 196.050003 | G144: 3145500 | H144: 196.050003 | I144: 1 | J144: 1 | K144: 199.18 | L144: 199.64 | M144: 189.6 | N144: 196.05 | O144: 3145500
A145: 130 | B145: 2019-07-26 | C145: 203.259995 | D145: 203.520004 | E145: 195.710007 | F145: 198.839996 | G145: 2954100 | H145: 198.839996 | I145: =IF(F145=0,1,H145/F145) -> 1 | J145: =INDEX(OFFSET($T$15,0,0,$S$13+1,1),MATCH(B145,OFFSET($Q$15,0,0,$S$13+1,1),-1)) -> 1 | K145: =ROUND($I145*C145,2) -> 203.26 | L145: =ROUND($I145*D145,2) -> 203.52 | M145: =ROUND($I145*E145,2) -> 195.71 | N145: =ROUND($I145*F145,2) -> 198.84 | O145: =G145*J145 -> 2954100
A146: 131 | B146: 2019-07-25 | C146: 219.279999 | D146: 219.710007 | E146: 197.110001 | F146: 200.899994 | G146: 9535000 | H146: 200.899994 | I146: 1 | J146: 1 | K146: 219.28 | L146: 219.71 | M146: 197.11 | N146: 200.9 | O146: 9535000
A147: 132 | B147: 2019-07-24 | C147: 272 | D147: 279.950012 | E147: 270.109985 | F147: 275.160004 | G147: 2407700 | H147: 275.160004 | I147: 1 | J147: 1 | K147: 272 | L147: 279.95 | M147: 270.11 | N147: 275.16 | O147: 2407700
A148: 133 | B148: 2019-07-23 | C148: 274.880005 | D148: 276.140015 | E148: 269.290009 | F148: 272.959991 | G148: 900400 | H148: 272.959991 | I148: 1 | J148: 1 | K148: 274.88 | L148: 276.14 | M148: 269.29 | N148: 272.96 | O148: 900400
A149: 134 | B149: 2019-07-22 | C149: 281.429993 | D149: 283.26001 | E149: 274.01001 | F149: 274.470001 | G149: 799400 | H149: 274.470001 | I149: 1 | J149: 1 | K149: 281.43 | L149: 283.26 | M149: 274.01 | N149: 274.47 | O149: 799400
A150: 135 | B150: 2019-07-19 | C150: 284.570007 | D150: 288.359985 | E150: 280 | F150: 281.209991 | G150: 951900 | H150: 281.209991 | I150: 1 | J150: 1 | K150: 284.57 | L150: 288.36 | M150: 280 | N150: 281.21 | O150: 951900
A151: 136 | B151: 2019-07-18 | C151: 283.470001 | D151: 288.809998 | E151: 281.51001 | F151: 283.369995 | G151: 1346000 | H151: 283.369995 | I151: 1 | J151: 1 | K151: 283.47 | L151: 288.81 | M151: 281.51 | N151: 283.37 | O151: 1346000
A152: 137 | B152: 2019-07-17 | C152: 281.679993 | D152: 286.279999 | E152: 281 | F152: 283.910004 | G152: 525600 | H152: 283.910004 | I152: 1 | J152: 1 | K152: 281.68 | L152: 286.28 | M152: 281 | N152: 283.91 | O152: 525600
A153: 138 | B153: 2019-07-16 | C153: 284.649994 | D153: 284.899994 | E153: 279.98999 | F153: 281.070007 | G153: 366600 | H153: 281.070007 | I153: 1 | J153: 1 | K153: 284.65 | L153: 284.9 | M153: 279.99 | N153: 281.07 | O153: 366600
A154: 139 | B154: 2019-07-15 | C154: 283.570007 | D154: 286.910004 | E154: 280.559998 | F154: 284.299988 | G154: 490200 | H154: 284.299988 | I154: 1 | J154: 1 | K154: 283.57 | L154: 286.91 | M154: 280.56 | N154: 284.3 | O154: 490200
A155: 140 | B155: 2019-07-12 | C155: 284.019989 | D155: 285.170013 | E155: 278.730011 | F155: 283.910004 | G155: 524200 | H155: 283.910004 | I155: 1 | J155: 1 | K155: 284.02 | L155: 285.17 | M155: 278.73 | N155: 283.91 | O155: 524200
A156: 141 | B156: 2019-07-11 | C156: 290 | D156: 290.779999 | E156: 280.149994 | F156: 282.589996 | G156: 610800 | H156: 282.589996 | I156: 1 | J156: 1 | K156: 290 | L156: 290.78 | M156: 280.15 | N156: 282.59 | O156: 610800
A157: 142 | B157: 2019-07-10 | C157: 278.200012 | D157: 287.950012 | E157: 278.200012 | F157: 286.649994 | G157: 1010800 | H157: 286.649994 | I157: 1 | J157: 1 | K157: 278.2 | L157: 287.95 | M157: 278.2 | N157: 286.65 | O157: 1010800
A158: 143 | B158: 2019-07-09 | C158: 269.630005 | D158: 275.920013 | E158: 269.630005 | F158: 275.410004 | G158: 509800 | H158: 275.410004 | I158: 1 | J158: 1 | K158: 269.63 | L158: 275.92 | M158: 269.63 | N158: 275.41 | O158: 509800
A159: 144 | B159: 2019-07-08 | C159: 270.5 | D159: 273.890015 | E159: 268.890015 | F159: 272.23999 | G159: 573400 | H159: 272.23999 | I159: 1 | J159: 1 | K159: 270.5 | L159: 273.89 | M159: 268.89 | N159: 272.24 | O159: 573400
A160: 145 | B160: 2019-07-05 | C160: 274.109985 | D160: 276.940002 | E160: 268.660004 | F160: 273.290009 | G160: 661400 | H160: 273.290009 | I160: 1 | J160: 1 | K160: 274.11 | L160: 276.94 | M160: 268.66 | N160: 273.29 | O160: 661400
A161: 146 | B161: 2019-07-03 | C161: 272.329987 | D161: 277.470001 | E161: 271.380005 | F161: 275 | G161: 588000 | H161: 275 | I161: 1 | J161: 1 | K161: 272.33 | L161: 277.47 | M161: 271.38 | N161: 275 | O161: 588000
A162: 147 | B162: 2019-07-02 | C162: 272.649994 | D162: 276.220001 | E162: 269.570007 | F162: 270.899994 | G162: 897800 | H162: 270.899994 | I162: 1 | J162: 1 | K162: 272.65 | L162: 276.22 | M162: 269.57 | N162: 270.9 | O162: 897800
A163: 148 | B163: 2019-07-01 | C163: 280.640015 | D163: 283.329987 | E163: 271.25 | F163: 271.679993 | G163: 1230700 | H163: 271.679993 | I163: 1 | J163: 1 | K163: 280.64 | L163: 283.33 | M163: 271.25 | N163: 271.68 | O163: 1230700
A164: 149 | B164: 2019-06-28 | C164: 270.049988 | D164: 274.170013 | E164: 263.700012 | F164: 273.700012 | G164: 1413700 | H164: 273.700012 | I164: 1 | J164: 1 | K164: 270.05 | L164: 274.17 | M164: 263.7 | N164: 273.7 | O164: 1413700
A165: 150 | B165: 2019-06-27 | C165: 269.079987 | D165: 273.420013 | E165: 268.290009 | F165: 269.950012 | G165: 1001200 | H165: 269.950012 | I165: 1 | J165: 1 | K165: 269.08 | L165: 273.42 | M165: 268.29 | N165: 269.95 | O165: 1001200
A166: 151 | B166: 2019-06-26 | C166: 277.23999 | D166: 277.23999 | E166: 267.359985 | F166: 268.079987 | G166: 1563500 | H166: 268.079987 | I166: 1 | J166: 1 | K166: 277.24 | L166: 277.24 | M166: 267.36 | N166: 268.08 | O166: 1563500
A167: 152 | B167: 2019-06-25 | C167: 282.269989 | D167: 283.869995 | E167: 274.859985 | F167: 276.019989 | G167: 991000 | H167: 276.019989 | I167: 1 | J167: 1 | K167: 282.27 | L167: 283.87 | M167: 274.86 | N167: 276.02 | O167: 991000
A168: 153 | B168: 2019-06-24 | C168: 283.5 | D168: 286.75 | E168: 279.459991 | F168: 282.160004 | G168: 1074200 | H168: 282.160004 | I168: 1 | J168: 1 | K168: 283.5 | L168: 286.75 | M168: 279.46 | N168: 282.16 | O168: 1074200
A169: 154 | B169: 2019-06-21 | C169: 294.910004 | D169: 294.910004 | E169: 283.149994 | F169: 283.559998 | G169: 1497400 | H169: 283.559998 | I169: 1 | J169: 1 | K169: 294.91 | L169: 294.91 | M169: 283.15 | N169: 283.56 | O169: 1497400
A170: 155 | B170: 2019-06-20 | C170: 302.029999 | D170: 302.029999 | E170: 294.299988 | F170: 295.670013 | G170: 768600 | H170: 295.670013 | I170: 1 | J170: 1 | K170: 302.03 | L170: 302.03 | M170: 294.3 | N170: 295.67 | O170: 768600
A171: 156 | B171: 2019-06-19 | C171: 290.299988 | D171: 298.170013 | E171: 287.130005 | F171: 296.839996 | G171: 988800 | H171: 296.839996 | I171: 1 | J171: 1 | K171: 290.3 | L171: 298.17 | M171: 287.13 | N171: 296.84 | O171: 988800
A172: 157 | B172: 2019-06-18 | C172: 293.230011 | D172: 297.049988 | E172: 288.950012 | F172: 290.059998 | G172: 1099300 | H172: 290.059998 | I172: 1 | J172: 1 | K172: 293.23 | L172: 297.05 | M172: 288.95 | N172: 290.06 | O172: 1099300
A173: 158 | B173: 2019-06-17 | C173: 306.660004 | D173: 306.660004 | E173: 282.399994 | F173: 288.679993 | G173: 2348600 | H173: 288.679993 | I173: 1 | J173: 1 | K173: 306.66 | L173: 306.66 | M173: 282.4 | N173: 288.68 | O173: 2348600
A174: 159 | B174: 2019-06-14 | C174: 312.079987 | D174: 312.079987 | E174: 305.019989 | F174: 305.700012 | G174: 482700 | H174: 305.700012 | I174: 1 | J174: 1 | K174: 312.08 | L174: 312.08 | M174: 305.02 | N174: 305.7 | O174: 482700
A175: 160 | B175: 2019-06-13 | C175: 312.820007 | D175: 313.880005 | E175: 307.26001 | F175: 311.070007 | G175: 483300 | H175: 311.070007 | I175: 1 | J175: 1 | K175: 312.82 | L175: 313.88 | M175: 307.26 | N175: 311.07 | O175: 483300
A176: 161 | B176: 2019-06-12 | C176: 309.299988 | D176: 312.170013 | E176: 304.649994 | F176: 312 | G176: 439100 | H176: 312 | I176: 1 | J176: 1 | K176: 309.3 | L176: 312.17 | M176: 304.65 | N176: 312 | O176: 439100
A177: 162 | B177: 2019-06-11 | C177: 315.410004 | D177: 316.709991 | E177: 304.549988 | F177: 308.880005 | G177: 818100 | H177: 308.880005 | I177: 1 | J177: 1 | K177: 315.41 | L177: 316.71 | M177: 304.55 | N177: 308.88 | O177: 818100
A178: 163 | B178: 2019-06-10 | C178: 309.339996 | D178: 319.170013 | E178: 309.339996 | F178: 315.029999 | G178: 747100 | H178: 315.029999 | I178: 1 | J178: 1 | K178: 309.34 | L178: 319.17 | M178: 309.34 | N178: 315.03 | O178: 747100
A179: 164 | B179: 2019-06-07 | C179: 309.429993 | D179: 314 | E179: 306.630005 | F179: 307.660004 | G179: 780200 | H179: 307.660004 | I179: 1 | J179: 1 | K179: 309.43 | L179: 314 | M179: 306.63 | N179: 307.66 | O179: 780200
A180: 165 | B180: 2019-06-06 | C180: 302.029999 | D180: 308.589996 | E180: 298.480011 | F180: 306.359985 | G180: 603900 | H180: 306.359985 | I180: 1 | J180: 1 | K180: 302.03 | L180: 308.59 | M180: 298.48 | N180: 306.36 | O180: 603900
A181: 166 | B181: 2019-06-05 | C181: 301.920013 | D181: 303.73999 | E181: 295.320007 | F181: 302.570007 | G181: 870000 | H181: 302.570007 | I181: 1 | J181: 1 | K181: 301.92 | L181: 303.74 | M181: 295.32 | N181: 302.57 | O181: 870000
A182: 167 | B182: 2019-06-04 | C182: 288.160004 | D182: 298.079987 | E182: 286.630005 | F182: 297.23999 | G182: 1088100 | H182: 297.23999 | I182: 1 | J182: 1 | K182: 288.16 | L182: 298.08 | M182: 286.63 | N182: 297.24 | O182: 1088100
A183: 168 | B183: 2019-06-03 | C183: 282.859985 | D183: 285.269989 | E183: 276.049988 | F183: 283.320007 | G183: 1349900 | H183: 283.320007 | I183: 1 | J183: 1 | K183: 282.86 | L183: 285.27 | M183: 276.05 | N183: 283.32 | O183: 1349900
A184: 169 | B184: 2019-05-31 | C184: 277.880005 | D184: 289.609985 | E184: 272.600006 | F184: 284.350006 | G184: 2509600 | H184: 284.350006 | I184: 1 | J184: 1 | K184: 277.88 | L184: 289.61 | M184: 272.6 | N184: 284.35 | O184: 2509600
A185: 170 | B185: 2019-05-30 | C185: 297.890015 | D185: 303.899994 | E185: 293.779999 | F185: 296.679993 | G185: 653500 | H185: 296.679993 | I185: 1 | J185: 1 | K185: 297.89 | L185: 303.9 | M185: 293.78 | N185: 296.68 | O185: 653500
A186: 171 | B186: 2019-05-29 | C186: 302.369995 | D186: 302.369995 | E186: 293.820007 | F186: 297.410004 | G186: 1354100 | H186: 297.410004 | I186: 1 | J186: 1 | K186: 302.37 | L186: 302.37 | M186: 293.82 | N186: 297.41 | O186: 1354100
A187: 172 | B187: 2019-05-28 | C187: 311.070007 | D187: 317.339996 | E187: 304.309998 | F187: 304.809998 | G187: 964000 | H187: 304.809998 | I187: 1 | J187: 1 | K187: 311.07 | L187: 317.34 | M187: 304.31 | N187: 304.81 | O187: 964000
A188: 173 | B188: 2019-05-24 | C188: 309.589996 | D188: 312.899994 | E188: 306.820007 | F188: 311.470001 | G188: 545200 | H188: 311.470001 | I188: 1 | J188: 1 | K188: 309.59 | L188: 312.9 | M188: 306.82 | N188: 311.47 | O188: 545200
A189: 174 | B189: 2019-05-23 | C189: 315.130005 | D189: 315.820007 | E189: 305.589996 | F189: 307.850006 | G189: 1150100 | H189: 307.850006 | I189: 1 | J189: 1 | K189: 315.13 | L189: 315.82 | M189: 305.59 | N189: 307.85 | O189: 1150100
A190: 175 | B190: 2019-05-22 | C190: 321.040009 | D190: 323 | E190: 315.890015 | F190: 318.820007 | G190: 560300 | H190: 318.820007 | I190: 1 | J190: 1 | K190: 321.04 | L190: 323 | M190: 315.89 | N190: 318.82 | O190: 560300
A191: 176 | B191: 2019-05-21 | C191: 322.5 | D191: 326.209991 | E191: 319.140015 | F191: 319.679993 | G191: 575600 | H191: 319.679993 | I191: 1 | J191: 1 | K191: 322.5 | L191: 326.21 | M191: 319.14 | N191: 319.68 | O191: 575600
A192: 177 | B192: 2019-05-20 | C192: 319.549988 | D192: 322.690002 | E192: 313.579987 | F192: 319.679993 | G192: 716700 | H192: 319.679993 | I192: 1 | J192: 1 | K192: 319.55 | L192: 322.69 | M192: 313.58 | N192: 319.68 | O192: 716700
A193: 178 | B193: 2019-05-17 | C193: 328.200012 | D193: 330.720001 | E193: 321.709991 | F193: 322.609985 | G193: 826200 | H193: 322.609985 | I193: 1 | J193: 1 | K193: 328.2 | L193: 330.72 | M193: 321.71 | N193: 322.61 | O193: 826200
A194: 179 | B194: 2019-05-16 | C194: 326 | D194: 334.640015 | E194: 326 | F194: 330.869995 | G194: 865800 | H194: 330.869995 | I194: 1 | J194: 1 | K194: 326 | L194: 334.64 | M194: 326 | N194: 330.87 | O194: 865800
A195: 180 | B195: 2019-05-15 | C195: 319 | D195: 328.660004 | E195: 316.01001 | F195: 325.709991 | G195: 727200 | H195: 325.709991 | I195: 1 | J195: 1 | K195: 319 | L195: 328.66 | M195: 316.01 | N195: 325.71 | O195: 727200
A196: 181 | B196: 2019-05-14 | C196: 312.25 | D196: 323.179993 | E196: 312.079987 | F196: 320.089996 | G196: 918700 | H196: 320.089996 | I196: 1 | J196: 1 | K196: 312.25 | L196: 323.18 | M196: 312.08 | N196: 320.09 | O196: 918700
A197: 182 | B197: 2019-05-13 | C197: 312.269989 | D197: 317.940002 | E197: 308.149994 | F197: 310.149994 | G197: 947300 | H197: 310.149994 | I197: 1 | J197: 1 | K197: 312.27 | L197: 317.94 | M197: 308.15 | N197: 310.15 | O197: 947300
A198: 183 | B198: 2019-05-10 | C198: 322.149994 | D198: 324.769989 | E198: 314 | F198: 321.929993 | G198: 704000 | H198: 321.929993 | I198: 1 | J198: 1 | K198: 322.15 | L198: 324.77 | M198: 314 | N198: 321.93 | O198: 704000
A199: 184 | B199: 2019-05-09 | C199: 318.549988 | D199: 325.570007 | E199: 313.730011 | F199: 323.25 | G199: 784900 | H199: 323.25 | I199: 1 | J199: 1 | K199: 318.55 | L199: 325.57 | M199: 313.73 | N199: 323.25 | O199: 784900
A200: 185 | B200: 2019-05-08 | C200: 324.269989 | D200: 325 | E200: 318.519989 | F200: 322.869995 | G200: 751500 | H200: 322.869995 | I200: 1 | J200: 1 | K200: 324.27 | L200: 325 | M200: 318.52 | N200: 322.87 | O200: 751500
... 4595 more rows

Sheet InputIndexPriceData
A1: SPDR S&P 500 ETF Trust (SPY) -NYSEArca (Daily)
IJ2: 241.79
A3: Request Online Yahoo History for: | F3: Market State == > | G3: At close: | H3: 16:00:00 | I3: EST
A4: Symbol | B4: SPY | D4: Valid | I4: =OFFSET(I4,-2,0,1,1) -> 0
A5: From | B5: 1950-01-01 | D5: Data | AD5: Trailing 12 Div return (Cur Close)
A6: To | B6: =NOW() -> 2020-01-30T22:35:43.050 | D6: Types | E6: =VLOOKUP(B7,D7:E10,2,FALSE) -> d
A7: Data Type | B7: Daily | D7: Daily | E7: d
A8: Crumb | B8: mRqe6/h2yOf | D8: Weekly | E8: w
A9: Available Data | D9: Monthly | E9: m
A10: Bar Count: | B10: 6800 | AD10: =OFFSET(AC15,1,0,1,1)/OFFSET(N15,1,0,1,1) -> 0.01715096758
A11: From: | B11: =IF(B10<=0,"",OFFSET(B15,B10,IF(HistReqDataType="v",1,0),1,1)) -> 1993-01-29 | W11: Trailing 12 Month Dividend Returns
A12: To: | B12: =IF(B10<=0,"",IF(HistReqDataType="v",OFFSET(B15,2,1,1,1),OFFSET(B15,1,0,1,1))) -> 2020-01-30 | W12: Raw Close price on Dividend date | X12: Div Year and Month | Y12: Looking for year ago Div Year and Month | Z12: Year ago Div Date we found | AA12: row offset to year ago div Date | AB12: Same month flag | AC12: Trailing 12 Div Total | AD12: Trailing 12 Div return
Q13: Split History | S13: 0 | T13: Running | U13: Dividend History
B14: Raw Data Values | H14: Adjusted | I14: Price Adjust | J14: Vol Adjust | K14: Adjusted Values | P14: Last | Q14: Effective | R14: Shares | T14: Vol Adjust | V14: 112
A15: RelRow | B15: Date | C15: Open | D15: High | E15: Low | F15: Close | G15: Volume | H15: Close | I15: Factor | J15: Factor | K15: Open | L15: High | M15: Low | N15: Close | O15: Volume | P15: Trade | Q15: 43861 | R15: New | S15: Old | T15: 1 | U15: Date | V15: $ / Share
A16: 1 | B16: 2020-01-30 | C16: 324.359985 | D16: 327.910004 | E16: 323.549988 | F16: 327.619995 | G16: 75491844 | H16: 327.619995 | I16: =IF(F16=0,1,H16/F16) -> 1 | J16: =INDEX(OFFSET($T$15,0,0,$S$13+1,1),MATCH(B16,OFFSET($Q$15,0,0,$S$13+1,1),-1)) -> 1 | K16: =ROUND($I16*C16,2) -> 324.36 | L16: =ROUND($I16*D16,2) -> 327.91 | M16: 323.55 | N16: 327.62 | O16: =G16*J16 -> 75491844 | U16: 2019-12-20 | V16: 1.57 | W16: =(INDEX(OFFSET($F$15,1,0,$B$10,1),MATCH(U16,OFFSET($B$15,1,0,$B$10,1),-1))) -> 320.730011 | X16: =YEAR(U16)&RIGHT("0"&MONTH(U16),2) -> 201912 | Y16: =YEAR(U16)-1&RIGHT("0"&MONTH(U16),2) -> 201812 | Z16: =OFFSET(U15,AA16,0,1,1) -> 2018-12-21 | AA16: =MATCH(Y16,OFFSET($X$15,A16,0,$V$14+1-A16,1),-1) -> 5 | AB16: =IF(OR(AND(YEAR(U16)=YEAR(Z16),MONTH(U16)=MONTH(Z16)),MONTH(U16)=MONTH(Z16)),1,0) -> 1 | AC16: =(V16+IF(AA16-AB16=0,0,IFERROR(SUM(OFFSET(V16,1,0,AA16-AB16-1,1)),0))) -> 5.619 | AD16: =AC16/(INDEX(OFFSET($F$15,1,0,$B$10,1),MATCH(U16,OFFSET($B$15,1,0,$B$10,1),-1))) -> 0.01751940825
A17: 2 | B17: 2020-01-29 | C17: 328.380005 | D17: 328.630005 | E17: 326.399994 | F17: 326.619995 | G17: 53888900 | H17: 326.619995 | I17: =IF(F17=0,1,H17/F17) -> 1 | J17: =INDEX(OFFSET($T$15,0,0,$S$13+1,1),MATCH(B17,OFFSET($Q$15,0,0,$S$13+1,1),-1)) -> 1 | K17: =ROUND($I17*C17,2) -> 328.38 | L17: =ROUND($I17*D17,2) -> 328.63 | M17: =ROUND($I17*E17,2) -> 326.4 | N17: =ROUND($I17*F17,2) -> 326.62 | O17: =G17*J17 -> 53888900 | U17: 2019-09-20 | V17: 1.384 | W17: =(INDEX(OFFSET($F$15,1,0,$B$10,1),MATCH(U17,OFFSET($B$15,1,0,$B$10,1),-1))) -> 298.279999 | X17: =YEAR(U17)&RIGHT("0"&MONTH(U17),2) -> 201909 | Y17: =YEAR(U17)-1&RIGHT("0"&MONTH(U17),2) -> 201809 | Z17: =OFFSET(U16,AA17,0,1,1) -> 2018-09-21 | AA17: =MATCH(Y17,OFFSET($X$15,A17,0,$V$14+1-A17,1),-1) -> 5 | AB17: =IF(OR(AND(YEAR(U17)=YEAR(Z17),MONTH(U17)=MONTH(Z17)),MONTH(U17)=MONTH(Z17)),1,0) -> 1 | AC17: =(V17+IF(AA17-AB17=0,0,IFERROR(SUM(OFFSET(V17,1,0,AA17-AB17-1,1)),0))) -> 5.484 | AD17: =AC17/(INDEX(OFFSET($F$15,1,0,$B$10,1),MATCH(U17,OFFSET($B$15,1,0,$B$10,1),-1))) -> 0.01838540974
A18: 3 | B18: 2020-01-28 | C18: 325.059998 | D18: 327.850006 | E18: 323.600006 | F18: 326.890015 | G18: 63834000 | H18: 326.890015 | I18: 1 | J18: 1 | K18: 325.06 | L18: 327.85 | M18: 323.6 | N18: 326.89 | O18: 63834000 | U18: 2019-06-21 | V18: 1.432 | W18: 294 | X18: 201906 | Y18: 201806 | Z18: 2018-06-15 | AA18: 5 | AB18: 1 | AC18: 5.423 | AD18: 0.01844557823
A19: 4 | B19: 2020-01-27 | C19: 323.029999 | D19: 325.119995 | E19: 322.660004 | F19: 323.5 | G19: 84062500 | H19: 323.5 | I19: 1 | J19: 1 | K19: 323.03 | L19: 325.12 | M19: 322.66 | N19: 323.5 | O19: 84062500 | U19: 2019-03-15 | V19: 1.233 | W19: 281.309998 | X19: 201903 | Y19: 201803 | Z19: 2018-03-16 | AA19: 5 | AB19: 1 | AC19: 5.237 | AD19: 0.01861647306
A20: 5 | B20: 2020-01-24 | C20: 332.440002 | D20: 332.529999 | E20: 327.359985 | F20: 328.769989 | G20: 87578400 | H20: 328.769989 | I20: 1 | J20: 1 | K20: 332.44 | L20: 332.53 | M20: 327.36 | N20: 328.77 | O20: 87578400 | U20: 2018-12-21 | V20: 1.435 | W20: 240.699997 | X20: 201812 | Y20: 201712 | Z20: 2017-12-15 | AA20: 5 | AB20: 1 | AC20: 5.101 | AD20: 0.02119235589
A21: 6 | B21: 2020-01-23 | C21: 330.630005 | D21: 332.170013 | E21: 329.410004 | F21: 331.720001 | G21: 51963000 | H21: 331.720001 | I21: 1 | J21: 1 | K21: 330.63 | L21: 332.17 | M21: 329.41 | N21: 331.72 | O21: 51963000 | U21: 2018-09-21 | V21: 1.323 | W21: 291.98999 | X21: 201809 | Y21: 201709 | Z21: 2017-09-15 | AA21: 5 | AB21: 1 | AC21: 5.017 | AD21: 0.01718209587
A22: 7 | B22: 2020-01-22 | C22: 332.23999 | D22: 332.950012 | E22: 331.170013 | F22: 331.339996 | G22: 48914900 | H22: 331.339996 | I22: 1 | J22: 1 | K22: 332.24 | L22: 332.95 | M22: 331.17 | N22: 331.34 | O22: 48914900 | U22: 2018-06-15 | V22: 1.246 | W22: 277.130005 | X22: 201806 | Y22: 201706 | Z22: 2017-06-16 | AA22: 5 | AB22: 1 | AC22: 4.929 | AD22: 0.01778587634
A23: 8 | B23: 2020-01-21 | C23: 330.899994 | D23: 332.179993 | E23: 330.820007 | F23: 331.299988 | G23: 77742400 | H23: 331.299988 | I23: 1 | J23: 1 | K23: 330.9 | L23: 332.18 | M23: 330.82 | N23: 331.3 | O23: 77742400 | U23: 2018-03-16 | V23: 1.097 | W23: 274.200012 | X23: 201803 | Y23: 201703 | Z23: 2017-03-17 | AA23: 5 | AB23: 1 | AC23: 4.866 | AD23: 0.0177461699
A24: 9 | B24: 2020-01-17 | C24: 331.700012 | D24: 332.179993 | E24: 330.850006 | F24: 331.950012 | G24: 95846000 | H24: 331.950012 | I24: 1 | J24: 1 | K24: 331.7 | L24: 332.18 | M24: 330.85 | N24: 331.95 | O24: 95846000 | U24: 2017-12-15 | V24: 1.351 | W24: 266.51001 | X24: 201712 | Y24: 201612 | Z24: 2016-12-16 | AA24: 5 | AB24: 1 | AC24: 4.802 | AD24: 0.01801808495
A25: 10 | B25: 2020-01-16 | C25: 329.700012 | D25: 330.920013 | E25: 329.450012 | F25: 330.920013 | G25: 54050300 | H25: 330.920013 | I25: 1 | J25: 1 | K25: 329.7 | L25: 330.92 | M25: 329.45 | N25: 330.92 | O25: 54050300 | U25: 2017-09-15 | V25: 1.235 | W25: 249.190002 | X25: 201709 | Y25: 201609 | Z25: 2016-09-16 | AA25: 5 | AB25: 1 | AC25: 4.78 | AD25: 0.01918215001
A26: 11 | B26: 2020-01-15 | C26: 327.350006 | D26: 329.019989 | E26: 327.26001 | F26: 328.190002 | G26: 72056600 | H26: 328.190002 | I26: 1 | J26: 1 | K26: 327.35 | L26: 329.02 | M26: 327.26 | N26: 328.19 | O26: 72056600 | U26: 2017-06-16 | V26: 1.183 | W26: 242.639999 | X26: 201706 | Y26: 201606 | Z26: 2016-06-17 | AA26: 5 | AB26: 1 | AC26: 4.627 | AD26: 0.01906940331
A27: 12 | B27: 2020-01-14 | C27: 327.470001 | D27: 328.619995 | E27: 326.839996 | F27: 327.450012 | G27: 62832800 | H27: 327.450012 | I27: 1 | J27: 1 | K27: 327.47 | L27: 328.62 | M27: 326.84 | N27: 327.45 | O27: 62832800 | U27: 2017-03-17 | V27: 1.033 | W27: 237.029999 | X27: 201703 | Y27: 201603 | Z27: 2016-03-18 | AA27: 5 | AB27: 1 | AC27: 4.522 | AD27: 0.01907775395
A28: 13 | B28: 2020-01-13 | C28: 326.390015 | D28: 327.959991 | E28: 325.920013 | F28: 327.950012 | G28: 47086800 | H28: 327.950012 | I28: 1 | J28: 1 | K28: 326.39 | L28: 327.96 | M28: 325.92 | N28: 327.95 | O28: 47086800 | U28: 2016-12-16 | V28: 1.329 | W28: 225.039993 | X28: 201612 | Y28: 201512 | Z28: 2015-12-18 | AA28: 5 | AB28: 1 | AC28: 4.539 | AD28: 0.02016974823
A29: 14 | B29: 2020-01-10 | C29: 327.290009 | D29: 327.459991 | E29: 325.200012 | F29: 325.709991 | G29: 53029300 | H29: 325.709991 | I29: 1 | J29: 1 | K29: 327.29 | L29: 327.46 | M29: 325.2 | N29: 325.71 | O29: 53029300 | U29: 2016-09-16 | V29: 1.082 | W29: 213.369995 | X29: 201609 | Y29: 201509 | Z29: 2015-09-18 | AA29: 5 | AB29: 1 | AC29: 4.422 | AD29: 0.02072456345
A30: 15 | B30: 2020-01-09 | C30: 326.160004 | D30: 326.730011 | E30: 325.519989 | F30: 326.649994 | G30: 48473300 | H30: 326.649994 | I30: 1 | J30: 1 | K30: 326.16 | L30: 326.73 | M30: 325.52 | N30: 326.65 | O30: 48473300 | U30: 2016-06-17 | V30: 1.078 | W30: 206.520004 | X30: 201606 | Y30: 201506 | Z30: 2015-06-19 | AA30: 5 | AB30: 1 | AC30: 4.373 | AD30: 0.02117470422
A31: 16 | B31: 2020-01-08 | C31: 322.940002 | D31: 325.779999 | E31: 322.670013 | F31: 324.450012 | G31: 68296000 | H31: 324.450012 | I31: 1 | J31: 1 | K31: 322.94 | L31: 325.78 | M31: 322.67 | N31: 324.45 | O31: 68296000 | U31: 2016-03-18 | V31: 1.05 | W31: 204.380005 | X31: 201603 | Y31: 201503 | Z31: 2015-03-20 | AA31: 5 | AB31: 1 | AC31: 4.325 | AD31: 0.02116156128
A32: 17 | B32: 2020-01-07 | C32: 323.019989 | D32: 323.540009 | E32: 322.23999 | F32: 322.730011 | G32: 40496400 | H32: 322.730011 | I32: 1 | J32: 1 | K32: 323.02 | L32: 323.54 | M32: 322.24 | N32: 322.73 | O32: 40496400 | U32: 2015-12-18 | V32: 1.212 | W32: 200.020004 | X32: 201512 | Y32: 201412 | Z32: 2014-12-19 | AA32: 5 | AB32: 1 | AC32: 4.206 | AD32: 0.02102789679
A33: 18 | B33: 2020-01-06 | C33: 320.48999 | D33: 323.730011 | E33: 320.359985 | F33: 323.640015 | G33: 55653900 | H33: 323.640015 | I33: 1 | J33: 1 | K33: 320.49 | L33: 323.73 | M33: 320.36 | N33: 323.64 | O33: 55653900 | U33: 2015-09-18 | V33: 1.033 | W33: 195.449997 | X33: 201509 | Y33: 201409 | Z33: 2014-09-19 | AA33: 5 | AB33: 1 | AC33: 4.129 | AD33: 0.0211256079
A34: 19 | B34: 2020-01-03 | C34: 321.160004 | D34: 323.640015 | E34: 321.100006 | F34: 322.410004 | G34: 77709700 | H34: 322.410004 | I34: 1 | J34: 1 | K34: 321.16 | L34: 323.64 | M34: 321.1 | N34: 322.41 | O34: 77709700 | U34: 2015-06-19 | V34: 1.03 | W34: 210.809998 | X34: 201506 | Y34: 201406 | Z34: 2014-06-20 | AA34: 5 | AB34: 1 | AC34: 4.035 | AD34: 0.01914045841
A35: 20 | B35: 2020-01-02 | C35: 323.540009 | D35: 324.890015 | E35: 322.529999 | F35: 324.869995 | G35: 59151200 | H35: 324.869995 | I35: 1 | J35: 1 | K35: 323.54 | L35: 324.89 | M35: 322.53 | N35: 324.87 | O35: 59151200 | U35: 2015-03-20 | V35: 0.931 | W35: 210.410004 | X35: 201503 | Y35: 201403 | Z35: 2014-03-21 | AA35: 5 | AB35: 1 | AC35: 3.942 | AD35: 0.01873485065
A36: 21 | B36: 2019-12-31 | C36: 320.529999 | D36: 322.130005 | E36: 320.149994 | F36: 321.859985 | G36: 57077300 | H36: 321.859985 | I36: 1 | J36: 1 | K36: 320.53 | L36: 322.13 | M36: 320.15 | N36: 321.86 | O36: 57077300 | U36: 2014-12-19 | V36: 1.135 | W36: 206.520004 | X36: 201412 | Y36: 201312 | Z36: 2013-12-20 | AA36: 5 | AB36: 1 | AC36: 3.836 | AD36: 0.01857447185
A37: 22 | B37: 2019-12-30 | C37: 322.950012 | D37: 323.100006 | E37: 320.549988 | F37: 321.079987 | G37: 49729100 | H37: 321.079987 | I37: 1 | J37: 1 | K37: 322.95 | L37: 323.1 | M37: 320.55 | N37: 321.08 | O37: 49729100 | U37: 2014-09-19 | V37: 0.939 | W37: 200.699997 | X37: 201409 | Y37: 201309 | Z37: 2013-09-20 | AA37: 5 | AB37: 1 | AC37: 3.681 | AD37: 0.01834080745
A38: 23 | B38: 2019-12-27 | C38: 323.73999 | D38: 323.799988 | E38: 322.279999 | F38: 322.859985 | G38: 42528800 | H38: 322.859985 | I38: 1 | J38: 1 | K38: 323.74 | L38: 323.8 | M38: 322.28 | N38: 322.86 | O38: 42528800 | U38: 2014-06-20 | V38: 0.937 | W38: 195.940002 | X38: 201406 | Y38: 201306 | Z38: 2013-06-21 | AA38: 5 | AB38: 1 | AC38: 3.58 | AD38: 0.01827089907
A39: 24 | B39: 2019-12-26 | C39: 321.649994 | D39: 322.950012 | E39: 321.640015 | F39: 322.940002 | G39: 30911200 | H39: 322.940002 | I39: 1 | J39: 1 | K39: 321.65 | L39: 322.95 | M39: 321.64 | N39: 322.94 | O39: 30911200 | U39: 2014-03-21 | V39: 0.825 | W39: 186.199997 | X39: 201403 | Y39: 201303 | Z39: 2013-03-15 | AA39: 5 | AB39: 1 | AC39: 3.482 | AD39: 0.01870032254
A40: 25 | B40: 2019-12-24 | C40: 321.470001 | D40: 321.519989 | E40: 320.899994 | F40: 321.230011 | G40: 20270000 | H40: 321.230011 | I40: 1 | J40: 1 | K40: 321.47 | L40: 321.52 | M40: 320.9 | N40: 321.23 | O40: 20270000 | U40: 2013-12-20 | V40: 0.98 | W40: 181.559998 | X40: 201312 | Y40: 201212 | Z40: 2012-12-21 | AA40: 5 | AB40: 1 | AC40: 3.351 | AD40: 0.01845670873
A41: 26 | B41: 2019-12-23 | C41: 321.589996 | D41: 321.649994 | E41: 321.059998 | F41: 321.220001 | G41: 52990000 | H41: 321.220001 | I41: 1 | J41: 1 | K41: 321.59 | L41: 321.65 | M41: 321.06 | N41: 321.22 | O41: 52990000 | U41: 2013-09-20 | V41: 0.838 | W41: 170.720001 | X41: 201309 | Y41: 201209 | Z41: 2012-09-21 | AA41: 5 | AB41: 1 | AC41: 3.393 | AD41: 0.01987464843
A42: 27 | B42: 2019-12-20 | C42: 320.459991 | D42: 321.970001 | E42: 319.390015 | F42: 320.730011 | G42: 147142100 | H42: 320.730011 | I42: 1 | J42: 1 | K42: 320.46 | L42: 321.97 | M42: 319.39 | N42: 320.73 | O42: 147142100 | U42: 2013-06-21 | V42: 0.839 | W42: 159.070007 | X42: 201306 | Y42: 201206 | Z42: 2012-06-15 | AA42: 5 | AB42: 1 | AC42: 3.334 | AD42: 0.02095932516
A43: 28 | B43: 2019-12-19 | C43: 319.799988 | D43: 320.980011 | E43: 319.519989 | F43: 320.899994 | G43: 85310500 | H43: 319.329987 | I43: 0.9951074882 | J43: 1 | K43: 318.24 | L43: 319.41 | M43: 317.96 | N43: 319.33 | O43: 85310500 | U43: 2013-03-15 | V43: 0.694 | W43: 155.830002 | X43: 201303 | Y43: 201203 | Z43: 2012-03-16 | AA43: 5 | AB43: 1 | AC43: 3.183 | AD43: 0.02042610511
A44: 29 | B44: 2019-12-18 | C44: 320 | D44: 320.25 | E44: 319.529999 | F44: 319.589996 | G44: 48133000 | H44: 318.026398 | I44: 0.9951074877 | J44: 1 | K44: 318.43 | L44: 318.68 | M44: 317.97 | N44: 318.03 | O44: 48133000 | U44: 2012-12-21 | V44: 1.022 | W44: 142.789993 | X44: 201212 | Y44: 201112 | Z44: 2011-12-16 | AA44: 5 | AB44: 1 | AC44: 3.103 | AD44: 0.02173121474
A45: 30 | B45: 2019-12-17 | C45: 319.920013 | D45: 320.25 | E45: 319.480011 | F45: 319.570007 | G45: 61097700 | H45: 318.006531 | I45: 0.9951075634 | J45: 1 | K45: 318.35 | L45: 318.68 | M45: 317.92 | N45: 318.01 | O45: 61097700 | U45: 2012-09-21 | V45: 0.779 | W45: 145.869995 | X45: 201209 | Y45: 201109 | Z45: 2011-09-16 | AA45: 5 | AB45: 1 | AC45: 2.851 | AD45: 0.01954480083
A46: 31 | B46: 2019-12-16 | C46: 319.220001 | D46: 320.149994 | E46: 317.25 | F46: 319.5 | G46: 82749700 | H46: 317.936859 | I46: 0.9951075399 | J46: 1 | K46: 317.66 | L46: 318.58 | M46: 315.7 | N46: 317.94 | O46: 82749700 | U46: 2012-06-15 | V46: 0.688 | W46: 134.139999 | X46: 201206 | Y46: 201106 | Z46: 2011-06-17 | AA46: 5 | AB46: 1 | AC46: 2.697 | AD46: 0.0201058597
A47: 32 | B47: 2019-12-13 | C47: 316.869995 | D47: 318.670013 | E47: 316.019989 | F47: 317.320007 | G47: 81503900 | H47: 315.767517 | I47: 0.9951074941 | J47: 1 | K47: 315.32 | L47: 317.11 | M47: 314.47 | N47: 315.77 | O47: 81503900 | U47: 2012-03-16 | V47: 0.614 | W47: 140.300003 | X47: 201203 | Y47: 201103 | Z47: 2011-03-18 | AA47: 5 | AB47: 1 | AC47: 2.637 | AD47: 0.01879543794
A48: 33 | B48: 2019-12-12 | C48: 314.429993 | D48: 317.98999 | E48: 314.170013 | F48: 317.130005 | G48: 96389600 | H48: 315.578461 | I48: 0.9951075459 | J48: 1 | K48: 312.89 | L48: 316.43 | M48: 312.63 | N48: 315.58 | O48: 96389600 | U48: 2011-12-16 | V48: 0.77 | W48: 121.589996 | X48: 201112 | Y48: 201012 | Z48: 2010-12-17 | AA48: 5 | AB48: 1 | AC48: 2.576 | AD48: 0.02118595349
A49: 34 | B49: 2019-12-11 | C49: 314.029999 | D49: 314.700012 | E49: 313.440002 | F49: 314.420013 | G49: 53429100 | H49: 312.881714 | I49: 0.9951075029 | J49: 1 | K49: 312.49 | L49: 313.16 | M49: 311.91 | N49: 312.88 | O49: 53429100 | U49: 2011-09-16 | V49: 0.625 | W49: 121.519997 | X49: 201109 | Y49: 201009 | Z49: 2010-09-17 | AA49: 5 | AB49: 1 | AC49: 2.459 | AD49: 0.0202353527
A50: 35 | B50: 2019-12-10 | C50: 313.820007 | D50: 314.549988 | E50: 312.809998 | F50: 313.529999 | G50: 52649800 | H50: 311.996063 | I50: 0.9951075304 | J50: 1 | K50: 312.28 | L50: 313.01 | M50: 311.28 | N50: 312 | O50: 52649800 | U50: 2011-06-17 | V50: 0.628 | W50: 127.050003 | X50: 201106 | Y50: 201006 | Z50: 2010-06-18 | AA50: 5 | AB50: 1 | AC50: 2.436 | AD50: 0.01917355327
A51: 36 | B51: 2019-12-09 | C51: 314.440002 | D51: 315.179993 | E51: 313.799988 | F51: 313.880005 | G51: 34838500 | H51: 312.34436 | I51: 0.9951075412 | J51: 1 | K51: 312.9 | L51: 313.64 | M51: 312.26 | N51: 312.34 | O51: 34838500 | U51: 2011-03-18 | V51: 0.553 | W51: 127.760002 | X51: 201103 | Y51: 201003 | Z51: 2010-03-19 | AA51: 5 | AB51: 1 | AC51: 2.339 | AD51: 0.01830776427
A52: 37 | B52: 2019-12-06 | C52: 314.119995 | D52: 315.309998 | E52: 314.109985 | F52: 314.869995 | G52: 48927000 | H52: 313.329498 | I52: 0.9951075141 | J52: 1 | K52: 312.58 | L52: 313.77 | M52: 312.57 | N52: 313.33 | O52: 48927000 | U52: 2010-12-17 | V52: 0.653 | W52: 124.300003 | X52: 201012 | Y52: 200912 | Z52: 2009-12-18 | AA52: 5 | AB52: 1 | AC52: 2.266 | AD52: 0.01823008806
A53: 38 | B53: 2019-12-05 | C53: 312.230011 | D53: 312.25 | E53: 310.579987 | F53: 312.019989 | G53: 40709000 | H53: 310.493439 | I53: 0.995107525 | J53: 1 | K53: 310.7 | L53: 310.72 | M53: 309.06 | N53: 310.49 | O53: 40709000 | U53: 2010-09-17 | V53: 0.602 | W53: 112.489998 | X53: 201009 | Y53: 200909 | Z53: 2009-09-18 | AA53: 5 | AB53: 1 | AC53: 2.203 | AD53: 0.01958396337
A54: 39 | B54: 2019-12-04 | C54: 310.700012 | D54: 312.119995 | E54: 310.320007 | F54: 311.459991 | G54: 49080000 | H54: 309.936188 | I54: 0.9951075482 | J54: 1 | K54: 309.18 | L54: 310.59 | M54: 308.8 | N54: 309.94 | O54: 49080000 | U54: 2010-06-18 | V54: 0.531 | W54: 111.730003 | X54: 201006 | Y54: 200906 | Z54: 2009-06-19 | AA54: 5 | AB54: 1 | AC54: 2.109 | AD54: 0.01887586094
A55: 40 | B55: 2019-12-03 | C55: 308.649994 | D55: 309.640015 | E55: 307.130005 | F55: 309.549988 | G55: 73941700 | H55: 308.035522 | I55: 0.9951075236 | J55: 1 | K55: 307.14 | L55: 308.13 | M55: 305.63 | N55: 308.04 | O55: 73941700 | U55: 2010-03-19 | V55: 0.48 | W55: 115.970001 | X55: 201003 | Y55: 200903 | Z55: 2009-03-20 | AA55: 5 | AB55: 1 | AC55: 2.096 | AD55: 0.01807363958
A56: 41 | B56: 2019-12-02 | C56: 314.589996 | D56: 314.660004 | E56: 311.170013 | F56: 311.640015 | G56: 75767800 | H56: 310.115326 | I56: 0.9951075314 | J56: 1 | K56: 313.05 | L56: 313.12 | M56: 309.65 | N56: 310.12 | O56: 75767800 | U56: 2009-12-18 | V56: 0.59 | W56: 110.209999 | X56: 200912 | Y56: 200812 | Z56: 2008-12-19 | AA56: 5 | AB56: 1 | AC56: 2.177 | AD56: 0.01975319862
A57: 42 | B57: 2019-11-29 | C57: 314.859985 | D57: 315.130005 | E57: 314.059998 | F57: 314.309998 | G57: 36592700 | H57: 312.772247 | I57: 0.9951075339 | J57: 1 | K57: 313.32 | L57: 313.59 | M57: 312.52 | N57: 312.77 | O57: 36592700 | U57: 2009-09-18 | V57: 0.508 | W57: 106.720001 | X57: 200909 | Y57: 200809 | Z57: 2008-09-19 | AA57: 5 | AB57: 1 | AC57: 2.306 | AD57: 0.02160794582
A58: 43 | B58: 2019-11-27 | C58: 314.609985 | D58: 315.480011 | E58: 314.369995 | F58: 315.480011 | G58: 44444600 | H58: 313.936523 | I58: 0.9951074935 | J58: 1 | K58: 313.07 | L58: 313.94 | M58: 312.83 | N58: 313.94 | O58: 44444600 | U58: 2009-06-19 | V58: 0.518 | W58: 92.040001 | X58: 200906 | Y58: 200806 | Z58: 2008-06-20 | AA58: 5 | AB58: 1 | AC58: 2.489 | AD58: 0.02704258988
A59: 44 | B59: 2019-11-26 | C59: 313.410004 | D59: 314.279999 | E59: 313.059998 | F59: 314.079987 | G59: 37569000 | H59: 312.543365 | I59: 0.9951075456 | J59: 1 | K59: 311.88 | L59: 312.74 | M59: 311.53 | N59: 312.54 | O59: 37569000 | U59: 2009-03-20 | V59: 0.561 | W59: 76.709999 | X59: 200903 | Y59: 200803 | Z59: 2008-03-20 | AA59: 5 | AB59: 1 | AC59: 2.64 | AD59: 0.03441533091
A60: 45 | B60: 2019-11-25 | C60: 311.980011 | D60: 313.369995 | E60: 311.980011 | F60: 313.369995 | G60: 48647200 | H60: 311.836853 | I60: 0.9951075661 | J60: 1 | K60: 310.45 | L60: 311.84 | M60: 310.45 | N60: 311.84 | O60: 48647200 | U60: 2008-12-19 | V60: 0.719 | W60: 88.190002 | X60: 200812 | Y60: 200712 | Z60: 2007-12-21 | AA60: 5 | AB60: 1 | AC60: 2.721 | AD60: 0.0308538376
A61: 46 | B61: 2019-11-22 | C61: 311.089996 | D61: 311.23999 | E61: 309.850006 | F61: 310.959991 | G61: 44850200 | H61: 309.438629 | I61: 0.9951075314 | J61: 1 | K61: 309.57 | L61: 309.72 | M61: 308.33 | N61: 309.44 | O61: 44850200 | U61: 2008-09-19 | V61: 0.691 | W61: 124.120003 | X61: 200809 | Y61: 200709 | Z61: 2007-09-21 | AA61: 5 | AB61: 1 | AC61: 2.777 | AD61: 0.02237350897
A62: 47 | B62: 2019-11-21 | C62: 310.890015 | D62: 311.01001 | E62: 309.390015 | F62: 310.269989 | G62: 54664700 | H62: 308.752014 | I62: 0.9951075674 | J62: 1 | K62: 309.37 | L62: 309.49 | M62: 307.88 | N62: 308.75 | O62: 54664700 | U62: 2008-06-20 | V62: 0.669 | W62: 131.580002 | X62: 200806 | Y62: 200706 | Z62: 2007-06-15 | AA62: 5 | AB62: 1 | AC62: 2.805 | AD62: 0.02131782913
A63: 48 | B63: 2019-11-20 | C63: 311.279999 | D63: 311.850006 | E63: 309.059998 | F63: 310.769989 | G63: 79406200 | H63: 309.249542 | I63: 0.9951074845 | J63: 1 | K63: 309.76 | L63: 310.32 | M63: 307.55 | N63: 309.25 | O63: 79406200 | U63: 2008-03-20 | V63: 0.642 | W63: 132.080002 | X63: 200803 | Y63: 200703 | Z63: 2007-03-16 | AA63: 5 | AB63: 1 | AC63: 2.792 | AD63: 0.0211387035
A64: 49 | B64: 2019-11-19 | C64: 312.679993 | D64: 312.690002 | E64: 311.220001 | F64: 311.929993 | G64: 67804700 | H64: 310.4039 | I64: 0.9951075785 | J64: 1 | K64: 311.15 | L64: 311.16 | M64: 309.7 | N64: 310.4 | O64: 67804700 | U64: 2007-12-21 | V64: 0.775 | W64: 148.130005 | X64: 200712 | Y64: 200612 | Z64: 2006-12-15 | AA64: 5 | AB64: 1 | AC64: 2.701 | AD64: 0.01823398305
A65: 50 | B65: 2019-11-18 | C65: 311.529999 | D65: 312.279999 | E65: 311.029999 | F65: 312.019989 | G65: 49228000 | H65: 310.493439 | I65: 0.995107525 | J65: 1 | K65: 310.01 | L65: 310.75 | M65: 309.51 | N65: 310.49 | O65: 49228000 | U65: 2007-09-21 | V65: 0.719 | W65: 151.970001 | X65: 200709 | Y65: 200609 | Z65: 2006-09-15 | AA65: 5 | AB65: 1 | AC65: 2.719 | AD65: 0.01789168903
A66: 51 | B66: 2019-11-15 | C66: 311.019989 | D66: 311.839996 | E66: 310.26001 | F66: 311.790009 | G66: 62023600 | H66: 310.264587 | I66: 0.9951075341 | J66: 1 | K66: 309.5 | L66: 310.31 | M66: 308.74 | N66: 310.26 | O66: 62023600 | U66: 2007-06-15 | V66: 0.656 | W66: 153.070007 | X66: 200706 | Y66: 200606 | Z66: 2006-06-16 | AA66: 5 | AB66: 1 | AC66: 2.579 | AD66: 0.01684849992
A67: 52 | B67: 2019-11-14 | C67: 308.790009 | D67: 309.640015 | E67: 308.089996 | F67: 309.549988 | G67: 51219900 | H67: 308.035522 | I67: 0.9951075236 | J67: 1 | K67: 307.28 | L67: 308.13 | M67: 306.58 | N67: 308.04 | O67: 51219900 | U67: 2007-03-16 | V67: 0.551 | W67: 138.529999 | X67: 200703 | Y67: 200603 | Z67: 2006-03-17 | AA67: 5 | AB67: 1 | AC67: 2.478 | AD67: 0.01788782226
A68: 53 | B68: 2019-11-13 | C68: 307.910004 | D68: 309.540009 | E68: 307.660004 | F68: 309.100006 | G68: 53917700 | H68: 307.587738 | I68: 0.9951075122 | J68: 1 | K68: 306.4 | L68: 308.03 | M68: 306.15 | N68: 307.59 | O68: 53917700 | U68: 2006-12-15 | V68: 0.793 | W68: 142.339996 | X68: 200612 | Y68: 200512 | Z68: 2005-12-16 | AA68: 5 | AB68: 1 | AC68: 2.446 | AD68: 0.01718420731
A69: 54 | B69: 2019-11-12 | C69: 308.75 | D69: 309.98999 | E69: 308.149994 | F69: 309 | G69: 46484600 | H69: 307.48822 | I69: 0.9951075081 | J69: 1 | K69: 307.24 | L69: 308.47 | M69: 306.64 | N69: 307.49 | O69: 46484600 | U69: 2006-09-15 | V69: 0.579 | W69: 131.960007 | X69: 200609 | Y69: 200509 | Z69: 2005-09-16 | AA69: 5 | AB69: 1 | AC69: 2.325 | AD69: 0.01761897451
A70: 55 | B70: 2019-11-11 | C70: 307.420013 | D70: 308.540009 | E70: 307.269989 | F70: 308.350006 | G70: 35797300 | H70: 306.8414 | I70: 0.9951074883 | J70: 1 | K70: 305.92 | L70: 307.03 | M70: 305.77 | N70: 306.84 | O70: 35797300 | U70: 2006-06-16 | V70: 0.555 | W70: 124.650002 | X70: 200606 | Y70: 200506 | Z70: 2005-06-17 | AA70: 5 | AB70: 1 | AC70: 2.268 | AD70: 0.01819494556
A71: 56 | B71: 2019-11-08 | C71: 307.799988 | D71: 309 | E71: 307.029999 | F71: 308.940002 | G71: 49032100 | H71: 307.428528 | I71: 0.9951075484 | J71: 1 | K71: 306.29 | L71: 307.49 | M71: 305.53 | N71: 307.43 | O71: 49032100 | U71: 2006-03-17 | V71: 0.519 | W71: 130.619995 | X71: 200603 | Y71: 200503 | Z71: 2005-03-18 | AA71: 5 | AB71: 1 | AC71: 2.201 | AD71: 0.0168504064
A72: 57 | B72: 2019-11-07 | C72: 308.570007 | D72: 309.649994 | E72: 307.660004 | F72: 308.179993 | G72: 54272300 | H72: 306.672241 | I72: 0.9951075604 | J72: 1 | K72: 307.06 | L72: 308.14 | M72: 306.15 | N72: 306.67 | O72: 54272300 | U72: 2005-12-16 | V72: 0.672 | W72: 126.360001 | X72: 200512 | Y72: 200412 | Z72: 2004-12-17 | AA72: 5 | AB72: 1 | AC72: 2.149 | AD72: 0.01700696409
A73: 58 | B73: 2019-11-06 | C73: 307.029999 | D73: 307.399994 | E73: 306.059998 | F73: 307.100006 | G73: 46487100 | H73: 305.597534 | I73: 0.9951075481 | J73: 1 | K73: 305.53 | L73: 305.9 | M73: 304.56 | N73: 305.6 | O73: 46487100 | U73: 2005-09-16 | V73: 0.522 | W73: 123.5 | X73: 200509 | Y73: 200409 | Z73: 2004-09-17 | AA73: 6 | AB73: 1 | AC73: 2.396 | AD73: 0.01940080972
A74: 59 | B74: 2019-11-05 | C74: 307.589996 | D74: 307.920013 | E74: 306.709991 | F74: 307.029999 | G74: 42933200 | H74: 305.527863 | I74: 0.9951075269 | J74: 1 | K74: 306.09 | L74: 306.41 | M74: 305.21 | N74: 305.53 | O74: 42933200 | U74: 2005-06-17 | V74: 0.488 | W74: 121.360001 | X74: 200506 | Y74: 200406 | Z74: 2004-06-18 | AA74: 6 | AB74: 1 | AC74: 2.343 | AD74: 0.01930619628
A75: 60 | B75: 2019-11-04 | C75: 307.850006 | D75: 308 | E75: 306.959991 | F75: 307.369995 | G75: 60606900 | H75: 305.866211 | I75: 0.9951075771 | J75: 1 | K75: 306.34 | L75: 306.49 | M75: 305.46 | N75: 305.87 | O75: 60606900 | U75: 2005-03-18 | V75: 0.467 | W75: 118.540001 | X75: 200503 | Y75: 200403 | Z75: 2004-03-19 | AA75: 6 | AB75: 1 | AC75: 2.269 | AD75: 0.01914121799
A76: 61 | B76: 2019-11-01 | C76: 304.920013 | D76: 306.190002 | E76: 304.73999 | F76: 306.140015 | G76: 71141500 | H76: 304.642242 | I76: 0.9951075556 | J76: 1 | K76: 303.43 | L76: 304.69 | M76: 303.25 | N76: 304.64 | O76: 71141500 | U76: 2004-12-17 | V76: 0.568 | W76: 119.440002 | X76: 200412 | Y76: 200312 | Z76: 2003-12-19 | AA76: 6 | AB76: 1 | AC76: 2.197 | AD76: 0.0183941725
A77: 62 | B77: 2019-10-31 | C77: 304.130005 | D77: 304.130005 | E77: 301.730011 | F77: 303.329987 | G77: 69053800 | H77: 301.845947 | I77: 0.9951075065 | J77: 1 | K77: 302.64 | L77: 302.64 | M77: 300.25 | N77: 301.85 | O77: 69053800 | U77: 2004-11-15 | V77: 0.351 | W77: 118.730003 | X77: 200411 | Y77: 200311 | Z77: 2003-12-19 | AA77: 5 | AB77: 0 | AC77: 2.145 | AD77: 0.01806620017
A78: 63 | B78: 2019-10-30 | C78: 303.429993 | D78: 304.549988 | E78: 301.98999 | F78: 304.140015 | G78: 49643900 | H78: 302.652008 | I78: 0.9951074935 | J78: 1 | K78: 301.95 | L78: 303.06 | M78: 300.51 | N78: 302.65 | O78: 49643900 | U78: 2004-09-17 | V78: 0.469 | W78: 113.150002 | X78: 200409 | Y78: 200309 | Z78: 2003-09-19 | AA78: 5 | AB78: 1 | AC78: 1.794 | AD78: 0.01585505938
A79: 64 | B79: 2019-10-29 | C79: 303 | D79: 304.230011 | E79: 302.859985 | F79: 303.209991 | G79: 44284900 | H79: 301.726532 | I79: 0.9951074864 | J79: 1 | K79: 301.52 | L79: 302.74 | M79: 301.38 | N79: 301.73 | O79: 44284900 | U79: 2004-06-18 | V79: 0.414 | W79: 113.629997 | X79: 200406 | Y79: 200306 | Z79: 2003-06-20 | AA79: 5 | AB79: 1 | AC79: 1.725 | AD79: 0.01518085053
A80: 65 | B80: 2019-10-28 | C80: 302.940002 | D80: 303.850006 | E80: 302.910004 | F80: 303.299988 | G80: 42147000 | H80: 301.816101 | I80: 0.995107527 | J80: 1 | K80: 301.46 | L80: 302.36 | M80: 301.43 | N80: 301.82 | O80: 42147000 | U80: 2004-03-19 | V80: 0.395 | W80: 111.059998 | X80: 200403 | Y80: 200303 | Z80: 2003-03-21 | AA80: 5 | AB80: 1 | AC80: 1.671 | AD80: 0.01504592139
A81: 66 | B81: 2019-10-25 | C81: 299.73999 | D81: 302.200012 | E81: 299.679993 | F81: 301.600006 | G81: 45205400 | H81: 300.124451 | I81: =IF(F81=0,1,H81/F81) -> 0.9951075764 | J81: =INDEX(OFFSET($T$15,0,0,$S$13+1,1),MATCH(B81,OFFSET($Q$15,0,0,$S$13+1,1),-1)) -> 1 | K81: =ROUND($I81*C81,2) -> 298.27 | L81: =ROUND($I81*D81,2) -> 300.72 | M81: =ROUND($I81*E81,2) -> 298.21 | N81: =ROUND($I81*F81,2) -> 300.12 | O81: =G81*J81 -> 45205400 | U81: 2003-12-19 | V81: 0.516 | W81: =(INDEX(OFFSET($F$15,1,0,$B$10,1),MATCH(U81,OFFSET($B$15,1,0,$B$10,1),-1))) -> 108.900002 | X81: =YEAR(U81)&RIGHT("0"&MONTH(U81),2) -> 200312 | Y81: =YEAR(U81)-1&RIGHT("0"&MONTH(U81),2) -> 200212 | Z81: =OFFSET(U80,AA81,0,1,1) -> 2002-12-20 | AA81: =MATCH(Y81,OFFSET($X$15,A81,0,$V$14+1-A81,1),-1) -> 5 | AB81: =IF(OR(AND(YEAR(U81)=YEAR(Z81),MONTH(U81)=MONTH(Z81)),MONTH(U81)=MONTH(Z81)),1,0) -> 1 | AC81: =(V81+IF(AA81-AB81=0,0,IFERROR(SUM(OFFSET(V81,1,0,AA81-AB81-1,1)),0))) -> 1.63 | AD81: =AC81/(INDEX(OFFSET($F$15,1,0,$B$10,1),MATCH(U81,OFFSET($B$15,1,0,$B$10,1),-1))) -> 0.01496786015
A82: 67 | B82: 2019-10-24 | C82: 300.910004 | D82: 301.070007 | E82: 299.459991 | F82: 300.369995 | G82: 35453100 | H82: 298.900452 | I82: 0.9951075573 | J82: 1 | K82: 299.44 | L82: 299.6 | M82: 297.99 | N82: 298.9 | O82: 35453100 | U82: 2003-09-19 | V82: 0.4 | W82: 103.669998 | X82: 200309 | Y82: 200209 | Z82: 2002-09-20 | AA82: 5 | AB82: 1 | AC82: 1.55 | AD82: 0.01495128803
A83: 68 | B83: 2019-10-23 | C83: 298.730011 | D83: 299.940002 | E83: 298.5 | F83: 299.880005 | G83: 34352200 | H83: 298.412842 | I83: 0.9951074997 | J83: 1 | K83: 297.27 | L83: 298.47 | M83: 297.04 | N83: 298.41 | O83: 34352200 | U83: 2003-06-20 | V83: 0.36 | W83: 99.440002 | X83: 200306 | Y83: 200206 | Z83: 2002-06-21 | AA83: 5 | AB83: 1 | AC83: 1.528 | AD83: 0.01536604957
A84: 69 | B84: 2019-10-22 | C84: 300.579987 | D84: 300.899994 | E84: 298.910004 | F84: 299.01001 | G84: 48594700 | H84: 297.547119 | I84: 0.9951075518 | J84: 1 | K84: 299.11 | L84: 299.43 | M84: 297.45 | N84: 297.55 | O84: 48594700 | U84: 2003-03-21 | V84: 0.354 | W84: 89.669998 | X84: 200303 | Y84: 200203 | Z84: 2002-03-15 | AA84: 5 | AB84: 1 | AC84: 1.521 | AD84: 0.01696219509
A85: 70 | B85: 2019-10-21 | C85: 299.420013 | D85: 300.209991 | E85: 298.940002 | F85: 299.98999 | G85: 39048600 | H85: 298.522308 | I85: 0.9951075634 | J85: 1 | K85: 297.96 | L85: 298.74 | M85: 297.48 | N85: 298.52 | O85: 39048600 | U85: 2002-12-20 | V85: 0.436 | W85: 89.989998 | X85: 200212 | Y85: 200112 | Z85: 2001-12-21 | AA85: 5 | AB85: 1 | AC85: 1.498 | AD85: 0.0166462944
A86: 71 | B86: 2019-10-18 | C86: 298.690002 | D86: 299.399994 | E86: 297.029999 | F86: 297.970001 | G86: 64304000 | H86: 296.512207 | I86: 0.9951075813 | J86: 1 | K86: 297.23 | L86: 297.94 | M86: 295.58 | N86: 296.51 | O86: 64304000 | U86: 2002-09-20 | V86: 0.378 | W86: 84.349998 | X86: 200209 | Y86: 200109 | Z86: 2001-09-21 | AA86: 5 | AB86: 1 | AC86: 1.455 | AD86: 0.01724955583
A87: 72 | B87: 2019-10-17 | C87: 299.679993 | D87: 300.23999 | E87: 298.519989 | F87: 299.279999 | G87: 45736600 | H87: 297.815796 | I87: 0.9951075815 | J87: 1 | K87: 298.21 | L87: 298.77 | M87: 297.06 | N87: 297.82 | O87: 45736600 | U87: 2002-06-21 | V87: 0.353 | W87: 99.279999 | X87: 200206 | Y87: 200106 | Z87: 2001-06-15 | AA87: 5 | AB87: 1 | AC87: 1.446 | AD87: 0.01456486719
A88: 73 | B88: 2019-10-16 | C88: 298.369995 | D88: 299.160004 | E88: 297.920013 | F88: 298.399994 | G88: 48928200 | H88: 296.940094 | I88: 0.9951075736 | J88: 1 | K88: 296.91 | L88: 297.7 | M88: 296.46 | N88: 296.94 | O88: 48928200 | U88: 2002-03-15 | V88: 0.331 | W88: 116.650002 | X88: 200203 | Y88: 200103 | Z88: 2001-03-16 | AA88: 5 | AB88: 1 | AC88: 1.439 | AD88: 0.0123360478
A89: 74 | B89: 2019-10-15 | C89: 297.100006 | D89: 299.700012 | E89: 296.970001 | F89: 298.880005 | G89: 46754500 | H89: 297.417755 | I89: 0.9951075683 | J89: 1 | K89: 295.65 | L89: 298.23 | M89: 295.52 | N89: 297.42 | O89: 46754500 | U89: 2001-12-21 | V89: 0.393 | W89: 114.949997 | X89: 200112 | Y89: 200012 | Z89: 2000-12-27 | AA89: 5 | AB89: 1 | AC89: 1.424 | AD89: 0.0123879951
A90: 75 | B90: 2019-10-14 | C90: 295.929993 | D90: 296.670013 | E90: 295.570007 | F90: 295.950012 | G90: 40394800 | H90: 294.502075 | I90: 0.9951074947 | J90: 1 | K90: 294.48 | L90: 295.22 | M90: 294.12 | N90: 294.5 | O90: 40394800 | U90: 2001-09-21 | V90: 0.369 | W90: 97.279999 | X90: 200109 | Y90: 200009 | Z90: 2000-09-15 | AA90: 6 | AB90: 1 | AC90: 1.442 | AD90: 0.01482319094
A91: 76 | B91: 2019-10-11 | C91: 296.269989 | D91: 298.73999 | E91: 296.140015 | F91: 296.279999 | G91: 98720400 | H91: 294.830444 | I91: 0.9951074828 | J91: 1 | K91: 294.82 | L91: 297.28 | M91: 294.69 | N91: 294.83 | O91: 98720400 | U91: 2001-06-15 | V91: 0.346 | W91: 121.849998 | X91: 200106 | Y91: 200006 | Z91: 2000-06-16 | AA91: 7 | AB91: 1 | AC91: 1.448 | AD91: 0.01188346347
A92: 77 | B92: 2019-10-10 | C92: 291.179993 | D92: 294.209991 | E92: 291 | F92: 293.23999 | G92: 55296300 | H92: 291.805328 | I92: 0.99510755 | J92: 1 | K92: 289.76 | L92: 292.77 | M92: 289.58 | N92: 291.81 | O92: 55296300 | U92: 2001-03-16 | V92: 0.316 | W92: 115.010002 | X92: 200103 | Y92: 200003 | Z92: 2000-03-17 | AA92: 7 | AB92: 1 | AC92: 1.45 | AD92: 0.01260759912
A93: 78 | B93: 2019-10-09 | C93: 290.75 | D93: 292.299988 | E93: 290.059998 | F93: 291.269989 | G93: 62359400 | H93: 289.844971 | I93: 0.9951075701 | J93: 1 | K93: 289.33 | L93: 290.87 | M93: 288.64 | N93: 289.84 | O93: 62359400 | U93: 2000-12-27 | V93: 0 | W93: 133.3125 | X93: 200012 | Y93: 199912 | Z93: 1999-12-17 | AA93: 7 | AB93: 1 | AC93: 1.505 | AD93: 0.01128926395
A94: 79 | B94: 2019-10-08 | C94: 291.040009 | D94: 291.850006 | E94: 288.48999 | F94: 288.529999 | G94: 95708100 | H94: 287.118378 | I94: 0.9951075417 | J94: 1 | K94: 289.62 | L94: 290.42 | M94: 287.08 | N94: 287.12 | O94: 95708100 | U94: 2000-12-15 | V94: 0.411 | W94: 130.96875 | X94: 200012 | Y94: 199912 | Z94: 1999-12-17 | AA94: 6 | AB94: 1 | AC94: 1.505 | AD94: 0.01149129086
A95: 80 | B95: 2019-10-07 | C95: 293.470001 | D95: 295.26001 | E95: 292.769989 | F95: 293.079987 | G95: 59610500 | H95: 291.646088 | I95: 0.9951074824 | J95: 1 | K95: 292.03 | L95: 293.82 | M95: 291.34 | N95: 291.65 | O95: 59610500 | U95: 2000-09-15 | V95: 0.375 | W95: 146 | X95: 200009 | Y95: 199909 | Z95: 1999-09-17 | AA95: 6 | AB95: 1 | AC95: 1.442 | AD95: 0.009876712329
A96: 81 | B96: 2019-10-04 | C96: 291.140015 | D96: 294.630005 | E96: 291.079987 | F96: 294.350006 | G96: 65091200 | H96: 292.909912 | I96: 0.9951075455 | J96: 1 | K96: 289.72 | L96: 293.19 | M96: 289.66 | N96: 292.91 | O96: 65091200 | U96: 2000-09-14 | V96: 0 | W96: 149.640625 | X96: 200009 | Y96: 199909 | Z96: 1999-09-17 | AA96: 5 | AB96: 1 | AC96: 1.067 | AD96: 0.007130416623
A97: 82 | B97: 2019-10-03 | C97: 287.809998 | D97: 290.450012 | E97: 284.820007 | F97: 290.420013 | G97: 85278800 | H97: 288.999146 | I97: 0.9951075445 | J97: 1 | K97: 286.4 | L97: 289.03 | M97: 283.43 | N97: 289 | O97: 85278800 | U97: 2000-06-16 | V97: 0.348 | W97: 146.59375 | X97: 200006 | Y97: 199906 | Z97: 1999-06-18 | AA97: 5 | AB97: 1 | AC97: 1.439 | AD97: 0.009816243871
A98: 83 | B98: 2019-10-02 | C98: 291.5 | D98: 291.51001 | E98: 286.640015 | F98: 288.059998 | G98: 122539500 | H98: 286.650665 | I98: 0.9951075019 | J98: 1 | K98: 290.07 | L98: 290.08 | M98: 285.24 | N98: 286.65 | O98: 122539500 | U98: 2000-03-17 | V98: 0.371 | W98: 146.9375 | X98: 200003 | Y98: 199903 | Z98: 1999-03-19 | AA98: 5 | AB98: 1 | AC98: 1.496 | AD98: 0.01018119949
A99: 84 | B99: 2019-10-01 | C99: 297.73999 | D99: 298.459991 | E99: 293 | F99: 293.23999 | G99: 88242400 | H99: 291.805328 | I99: 0.99510755 | J99: 1 | K99: 296.28 | L99: 297 | M99: 291.57 | N99: 291.81 | O99: 88242400 | U99: 1999-12-17 | V99: 0.348 | W99: 142.6875 | X99: 199912 | Y99: 199812 | Z99: 1998-12-18 | AA99: 5 | AB99: 1 | AC99: 1.445 | AD99: 0.01012702584
A100: 85 | B100: 2019-09-30 | C100: 295.970001 | D100: 297.549988 | E100: 295.920013 | F100: 296.769989 | G100: 51662400 | H100: 295.318054 | I100: 0.995107541 | J100: 1 | K100: 294.52 | L100: 296.09 | M100: 294.47 | N100: 295.32 | O100: 51662400 | U100: 1999-09-17 | V100: 0.372 | W100: 133.75 | X100: 199909 | Y100: 199809 | Z100: 1998-09-18 | AA100: 5 | AB100: 1 | AC100: 1.489 | AD100: 0.01113271028
A101: 86 | B101: 2019-09-27 | C101: 297.829987 | D101: 297.950012 | E101: 293.690002 | F101: 295.399994 | G101: 84746600 | H101: 293.954773 | I101: 0.9951075795 | J101: 1 | K101: 296.37 | L101: 296.49 | M101: 292.25 | N101: 293.95 | O101: 84746600 | U101: 1999-06-18 | V101: 0.405 | W101: 134.3125 | X101: 199906 | Y101: 199806 | Z101: 1998-06-19 | AA101: 5 | AB101: 1 | AC101: 1.476 | AD101: 0.01098929735
A102: 87 | B102: 2019-09-26 | C102: 297.630005 | D102: 297.859985 | E102: 295.450012 | F102: 297 | G102: 56179700 | H102: 295.546936 | I102: 0.9951075286 | J102: 1 | K102: 296.17 | L102: 296.4 | M102: 294 | N102: 295.55 | O102: 56179700 | U102: 1999-03-19 | V102: 0.32 | W102: 129.6875 | X102: 199903 | Y102: 199803 | Z102: 1998-03-20 | AA102: 5 | AB102: 1 | AC102: 1.423 | AD102: 0.01097253012
A103: 88 | B103: 2019-09-25 | C103: 295.959991 | D103: 298.109985 | E103: 294.329987 | F103: 297.619995 | G103: 71854000 | H103: 296.16391 | I103: 0.99510757 | J103: 1 | K103: 294.51 | L103: 296.65 | M103: 292.89 | N103: 296.16 | O103: 71854000 | U103: 1998-12-18 | V103: 0.392 | W103: 118.5 | X103: 199812 | Y103: 199712 | Z103: 1997-12-19 | AA103: 5 | AB103: 1 | AC103: 1.416 | AD103: 0.01194936709
A104: 89 | B104: 2019-09-24 | C104: 299.410004 | D104: 299.839996 | E104: 294.809998 | F104: 295.869995 | G104: 94869400 | H104: 294.422455 | I104: 0.9951075134 | J104: 1 | K104: 297.95 | L104: 298.37 | M104: 293.37 | N104: 294.42 | O104: 94869400 | U104: 1998-09-18 | V104: 0.359 | W104: 102.09375 | X104: 199809 | Y104: 199709 | Z104: 1997-09-19 | AA104: 5 | AB104: 1 | AC104: 1.404 | AD104: 0.01375206612
A105: 90 | B105: 2019-09-23 | C105: 297.549988 | D105: 299 | E105: 297.269989 | F105: 298.209991 | G105: 43476800 | H105: 296.751007 | I105: 0.9951075281 | J105: 1 | K105: 296.09 | L105: 297.54 | M105: 295.82 | N105: 296.75 | O105: 43476800 | U105: 1998-06-19 | V105: 0.352 | W105: 110.0625 | X105: 199806 | Y105: 199706 | Z105: 1997-06-20 | AA105: 5 | AB105: 1 | AC105: 1.393 | AD105: 0.0126564452
A106: 91 | B106: 2019-09-20 | C106: 300.359985 | D106: 300.670013 | E106: 297.410004 | F106: 298.279999 | G106: 89565000 | H106: 296.820679 | I106: 0.9951075499 | J106: 1 | K106: 298.89 | L106: 299.2 | M106: 295.95 | N106: 296.82 | O106: 89565000 | U106: 1998-03-20 | V106: 0.313 | W106: 109.875 | X106: 199803 | Y106: 199703 | Z106: 1997-03-21 | AA106: 5 | AB106: 1 | AC106: 1.391 | AD106: 0.01265984073
A107: 92 | B107: 2019-09-19 | C107: 301.529999 | D107: 302.630005 | E107: 300.709991 | F107: 301.079987 | G107: 76560500 | H107: 298.229736 | I107: 0.9905332432 | J107: 1 | K107: 298.68 | L107: 299.77 | M107: 297.86 | N107: 298.23 | O107: 76560500 | U107: 1997-12-19 | V107: 0.38 | W107: 94.78125 | X107: 199712 | Y107: 199612 | Z107: 1996-12-20 | AA107: 5 | AB107: 1 | AC107: 1.377 | AD107: 0.01452818991
A108: 93 | B108: 2019-09-18 | C108: 300.48999 | D108: 301.220001 | E108: 298.23999 | F108: 301.100006 | G108: 73375800 | H108: 298.249573 | I108: 0.9905332682 | J108: 1 | K108: 297.65 | L108: 298.37 | M108: 295.42 | N108: 298.25 | O108: 73375800 | U108: 1997-09-19 | V108: 0.348 | W108: 95.03125 | X108: 199709 | Y108: 199609 | Z108: 1996-09-20 | AA108: 5 | AB108: 1 | AC108: 1.364 | AD108: 0.0143531733
A109: 94 | B109: 2019-09-17 | C109: 299.940002 | D109: 301.019989 | E109: 299.75 | F109: 300.920013 | G109: 41475500 | H109: 298.071259 | I109: 0.9905331853 | J109: 1 | K109: 297.1 | L109: 298.17 | M109: 296.91 | N109: 298.07 | O109: 41475500 | U109: 1997-06-20 | V109: 0.35 | W109: 89.578125 | X109: 199706 | Y109: 199606 | Z109: 1996-06-21 | AA109: 5 | AB109: 1 | AC109: 1.368 | AD109: 0.01527158556
A110: 95 | B110: 2019-09-16 | C110: 299.839996 | D110: 301.140015 | E110: 299.450012 | F110: 300.160004 | G110: 58191200 | H110: 297.318481 | I110: 0.9905333057 | J110: 1 | K110: 297 | L110: 298.29 | M110: 296.62 | N110: 297.32 | O110: 58191200 | U110: 1997-03-21 | V110: 0.299 | W110: 78.4375 | X110: 199703 | Y110: 199603 | Z110: 1996-03-15 | AA110: 5 | AB110: 1 | AC110: 1.369 | AD110: 0.01745338645
A111: 96 | B111: 2019-09-13 | C111: 301.779999 | D111: 302.170013 | E111: 300.679993 | F111: 301.089996 | G111: 62104800 | H111: 298.239655 | I111: 0.990533259 | J111: 1 | K111: 298.92 | L111: 299.31 | M111: 297.83 | N111: 298.24 | O111: 62104800 | U111: 1996-12-20 | V111: 0.367 | W111: 74.84375 | X111: 199612 | Y111: 199512 | Z111: 1995-12-15 | AA111: 5 | AB111: 1 | AC111: 1.355 | AD111: 0.01810438413
A112: 97 | B112: 2019-09-12 | C112: 301.25 | D112: 302.459991 | E112: 300.410004 | F112: 301.290009 | G112: 72908700 | H112: 298.437775 | I112: 0.9905332606 | J112: 1 | K112: 298.4 | L112: 299.6 | M112: 297.57 | N112: 298.44 | O112: 72908700 | U112: 1996-09-20 | V112: 0.352 | W112: 68.640625 | X112: 199609 | Y112: 199509 | Z112: 1995-09-15 | AA112: 5 | AB112: 1 | AC112: 1.37 | AD112: 0.01995902572
A113: 98 | B113: 2019-09-11 | C113: 298.470001 | D113: 300.339996 | E113: 297.75 | F113: 300.25 | G113: 68821100 | H113: 297.407593 | I113: 0.990533199 | J113: 1 | K113: 295.64 | L113: 297.5 | M113: 294.93 | N113: 297.41 | O113: 68821100 | U113: 1996-06-21 | V113: 0.351 | W113: 66.8125 | X113: 199606 | Y113: 199506 | Z113: 1995-06-16 | AA113: 5 | AB113: 1 | AC113: 1.33 | AD113: 0.01990645463
A114: 99 | B114: 2019-09-10 | C114: 297.359985 | D114: 298.200012 | E114: 295.970001 | F114: 298.130005 | G114: 57947100 | H114: 295.307709 | I114: 0.990533338 | J114: 1 | K114: 294.54 | L114: 295.38 | M114: 293.17 | N114: 295.31 | O114: 57947100 | U114: 1996-03-15 | V114: 0.285 | W114: 64.125 | X114: 199603 | Y114: 199503 | Z114: 1995-03-17 | AA114: 5 | AB114: 1 | AC114: 1.295 | AD114: 0.02019493177
A115: 100 | B115: 2019-09-09 | C115: 299.140015 | D115: 299.23999 | E115: 297.160004 | F115: 298.200012 | G115: 51260300 | H115: 295.377014 | I115: 0.9905332063 | J115: 1 | K115: 296.31 | L115: 296.41 | M115: 294.35 | N115: 295.38 | O115: 51260300 | U115: 1995-12-15 | V115: 0.382 | W115: 61.8125 | X115: 199512 | Y115: 199412 | Z115: 1994-12-16 | AA115: 5 | AB115: 1 | AC115: 1.278 | AD115: 0.02067542973
A116: 101 | B116: 2019-09-06 | C116: 298.170013 | D116: 298.76001 | E116: 297.420013 | F116: 298.049988 | G116: 49584300 | H116: 295.228424 | I116: 0.9905332524 | J116: 1 | K116: 295.35 | L116: 295.93 | M116: 294.6 | N116: 295.23 | O116: 49584300 | U116: 1995-09-15 | V116: 0.312 | W116: 58.4375 | X116: 199509 | Y116: 199409 | Z116: 1994-09-19 | AA116: 5 | AB116: 1 | AC116: 1.259 | AD116: 0.02154438503
A117: 102 | B117: 2019-09-05 | C117: 296.790009 | D117: 298.829987 | E117: 294 | F117: 297.820007 | G117: 83258100 | H117: 295.00061 | I117: 0.9905332183 | J117: 1 | K117: 293.98 | L117: 296 | M117: 291.22 | N117: 295 | O117: 83258100 | U117: 1995-06-16 | V117: 0.316 | W117: 53.96875 | X117: 199506 | Y117: 199406 | Z117: 1994-06-17 | AA117: 6 | AB117: 1 | AC117: 1.235 | AD117: 0.0228836132
A118: 103 | B118: 2019-09-04 | C118: 293.140015 | D118: 294.059998 | E118: 292.309998 | F118: 294.040009 | G118: 46887300 | H118: 291.256409 | I118: 0.9905332611 | J118: 1 | K118: 290.36 | L118: 291.28 | M118: 289.54 | N118: 291.26 | O118: 46887300 | U118: 1995-03-17 | V118: 0.268 | W118: 49.5625 | X118: 199503 | Y118: 199403 | Z118: 1994-03-18 | AA118: 6 | AB118: 1 | AC118: 1.224 | AD118: 0.02469609079
A119: 104 | B119: 2019-09-03 | C119: 290.570007 | D119: 291.579987 | E119: 289.269989 | F119: 290.73999 | G119: 69101400 | H119: 287.98764 | I119: 0.990533294 | J119: 1 | K119: 287.82 | L119: 288.82 | M119: 286.53 | N119: 287.99 | O119: 69101400 | U119: 1994-12-16 | V119: 0.363 | W119: 45.75 | X119: 199412 | Y119: 199312 | Z119: 1993-12-17 | AA119: 6 | AB119: 1 | AC119: 1.227 | AD119: 0.02681967213
A120: 105 | B120: 2019-08-30 | C120: 294.220001 | D120: 294.23999 | E120: 291.420013 | F120: 292.450012 | G120: 62901200 | H120: 289.681458 | I120: 0.9905332403 | J120: 1 | K120: 291.43 | L120: 291.45 | M120: 288.66 | N120: 289.68 | O120: 62901200 | U120: 1994-09-19 | V120: 0 | W120: 47.0625 | X120: 199409 | Y120: 199309 | Z120: 1993-09-17 | AA120: 6 | AB120: 1 | AC120: 1.181 | AD120: 0.02509428951
A121: 106 | B121: 2019-08-29 | C121: 291.720001 | D121: 293.160004 | E121: 290.609985 | F121: 292.579987 | G121: 57899400 | H121: 289.810211 | I121: 0.9905332691 | J121: 1 | K121: 288.96 | L121: 290.38 | M121: 287.86 | N121: 289.81 | O121: 57899400 | U121: 1994-09-16 | V121: 0.288 | W121: 47.015625 | X121: 199409 | Y121: 199309 | Z121: 1993-09-17 | AA121: 5 | AB121: 1 | AC121: 1.181 | AD121: 0.02511930874
A122: 107 | B122: 2019-08-28 | C122: 286.140015 | D122: 289.070007 | E122: 285.25 | F122: 288.890015 | G122: 59696700 | H122: 286.155151 | I122: 0.9905332 | J122: 1 | K122: 283.43 | L122: 286.33 | M122: 282.55 | N122: 286.16 | O122: 59696700 | U122: 1994-06-17 | V122: 0.305 | W122: 45.875 | X122: 199406 | Y122: 199306 | Z122: 1993-06-18 | AA122: 5 | AB122: 1 | AC122: 1.179 | AD122: 0.02570027248
A123: 108 | B123: 2019-08-27 | C123: 289.540009 | D123: 289.950012 | E123: 286.029999 | F123: 286.869995 | G123: 66668900 | H123: 284.154266 | I123: 0.9905332414 | J123: 1 | K123: 286.8 | L123: 287.21 | M123: 283.32 | N123: 284.15 | O123: 66668900 | U123: 1994-03-18 | V123: 0.271 | W123: 46.96875 | X123: 199403 | Y123: 199303 | Z123: 1993-03-19 | AA123: 5 | AB123: 1 | AC123: 1.192 | AD123: 0.02537857618
A124: 109 | B124: 2019-08-26 | C124: 287.269989 | D124: 288 | E124: 285.579987 | F124: 288 | G124: 72423800 | H124: 285.27356 | I124: 0.9905331944 | J124: 1 | K124: 284.55 | L124: 285.27 | M124: 282.88 | N124: 285.27 | O124: 72423800 | U124: 1993-12-17 | V124: 0.317 | W124: 46.5625 | X124: 199312 | Y124: 199212 | Z124: 1993-03-19 | AA124: 4 | AB124: 0 | AC124: 1.134 | AD124: 0.02435436242
A125: 110 | B125: 2019-08-23 | C125: 290.920013 | D125: 292.76001 | E125: 283.470001 | F125: 284.850006 | G125: 149161500 | H125: 282.153412 | I125: 0.9905332844 | J125: 1 | K125: 288.17 | L125: 289.99 | M125: 280.79 | N125: 282.15 | O125: 149161500 | U125: 1993-09-17 | V125: 0.286 | W125: 45.8125 | X125: 199309 | Y125: 199209 | Z125: 1993-03-19 | AA125: 3 | AB125: 0 | AC125: 0.817 | AD125: 0.01783356071
A126: 111 | B126: 2019-08-22 | C126: 293.230011 | D126: 293.929993 | E126: 290.399994 | F126: 292.359985 | G126: 51666400 | H126: 289.592285 | I126: 0.9905332462 | J126: 1 | K126: 290.45 | L126: 291.15 | M126: 287.65 | N126: 289.59 | O126: 51666400 | U126: 1993-06-18 | V126: 0.318 | W126: 44.5 | X126: 199306 | Y126: 199206 | Z126: 1993-03-19 | AA126: 2 | AB126: 0 | AC126: 0.531 | AD126: 0.01193258427
A127: 112 | B127: 2019-08-21 | C127: 292.480011 | D127: 292.859985 | E127: 291.720001 | F127: 292.450012 | G127: 49524700 | H127: 289.681458 | I127: 0.9905332403 | J127: 1 | K127: 289.71 | L127: 290.09 | M127: 288.96 | N127: 289.68 | O127: 49524700 | U127: 1993-03-19 | V127: 0.213 | W127: 45.03125 | X127: 199303 | Y127: 199203 | Z127: 1993-03-19 | AA127: 1 | AB127: 1 | AC127: 0.213 | AD127: 0.004730048577
A128: 113 | B128: 2019-08-20 | C128: 291.769989 | D128: 292.359985 | E128: 289.950012 | F128: 290.089996 | G128: 51596400 | H128: 287.343811 | I128: 0.9905333344 | J128: 1 | K128: 289.01 | L128: 289.59 | M128: 287.21 | N128: 287.34 | O128: 51596400
A129: 114 | B129: 2019-08-19 | C129: 292.190002 | D129: 293.079987 | E129: 291.440002 | F129: 292.329987 | G129: 53571800 | H129: 289.562561 | I129: 0.990533212 | J129: 1 | K129: 289.42 | L129: 290.31 | M129: 288.68 | N129: 289.56 | O129: 53571800
A130: 115 | B130: 2019-08-16 | C130: 286.480011 | D130: 289.329987 | E130: 284.709991 | F130: 288.850006 | G130: 83018300 | H130: 286.115509 | I130: 0.9905331593 | J130: 1 | K130: 283.77 | L130: 286.59 | M130: 282.01 | N130: 286.12 | O130: 83018300
A131: 116 | B131: 2019-08-15 | C131: 284.880005 | D131: 285.640015 | E131: 282.390015 | F131: 284.649994 | G131: 99556600 | H131: 281.955292 | I131: 0.9905332793 | J131: 1 | K131: 282.18 | L131: 282.94 | M131: 279.72 | N131: 281.96 | O131: 99556600
A132: 117 | B132: 2019-08-14 | C132: 288.070007 | D132: 288.73999 | E132: 283.76001 | F132: 283.899994 | G132: 135622100 | H132: 281.212372 | I132: 0.9905332087 | J132: 1 | K132: 285.34 | L132: 286.01 | M132: 281.07 | N132: 281.21 | O132: 135622100
A133: 118 | B133: 2019-08-13 | C133: 287.73999 | D133: 294.149994 | E133: 287.359985 | F133: 292.549988 | G133: 94299800 | H133: 289.780487 | I133: 0.9905332384 | J133: 1 | K133: 285.02 | L133: 291.37 | M133: 284.64 | N133: 289.78 | O133: 94299800
A134: 119 | B134: 2019-08-12 | C134: 289.959991 | D134: 291.609985 | E134: 287.019989 | F134: 288.070007 | G134: 62629500 | H134: 285.342926 | I134: 0.9905332699 | J134: 1 | K134: 287.22 | L134: 288.85 | M134: 284.3 | N134: 285.34 | O134: 62629500
A135: 120 | B135: 2019-08-09 | C135: 292.579987 | D135: 293.23999 | E135: 289.649994 | F135: 291.619995 | G135: 93730000 | H135: 288.859283 | I135: 0.9905331869 | J135: 1 | K135: 289.81 | L135: 290.46 | M135: 286.91 | N135: 288.86 | O135: 93730000
A136: 121 | B136: 2019-08-08 | C136: 289.619995 | D136: 293.619995 | E136: 289.01001 | F136: 293.619995 | G136: 87713900 | H136: 290.840363 | I136: 0.9905332333 | J136: 1 | K136: 286.88 | L136: 290.84 | M136: 286.27 | N136: 290.84 | O136: 87713900
A137: 122 | B137: 2019-08-07 | C137: 284.399994 | D137: 288.820007 | E137: 282.040009 | F137: 287.970001 | G137: 140572300 | H137: 285.243866 | I137: 0.9905332674 | J137: 1 | K137: 281.71 | L137: 286.09 | M137: 279.37 | N137: 285.24 | O137: 140572300
A138: 123 | B138: 2019-08-06 | C138: 285.910004 | D138: 288.040009 | E138: 284.279999 | F138: 287.799988 | G138: 120711700 | H138: 285.07547 | I138: 0.9905332936 | J138: 1 | K138: 283.2 | L138: 285.31 | M138: 281.59 | N138: 285.08 | O138: 120711700
A139: 124 | B139: 2019-08-05 | C139: 288.089996 | D139: 288.209991 | E139: 281.720001 | F139: 283.820007 | G139: 178745400 | H139: 281.133148 | I139: 0.990533229 | J139: 1 | K139: 285.36 | L139: 285.48 | M139: 279.05 | N139: 281.13 | O139: 178745400
A140: 125 | B140: 2019-08-02 | C140: 293.850006 | D140: 294.119995 | E140: 290.899994 | F140: 292.619995 | G140: 116749700 | H140: 289.849854 | I140: 0.9905333161 | J140: 1 | K140: 291.07 | L140: 291.34 | M140: 288.15 | N140: 289.85 | O140: 116749700
A141: 126 | B141: 2019-08-01 | C141: 297.600006 | D141: 300.869995 | E141: 293.959991 | F141: 294.839996 | G141: 142646600 | H141: 292.048828 | I141: 0.9905332789 | J141: 1 | K141: 294.78 | L141: 298.02 | M141: 291.18 | N141: 292.05 | O141: 142646600
A142: 127 | B142: 2019-07-31 | C142: 300.98999 | D142: 301.200012 | E142: 295.200012 | F142: 297.429993 | G142: 103121300 | H142: 294.614288 | I142: 0.9905332177 | J142: 1 | K142: 298.14 | L142: 298.35 | M142: 292.41 | N142: 294.61 | O142: 103121300
A143: 128 | B143: 2019-07-30 | C143: 299.910004 | D143: 301.170013 | E143: 299.48999 | F143: 300.720001 | G143: 45849000 | H143: 297.873138 | I143: 0.9905331771 | J143: 1 | K143: 297.07 | L143: 298.32 | M143: 296.65 | N143: 297.87 | O143: 45849000
A144: 129 | B144: 2019-07-29 | C144: 301.880005 | D144: 302.01001 | E144: 300.850006 | F144: 301.459991 | G144: 38126500 | H144: 298.60614 | I144: 0.9905332346 | J144: 1 | K144: 299.02 | L144: 299.15 | M144: 298 | N144: 298.61 | O144: 38126500
A145: 130 | B145: 2019-07-26 | C145: 300.76001 | D145: 302.230011 | E145: 300.619995 | F145: 302.01001 | G145: 45084100 | H145: 299.15094 | I145: =IF(F145=0,1,H145/F145) -> 0.9905331946 | J145: =INDEX(OFFSET($T$15,0,0,$S$13+1,1),MATCH(B145,OFFSET($Q$15,0,0,$S$13+1,1),-1)) -> 1 | K145: =ROUND($I145*C145,2) -> 297.91 | L145: =ROUND($I145*D145,2) -> 299.37 | M145: =ROUND($I145*E145,2) -> 297.77 | N145: =ROUND($I145*F145,2) -> 299.15 | O145: =G145*J145 -> 45084100
A146: 131 | B146: 2019-07-25 | C146: 300.940002 | D146: 301 | E146: 299.109985 | F146: 300 | G146: 55394100 | H146: 297.159973 | I146: 0.9905332433 | J146: 1 | K146: 298.09 | L146: 298.15 | M146: 296.28 | N146: 297.16 | O146: 55394100
A147: 132 | B147: 2019-07-24 | C147: 299.190002 | D147: 301.440002 | E147: 299.089996 | F147: 301.440002 | G147: 47213200 | H147: 298.586334 | I147: 0.990533214 | J147: 1 | K147: 296.36 | L147: 298.59 | M147: 296.26 | N147: 298.59 | O147: 47213200
A148: 133 | B148: 2019-07-23 | C148: 299.140015 | D148: 300.029999 | E148: 298.220001 | F148: 300.029999 | G148: 44564500 | H148: 297.189667 | I148: 0.9905331733 | J148: 1 | K148: 296.31 | L148: 297.19 | M148: 295.4 | N148: 297.19 | O148: 44564500
A149: 134 | B149: 2019-07-22 | C149: 297.609985 | D149: 298.5 | E149: 297.040009 | F149: 297.899994 | G149: 43638100 | H149: 295.079834 | I149: 0.9905331989 | J149: 1 | K149: 294.79 | L149: 295.67 | M149: 294.23 | N149: 295.08 | O149: 43638100
A150: 135 | B150: 2019-07-19 | C150: 300.040009 | D150: 300.070007 | E150: 296.980011 | F150: 297.170013 | G150: 58678600 | H150: 294.356781 | I150: 0.9905332575 | J150: 1 | K150: 297.2 | L150: 297.23 | M150: 294.17 | N150: 294.36 | O150: 58678600
A151: 136 | B151: 2019-07-18 | C151: 297.190002 | D151: 299.25 | E151: 296.700012 | F151: 298.829987 | G151: 51392600 | H151: 296.001038 | I151: 0.9905332493 | J151: 1 | K151: 294.38 | L151: 296.42 | M151: 293.89 | N151: 296 | O151: 51392600
A152: 137 | B152: 2019-07-17 | C152: 299.75 | D152: 299.929993 | E152: 297.73999 | F152: 297.73999 | G152: 36036300 | H152: 294.921356 | I152: 0.9905332367 | J152: 1 | K152: 296.91 | L152: 297.09 | M152: 294.92 | N152: 294.92 | O152: 36036300
A153: 138 | B153: 2019-07-16 | C153: 300.649994 | D153: 300.880005 | E153: 299.440002 | F153: 299.779999 | G153: 36650100 | H153: 296.942047 | I153: 0.9905332177 | J153: 1 | K153: 297.8 | L153: 298.03 | M153: 296.61 | N153: 296.94 | O153: 36650100
A154: 139 | B154: 2019-07-15 | C154: 301.130005 | D154: 301.130005 | E154: 300.190002 | F154: 300.75 | G154: 33900000 | H154: 297.902863 | I154: 0.9905332103 | J154: 1 | K154: 298.28 | L154: 298.28 | M154: 297.35 | N154: 297.9 | O154: 33900000
A155: 140 | B155: 2019-07-12 | C155: 299.850006 | D155: 300.730011 | E155: 299.51001 | F155: 300.649994 | G155: 40326000 | H155: 297.803802 | I155: 0.9905332045 | J155: 1 | K155: 297.01 | L155: 297.88 | M155: 296.67 | N155: 297.8 | O155: 40326000
A156: 141 | B156: 2019-07-11 | C156: 299.320007 | D156: 299.579987 | E156: 298.200012 | F156: 299.309998 | G156: 50826100 | H156: 296.476501 | I156: 0.9905332364 | J156: 1 | K156: 296.49 | L156: 296.74 | M156: 295.38 | N156: 296.48 | O156: 50826100
A157: 142 | B157: 2019-07-10 | C157: 298.369995 | D157: 299.660004 | E157: 297.779999 | F157: 298.609985 | G157: 58448500 | H157: 295.783112 | I157: 0.9905332268 | J157: 1 | K157: 295.55 | L157: 296.82 | M157: 294.96 | N157: 295.78 | O157: 58448500
A158: 143 | B158: 2019-07-09 | C158: 295.540009 | D158: 297.519989 | E158: 295.480011 | F158: 297.190002 | G158: 41101300 | H158: 294.376587 | I158: 0.9905332784 | J158: 1 | K158: 292.74 | L158: 294.7 | M158: 292.68 | N158: 294.38 | O158: 41101300
A159: 144 | B159: 2019-07-08 | C159: 297.01001 | D159: 298.26001 | E159: 296.220001 | F159: 296.820007 | G159: 45841800 | H159: 294.010101 | I159: 0.9905332999 | J159: 1 | K159: 294.2 | L159: 295.44 | M159: 293.42 | N159: 294.01 | O159: 45841800
A160: 145 | B160: 2019-07-05 | C160: 297.440002 | D160: 298.640015 | E160: 296.01001 | F160: 298.459991 | G160: 51677300 | H160: 295.634552 | I160: 0.9905332739 | J160: 1 | K160: 294.62 | L160: 295.81 | M160: 293.21 | N160: 295.63 | O160: 51677300
A161: 146 | B161: 2019-07-03 | C161: 297.179993 | D161: 298.820007 | E161: 297.019989 | F161: 298.799988 | G161: 40898900 | H161: 295.971344 | I161: 0.9905333196 | J161: 1 | K161: 294.37 | L161: 295.99 | M161: 294.21 | N161: 295.97 | O161: 40898900
A162: 147 | B162: 2019-07-02 | C162: 295.609985 | D162: 296.48999 | E162: 294.679993 | F162: 296.429993 | G162: 61504500 | H162: 293.623779 | I162: 0.9905332994 | J162: 1 | K162: 292.81 | L162: 293.68 | M162: 291.89 | N162: 293.62 | O162: 61504500
A163: 148 | B163: 2019-07-01 | C163: 296.679993 | D163: 296.920013 | E163: 294.329987 | F163: 295.660004 | G163: 79107500 | H163: 292.861084 | I163: 0.9905333154 | J163: 1 | K163: 293.87 | L163: 294.11 | M163: 291.54 | N163: 292.86 | O163: 79107500
A164: 149 | B164: 2019-06-28 | C164: 292.579987 | D164: 293.549988 | E164: 292.01001 | F164: 293 | G164: 59350900 | H164: 290.226227 | I164: 0.990533198 | J164: 1 | K164: 289.81 | L164: 290.77 | M164: 289.25 | N164: 290.23 | O164: 59350900
A165: 150 | B165: 2019-06-27 | C165: 291.309998 | D165: 292.059998 | E165: 290.890015 | F165: 291.5 | G165: 40355200 | H165: 288.740448 | I165: 0.9905332693 | J165: 1 | K165: 288.55 | L165: 289.3 | M165: 288.14 | N165: 288.74 | O165: 40355200
A166: 151 | B166: 2019-06-26 | C166: 291.75 | D166: 292.309998 | E166: 290.350006 | F166: 290.470001 | G166: 51584900 | H166: 287.720184 | I166: 0.9905332152 | J166: 1 | K166: 288.99 | L166: 289.54 | M166: 287.6 | N166: 287.72 | O166: 51584900
A167: 152 | B167: 2019-06-25 | C167: 293.700012 | D167: 293.730011 | E167: 290.640015 | F167: 290.76001 | G167: 82028700 | H167: 288.007477 | I167: 0.9905333165 | J167: 1 | K167: 290.92 | L167: 290.95 | M167: 287.89 | N167: 288.01 | O167: 82028700
A168: 153 | B168: 2019-06-24 | C168: 294.230011 | D168: 294.579987 | E168: 293.470001 | F168: 293.640015 | G168: 47582700 | H168: 290.860199 | I168: 0.9905332521 | J168: 1 | K168: 291.44 | L168: 291.79 | M168: 290.69 | N168: 290.86 | O168: 47582700
A169: 154 | B169: 2019-06-21 | C169: 294.130005 | D169: 295.519989 | E169: 293.76001 | F169: 294 | G169: 83309500 | H169: 291.216797 | I169: 0.9905333231 | J169: 1 | K169: 291.35 | L169: 292.72 | M169: 290.98 | N169: 291.22 | O169: 83309500
A170: 155 | B170: 2019-06-20 | C170: 296.040009 | D170: 296.309998 | E170: 293.130005 | F170: 295.859985 | G170: 116570000 | H170: 291.640717 | I170: 0.9857389704 | J170: 1 | K170: 291.82 | L170: 292.08 | M170: 288.95 | N170: 291.64 | O170: 116570000
A171: 156 | B171: 2019-06-19 | C171: 292.549988 | D171: 293.649994 | E171: 291.470001 | F171: 293.059998 | G171: 78674400 | H171: 288.880646 | I171: 0.9857389203 | J171: 1 | K171: 288.38 | L171: 289.46 | M171: 287.31 | N171: 288.88 | O171: 78674400
A172: 157 | B172: 2019-06-18 | C172: 291.390015 | D172: 293.570007 | E172: 290.98999 | F172: 292.399994 | G172: 85434800 | H172: 288.230072 | I172: 0.9857389806 | J172: 1 | K172: 287.23 | L172: 289.38 | M172: 286.84 | N172: 288.23 | O172: 85434800
A173: 158 | B173: 2019-06-17 | C173: 289.519989 | D173: 290.220001 | E173: 289.179993 | F173: 289.369995 | G173: 39205700 | H173: 285.243256 | I173: 0.9857388842 | J173: 1 | K173: 285.39 | L173: 286.08 | M173: 285.06 | N173: 285.24 | O173: 39205700
A174: 159 | B174: 2019-06-14 | C174: 289.26001 | D174: 289.929993 | E174: 288.410004 | F174: 289.26001 | G174: 52324700 | H174: 285.134857 | I174: 0.9857389447 | J174: 1 | K174: 285.13 | L174: 285.8 | M174: 284.3 | N174: 285.13 | O174: 52324700
A175: 160 | B175: 2019-06-13 | C175: 289.399994 | D175: 289.980011 | E175: 288.619995 | F175: 289.579987 | G175: 48945200 | H175: 285.450256 | I175: 0.9857388936 | J175: 1 | K175: 285.27 | L175: 285.84 | M175: 284.5 | N175: 285.45 | O175: 48945200
A176: 161 | B176: 2019-06-12 | C176: 288.640015 | D176: 289.26001 | E176: 287.820007 | F176: 288.390015 | G176: 46984700 | H176: 284.277283 | I176: 0.9857389931 | J176: 1 | K176: 284.52 | L176: 285.13 | M176: 283.72 | N176: 284.28 | O176: 46984700
A177: 162 | B177: 2019-06-11 | C177: 290.98999 | D177: 291.399994 | E177: 288.179993 | F177: 288.899994 | G177: 58641300 | H177: 284.779999 | I177: 0.985739027 | J177: 1 | K177: 286.84 | L177: 287.24 | M177: 284.07 | N177: 284.78 | O177: 58641300
A178: 163 | B178: 2019-06-10 | C178: 289.369995 | D178: 290.820007 | E178: 288.869995 | F178: 288.970001 | G178: 60799100 | H178: 284.848999 | I178: 0.9857389972 | J178: 1 | K178: 285.24 | L178: 286.67 | M178: 284.75 | N178: 284.85 | O178: 60799100
A179: 164 | B179: 2019-06-07 | C179: 285.929993 | D179: 288.850006 | E179: 285.73999 | F179: 287.649994 | G179: 74272200 | H179: 283.547791 | I179: 0.9857389081 | J179: 1 | K179: 281.85 | L179: 284.73 | M179: 281.67 | N179: 283.55 | O179: 74272200
A180: 165 | B180: 2019-06-06 | C180: 283.290009 | D180: 285.549988 | E180: 282.570007 | F180: 284.799988 | G180: 69430400 | H180: 280.738434 | I180: 0.985738925 | J180: 1 | K180: 279.25 | L180: 281.48 | M180: 278.54 | N180: 280.74 | O180: 69430400
A181: 166 | B181: 2019-06-05 | C181: 282.329987 | D181: 282.98999 | E181: 280.320007 | F181: 282.959991 | G181: 71169700 | H181: 278.924683 | I181: 0.985738945 | J181: 1 | K181: 278.3 | L181: 278.95 | M181: 276.32 | N181: 278.92 | O181: 71169700
A182: 167 | B182: 2019-06-04 | C182: 277.119995 | D182: 280.679993 | E182: 276.619995 | F182: 280.529999 | G182: 77231900 | H182: 276.529358 | I182: 0.9857389904 | J182: 1 | K182: 273.17 | L182: 276.68 | M182: 272.68 | N182: 276.53 | O182: 77231900
A183: 168 | B183: 2019-06-03 | C183: 275.309998 | D183: 276.549988 | E183: 273.089996 | F183: 274.570007 | G183: 96428000 | H183: 270.654327 | I183: 0.9857388648 | J183: 1 | K183: 271.38 | L183: 272.61 | M183: 269.2 | N183: 270.65 | O183: 96428000
A184: 169 | B184: 2019-05-31 | C184: 276.200012 | D184: 277.119995 | E184: 275.23999 | F184: 275.269989 | G184: 86862800 | H184: 271.34433 | I184: 0.9857388776 | J184: 1 | K184: 272.26 | L184: 273.17 | M184: 271.31 | N184: 271.34 | O184: 86862800
A185: 170 | B185: 2019-05-30 | C185: 279.109985 | D185: 280.040009 | E185: 277.809998 | F185: 279.029999 | G185: 62523800 | H185: 275.050751 | I185: 0.9857389958 | J185: 1 | K185: 275.13 | L185: 276.05 | M185: 273.85 | N185: 275.05 | O185: 62523800
A186: 171 | B186: 2019-05-29 | C186: 278.910004 | D186: 279.359985 | E186: 276.709991 | F186: 278.269989 | G186: 104972900 | H186: 274.301575 | I186: 0.9857389796 | J186: 1 | K186: 274.93 | L186: 275.38 | M186: 272.76 | N186: 274.3 | O186: 104972900
A187: 172 | B187: 2019-05-28 | C187: 283.089996 | D187: 284.149994 | E187: 280.130005 | F187: 280.149994 | G187: 70029400 | H187: 276.154755 | I187: 0.9857389288 | J187: 1 | K187: 279.05 | L187: 280.1 | M187: 276.14 | N187: 276.15 | O187: 70029400
A188: 173 | B188: 2019-05-24 | C188: 283.73999 | D188: 284.200012 | E188: 282.089996 | F188: 282.779999 | G188: 55268100 | H188: 278.747284 | I188: 0.9857390374 | J188: 1 | K188: 279.69 | L188: 280.15 | M188: 278.07 | N188: 278.75 | O188: 55268100
A189: 174 | B189: 2019-05-23 | C189: 283.160004 | D189: 283.209991 | E189: 280.570007 | F189: 282.140015 | G189: 98733800 | H189: 278.116394 | I189: 0.9857389212 | J189: 1 | K189: 279.12 | L189: 279.17 | M189: 276.57 | N189: 278.12 | O189: 98733800
A190: 175 | B190: 2019-05-22 | C190: 285.450012 | D190: 286.690002 | E190: 285.100006 | F190: 285.630005 | G190: 49482500 | H190: 281.55661 | I190: 0.9857389107 | J190: 1 | K190: 281.38 | L190: 282.6 | M190: 281.03 | N190: 281.56 | O190: 49482500
A191: 176 | B191: 2019-05-21 | C191: 285.829987 | D191: 286.929993 | E191: 285.549988 | F191: 286.51001 | G191: 46847100 | H191: 282.424072 | I191: 0.9857389346 | J191: 1 | K191: 281.75 | L191: 282.84 | M191: 281.48 | N191: 282.42 | O191: 46847100
A192: 177 | B192: 2019-05-20 | C192: 284.059998 | D192: 285.959991 | E192: 283.119995 | F192: 283.950012 | G192: 62877600 | H192: 279.900574 | I192: 0.9857389053 | J192: 1 | K192: 280.01 | L192: 281.88 | M192: 279.08 | N192: 279.9 | O192: 62877600
A193: 178 | B193: 2019-05-17 | C193: 285.140015 | D193: 288.600006 | E193: 285.119995 | F193: 285.839996 | G193: 100353000 | H193: 281.763641 | I193: 0.9857390321 | J193: 1 | K193: 281.07 | L193: 284.48 | M193: 281.05 | N193: 281.76 | O193: 100353000
A194: 179 | B194: 2019-05-16 | C194: 285.839996 | D194: 289.209991 | E194: 285.76001 | F194: 287.700012 | G194: 76749600 | H194: 283.597107 | I194: 0.9857389474 | J194: 1 | K194: 281.76 | L194: 285.09 | M194: 281.68 | N194: 283.6 | O194: 76749600
A195: 180 | B195: 2019-05-15 | C195: 281.589996 | D195: 285.769989 | E195: 281.359985 | F195: 285.059998 | G195: 73956400 | H195: 280.99472 | I195: 0.9857388689 | J195: 1 | K195: 277.57 | L195: 281.69 | M195: 277.35 | N195: 280.99 | O195: 73956400
A196: 181 | B196: 2019-05-14 | C196: 281.98999 | D196: 285.100006 | E196: 281.850006 | F196: 283.399994 | G196: 77003200 | H196: 279.358398 | I196: 0.9857388988 | J196: 1 | K196: 277.97 | L196: 281.03 | M196: 277.83 | N196: 279.36 | O196: 77003200
A197: 182 | B197: 2019-05-13 | C197: 282.420013 | D197: 283.48999 | E197: 279.929993 | F197: 280.859985 | G197: 127290500 | H197: 276.854614 | I197: 0.9857389047 | J197: 1 | K197: 278.39 | L197: 279.45 | M197: 275.94 | N197: 276.85 | O197: 127290500
A198: 183 | B198: 2019-05-10 | C198: 285.619995 | D198: 288.940002 | E198: 282.299988 | F198: 288.100006 | G198: 112429300 | H198: 283.991394 | I198: 0.9857389382 | J198: 1 | K198: 281.55 | L198: 284.82 | M198: 278.27 | N198: 283.99 | O198: 112429300
A199: 184 | B199: 2019-05-09 | C199: 285.230011 | D199: 287.329987 | E199: 283.299988 | F199: 286.660004 | G199: 103471100 | H199: 282.571899 | I199: 0.9857388371 | J199: 1 | K199: 281.16 | L199: 283.23 | M199: 279.26 | N199: 282.57 | O199: 103471100
A200: 185 | B200: 2019-05-08 | C200: 287.529999 | D200: 289.429993 | E200: 286.869995 | F200: 287.529999 | G200: 91568300 | H200: 283.429504 | I200: 0.9857388968 | J200: 1 | K200: 283.43 | L200: 285.3 | M200: 282.78 | N200: 283.43 | O200: 91568300
... 4300 more rows

Sheet CalculationsAndCharts
A1: RSMK_Indicator.xlsm
A2: =InputPriceData!A1 -> Align Technology, Inc. (ALGN) -NasdaqGS (Daily) | R2: Clutter Control
A4: User Charting Controls | E4: Click to Shift Chart One Bar: | R4: 3 | U4: =R4 -> 3
A5: Data Control | C5: TRUE
A6: =InputPriceData!$B$10 -> 4780 | B6: Available Input Data Rows | E6: Earliest: | F6: =OFFSET(InputPriceData!B15,CalculationsAndCharts!A6,0,1,1) -> 2001-01-30
A7: =MAX(A33:A60000) -> 1132 | B7: Available Calculation Rows | E7: Latest: | F7: =OFFSET(InputPriceData!B15,1,0,1,1) -> 2020-01-30
A8: =MIN(AvailableInputRows-DataPanRows,A7) -> 1132 | B8: Logically Available for Calc / Plot | E8: $ Change: | F8: =G33-G34 -> 1.35
A10: Historical Price Windowing Specifications | F10: Click to Shift
A11: 38 | B11: Input Data Offset (Pan) | F11: Points to Plot
A12: 778 | B12: Data Points to Plot (Zoom) | R12: =M31 -> RS (ALGN/SPY)
B13: First: | C13: =OFFSET(B32,A12,0,1,1) -> 2016-11-01 | R13: ="@ Cursor" -> @ Cursor
B14: ="Last: " & IF(OFFSET(InputPriceData!P15,1+A11,0,1,1)="","",TEXT(OFFSET(InputPriceData!P15,1+A11,0,1,1),"H:MM AM/PM")) -> Last: | C14: =B33 -> 2019-12-04 | R14: =OFFSET(M32,E27,0,1,1) -> 0.8960121314
A15: User Controls | C15: Alpha | D15: 1-Alpha
A16: 3 | B16: RS1 EMA Length | C16: =2/(A16+1) -> 0.5 | D16: =1-C16 -> 0.5
A17: 90 | B17: RSMK Look Back Bars | R17: =P31 -> RSMK (ALGN/SPY)
A18: 126 | B18: Correlation Look Back | R18: ="@ Cursor" -> @ Cursor
A19: 90 | B19: SMA Bars for RS Crossover Signal Line | R19: =OFFSET(P32,E27,0,1,1) -> 25.88029106
AV22: =10^AV24 -> 17940200
AV24: =LOG10(AV32) -> 7.25382728
A25: Help! I would like to plot data
A26: From | B26: 2016-11-01 | C26: =OFFSET(InputPriceData!$A$15,MATCH(B26,OFFSET(InputPriceData!B15,1,0,InputPriceData!$B$10,1),0),0,1,1)-C27 -> 778 | E26: 778
A27: To | B27: 2019-12-04 | C27: =OFFSET(InputPriceData!$A$15,MATCH(B27,OFFSET(InputPriceData!$B$15,1,0,InputPriceData!$B$10,1),0),0,1,1)-1 -> 38 | E27: =$A$12-$E$26+1 -> 1
H28: Value @ Cursor => | I28: =OFFSET(A32,$E$27,0,1,1)&"(RR)" -> 1(RR) | J28: =OFFSET($B$32,E27,0,1,1) -> 2019-12-04 | K28: =TEXT(OFFSET(D32,$E$27,0,1,1),"#,##0.00")&"(o)" -> 277.26(o) | L28: =TEXT(OFFSET(E32,$E$27,0,1,1),"#,##0.00")&"(h)" -> 279.50(h) | M28: =TEXT(OFFSET(F32,$E$27,0,1,1),"#,##0.00")&"(l)" -> 275.82(l) | N28: =TEXT(OFFSET(G32,$E$27,0,1,1),"#,##0.00")&"(c)" -> 277.71(c)
E29: Cursor ==> | AU29: Work Area For Chart Cursors
A31: Rel Row | C31: ="Price Bars: " & InputPriceData!A1 -> Price Bars: Align Technology, Inc. (ALGN) -NasdaqGS (Daily) | H31: ="Price Bars: " & InputIndexPriceData!A1 -> Price Bars: SPDR S&P 500 ETF Trust (SPY) -NYSEArca (Daily) | M31: ="RS ("&InputPriceData!B4&"/"&InputIndexPriceData!B4&")" -> RS (ALGN/SPY) | P31: ="RSMK ("&InputPriceData!B4&"/"&InputIndexPriceData!B4&")" -> RSMK (ALGN/SPY) | Q31: ="Correlation ("&InputPriceData!B4&"/"&InputIndexPriceData!B4&")" -> Correlation (ALGN/SPY) | R31: ="SMA " & $A$19 & " of RS" -> SMA 90 of RS | Z31: RS Color Bands | AB31: RSMK Color Bands | AD31: Price Color Bands | AP31: Used To Color Vol Bars
B32: Date | C32: Volume | D32: Open | E32: High | F32: Low | G32: Close | H32: Volume | I32: Open | J32: High | K32: Low | L32: Close | N32: RS1 | O32: ="EMA(RS1,"&A16&")" -> EMA(RS1,3) | Z32: Long | AA32: Short | AB32: Long | AC32: Short | AD32: Long | AE32: Short | AP32: Up Vol | AQ32: Dn Vol | AU32: Volume Cursor | AV32: =MAX(OFFSET(C33,0,0,A12,1)) -> 17940200 | AW32: RSMK Cursor | AY32: Price Chart Cursor | BA32: RS Cursor
A33: 1 | B33: =IF(A33>$A$8,"",OFFSET(InputPriceData!B$15,$A33+$A$11,0,1,1)) -> 2019-12-04 | C33: =IF($A33>$A$8,"",OFFSET(InputPriceData!G$15,CalculationsAndCharts!$A33+$A$11,IF($C$5,8,0),1,1)) -> 486100 | D33: =IF(A33>$A$8,"",OFFSET(InputPriceData!C$15,CalculationsAndCharts!$A33+$A$11,IF($C$5,8,0),1,1)) -> 277.26 | E33: =IF(A33>$A$8,"",OFFSET(InputPriceData!D$15,CalculationsAndCharts!$A33+$A$11,IF($C$5,8,0),1,1)) -> 279.5 | F33: =IF(A33>$A$8,"",OFFSET(InputPriceData!E$15,CalculationsAndCharts!$A33+$A$11,IF($C$5,8,0),1,1)) -> 275.82 | G33: =IF(A33>$A$8,"",OFFSET(InputPriceData!F$15,CalculationsAndCharts!$A33+$A$11,IF($C$5,8,0),1,1)) -> 277.71 | H33: =IF($A33>$A$8,"",OFFSET(InputIndexPriceData!G$15,CalculationsAndCharts!$A33+$A$11,IF($C$5,8,0),1,1)) -> 49080000 | I33: =IF(A33>$A$8,"",OFFSET(InputIndexPriceData!C$15,CalculationsAndCharts!$A33+$A$11,IF($C$5,8,0),1,1)) -> 309.18 | J33: =IF(A33>$A$8,"",OFFSET(InputIndexPriceData!D$15,CalculationsAndCharts!$A33+$A$11,IF($C$5,8,0),1,1)) -> 310.59 | K33: =IF(A33>$A$8,"",OFFSET(InputIndexPriceData!E$15,CalculationsAndCharts!$A33+$A$11,IF($C$5,8,0),1,1)) -> 308.8 | L33: =IF(A33>$A$8,"",OFFSET(InputIndexPriceData!F$15,CalculationsAndCharts!$A33+$A$11,IF($C$5,8,0),1,1)) -> 309.94 | M33: =G33/L33 -> 0.8960121314 | N33: =IF(A33<=$A$8-$A$17,LN(M33)-LN(OFFSET(M33,$A$17,0,1,1)),0) -> 0.3109673188 | O33: =IF(A33<=($A$8-$A$17-$A$16),($C$16*N33+$D$16*O34),0) -> 0.2588029106 | P33: =O33*100 -> 25.88029106 | Q33: =IF(A33<=($A$8-$A$18),CORREL(OFFSET(G33,0,0,$A$18,1),OFFSET(L33,0,0,$A$18,1)),0) -> 0.3201560805 | R33: =IF(A33<=$A$8-$A$17,AVERAGE(OFFSET(M33,0,0,$A$19,1)),0) -> 0.7086877943 | Z33: =IF(AND($R$4=3,$M33>=$R33),$BB$34,NA()) -> 1.6 | AA33: =IF(AND($R$4=3,$M33<$R33),$BB$34,NA()) ->  | AB33: =IF(AND($R$4=2,$P33>=0),$AX$34,NA()) ->  | AC33: =IF(AND($R$4=2,$P33<0),$AX$33,NA()) ->  | AD33: =IF(OR(AND($R$4=3,$M33>=$R33),AND($R$4=2,$P33>=0)),$AZ$34,NA()) -> 408.852 | AE33: =IF(OR(AND($R$4=3,$M33<$R33),AND($R$4=2,$P33<0)),$AZ$34,NA()) ->  | AP33: =IF(G33>=D33,C33,NA()) -> 486100 | AQ33: =IF(G33<D33,C33,NA()) ->  | AU33: =$E$27 -> 1 | AV33: 0 | AW33: =$E$27 -> 1 | AX33: -80 | AY33: =$E$27 -> 1 | AZ33: 81.67575 | BA33: =$E$27 -> 1 | BB33: 0.4
A34: 2 | B34: =IF(A34>$A$8,"",OFFSET(InputPriceData!B$15,$A34+$A$11,0,1,1)) -> 2019-12-03 | C34: =IF(A34>$A$8,"",OFFSET(InputPriceData!G$15,CalculationsAndCharts!$A34+$A$11,IF($C$5,8,0),1,1)) -> 500100 | D34: =IF(A34>$A$8,"",OFFSET(InputPriceData!C$15,CalculationsAndCharts!$A34+$A$11,IF($C$5,8,0),1,1)) -> 271.12 | E34: =IF(A34>$A$8,"",OFFSET(InputPriceData!D$15,CalculationsAndCharts!$A34+$A$11,IF($C$5,8,0),1,1)) -> 276.6 | F34: =IF(A34>$A$8,"",OFFSET(InputPriceData!E$15,CalculationsAndCharts!$A34+$A$11,IF($C$5,8,0),1,1)) -> 266.11 | G34: =IF(A34>$A$8,"",OFFSET(InputPriceData!F$15,CalculationsAndCharts!$A34+$A$11,IF($C$5,8,0),1,1)) -> 276.36 | H34: =IF($A34>$A$8,"",OFFSET(InputIndexPriceData!G$15,CalculationsAndCharts!$A34+$A$11,IF($C$5,8,0),1,1)) -> 73941700 | I34: =IF(A34>$A$8,"",OFFSET(InputIndexPriceData!C$15,CalculationsAndCharts!$A34+$A$11,IF($C$5,8,0),1,1)) -> 307.14 | J34: =IF(A34>$A$8,"",OFFSET(InputIndexPriceData!D$15,CalculationsAndCharts!$A34+$A$11,IF($C$5,8,0),1,1)) -> 308.13 | K34: =IF(A34>$A$8,"",OFFSET(InputIndexPriceData!E$15,CalculationsAndCharts!$A34+$A$11,IF($C$5,8,0),1,1)) -> 305.63 | L34: =IF(A34>$A$8,"",OFFSET(InputIndexPriceData!F$15,CalculationsAndCharts!$A34+$A$11,IF($C$5,8,0),1,1)) -> 308.04 | M34: 0.8971562135 | N34: =IF(A34<=$A$8-$A$17,LN(M34)-LN(OFFSET(M34,$A$17,0,1,1)),0) -> 0.2999193576 | O34: =IF(A34<=($A$8-$A$17-$A$16),($C$16*N34+$D$16*O35),0) -> 0.2066385023 | P34: 20.66385023 | Q34: =IF(A34<=($A$8-$A$18),CORREL(OFFSET(G34,0,0,$A$18,1),OFFSET(L34,0,0,$A$18,1)),0) -> 0.2795616112 | R34: =IF(A34<=$A$8-$A$17,AVERAGE(OFFSET(M34,0,0,$A$19,1)),0) -> 0.7060270148 | Z34: =IF(AND($R$4=3,$M34>=$R34),$BB$34,NA()) -> 1.6 | AA34: =IF(AND($R$4=3,$M34<$R34),$BB$34,NA()) ->  | AD34: =IF(OR(AND($R$4=3,$M34>=$R34),AND($R$4=2,$P34>=0)),$AZ$34,NA()) -> 408.852 | AE34: =IF(OR(AND($R$4=3,$M34<$R34),AND($R$4=2,$P34<0)),$AZ$34,NA()) ->  | AP34: =IF(G34>=D34,C34,NA()) -> 500100 | AQ34: =IF(G34<D34,C34,NA()) ->  | AU34: =$E$27 -> 1 | AV34: =CEILING(AV32,10^INT(LOG10(AV32))/8) -> 18750000 | AW34: =$E$27 -> 1 | AX34: 60 | AY34: =$E$27 -> 1 | AZ34: 408.852 | BA34: =$E$27 -> 1 | BB34: 1.6
A35: 3 | B35: =IF(A35>$A$8,"",OFFSET(InputPriceData!B$15,$A35+$A$11,0,1,1)) -> 2019-12-02 | C35: =IF(A35>$A$8,"",OFFSET(InputPriceData!G$15,CalculationsAndCharts!$A35+$A$11,IF($C$5,8,0),1,1)) -> 616000 | D35: =IF(A35>$A$8,"",OFFSET(InputPriceData!C$15,CalculationsAndCharts!$A35+$A$11,IF($C$5,8,0),1,1)) -> 276.54 | E35: =IF(A35>$A$8,"",OFFSET(InputPriceData!D$15,CalculationsAndCharts!$A35+$A$11,IF($C$5,8,0),1,1)) -> 278.99 | F35: =IF(A35>$A$8,"",OFFSET(InputPriceData!E$15,CalculationsAndCharts!$A35+$A$11,IF($C$5,8,0),1,1)) -> 269.54 | G35: =IF(A35>$A$8,"",OFFSET(InputPriceData!F$15,CalculationsAndCharts!$A35+$A$11,IF($C$5,8,0),1,1)) -> 274.34 | H35: =IF($A35>$A$8,"",OFFSET(InputIndexPriceData!G$15,CalculationsAndCharts!$A35+$A$11,IF($C$5,8,0),1,1)) -> 75767800 | I35: =IF(A35>$A$8,"",OFFSET(InputIndexPriceData!C$15,CalculationsAndCharts!$A35+$A$11,IF($C$5,8,0),1,1)) -> 313.05 | J35: =IF(A35>$A$8,"",OFFSET(InputIndexPriceData!D$15,CalculationsAndCharts!$A35+$A$11,IF($C$5,8,0),1,1)) -> 313.12 | K35: =IF(A35>$A$8,"",OFFSET(InputIndexPriceData!E$15,CalculationsAndCharts!$A35+$A$11,IF($C$5,8,0),1,1)) -> 309.65 | L35: =IF(A35>$A$8,"",OFFSET(InputIndexPriceData!F$15,CalculationsAndCharts!$A35+$A$11,IF($C$5,8,0),1,1)) -> 310.12 | M35: 0.8846253063 | N35: 0.2688723362 | O35: 0.113357647 | P35: 11.3357647 | Q35: 0.2392316302 | R35: 0.7034439821 | Z35: 1.6 | AD35: 408.852 | AP35: =IF(G35>=D35,C35,NA()) ->  | AQ35: =IF(G35<D35,C35,NA()) -> 616000
A36: 4 | B36: =IF(A36>$A$8,"",OFFSET(InputPriceData!B$15,$A36+$A$11,0,1,1)) -> 2019-11-29 | C36: =IF(A36>$A$8,"",OFFSET(InputPriceData!G$15,CalculationsAndCharts!$A36+$A$11,IF($C$5,8,0),1,1)) -> 266200 | D36: =IF(A36>$A$8,"",OFFSET(InputPriceData!C$15,CalculationsAndCharts!$A36+$A$11,IF($C$5,8,0),1,1)) -> 278.85 | E36: =IF(A36>$A$8,"",OFFSET(InputPriceData!D$15,CalculationsAndCharts!$A36+$A$11,IF($C$5,8,0),1,1)) -> 279.8 | F36: =IF(A36>$A$8,"",OFFSET(InputPriceData!E$15,CalculationsAndCharts!$A36+$A$11,IF($C$5,8,0),1,1)) -> 276.02 | G36: =IF(A36>$A$8,"",OFFSET(InputPriceData!F$15,CalculationsAndCharts!$A36+$A$11,IF($C$5,8,0),1,1)) -> 277.34 | H36: =IF($A36>$A$8,"",OFFSET(InputIndexPriceData!G$15,CalculationsAndCharts!$A36+$A$11,IF($C$5,8,0),1,1)) -> 36592700 | I36: =IF(A36>$A$8,"",OFFSET(InputIndexPriceData!C$15,CalculationsAndCharts!$A36+$A$11,IF($C$5,8,0),1,1)) -> 313.32 | J36: =IF(A36>$A$8,"",OFFSET(InputIndexPriceData!D$15,CalculationsAndCharts!$A36+$A$11,IF($C$5,8,0),1,1)) -> 313.59 | K36: =IF(A36>$A$8,"",OFFSET(InputIndexPriceData!E$15,CalculationsAndCharts!$A36+$A$11,IF($C$5,8,0),1,1)) -> 312.52 | L36: =IF(A36>$A$8,"",OFFSET(InputIndexPriceData!F$15,CalculationsAndCharts!$A36+$A$11,IF($C$5,8,0),1,1)) -> 312.77 | M36: 0.8867218723 | N36: -0.03850525755 | O36: -0.04215704209 | P36: -4.215704209 | Q36: 0.1973305307 | R36: 0.701126665 | Z36: 1.6 | AD36: 408.852 | AP36: =IF(G36>=D36,C36,NA()) ->  | AQ36: =IF(G36<D36,C36,NA()) -> 266200
A37: 5 | B37: =IF(A37>$A$8,"",OFFSET(InputPriceData!B$15,$A37+$A$11,0,1,1)) -> 2019-11-27 | C37: =IF(A37>$A$8,"",OFFSET(InputPriceData!G$15,CalculationsAndCharts!$A37+$A$11,IF($C$5,8,0),1,1)) -> 442800 | D37: =IF(A37>$A$8,"",OFFSET(InputPriceData!C$15,CalculationsAndCharts!$A37+$A$11,IF($C$5,8,0),1,1)) -> 279.01 | E37: =IF(A37>$A$8,"",OFFSET(InputPriceData!D$15,CalculationsAndCharts!$A37+$A$11,IF($C$5,8,0),1,1)) -> 280.72 | F37: =IF(A37>$A$8,"",OFFSET(InputPriceData!E$15,CalculationsAndCharts!$A37+$A$11,IF($C$5,8,0),1,1)) -> 278.08 | G37: =IF(A37>$A$8,"",OFFSET(InputPriceData!F$15,CalculationsAndCharts!$A37+$A$11,IF($C$5,8,0),1,1)) -> 279.62 | H37: =IF($A37>$A$8,"",OFFSET(InputIndexPriceData!G$15,CalculationsAndCharts!$A37+$A$11,IF($C$5,8,0),1,1)) -> 44444600 | I37: =IF(A37>$A$8,"",OFFSET(InputIndexPriceData!C$15,CalculationsAndCharts!$A37+$A$11,IF($C$5,8,0),1,1)) -> 313.07 | J37: =IF(A37>$A$8,"",OFFSET(InputIndexPriceData!D$15,CalculationsAndCharts!$A37+$A$11,IF($C$5,8,0),1,1)) -> 313.94 | K37: =IF(A37>$A$8,"",OFFSET(InputIndexPriceData!E$15,CalculationsAndCharts!$A37+$A$11,IF($C$5,8,0),1,1)) -> 312.83 | L37: =IF(A37>$A$8,"",OFFSET(InputIndexPriceData!F$15,CalculationsAndCharts!$A37+$A$11,IF($C$5,8,0),1,1)) -> 313.94 | M37: 0.8906797477 | N37: -0.03072394569 | O37: -0.04580882662 | P37: -4.580882662 | Q37: 0.1512233737 | R37: 0.7015134353 | Z37: 1.6 | AD37: 408.852 | AP37: 442800
A38: 6 | B38: =IF(A38>$A$8,"",OFFSET(InputPriceData!B$15,$A38+$A$11,0,1,1)) -> 2019-11-26 | C38: =IF(A38>$A$8,"",OFFSET(InputPriceData!G$15,CalculationsAndCharts!$A38+$A$11,IF($C$5,8,0),1,1)) -> 647300 | D38: =IF(A38>$A$8,"",OFFSET(InputPriceData!C$15,CalculationsAndCharts!$A38+$A$11,IF($C$5,8,0),1,1)) -> 277.67 | E38: =IF(A38>$A$8,"",OFFSET(InputPriceData!D$15,CalculationsAndCharts!$A38+$A$11,IF($C$5,8,0),1,1)) -> 281.57 | F38: =IF(A38>$A$8,"",OFFSET(InputPriceData!E$15,CalculationsAndCharts!$A38+$A$11,IF($C$5,8,0),1,1)) -> 277.2 | G38: =IF(A38>$A$8,"",OFFSET(InputPriceData!F$15,CalculationsAndCharts!$A38+$A$11,IF($C$5,8,0),1,1)) -> 277.7 | H38: =IF($A38>$A$8,"",OFFSET(InputIndexPriceData!G$15,CalculationsAndCharts!$A38+$A$11,IF($C$5,8,0),1,1)) -> 37569000 | I38: =IF(A38>$A$8,"",OFFSET(InputIndexPriceData!C$15,CalculationsAndCharts!$A38+$A$11,IF($C$5,8,0),1,1)) -> 311.88 | J38: =IF(A38>$A$8,"",OFFSET(InputIndexPriceData!D$15,CalculationsAndCharts!$A38+$A$11,IF($C$5,8,0),1,1)) -> 312.74 | K38: =IF(A38>$A$8,"",OFFSET(InputIndexPriceData!E$15,CalculationsAndCharts!$A38+$A$11,IF($C$5,8,0),1,1)) -> 311.53 | L38: =IF(A38>$A$8,"",OFFSET(InputIndexPriceData!F$15,CalculationsAndCharts!$A38+$A$11,IF($C$5,8,0),1,1)) -> 312.54 | M38: 0.8885262686 | N38: -0.04578652602 | O38: -0.06089370755 | P38: -6.089370755 | Q38: 0.105579883 | R38: 0.7018222121 | Z38: 1.6 | AD38: 408.852 | AP38: 647300
A39: 7 | B39: =IF(A39>$A$8,"",OFFSET(InputPriceData!B$15,$A39+$A$11,0,1,1)) -> 2019-11-25 | C39: =IF(A39>$A$8,"",OFFSET(InputPriceData!G$15,CalculationsAndCharts!$A39+$A$11,IF($C$5,8,0),1,1)) -> 655600 | D39: =IF(A39>$A$8,"",OFFSET(InputPriceData!C$15,CalculationsAndCharts!$A39+$A$11,IF($C$5,8,0),1,1)) -> 276 | E39: =IF(A39>$A$8,"",OFFSET(InputPriceData!D$15,CalculationsAndCharts!$A39+$A$11,IF($C$5,8,0),1,1)) -> 279.88 | F39: =IF(A39>$A$8,"",OFFSET(InputPriceData!E$15,CalculationsAndCharts!$A39+$A$11,IF($C$5,8,0),1,1)) -> 275.03 | G39: =IF(A39>$A$8,"",OFFSET(InputPriceData!F$15,CalculationsAndCharts!$A39+$A$11,IF($C$5,8,0),1,1)) -> 278.07 | H39: =IF($A39>$A$8,"",OFFSET(InputIndexPriceData!G$15,CalculationsAndCharts!$A39+$A$11,IF($C$5,8,0),1,1)) -> 48647200 | I39: =IF(A39>$A$8,"",OFFSET(InputIndexPriceData!C$15,CalculationsAndCharts!$A39+$A$11,IF($C$5,8,0),1,1)) -> 310.45 | J39: =IF(A39>$A$8,"",OFFSET(InputIndexPriceData!D$15,CalculationsAndCharts!$A39+$A$11,IF($C$5,8,0),1,1)) -> 311.84 | K39: =IF(A39>$A$8,"",OFFSET(InputIndexPriceData!E$15,CalculationsAndCharts!$A39+$A$11,IF($C$5,8,0),1,1)) -> 310.45 | L39: =IF(A39>$A$8,"",OFFSET(InputIndexPriceData!F$15,CalculationsAndCharts!$A39+$A$11,IF($C$5,8,0),1,1)) -> 311.84 | M39: 0.8917072858 | N39: -0.06891556833 | O39: -0.07600088909 | P39: -7.600088909 | Q39: 0.06252467456 | R39: 0.7022847484 | Z39: 1.6 | AD39: 408.852 | AP39: 655600
A40: 8 | B40: =IF(A40>$A$8,"",OFFSET(InputPriceData!B$15,$A40+$A$11,0,1,1)) -> 2019-11-22 | C40: =IF(A40>$A$8,"",OFFSET(InputPriceData!G$15,CalculationsAndCharts!$A40+$A$11,IF($C$5,8,0),1,1)) -> 639200 | D40: =IF(A40>$A$8,"",OFFSET(InputPriceData!C$15,CalculationsAndCharts!$A40+$A$11,IF($C$5,8,0),1,1)) -> 271.07 | E40: =IF(A40>$A$8,"",OFFSET(InputPriceData!D$15,CalculationsAndCharts!$A40+$A$11,IF($C$5,8,0),1,1)) -> 275.74 | F40: =IF(A40>$A$8,"",OFFSET(InputPriceData!E$15,CalculationsAndCharts!$A40+$A$11,IF($C$5,8,0),1,1)) -> 268.7 | G40: =IF(A40>$A$8,"",OFFSET(InputPriceData!F$15,CalculationsAndCharts!$A40+$A$11,IF($C$5,8,0),1,1)) -> 274.4 | H40: =IF($A40>$A$8,"",OFFSET(InputIndexPriceData!G$15,CalculationsAndCharts!$A40+$A$11,IF($C$5,8,0),1,1)) -> 44850200 | I40: =IF(A40>$A$8,"",OFFSET(InputIndexPriceData!C$15,CalculationsAndCharts!$A40+$A$11,IF($C$5,8,0),1,1)) -> 309.57 | J40: =IF(A40>$A$8,"",OFFSET(InputIndexPriceData!D$15,CalculationsAndCharts!$A40+$A$11,IF($C$5,8,0),1,1)) -> 309.72 | K40: =IF(A40>$A$8,"",OFFSET(InputIndexPriceData!E$15,CalculationsAndCharts!$A40+$A$11,IF($C$5,8,0),1,1)) -> 308.33 | L40: =IF(A40>$A$8,"",OFFSET(InputIndexPriceData!F$15,CalculationsAndCharts!$A40+$A$11,IF($C$5,8,0),1,1)) -> 309.44 | M40: 0.8867631851 | N40: -0.0765713263 | O40: -0.08308620985 | P40: -8.308620985 | Q40: 0.0193169442 | R40: 0.702991632 | Z40: 1.6 | AD40: 408.852 | AP40: 639200
A41: 9 | B41: =IF(A41>$A$8,"",OFFSET(InputPriceData!B$15,$A41+$A$11,0,1,1)) -> 2019-11-21 | C41: =IF(A41>$A$8,"",OFFSET(InputPriceData!G$15,CalculationsAndCharts!$A41+$A$11,IF($C$5,8,0),1,1)) -> 500400 | D41: =IF(A41>$A$8,"",OFFSET(InputPriceData!C$15,CalculationsAndCharts!$A41+$A$11,IF($C$5,8,0),1,1)) -> 269 | E41: =IF(A41>$A$8,"",OFFSET(InputPriceData!D$15,CalculationsAndCharts!$A41+$A$11,IF($C$5,8,0),1,1)) -> 273 | F41: =IF(A41>$A$8,"",OFFSET(InputPriceData!E$15,CalculationsAndCharts!$A41+$A$11,IF($C$5,8,0),1,1)) -> 267.43 | G41: =IF(A41>$A$8,"",OFFSET(InputPriceData!F$15,CalculationsAndCharts!$A41+$A$11,IF($C$5,8,0),1,1)) -> 272.14 | H41: =IF($A41>$A$8,"",OFFSET(InputIndexPriceData!G$15,CalculationsAndCharts!$A41+$A$11,IF($C$5,8,0),1,1)) -> 54664700 | I41: =IF(A41>$A$8,"",OFFSET(InputIndexPriceData!C$15,CalculationsAndCharts!$A41+$A$11,IF($C$5,8,0),1,1)) -> 309.37 | J41: =IF(A41>$A$8,"",OFFSET(InputIndexPriceData!D$15,CalculationsAndCharts!$A41+$A$11,IF($C$5,8,0),1,1)) -> 309.49 | K41: =IF(A41>$A$8,"",OFFSET(InputIndexPriceData!E$15,CalculationsAndCharts!$A41+$A$11,IF($C$5,8,0),1,1)) -> 307.88 | L41: =IF(A41>$A$8,"",OFFSET(InputIndexPriceData!F$15,CalculationsAndCharts!$A41+$A$11,IF($C$5,8,0),1,1)) -> 308.75 | M41: 0.8814251012 | N41: -0.08816840159 | O41: -0.08960109341 | P41: -8.960109341 | Q41: -0.01974281382 | R41: 0.7037757198 | Z41: 1.6 | AD41: 408.852 | AP41: 500400
A42: 10 | B42: =IF(A42>$A$8,"",OFFSET(InputPriceData!B$15,$A42+$A$11,0,1,1)) -> 2019-11-20 | C42: =IF(A42>$A$8,"",OFFSET(InputPriceData!G$15,CalculationsAndCharts!$A42+$A$11,IF($C$5,8,0),1,1)) -> 601900 | D42: =IF(A42>$A$8,"",OFFSET(InputPriceData!C$15,CalculationsAndCharts!$A42+$A$11,IF($C$5,8,0),1,1)) -> 269.84 | E42: =IF(A42>$A$8,"",OFFSET(InputPriceData!D$15,CalculationsAndCharts!$A42+$A$11,IF($C$5,8,0),1,1)) -> 271.39 | F42: =IF(A42>$A$8,"",OFFSET(InputPriceData!E$15,CalculationsAndCharts!$A42+$A$11,IF($C$5,8,0),1,1)) -> 264.96 | G42: =IF(A42>$A$8,"",OFFSET(InputPriceData!F$15,CalculationsAndCharts!$A42+$A$11,IF($C$5,8,0),1,1)) -> 268.77 | H42: =IF($A42>$A$8,"",OFFSET(InputIndexPriceData!G$15,CalculationsAndCharts!$A42+$A$11,IF($C$5,8,0),1,1)) -> 79406200 | I42: =IF(A42>$A$8,"",OFFSET(InputIndexPriceData!C$15,CalculationsAndCharts!$A42+$A$11,IF($C$5,8,0),1,1)) -> 309.76 | J42: =IF(A42>$A$8,"",OFFSET(InputIndexPriceData!D$15,CalculationsAndCharts!$A42+$A$11,IF($C$5,8,0),1,1)) -> 310.32 | K42: =IF(A42>$A$8,"",OFFSET(InputIndexPriceData!E$15,CalculationsAndCharts!$A42+$A$11,IF($C$5,8,0),1,1)) -> 307.55 | L42: =IF(A42>$A$8,"",OFFSET(InputIndexPriceData!F$15,CalculationsAndCharts!$A42+$A$11,IF($C$5,8,0),1,1)) -> 309.25 | M42: 0.8691026677 | N42: -0.08536766643 | O42: -0.09103378524 | P42: -9.103378524 | Q42: -0.05481307966 | R42: 0.7046784169 | Z42: 1.6 | AD42: 408.852 | AQ42: 601900
A43: 11 | B43: =IF(A43>$A$8,"",OFFSET(InputPriceData!B$15,$A43+$A$11,0,1,1)) -> 2019-11-19 | C43: =IF(A43>$A$8,"",OFFSET(InputPriceData!G$15,CalculationsAndCharts!$A43+$A$11,IF($C$5,8,0),1,1)) -> 605900 | D43: =IF(A43>$A$8,"",OFFSET(InputPriceData!C$15,CalculationsAndCharts!$A43+$A$11,IF($C$5,8,0),1,1)) -> 269.6 | E43: =IF(A43>$A$8,"",OFFSET(InputPriceData!D$15,CalculationsAndCharts!$A43+$A$11,IF($C$5,8,0),1,1)) -> 272.86 | F43: =IF(A43>$A$8,"",OFFSET(InputPriceData!E$15,CalculationsAndCharts!$A43+$A$11,IF($C$5,8,0),1,1)) -> 266.22 | G43: =IF(A43>$A$8,"",OFFSET(InputPriceData!F$15,CalculationsAndCharts!$A43+$A$11,IF($C$5,8,0),1,1)) -> 271.6 | H43: =IF($A43>$A$8,"",OFFSET(InputIndexPriceData!G$15,CalculationsAndCharts!$A43+$A$11,IF($C$5,8,0),1,1)) -> 67804700 | I43: =IF(A43>$A$8,"",OFFSET(InputIndexPriceData!C$15,CalculationsAndCharts!$A43+$A$11,IF($C$5,8,0),1,1)) -> 311.15 | J43: =IF(A43>$A$8,"",OFFSET(InputIndexPriceData!D$15,CalculationsAndCharts!$A43+$A$11,IF($C$5,8,0),1,1)) -> 311.16 | K43: =IF(A43>$A$8,"",OFFSET(InputIndexPriceData!E$15,CalculationsAndCharts!$A43+$A$11,IF($C$5,8,0),1,1)) -> 309.7 | L43: =IF(A43>$A$8,"",OFFSET(InputIndexPriceData!F$15,CalculationsAndCharts!$A43+$A$11,IF($C$5,8,0),1,1)) -> 310.4 | M43: 0.875 | N43: -0.08680355156 | O43: -0.09669990404 | P43: -9.669990404 | Q43: -0.08844781548 | R43: 0.7055389968 | Z43: 1.6 | AD43: 408.852 | AP43: 605900
A44: 12 | B44: =IF(A44>$A$8,"",OFFSET(InputPriceData!B$15,$A44+$A$11,0,1,1)) -> 2019-11-18 | C44: =IF(A44>$A$8,"",OFFSET(InputPriceData!G$15,CalculationsAndCharts!$A44+$A$11,IF($C$5,8,0),1,1)) -> 801600 | D44: =IF(A44>$A$8,"",OFFSET(InputPriceData!C$15,CalculationsAndCharts!$A44+$A$11,IF($C$5,8,0),1,1)) -> 266.6 | E44: =IF(A44>$A$8,"",OFFSET(InputPriceData!D$15,CalculationsAndCharts!$A44+$A$11,IF($C$5,8,0),1,1)) -> 269.43 | F44: =IF(A44>$A$8,"",OFFSET(InputPriceData!E$15,CalculationsAndCharts!$A44+$A$11,IF($C$5,8,0),1,1)) -> 265 | G44: =IF(A44>$A$8,"",OFFSET(InputPriceData!F$15,CalculationsAndCharts!$A44+$A$11,IF($C$5,8,0),1,1)) -> 268.51 | H44: =IF($A44>$A$8,"",OFFSET(InputIndexPriceData!G$15,CalculationsAndCharts!$A44+$A$11,IF($C$5,8,0),1,1)) -> 49228000 | I44: =IF(A44>$A$8,"",OFFSET(InputIndexPriceData!C$15,CalculationsAndCharts!$A44+$A$11,IF($C$5,8,0),1,1)) -> 310.01 | J44: =IF(A44>$A$8,"",OFFSET(InputIndexPriceData!D$15,CalculationsAndCharts!$A44+$A$11,IF($C$5,8,0),1,1)) -> 310.75 | K44: =IF(A44>$A$8,"",OFFSET(InputIndexPriceData!E$15,CalculationsAndCharts!$A44+$A$11,IF($C$5,8,0),1,1)) -> 309.51 | L44: =IF(A44>$A$8,"",OFFSET(InputIndexPriceData!F$15,CalculationsAndCharts!$A44+$A$11,IF($C$5,8,0),1,1)) -> 310.49 | M44: 0.8647943573 | N44: -0.09749870381 | O44: -0.1065962565 | P44: -10.65962565 | Q44: -0.1212067765 | R44: 0.7064206312 | Z44: 1.6 | AD44: 408.852 | AP44: 801600
A45: 13 | B45: =IF(A45>$A$8,"",OFFSET(InputPriceData!B$15,$A45+$A$11,0,1,1)) -> 2019-11-15 | C45: =IF(A45>$A$8,"",OFFSET(InputPriceData!G$15,CalculationsAndCharts!$A45+$A$11,IF($C$5,8,0),1,1)) -> 602200 | D45: =IF(A45>$A$8,"",OFFSET(InputPriceData!C$15,CalculationsAndCharts!$A45+$A$11,IF($C$5,8,0),1,1)) -> 260.48 | E45: =IF(A45>$A$8,"",OFFSET(InputPriceData!D$15,CalculationsAndCharts!$A45+$A$11,IF($C$5,8,0),1,1)) -> 265.24 | F45: =IF(A45>$A$8,"",OFFSET(InputPriceData!E$15,CalculationsAndCharts!$A45+$A$11,IF($C$5,8,0),1,1)) -> 259.2 | G45: =IF(A45>$A$8,"",OFFSET(InputPriceData!F$15,CalculationsAndCharts!$A45+$A$11,IF($C$5,8,0),1,1)) -> 263.92 | H45: =IF($A45>$A$8,"",OFFSET(InputIndexPriceData!G$15,CalculationsAndCharts!$A45+$A$11,IF($C$5,8,0),1,1)) -> 62023600 | I45: =IF(A45>$A$8,"",OFFSET(InputIndexPriceData!C$15,CalculationsAndCharts!$A45+$A$11,IF($C$5,8,0),1,1)) -> 309.5 | J45: =IF(A45>$A$8,"",OFFSET(InputIndexPriceData!D$15,CalculationsAndCharts!$A45+$A$11,IF($C$5,8,0),1,1)) -> 310.31 | K45: =IF(A45>$A$8,"",OFFSET(InputIndexPriceData!E$15,CalculationsAndCharts!$A45+$A$11,IF($C$5,8,0),1,1)) -> 308.74 | L45: =IF(A45>$A$8,"",OFFSET(InputIndexPriceData!F$15,CalculationsAndCharts!$A45+$A$11,IF($C$5,8,0),1,1)) -> 310.26 | M45: 0.8506413975 | N45: -0.1137819501 | O45: -0.1156938092 | P45: -11.56938092 | Q45: -0.1515969309 | R45: 0.7074046712 | Z45: 1.6 | AD45: 408.852 | AP45: 602200
A46: 14 | B46: =IF(A46>$A$8,"",OFFSET(InputPriceData!B$15,$A46+$A$11,0,1,1)) -> 2019-11-14 | C46: =IF(A46>$A$8,"",OFFSET(InputPriceData!G$15,CalculationsAndCharts!$A46+$A$11,IF($C$5,8,0),1,1)) -> 392300 | D46: =IF(A46>$A$8,"",OFFSET(InputPriceData!C$15,CalculationsAndCharts!$A46+$A$11,IF($C$5,8,0),1,1)) -> 260.26 | E46: =IF(A46>$A$8,"",OFFSET(InputPriceData!D$15,CalculationsAndCharts!$A46+$A$11,IF($C$5,8,0),1,1)) -> 262.02 | F46: =IF(A46>$A$8,"",OFFSET(InputPriceData!E$15,CalculationsAndCharts!$A46+$A$11,IF($C$5,8,0),1,1)) -> 259 | G46: =IF(A46>$A$8,"",OFFSET(InputPriceData!F$15,CalculationsAndCharts!$A46+$A$11,IF($C$5,8,0),1,1)) -> 260.44 | H46: =IF($A46>$A$8,"",OFFSET(InputIndexPriceData!G$15,CalculationsAndCharts!$A46+$A$11,IF($C$5,8,0),1,1)) -> 51219900 | I46: =IF(A46>$A$8,"",OFFSET(InputIndexPriceData!C$15,CalculationsAndCharts!$A46+$A$11,IF($C$5,8,0),1,1)) -> 307.28 | J46: =IF(A46>$A$8,"",OFFSET(InputIndexPriceData!D$15,CalculationsAndCharts!$A46+$A$11,IF($C$5,8,0),1,1)) -> 308.13 | K46: =IF(A46>$A$8,"",OFFSET(InputIndexPriceData!E$15,CalculationsAndCharts!$A46+$A$11,IF($C$5,8,0),1,1)) -> 306.58 | L46: =IF(A46>$A$8,"",OFFSET(InputIndexPriceData!F$15,CalculationsAndCharts!$A46+$A$11,IF($C$5,8,0),1,1)) -> 308.04 | M46: 0.8454746137 | N46: -0.1365031609 | O46: -0.1176056684 | P46: -11.76056684 | Q46: -0.1836712978 | R46: 0.708543659 | Z46: 1.6 | AD46: 408.852 | AP46: 392300
A47: 15 | B47: =IF(A47>$A$8,"",OFFSET(InputPriceData!B$15,$A47+$A$11,0,1,1)) -> 2019-11-13 | C47: =IF(A47>$A$8,"",OFFSET(InputPriceData!G$15,CalculationsAndCharts!$A47+$A$11,IF($C$5,8,0),1,1)) -> 382800 | D47: =IF(A47>$A$8,"",OFFSET(InputPriceData!C$15,CalculationsAndCharts!$A47+$A$11,IF($C$5,8,0),1,1)) -> 257.32 | E47: =IF(A47>$A$8,"",OFFSET(InputPriceData!D$15,CalculationsAndCharts!$A47+$A$11,IF($C$5,8,0),1,1)) -> 261 | F47: =IF(A47>$A$8,"",OFFSET(InputPriceData!E$15,CalculationsAndCharts!$A47+$A$11,IF($C$5,8,0),1,1)) -> 255.27 | G47: =IF(A47>$A$8,"",OFFSET(InputPriceData!F$15,CalculationsAndCharts!$A47+$A$11,IF($C$5,8,0),1,1)) -> 259.63 | H47: =IF($A47>$A$8,"",OFFSET(InputIndexPriceData!G$15,CalculationsAndCharts!$A47+$A$11,IF($C$5,8,0),1,1)) -> 53917700 | I47: =IF(A47>$A$8,"",OFFSET(InputIndexPriceData!C$15,CalculationsAndCharts!$A47+$A$11,IF($C$5,8,0),1,1)) -> 306.4 | J47: =IF(A47>$A$8,"",OFFSET(InputIndexPriceData!D$15,CalculationsAndCharts!$A47+$A$11,IF($C$5,8,0),1,1)) -> 308.03 | K47: =IF(A47>$A$8,"",OFFSET(InputIndexPriceData!E$15,CalculationsAndCharts!$A47+$A$11,IF($C$5,8,0),1,1)) -> 306.15 | L47: =IF(A47>$A$8,"",OFFSET(InputIndexPriceData!F$15,CalculationsAndCharts!$A47+$A$11,IF($C$5,8,0),1,1)) -> 307.59 | M47: 0.844078156 | N47: -0.1028996335 | O47: -0.09870817583 | P47: -9.870817583 | Q47: -0.2098376766 | R47: 0.7099176351 | Z47: 1.6 | AD47: 408.852 | AP47: 382800
A48: 16 | B48: =IF(A48>$A$8,"",OFFSET(InputPriceData!B$15,$A48+$A$11,0,1,1)) -> 2019-11-12 | C48: =IF(A48>$A$8,"",OFFSET(InputPriceData!G$15,CalculationsAndCharts!$A48+$A$11,IF($C$5,8,0),1,1)) -> 548200 | D48: =IF(A48>$A$8,"",OFFSET(InputPriceData!C$15,CalculationsAndCharts!$A48+$A$11,IF($C$5,8,0),1,1)) -> 258.42 | E48: =IF(A48>$A$8,"",OFFSET(InputPriceData!D$15,CalculationsAndCharts!$A48+$A$11,IF($C$5,8,0),1,1)) -> 262.5 | F48: =IF(A48>$A$8,"",OFFSET(InputPriceData!E$15,CalculationsAndCharts!$A48+$A$11,IF($C$5,8,0),1,1)) -> 257.07 | G48: =IF(A48>$A$8,"",OFFSET(InputPriceData!F$15,CalculationsAndCharts!$A48+$A$11,IF($C$5,8,0),1,1)) -> 258.97 | H48: =IF($A48>$A$8,"",OFFSET(InputIndexPriceData!G$15,CalculationsAndCharts!$A48+$A$11,IF($C$5,8,0),1,1)) -> 46484600 | I48: =IF(A48>$A$8,"",OFFSET(InputIndexPriceData!C$15,CalculationsAndCharts!$A48+$A$11,IF($C$5,8,0),1,1)) -> 307.24 | J48: =IF(A48>$A$8,"",OFFSET(InputIndexPriceData!D$15,CalculationsAndCharts!$A48+$A$11,IF($C$5,8,0),1,1)) -> 308.47 | K48: =IF(A48>$A$8,"",OFFSET(InputIndexPriceData!E$15,CalculationsAndCharts!$A48+$A$11,IF($C$5,8,0),1,1)) -> 306.64 | L48: =IF(A48>$A$8,"",OFFSET(InputIndexPriceData!F$15,CalculationsAndCharts!$A48+$A$11,IF($C$5,8,0),1,1)) -> 307.49 | M48: 0.8422062506 | N48: -0.09480059134 | O48: -0.09451671818 | P48: -9.451671818 | Q48: -0.2330710862 | R48: 0.7109340942 | Z48: 1.6 | AD48: 408.852 | AP48: 548200
A49: 17 | B49: =IF(A49>$A$8,"",OFFSET(InputPriceData!B$15,$A49+$A$11,0,1,1)) -> 2019-11-11 | C49: =IF(A49>$A$8,"",OFFSET(InputPriceData!G$15,CalculationsAndCharts!$A49+$A$11,IF($C$5,8,0),1,1)) -> 527300 | D49: =IF(A49>$A$8,"",OFFSET(InputPriceData!C$15,CalculationsAndCharts!$A49+$A$11,IF($C$5,8,0),1,1)) -> 258.69 | E49: =IF(A49>$A$8,"",OFFSET(InputPriceData!D$15,CalculationsAndCharts!$A49+$A$11,IF($C$5,8,0),1,1)) -> 260.72 | F49: =IF(A49>$A$8,"",OFFSET(InputPriceData!E$15,CalculationsAndCharts!$A49+$A$11,IF($C$5,8,0),1,1)) -> 257.51 | G49: =IF(A49>$A$8,"",OFFSET(InputPriceData!F$15,CalculationsAndCharts!$A49+$A$11,IF($C$5,8,0),1,1)) -> 258.6 | H49: =IF($A49>$A$8,"",OFFSET(InputIndexPriceData!G$15,CalculationsAndCharts!$A49+$A$11,IF($C$5,8,0),1,1)) -> 35797300 | I49: =IF(A49>$A$8,"",OFFSET(InputIndexPriceData!C$15,CalculationsAndCharts!$A49+$A$11,IF($C$5,8,0),1,1)) -> 305.92 | J49: =IF(A49>$A$8,"",OFFSET(InputIndexPriceData!D$15,CalculationsAndCharts!$A49+$A$11,IF($C$5,8,0),1,1)) -> 307.03 | K49: =IF(A49>$A$8,"",OFFSET(InputIndexPriceData!E$15,CalculationsAndCharts!$A49+$A$11,IF($C$5,8,0),1,1)) -> 305.77 | L49: =IF(A49>$A$8,"",OFFSET(InputIndexPriceData!F$15,CalculationsAndCharts!$A49+$A$11,IF($C$5,8,0),1,1)) -> 306.84 | M49: 0.8427845131 | N49: -0.09246880277 | O49: -0.09423284501 | P49: -9.423284501 | Q49: -0.2591007628 | R49: 0.7118646348 | Z49: 1.6 | AD49: 408.852 | AQ49: 527300
A50: 18 | B50: =IF(A50>$A$8,"",OFFSET(InputPriceData!B$15,$A50+$A$11,0,1,1)) -> 2019-11-08 | C50: =IF(A50>$A$8,"",OFFSET(InputPriceData!G$15,CalculationsAndCharts!$A50+$A$11,IF($C$5,8,0),1,1)) -> 685500 | D50: =IF(A50>$A$8,"",OFFSET(InputPriceData!C$15,CalculationsAndCharts!$A50+$A$11,IF($C$5,8,0),1,1)) -> 258.18 | E50: =IF(A50>$A$8,"",OFFSET(InputPriceData!D$15,CalculationsAndCharts!$A50+$A$11,IF($C$5,8,0),1,1)) -> 261.28 | F50: =IF(A50>$A$8,"",OFFSET(InputPriceData!E$15,CalculationsAndCharts!$A50+$A$11,IF($C$5,8,0),1,1)) -> 255.65 | G50: =IF(A50>$A$8,"",OFFSET(InputPriceData!F$15,CalculationsAndCharts!$A50+$A$11,IF($C$5,8,0),1,1)) -> 259.92 | H50: =IF($A50>$A$8,"",OFFSET(InputIndexPriceData!G$15,CalculationsAndCharts!$A50+$A$11,IF($C$5,8,0),1,1)) -> 49032100 | I50: =IF(A50>$A$8,"",OFFSET(InputIndexPriceData!C$15,CalculationsAndCharts!$A50+$A$11,IF($C$5,8,0),1,1)) -> 306.29 | J50: =IF(A50>$A$8,"",OFFSET(InputIndexPriceData!D$15,CalculationsAndCharts!$A50+$A$11,IF($C$5,8,0),1,1)) -> 307.49 | K50: =IF(A50>$A$8,"",OFFSET(InputIndexPriceData!E$15,CalculationsAndCharts!$A50+$A$11,IF($C$5,8,0),1,1)) -> 305.53 | L50: =IF(A50>$A$8,"",OFFSET(InputIndexPriceData!F$15,CalculationsAndCharts!$A50+$A$11,IF($C$5,8,0),1,1)) -> 307.43 | M50: 0.8454607553 | N50: -0.09438652753 | O50: -0.09599688726 | P50: -9.599688726 | Q50: -0.2852762326 | R50: 0.7127718354 | Z50: 1.6 | AD50: 408.852 | AP50: 685500
A51: 19 | B51: =IF(A51>$A$8,"",OFFSET(InputPriceData!B$15,$A51+$A$11,0,1,1)) -> 2019-11-07 | C51: =IF(A51>$A$8,"",OFFSET(InputPriceData!G$15,CalculationsAndCharts!$A51+$A$11,IF($C$5,8,0),1,1)) -> 844700 | D51: =IF(A51>$A$8,"",OFFSET(InputPriceData!C$15,CalculationsAndCharts!$A51+$A$11,IF($C$5,8,0),1,1)) -> 257.92 | E51: =IF(A51>$A$8,"",OFFSET(InputPriceData!D$15,CalculationsAndCharts!$A51+$A$11,IF($C$5,8,0),1,1)) -> 261.6 | F51: =IF(A51>$A$8,"",OFFSET(InputPriceData!E$15,CalculationsAndCharts!$A51+$A$11,IF($C$5,8,0),1,1)) -> 253.33 | G51: =IF(A51>$A$8,"",OFFSET(InputPriceData!F$15,CalculationsAndCharts!$A51+$A$11,IF($C$5,8,0),1,1)) -> 258.94 | H51: =IF($A51>$A$8,"",OFFSET(InputIndexPriceData!G$15,CalculationsAndCharts!$A51+$A$11,IF($C$5,8,0),1,1)) -> 54272300 | I51: =IF(A51>$A$8,"",OFFSET(InputIndexPriceData!C$15,CalculationsAndCharts!$A51+$A$11,IF($C$5,8,0),1,1)) -> 307.06 | J51: =IF(A51>$A$8,"",OFFSET(InputIndexPriceData!D$15,CalculationsAndCharts!$A51+$A$11,IF($C$5,8,0),1,1)) -> 308.14 | K51: =IF(A51>$A$8,"",OFFSET(InputIndexPriceData!E$15,CalculationsAndCharts!$A51+$A$11,IF($C$5,8,0),1,1)) -> 306.15 | L51: =IF(A51>$A$8,"",OFFSET(InputIndexPriceData!F$15,CalculationsAndCharts!$A51+$A$11,IF($C$5,8,0),1,1)) -> 306.67 | M51: 0.8443603874 | N51: -0.08863921103 | O51: -0.09760724699 | P51: -9.760724699 | Q51: -0.3128896488 | R51: 0.7137016962 | Z51: 1.6 | AD51: 408.852 | AP51: 844700
A52: 20 | B52: =IF(A52>$A$8,"",OFFSET(InputPriceData!B$15,$A52+$A$11,0,1,1)) -> 2019-11-06 | C52: =IF(A52>$A$8,"",OFFSET(InputPriceData!G$15,CalculationsAndCharts!$A52+$A$11,IF($C$5,8,0),1,1)) -> 931100 | D52: =IF(A52>$A$8,"",OFFSET(InputPriceData!C$15,CalculationsAndCharts!$A52+$A$11,IF($C$5,8,0),1,1)) -> 257.83 | E52: =IF(A52>$A$8,"",OFFSET(InputPriceData!D$15,CalculationsAndCharts!$A52+$A$11,IF($C$5,8,0),1,1)) -> 260.49 | F52: =IF(A52>$A$8,"",OFFSET(InputPriceData!E$15,CalculationsAndCharts!$A52+$A$11,IF($C$5,8,0),1,1)) -> 255.11 | G52: =IF(A52>$A$8,"",OFFSET(InputPriceData!F$15,CalculationsAndCharts!$A52+$A$11,IF($C$5,8,0),1,1)) -> 256.16 | H52: =IF($A52>$A$8,"",OFFSET(InputIndexPriceData!G$15,CalculationsAndCharts!$A52+$A$11,IF($C$5,8,0),1,1)) -> 46487100 | I52: =IF(A52>$A$8,"",OFFSET(InputIndexPriceData!C$15,CalculationsAndCharts!$A52+$A$11,IF($C$5,8,0),1,1)) -> 305.53 | J52: =IF(A52>$A$8,"",OFFSET(InputIndexPriceData!D$15,CalculationsAndCharts!$A52+$A$11,IF($C$5,8,0),1,1)) -> 305.9 | K52: =IF(A52>$A$8,"",OFFSET(InputIndexPriceData!E$15,CalculationsAndCharts!$A52+$A$11,IF($C$5,8,0),1,1)) -> 304.56 | L52: =IF(A52>$A$8,"",OFFSET(InputIndexPriceData!F$15,CalculationsAndCharts!$A52+$A$11,IF($C$5,8,0),1,1)) -> 305.6 | M52: 0.8382198953 | N52: -0.101405032 | O52: -0.106575283 | P52: -10.6575283 | Q52: -0.3328654046 | R52: 0.7145712594 | Z52: 1.6 | AD52: 408.852 | AQ52: 931100
A53: 21 | B53: =IF(A53>$A$8,"",OFFSET(InputPriceData!B$15,$A53+$A$11,0,1,1)) -> 2019-11-05 | C53: =IF(A53>$A$8,"",OFFSET(InputPriceData!G$15,CalculationsAndCharts!$A53+$A$11,IF($C$5,8,0),1,1)) -> 833900 | D53: =IF(A53>$A$8,"",OFFSET(InputPriceData!C$15,CalculationsAndCharts!$A53+$A$11,IF($C$5,8,0),1,1)) -> 258.87 | E53: =IF(A53>$A$8,"",OFFSET(InputPriceData!D$15,CalculationsAndCharts!$A53+$A$11,IF($C$5,8,0),1,1)) -> 260.2 | F53: =IF(A53>$A$8,"",OFFSET(InputPriceData!E$15,CalculationsAndCharts!$A53+$A$11,IF($C$5,8,0),1,1)) -> 255.15 | G53: =IF(A53>$A$8,"",OFFSET(InputPriceData!F$15,CalculationsAndCharts!$A53+$A$11,IF($C$5,8,0),1,1)) -> 257.91 | H53: =IF($A53>$A$8,"",OFFSET(InputIndexPriceData!G$15,CalculationsAndCharts!$A53+$A$11,IF($C$5,8,0),1,1)) -> 42933200 | I53: =IF(A53>$A$8,"",OFFSET(InputIndexPriceData!C$15,CalculationsAndCharts!$A53+$A$11,IF($C$5,8,0),1,1)) -> 306.09 | J53: =IF(A53>$A$8,"",OFFSET(InputIndexPriceData!D$15,CalculationsAndCharts!$A53+$A$11,IF($C$5,8,0),1,1)) -> 306.41 | K53: =IF(A53>$A$8,"",OFFSET(InputIndexPriceData!E$15,CalculationsAndCharts!$A53+$A$11,IF($C$5,8,0),1,1)) -> 305.21 | L53: =IF(A53>$A$8,"",OFFSET(InputIndexPriceData!F$15,CalculationsAndCharts!$A53+$A$11,IF($C$5,8,0),1,1)) -> 305.53 | M53: 0.8441396917 | N53: -0.1107961906 | O53: -0.1117455339 | P53: -11.17455339 | Q53: -0.3527644346 | R53: 0.7155652467 | Z53: 1.6 | AD53: 408.852 | AQ53: 833900
A54: 22 | B54: =IF(A54>$A$8,"",OFFSET(InputPriceData!B$15,$A54+$A$11,0,1,1)) -> 2019-11-04 | C54: =IF(A54>$A$8,"",OFFSET(InputPriceData!G$15,CalculationsAndCharts!$A54+$A$11,IF($C$5,8,0),1,1)) -> 815800 | D54: =IF(A54>$A$8,"",OFFSET(InputPriceData!C$15,CalculationsAndCharts!$A54+$A$11,IF($C$5,8,0),1,1)) -> 258.25 | E54: =IF(A54>$A$8,"",OFFSET(InputPriceData!D$15,CalculationsAndCharts!$A54+$A$11,IF($C$5,8,0),1,1)) -> 260.17 | F54: =IF(A54>$A$8,"",OFFSET(InputPriceData!E$15,CalculationsAndCharts!$A54+$A$11,IF($C$5,8,0),1,1)) -> 255.11 | G54: =IF(A54>$A$8,"",OFFSET(InputPriceData!F$15,CalculationsAndCharts!$A54+$A$11,IF($C$5,8,0),1,1)) -> 258.77 | H54: =IF($A54>$A$8,"",OFFSET(InputIndexPriceData!G$15,CalculationsAndCharts!$A54+$A$11,IF($C$5,8,0),1,1)) -> 60606900 | I54: =IF(A54>$A$8,"",OFFSET(InputIndexPriceData!C$15,CalculationsAndCharts!$A54+$A$11,IF($C$5,8,0),1,1)) -> 306.34 | J54: =IF(A54>$A$8,"",OFFSET(InputIndexPriceData!D$15,CalculationsAndCharts!$A54+$A$11,IF($C$5,8,0),1,1)) -> 306.49 | K54: =IF(A54>$A$8,"",OFFSET(InputIndexPriceData!E$15,CalculationsAndCharts!$A54+$A$11,IF($C$5,8,0),1,1)) -> 305.46 | L54: =IF(A54>$A$8,"",OFFSET(InputIndexPriceData!F$15,CalculationsAndCharts!$A54+$A$11,IF($C$5,8,0),1,1)) -> 305.87 | M54: 0.8460130121 | N54: -0.09993066627 | O54: -0.1126948772 | P54: -11.26948772 | Q54: -0.3719758171 | R54: 0.7166641964 | Z54: 1.6 | AD54: 408.852 | AP54: 815800
A55: 23 | B55: =IF(A55>$A$8,"",OFFSET(InputPriceData!B$15,$A55+$A$11,0,1,1)) -> 2019-11-01 | C55: =IF(A55>$A$8,"",OFFSET(InputPriceData!G$15,CalculationsAndCharts!$A55+$A$11,IF($C$5,8,0),1,1)) -> 935400 | D55: =IF(A55>$A$8,"",OFFSET(InputPriceData!C$15,CalculationsAndCharts!$A55+$A$11,IF($C$5,8,0),1,1)) -> 254.31 | E55: =IF(A55>$A$8,"",OFFSET(InputPriceData!D$15,CalculationsAndCharts!$A55+$A$11,IF($C$5,8,0),1,1)) -> 261.87 | F55: =IF(A55>$A$8,"",OFFSET(InputPriceData!E$15,CalculationsAndCharts!$A55+$A$11,IF($C$5,8,0),1,1)) -> 253.02 | G55: =IF(A55>$A$8,"",OFFSET(InputPriceData!F$15,CalculationsAndCharts!$A55+$A$11,IF($C$5,8,0),1,1)) -> 257.04 | H55: =IF($A55>$A$8,"",OFFSET(InputIndexPriceData!G$15,CalculationsAndCharts!$A55+$A$11,IF($C$5,8,0),1,1)) -> 71141500 | I55: =IF(A55>$A$8,"",OFFSET(InputIndexPriceData!C$15,CalculationsAndCharts!$A55+$A$11,IF($C$5,8,0),1,1)) -> 303.43 | J55: =IF(A55>$A$8,"",OFFSET(InputIndexPriceData!D$15,CalculationsAndCharts!$A55+$A$11,IF($C$5,8,0),1,1)) -> 304.69 | K55: =IF(A55>$A$8,"",OFFSET(InputIndexPriceData!E$15,CalculationsAndCharts!$A55+$A$11,IF($C$5,8,0),1,1)) -> 303.25 | L55: =IF(A55>$A$8,"",OFFSET(InputIndexPriceData!F$15,CalculationsAndCharts!$A55+$A$11,IF($C$5,8,0),1,1)) -> 304.64 | M55: 0.84375 | N55: -0.09919669523 | O55: -0.1254590881 | P55: -12.54590881 | Q55: -0.3916161621 | R55: 0.717652098 | Z55: 1.6 | AD55: 408.852 | AP55: 935400
A56: 24 | B56: =IF(A56>$A$8,"",OFFSET(InputPriceData!B$15,$A56+$A$11,0,1,1)) -> 2019-10-31 | C56: =IF(A56>$A$8,"",OFFSET(InputPriceData!G$15,CalculationsAndCharts!$A56+$A$11,IF($C$5,8,0),1,1)) -> 702600 | D56: =IF(A56>$A$8,"",OFFSET(InputPriceData!C$15,CalculationsAndCharts!$A56+$A$11,IF($C$5,8,0),1,1)) -> 251.32 | E56: =IF(A56>$A$8,"",OFFSET(InputPriceData!D$15,CalculationsAndCharts!$A56+$A$11,IF($C$5,8,0),1,1)) -> 253.41 | F56: =IF(A56>$A$8,"",OFFSET(InputPriceData!E$15,CalculationsAndCharts!$A56+$A$11,IF($C$5,8,0),1,1)) -> 246.16 | G56: =IF(A56>$A$8,"",OFFSET(InputPriceData!F$15,CalculationsAndCharts!$A56+$A$11,IF($C$5,8,0),1,1)) -> 252.29 | H56: =IF($A56>$A$8,"",OFFSET(InputIndexPriceData!G$15,CalculationsAndCharts!$A56+$A$11,IF($C$5,8,0),1,1)) -> 69053800 | I56: =IF(A56>$A$8,"",OFFSET(InputIndexPriceData!C$15,CalculationsAndCharts!$A56+$A$11,IF($C$5,8,0),1,1)) -> 302.64 | J56: =IF(A56>$A$8,"",OFFSET(InputIndexPriceData!D$15,CalculationsAndCharts!$A56+$A$11,IF($C$5,8,0),1,1)) -> 302.64 | K56: =IF(A56>$A$8,"",OFFSET(InputIndexPriceData!E$15,CalculationsAndCharts!$A56+$A$11,IF($C$5,8,0),1,1)) -> 300.25 | L56: =IF(A56>$A$8,"",OFFSET(InputIndexPriceData!F$15,CalculationsAndCharts!$A56+$A$11,IF($C$5,8,0),1,1)) -> 301.85 | M56: 0.8358124896 | N56: -0.1368291108 | O56: -0.1517214809 | P56: -15.17214809 | Q56: -0.4019413646 | R56: 0.7186297557 | Z56: 1.6 | AD56: 408.852 | AP56: 702600
A57: 25 | B57: =IF(A57>$A$8,"",OFFSET(InputPriceData!B$15,$A57+$A$11,0,1,1)) -> 2019-10-30 | C57: =IF(A57>$A$8,"",OFFSET(InputPriceData!G$15,CalculationsAndCharts!$A57+$A$11,IF($C$5,8,0),1,1)) -> 812100 | D57: =IF(A57>$A$8,"",OFFSET(InputPriceData!C$15,CalculationsAndCharts!$A57+$A$11,IF($C$5,8,0),1,1)) -> 255.65 | E57: =IF(A57>$A$8,"",OFFSET(InputPriceData!D$15,CalculationsAndCharts!$A57+$A$11,IF($C$5,8,0),1,1)) -> 255.65 | F57: =IF(A57>$A$8,"",OFFSET(InputPriceData!E$15,CalculationsAndCharts!$A57+$A$11,IF($C$5,8,0),1,1)) -> 247.54 | G57: =IF(A57>$A$8,"",OFFSET(InputPriceData!F$15,CalculationsAndCharts!$A57+$A$11,IF($C$5,8,0),1,1)) -> 252.71 | H57: =IF($A57>$A$8,"",OFFSET(InputIndexPriceData!G$15,CalculationsAndCharts!$A57+$A$11,IF($C$5,8,0),1,1)) -> 49643900 | I57: =IF(A57>$A$8,"",OFFSET(InputIndexPriceData!C$15,CalculationsAndCharts!$A57+$A$11,IF($C$5,8,0),1,1)) -> 301.95 | J57: =IF(A57>$A$8,"",OFFSET(InputIndexPriceData!D$15,CalculationsAndCharts!$A57+$A$11,IF($C$5,8,0),1,1)) -> 303.06 | K57: =IF(A57>$A$8,"",OFFSET(InputIndexPriceData!E$15,CalculationsAndCharts!$A57+$A$11,IF($C$5,8,0),1,1)) -> 300.51 | L57: =IF(A57>$A$8,"",OFFSET(InputIndexPriceData!F$15,CalculationsAndCharts!$A57+$A$11,IF($C$5,8,0),1,1)) -> 302.65 | M57: 0.8349909136 | N57: -0.1499666703 | O57: -0.166613851 | P57: -16.6613851 | Q57: -0.4056826096 | R57: 0.7199915003 | Z57: 1.6 | AD57: 408.852 | AQ57: 812100
A58: 26 | B58: =IF(A58>$A$8,"",OFFSET(InputPriceData!B$15,$A58+$A$11,0,1,1)) -> 2019-10-29 | C58: =IF(A58>$A$8,"",OFFSET(InputPriceData!G$15,CalculationsAndCharts!$A58+$A$11,IF($C$5,8,0),1,1)) -> 1104000 | D58: =IF(A58>$A$8,"",OFFSET(InputPriceData!C$15,CalculationsAndCharts!$A58+$A$11,IF($C$5,8,0),1,1)) -> 250.04 | E58: =IF(A58>$A$8,"",OFFSET(InputPriceData!D$15,CalculationsAndCharts!$A58+$A$11,IF($C$5,8,0),1,1)) -> 257.63 | F58: =IF(A58>$A$8,"",OFFSET(InputPriceData!E$15,CalculationsAndCharts!$A58+$A$11,IF($C$5,8,0),1,1)) -> 248.26 | G58: =IF(A58>$A$8,"",OFFSET(InputPriceData!F$15,CalculationsAndCharts!$A58+$A$11,IF($C$5,8,0),1,1)) -> 256.12 | H58: =IF($A58>$A$8,"",OFFSET(InputIndexPriceData!G$15,CalculationsAndCharts!$A58+$A$11,IF($C$5,8,0),1,1)) -> 44284900 | I58: =IF(A58>$A$8,"",OFFSET(InputIndexPriceData!C$15,CalculationsAndCharts!$A58+$A$11,IF($C$5,8,0),1,1)) -> 301.52 | J58: =IF(A58>$A$8,"",OFFSET(InputIndexPriceData!D$15,CalculationsAndCharts!$A58+$A$11,IF($C$5,8,0),1,1)) -> 302.74 | K58: =IF(A58>$A$8,"",OFFSET(InputIndexPriceData!E$15,CalculationsAndCharts!$A58+$A$11,IF($C$5,8,0),1,1)) -> 301.38 | L58: =IF(A58>$A$8,"",OFFSET(InputIndexPriceData!F$15,CalculationsAndCharts!$A58+$A$11,IF($C$5,8,0),1,1)) -> 301.73 | M58: 0.8488383654 | N58: -0.1372312388 | O58: -0.1832610316 | P58: -18.32610316 | Q58: -0.4153533042 | R58: 0.7214925868 | Z58: 1.6 | AD58: 408.852 | AP58: 1104000
A59: 27 | B59: =IF(A59>$A$8,"",OFFSET(InputPriceData!B$15,$A59+$A$11,0,1,1)) -> 2019-10-28 | C59: =IF(A59>$A$8,"",OFFSET(InputPriceData!G$15,CalculationsAndCharts!$A59+$A$11,IF($C$5,8,0),1,1)) -> 1163500 | D59: =IF(A59>$A$8,"",OFFSET(InputPriceData!C$15,CalculationsAndCharts!$A59+$A$11,IF($C$5,8,0),1,1)) -> 243.36 | E59: =IF(A59>$A$8,"",OFFSET(InputPriceData!D$15,CalculationsAndCharts!$A59+$A$11,IF($C$5,8,0),1,1)) -> 253.45 | F59: =IF(A59>$A$8,"",OFFSET(InputPriceData!E$15,CalculationsAndCharts!$A59+$A$11,IF($C$5,8,0),1,1)) -> 241.76 | G59: =IF(A59>$A$8,"",OFFSET(InputPriceData!F$15,CalculationsAndCharts!$A59+$A$11,IF($C$5,8,0),1,1)) -> 250.42 | H59: =IF($A59>$A$8,"",OFFSET(InputIndexPriceData!G$15,CalculationsAndCharts!$A59+$A$11,IF($C$5,8,0),1,1)) -> 42147000 | I59: =IF(A59>$A$8,"",OFFSET(InputIndexPriceData!C$15,CalculationsAndCharts!$A59+$A$11,IF($C$5,8,0),1,1)) -> 301.46 | J59: =IF(A59>$A$8,"",OFFSET(InputIndexPriceData!D$15,CalculationsAndCharts!$A59+$A$11,IF($C$5,8,0),1,1)) -> 302.36 | K59: =IF(A59>$A$8,"",OFFSET(InputIndexPriceData!E$15,CalculationsAndCharts!$A59+$A$11,IF($C$5,8,0),1,1)) -> 301.43 | L59: =IF(A59>$A$8,"",OFFSET(InputIndexPriceData!F$15,CalculationsAndCharts!$A59+$A$11,IF($C$5,8,0),1,1)) -> 301.82 | M59: 0.8296998211 | N59: -0.2004151075 | O59: -0.2292908244 | P59: -22.92908244 | Q59: -0.4241556272 | R59: 0.7228799034 | Z59: 1.6 | AD59: 408.852 | AP59: 1163500
A60: 28 | B60: =IF(A60>$A$8,"",OFFSET(InputPriceData!B$15,$A60+$A$11,0,1,1)) -> 2019-10-25 | C60: =IF(A60>$A$8,"",OFFSET(InputPriceData!G$15,CalculationsAndCharts!$A60+$A$11,IF($C$5,8,0),1,1)) -> 1126900 | D60: =IF(A60>$A$8,"",OFFSET(InputPriceData!C$15,CalculationsAndCharts!$A60+$A$11,IF($C$5,8,0),1,1)) -> 245.84 | E60: =IF(A60>$A$8,"",OFFSET(InputPriceData!D$15,CalculationsAndCharts!$A60+$A$11,IF($C$5,8,0),1,1)) -> 246.4 | F60: =IF(A60>$A$8,"",OFFSET(InputPriceData!E$15,CalculationsAndCharts!$A60+$A$11,IF($C$5,8,0),1,1)) -> 240.23 | G60: =IF(A60>$A$8,"",OFFSET(InputPriceData!F$15,CalculationsAndCharts!$A60+$A$11,IF($C$5,8,0),1,1)) -> 243.38 | H60: =IF($A60>$A$8,"",OFFSET(InputIndexPriceData!G$15,CalculationsAndCharts!$A60+$A$11,IF($C$5,8,0),1,1)) -> 45205400 | I60: =IF(A60>$A$8,"",OFFSET(InputIndexPriceData!C$15,CalculationsAndCharts!$A60+$A$11,IF($C$5,8,0),1,1)) -> 298.27 | J60: =IF(A60>$A$8,"",OFFSET(InputIndexPriceData!D$15,CalculationsAndCharts!$A60+$A$11,IF($C$5,8,0),1,1)) -> 300.72 | K60: =IF(A60>$A$8,"",OFFSET(InputIndexPriceData!E$15,CalculationsAndCharts!$A60+$A$11,IF($C$5,8,0),1,1)) -> 298.21 | L60: =IF(A60>$A$8,"",OFFSET(InputIndexPriceData!F$15,CalculationsAndCharts!$A60+$A$11,IF($C$5,8,0),1,1)) -> 300.12 | M60: 0.8109422898 | N60: -0.2367402829 | O60: -0.2581665414 | P60: -25.81665414 | Q60: -0.4280460586 | R60: 0.7249256655 | Z60: 1.6 | AD60: 408.852 | AQ60: 1126900
A61: 29 | B61: =IF(A61>$A$8,"",OFFSET(InputPriceData!B$15,$A61+$A$11,0,1,1)) -> 2019-10-24 | C61: =IF(A61>$A$8,"",OFFSET(InputPriceData!G$15,CalculationsAndCharts!$A61+$A$11,IF($C$5,8,0),1,1)) -> 4091100 | D61: =IF(A61>$A$8,"",OFFSET(InputPriceData!C$15,CalculationsAndCharts!$A61+$A$11,IF($C$5,8,0),1,1)) -> 237.3 | E61: =IF(A61>$A$8,"",OFFSET(InputPriceData!D$15,CalculationsAndCharts!$A61+$A$11,IF($C$5,8,0),1,1)) -> 251.7 | F61: =IF(A61>$A$8,"",OFFSET(InputPriceData!E$15,CalculationsAndCharts!$A61+$A$11,IF($C$5,8,0),1,1)) -> 233.41 | G61: =IF(A61>$A$8,"",OFFSET(InputPriceData!F$15,CalculationsAndCharts!$A61+$A$11,IF($C$5,8,0),1,1)) -> 249.47 | H61: =IF($A61>$A$8,"",OFFSET(InputIndexPriceData!G$15,CalculationsAndCharts!$A61+$A$11,IF($C$5,8,0),1,1)) -> 35453100 | I61: =IF(A61>$A$8,"",OFFSET(InputIndexPriceData!C$15,CalculationsAndCharts!$A61+$A$11,IF($C$5,8,0),1,1)) -> 299.44 | J61: =IF(A61>$A$8,"",OFFSET(InputIndexPriceData!D$15,CalculationsAndCharts!$A61+$A$11,IF($C$5,8,0),1,1)) -> 299.6 | K61: =IF(A61>$A$8,"",OFFSET(InputIndexPriceData!E$15,CalculationsAndCharts!$A61+$A$11,IF($C$5,8,0),1,1)) -> 297.99 | L61: =IF(A61>$A$8,"",OFFSET(InputIndexPriceData!F$15,CalculationsAndCharts!$A61+$A$11,IF($C$5,8,0),1,1)) -> 298.9 | M61: 0.8346269655 | N61: -0.1870994274 | O61: -0.2795927998 | P61: -27.95927998 | Q61: -0.4295816165 | R61: 0.72733247 | Z61: 1.6 | AD61: 408.852 | AP61: 4091100
A62: 30 | B62: =IF(A62>$A$8,"",OFFSET(InputPriceData!B$15,$A62+$A$11,0,1,1)) -> 2019-10-23 | C62: =IF(A62>$A$8,"",OFFSET(InputPriceData!G$15,CalculationsAndCharts!$A62+$A$11,IF($C$5,8,0),1,1)) -> 1186500 | D62: =IF(A62>$A$8,"",OFFSET(InputPriceData!C$15,CalculationsAndCharts!$A62+$A$11,IF($C$5,8,0),1,1)) -> 213.19 | E62: =IF(A62>$A$8,"",OFFSET(InputPriceData!D$15,CalculationsAndCharts!$A62+$A$11,IF($C$5,8,0),1,1)) -> 218.17 | F62: =IF(A62>$A$8,"",OFFSET(InputPriceData!E$15,CalculationsAndCharts!$A62+$A$11,IF($C$5,8,0),1,1)) -> 210.73 | G62: =IF(A62>$A$8,"",OFFSET(InputPriceData!F$15,CalculationsAndCharts!$A62+$A$11,IF($C$5,8,0),1,1)) -> 217.5 | H62: =IF($A62>$A$8,"",OFFSET(InputIndexPriceData!G$15,CalculationsAndCharts!$A62+$A$11,IF($C$5,8,0),1,1)) -> 34352200 | I62: =IF(A62>$A$8,"",OFFSET(InputIndexPriceData!C$15,CalculationsAndCharts!$A62+$A$11,IF($C$5,8,0),1,1)) -> 297.27 | J62: =IF(A62>$A$8,"",OFFSET(InputIndexPriceData!D$15,CalculationsAndCharts!$A62+$A$11,IF($C$5,8,0),1,1)) -> 298.47 | K62: =IF(A62>$A$8,"",OFFSET(InputIndexPriceData!E$15,CalculationsAndCharts!$A62+$A$11,IF($C$5,8,0),1,1)) -> 297.04 | L62: =IF(A62>$A$8,"",OFFSET(InputIndexPriceData!F$15,CalculationsAndCharts!$A62+$A$11,IF($C$5,8,0),1,1)) -> 298.41 | M62: 0.7288629738 | N62: -0.3282574063 | O62: -0.3720861722 | P62: -37.20861722 | Q62: -0.4319629573 | R62: 0.7292404937 | AA62: 1.6 | AE62: 408.852 | AP62: 1186500
A63: 31 | B63: =IF(A63>$A$8,"",OFFSET(InputPriceData!B$15,$A63+$A$11,0,1,1)) -> 2019-10-22 | C63: =IF(A63>$A$8,"",OFFSET(InputPriceData!G$15,CalculationsAndCharts!$A63+$A$11,IF($C$5,8,0),1,1)) -> 1157400 | D63: =IF(A63>$A$8,"",OFFSET(InputPriceData!C$15,CalculationsAndCharts!$A63+$A$11,IF($C$5,8,0),1,1)) -> 210.98 | E63: =IF(A63>$A$8,"",OFFSET(InputPriceData!D$15,CalculationsAndCharts!$A63+$A$11,IF($C$5,8,0),1,1)) -> 215.6 | F63: =IF(A63>$A$8,"",OFFSET(InputPriceData!E$15,CalculationsAndCharts!$A63+$A$11,IF($C$5,8,0),1,1)) -> 207.03 | G63: =IF(A63>$A$8,"",OFFSET(InputPriceData!F$15,CalculationsAndCharts!$A63+$A$11,IF($C$5,8,0),1,1)) -> 213.6 | H63: =IF($A63>$A$8,"",OFFSET(InputIndexPriceData!G$15,CalculationsAndCharts!$A63+$A$11,IF($C$5,8,0),1,1)) -> 48594700 | I63: =IF(A63>$A$8,"",OFFSET(InputIndexPriceData!C$15,CalculationsAndCharts!$A63+$A$11,IF($C$5,8,0),1,1)) -> 299.11 | J63: =IF(A63>$A$8,"",OFFSET(InputIndexPriceData!D$15,CalculationsAndCharts!$A63+$A$11,IF($C$5,8,0),1,1)) -> 299.43 | K63: =IF(A63>$A$8,"",OFFSET(InputIndexPriceData!E$15,CalculationsAndCharts!$A63+$A$11,IF($C$5,8,0),1,1)) -> 297.45 | L63: =IF(A63>$A$8,"",OFFSET(InputIndexPriceData!F$15,CalculationsAndCharts!$A63+$A$11,IF($C$5,8,0),1,1)) -> 297.55 | M63: 0.7178625441 | N63: -0.4011361833 | O63: -0.415914938 | P63: -41.5914938 | Q63: -0.4310912478 | R63: 0.7323871275 | AA63: 1.6 | AE63: 408.852 | AP63: 1157400
A64: 32 | B64: =IF(A64>$A$8,"",OFFSET(InputPriceData!B$15,$A64+$A$11,0,1,1)) -> 2019-10-21 | C64: =IF(A64>$A$8,"",OFFSET(InputPriceData!G$15,CalculationsAndCharts!$A64+$A$11,IF($C$5,8,0),1,1)) -> 1393600 | D64: =IF(A64>$A$8,"",OFFSET(InputPriceData!C$15,CalculationsAndCharts!$A64+$A$11,IF($C$5,8,0),1,1)) -> 214.88 | E64: =IF(A64>$A$8,"",OFFSET(InputPriceData!D$15,CalculationsAndCharts!$A64+$A$11,IF($C$5,8,0),1,1)) -> 215.6 | F64: =IF(A64>$A$8,"",OFFSET(InputPriceData!E$15,CalculationsAndCharts!$A64+$A$11,IF($C$5,8,0),1,1)) -> 209.6 | G64: =IF(A64>$A$8,"",OFFSET(InputPriceData!F$15,CalculationsAndCharts!$A64+$A$11,IF($C$5,8,0),1,1)) -> 210.04 | H64: =IF($A64>$A$8,"",OFFSET(InputIndexPriceData!G$15,CalculationsAndCharts!$A64+$A$11,IF($C$5,8,0),1,1)) -> 39048600 | I64: =IF(A64>$A$8,"",OFFSET(InputIndexPriceData!C$15,CalculationsAndCharts!$A64+$A$11,IF($C$5,8,0),1,1)) -> 297.96 | J64: =IF(A64>$A$8,"",OFFSET(InputIndexPriceData!D$15,CalculationsAndCharts!$A64+$A$11,IF($C$5,8,0),1,1)) -> 298.74 | K64: =IF(A64>$A$8,"",OFFSET(InputIndexPriceData!E$15,CalculationsAndCharts!$A64+$A$11,IF($C$5,8,0),1,1)) -> 297.48 | L64: =IF(A64>$A$8,"",OFFSET(InputIndexPriceData!F$15,CalculationsAndCharts!$A64+$A$11,IF($C$5,8,0),1,1)) -> 298.52 | M64: 0.7036044486 | N64: -0.4374900283 | O64: -0.4306936928 | P64: -43.06936928 | Q64: -0.4292853862 | R64: 0.7363235718 | AA64: 1.6 | AE64: 408.852 | AQ64: 1393600
A65: 33 | B65: =IF(A65>$A$8,"",OFFSET(InputPriceData!B$15,$A65+$A$11,0,1,1)) -> 2019-10-18 | C65: =IF(A65>$A$8,"",OFFSET(InputPriceData!G$15,CalculationsAndCharts!$A65+$A$11,IF($C$5,8,0),1,1)) -> 1027800 | D65: =IF(A65>$A$8,"",OFFSET(InputPriceData!C$15,CalculationsAndCharts!$A65+$A$11,IF($C$5,8,0),1,1)) -> 214.68 | E65: =IF(A65>$A$8,"",OFFSET(InputPriceData!D$15,CalculationsAndCharts!$A65+$A$11,IF($C$5,8,0),1,1)) -> 216.43 | F65: =IF(A65>$A$8,"",OFFSET(InputPriceData!E$15,CalculationsAndCharts!$A65+$A$11,IF($C$5,8,0),1,1)) -> 210.28 | G65: =IF(A65>$A$8,"",OFFSET(InputPriceData!F$15,CalculationsAndCharts!$A65+$A$11,IF($C$5,8,0),1,1)) -> 213.88 | H65: =IF($A65>$A$8,"",OFFSET(InputIndexPriceData!G$15,CalculationsAndCharts!$A65+$A$11,IF($C$5,8,0),1,1)) -> 64304000 | I65: =IF(A65>$A$8,"",OFFSET(InputIndexPriceData!C$15,CalculationsAndCharts!$A65+$A$11,IF($C$5,8,0),1,1)) -> 297.23 | J65: =IF(A65>$A$8,"",OFFSET(InputIndexPriceData!D$15,CalculationsAndCharts!$A65+$A$11,IF($C$5,8,0),1,1)) -> 297.94 | K65: =IF(A65>$A$8,"",OFFSET(InputIndexPriceData!E$15,CalculationsAndCharts!$A65+$A$11,IF($C$5,8,0),1,1)) -> 295.58 | L65: =IF(A65>$A$8,"",OFFSET(InputIndexPriceData!F$15,CalculationsAndCharts!$A65+$A$11,IF($C$5,8,0),1,1)) -> 296.51 | M65: 0.7213247445 | N65: -0.4197093545 | O65: -0.4238973573 | P65: -42.38973573 | Q65: -0.4262448686 | R65: 0.7406141115 | AA65: 1.6 | AE65: 408.852 | AQ65: 1027800
A66: 34 | B66: =IF(A66>$A$8,"",OFFSET(InputPriceData!B$15,$A66+$A$11,0,1,1)) -> 2019-10-17 | C66: =IF(A66>$A$8,"",OFFSET(InputPriceData!G$15,CalculationsAndCharts!$A66+$A$11,IF($C$5,8,0),1,1)) -> 838400 | D66: =IF(A66>$A$8,"",OFFSET(InputPriceData!C$15,CalculationsAndCharts!$A66+$A$11,IF($C$5,8,0),1,1)) -> 212.23 | E66: =IF(A66>$A$8,"",OFFSET(InputPriceData!D$15,CalculationsAndCharts!$A66+$A$11,IF($C$5,8,0),1,1)) -> 215.2 | F66: =IF(A66>$A$8,"",OFFSET(InputPriceData!E$15,CalculationsAndCharts!$A66+$A$11,IF($C$5,8,0),1,1)) -> 209.22 | G66: =IF(A66>$A$8,"",OFFSET(InputPriceData!F$15,CalculationsAndCharts!$A66+$A$11,IF($C$5,8,0),1,1)) -> 213.92 | H66: =IF($A66>$A$8,"",OFFSET(InputIndexPriceData!G$15,CalculationsAndCharts!$A66+$A$11,IF($C$5,8,0),1,1)) -> 45736600 | I66: =IF(A66>$A$8,"",OFFSET(InputIndexPriceData!C$15,CalculationsAndCharts!$A66+$A$11,IF($C$5,8,0),1,1)) -> 298.21 | J66: =IF(A66>$A$8,"",OFFSET(InputIndexPriceData!D$15,CalculationsAndCharts!$A66+$A$11,IF($C$5,8,0),1,1)) -> 298.77 | K66: =IF(A66>$A$8,"",OFFSET(InputIndexPriceData!E$15,CalculationsAndCharts!$A66+$A$11,IF($C$5,8,0),1,1)) -> 297.06 | L66: =IF(A66>$A$8,"",OFFSET(InputIndexPriceData!F$15,CalculationsAndCharts!$A66+$A$11,IF($C$5,8,0),1,1)) -> 297.82 | M66: 0.7182862131 | N66: -0.4121230634 | O66: -0.4280853601 | P66: -42.80853601 | Q66: -0.4258549315 | R66: 0.7447939421 | AA66: 1.6 | AE66: 408.852 | AP66: 838400
A67: 35 | B67: =IF(A67>$A$8,"",OFFSET(InputPriceData!B$15,$A67+$A$11,0,1,1)) -> 2019-10-16 | C67: =IF(A67>$A$8,"",OFFSET(InputPriceData!G$15,CalculationsAndCharts!$A67+$A$11,IF($C$5,8,0),1,1)) -> 827400 | D67: =IF(A67>$A$8,"",OFFSET(InputPriceData!C$15,CalculationsAndCharts!$A67+$A$11,IF($C$5,8,0),1,1)) -> 208.98 | E67: =IF(A67>$A$8,"",OFFSET(InputPriceData!D$15,CalculationsAndCharts!$A67+$A$11,IF($C$5,8,0),1,1)) -> 212.65 | F67: =IF(A67>$A$8,"",OFFSET(InputPriceData!E$15,CalculationsAndCharts!$A67+$A$11,IF($C$5,8,0),1,1)) -> 208.1 | G67: =IF(A67>$A$8,"",OFFSET(InputPriceData!F$15,CalculationsAndCharts!$A67+$A$11,IF($C$5,8,0),1,1)) -> 211.56 | H67: =IF($A67>$A$8,"",OFFSET(InputIndexPriceData!G$15,CalculationsAndCharts!$A67+$A$11,IF($C$5,8,0),1,1)) -> 48928200 | I67: =IF(A67>$A$8,"",OFFSET(InputIndexPriceData!C$15,CalculationsAndCharts!$A67+$A$11,IF($C$5,8,0),1,1)) -> 296.91 | J67: =IF(A67>$A$8,"",OFFSET(InputIndexPriceData!D$15,CalculationsAndCharts!$A67+$A$11,IF($C$5,8,0),1,1)) -> 297.7 | K67: =IF(A67>$A$8,"",OFFSET(InputIndexPriceData!E$15,CalculationsAndCharts!$A67+$A$11,IF($C$5,8,0),1,1)) -> 296.46 | L67: =IF(A67>$A$8,"",OFFSET(InputIndexPriceData!F$15,CalculationsAndCharts!$A67+$A$11,IF($C$5,8,0),1,1)) -> 296.94 | M67: 0.7124671651 | N67: -0.4397265985 | O67: -0.4440476568 | P67: -44.40476568 | Q67: -0.4252111128 | R67: 0.7488643923 | AA67: 1.6 | AE67: 408.852 | AP67: 827400
A68: 36 | B68: =IF(A68>$A$8,"",OFFSET(InputPriceData!B$15,$A68+$A$11,0,1,1)) -> 2019-10-15 | C68: =IF(A68>$A$8,"",OFFSET(InputPriceData!G$15,CalculationsAndCharts!$A68+$A$11,IF($C$5,8,0),1,1)) -> 1024400 | D68: =IF(A68>$A$8,"",OFFSET(InputPriceData!C$15,CalculationsAndCharts!$A68+$A$11,IF($C$5,8,0),1,1)) -> 208.02 | E68: =IF(A68>$A$8,"",OFFSET(InputPriceData!D$15,CalculationsAndCharts!$A68+$A$11,IF($C$5,8,0),1,1)) -> 209.48 | F68: =IF(A68>$A$8,"",OFFSET(InputPriceData!E$15,CalculationsAndCharts!$A68+$A$11,IF($C$5,8,0),1,1)) -> 205.06 | G68: =IF(A68>$A$8,"",OFFSET(InputPriceData!F$15,CalculationsAndCharts!$A68+$A$11,IF($C$5,8,0),1,1)) -> 209.25 | H68: =IF($A68>$A$8,"",OFFSET(InputIndexPriceData!G$15,CalculationsAndCharts!$A68+$A$11,IF($C$5,8,0),1,1)) -> 46754500 | I68: =IF(A68>$A$8,"",OFFSET(InputIndexPriceData!C$15,CalculationsAndCharts!$A68+$A$11,IF($C$5,8,0),1,1)) -> 295.65 | J68: =IF(A68>$A$8,"",OFFSET(InputIndexPriceData!D$15,CalculationsAndCharts!$A68+$A$11,IF($C$5,8,0),1,1)) -> 298.23 | K68: =IF(A68>$A$8,"",OFFSET(InputIndexPriceData!E$15,CalculationsAndCharts!$A68+$A$11,IF($C$5,8,0),1,1)) -> 295.52 | L68: =IF(A68>$A$8,"",OFFSET(InputIndexPriceData!F$15,CalculationsAndCharts!$A68+$A$11,IF($C$5,8,0),1,1)) -> 297.42 | M68: 0.7035505346 | N68: -0.4332223746 | O68: -0.4483687151 | P68: -44.83687151 | Q68: -0.4240210322 | R68: 0.7532364293 | AA68: 1.6 | AE68: 408.852 | AP68: 1024400
A69: 37 | B69: =IF(A69>$A$8,"",OFFSET(InputPriceData!B$15,$A69+$A$11,0,1,1)) -> 2019-10-14 | C69: =IF(A69>$A$8,"",OFFSET(InputPriceData!G$15,CalculationsAndCharts!$A69+$A$11,IF($C$5,8,0),1,1)) -> 1077900 | D69: =IF(A69>$A$8,"",OFFSET(InputPriceData!C$15,CalculationsAndCharts!$A69+$A$11,IF($C$5,8,0),1,1)) -> 200.16 | E69: =IF(A69>$A$8,"",OFFSET(InputPriceData!D$15,CalculationsAndCharts!$A69+$A$11,IF($C$5,8,0),1,1)) -> 206.7 | F69: =IF(A69>$A$8,"",OFFSET(InputPriceData!E$15,CalculationsAndCharts!$A69+$A$11,IF($C$5,8,0),1,1)) -> 199.8 | G69: =IF(A69>$A$8,"",OFFSET(InputPriceData!F$15,CalculationsAndCharts!$A69+$A$11,IF($C$5,8,0),1,1)) -> 205.15 | H69: =IF($A69>$A$8,"",OFFSET(InputIndexPriceData!G$15,CalculationsAndCharts!$A69+$A$11,IF($C$5,8,0),1,1)) -> 40394800 | I69: =IF(A69>$A$8,"",OFFSET(InputIndexPriceData!C$15,CalculationsAndCharts!$A69+$A$11,IF($C$5,8,0),1,1)) -> 294.48 | J69: =IF(A69>$A$8,"",OFFSET(InputIndexPriceData!D$15,CalculationsAndCharts!$A69+$A$11,IF($C$5,8,0),1,1)) -> 295.22 | K69: =IF(A69>$A$8,"",OFFSET(InputIndexPriceData!E$15,CalculationsAndCharts!$A69+$A$11,IF($C$5,8,0),1,1)) -> 294.12 | L69: =IF(A69>$A$8,"",OFFSET(InputIndexPriceData!F$15,CalculationsAndCharts!$A69+$A$11,IF($C$5,8,0),1,1)) -> 294.5 | M69: 0.6966044143 | N69: -0.4488694911 | O69: -0.4635150556 | P69: -46.35150556 | Q69: -0.4225638719 | R69: 0.75747508 | AA69: 1.6 | AE69: 408.852 | AP69: 1077900
A70: 38 | B70: =IF(A70>$A$8,"",OFFSET(InputPriceData!B$15,$A70+$A$11,0,1,1)) -> 2019-10-11 | C70: =IF(A70>$A$8,"",OFFSET(InputPriceData!G$15,CalculationsAndCharts!$A70+$A$11,IF($C$5,8,0),1,1)) -> 1754000 | D70: =IF(A70>$A$8,"",OFFSET(InputPriceData!C$15,CalculationsAndCharts!$A70+$A$11,IF($C$5,8,0),1,1)) -> 195.51 | E70: =IF(A70>$A$8,"",OFFSET(InputPriceData!D$15,CalculationsAndCharts!$A70+$A$11,IF($C$5,8,0),1,1)) -> 202.52 | F70: =IF(A70>$A$8,"",OFFSET(InputPriceData!E$15,CalculationsAndCharts!$A70+$A$11,IF($C$5,8,0),1,1)) -> 194 | G70: =IF(A70>$A$8,"",OFFSET(InputPriceData!F$15,CalculationsAndCharts!$A70+$A$11,IF($C$5,8,0),1,1)) -> 200.16 | H70: =IF($A70>$A$8,"",OFFSET(InputIndexPriceData!G$15,CalculationsAndCharts!$A70+$A$11,IF($C$5,8,0),1,1)) -> 98720400 | I70: =IF(A70>$A$8,"",OFFSET(InputIndexPriceData!C$15,CalculationsAndCharts!$A70+$A$11,IF($C$5,8,0),1,1)) -> 294.82 | J70: =IF(A70>$A$8,"",OFFSET(InputIndexPriceData!D$15,CalculationsAndCharts!$A70+$A$11,IF($C$5,8,0),1,1)) -> 297.28 | K70: =IF(A70>$A$8,"",OFFSET(InputIndexPriceData!E$15,CalculationsAndCharts!$A70+$A$11,IF($C$5,8,0),1,1)) -> 294.69 | L70: =IF(A70>$A$8,"",OFFSET(InputIndexPriceData!F$15,CalculationsAndCharts!$A70+$A$11,IF($C$5,8,0),1,1)) -> 294.83 | M70: 0.6788997049 | N70: -0.4686695256 | O70: -0.4781606201 | P70: -47.81606201 | Q70: -0.4214960632 | R70: 0.7618601289 | AA70: 1.6 | AE70: 408.852 | AP70: 1754000
A71: 39 | B71: =IF(A71>$A$8,"",OFFSET(InputPriceData!B$15,$A71+$A$11,0,1,1)) -> 2019-10-10 | C71: =IF(A71>$A$8,"",OFFSET(InputPriceData!G$15,CalculationsAndCharts!$A71+$A$11,IF($C$5,8,0),1,1)) -> 949300 | D71: =IF(A71>$A$8,"",OFFSET(InputPriceData!C$15,CalculationsAndCharts!$A71+$A$11,IF($C$5,8,0),1,1)) -> 189.25 | E71: =IF(A71>$A$8,"",OFFSET(InputPriceData!D$15,CalculationsAndCharts!$A71+$A$11,IF($C$5,8,0),1,1)) -> 194.19 | F71: =IF(A71>$A$8,"",OFFSET(InputPriceData!E$15,CalculationsAndCharts!$A71+$A$11,IF($C$5,8,0),1,1)) -> 189.17 | G71: =IF(A71>$A$8,"",OFFSET(InputPriceData!F$15,CalculationsAndCharts!$A71+$A$11,IF($C$5,8,0),1,1)) -> 194.17 | H71: =IF($A71>$A$8,"",OFFSET(InputIndexPriceData!G$15,CalculationsAndCharts!$A71+$A$11,IF($C$5,8,0),1,1)) -> 55296300 | I71: =IF(A71>$A$8,"",OFFSET(InputIndexPriceData!C$15,CalculationsAndCharts!$A71+$A$11,IF($C$5,8,0),1,1)) -> 289.76 | J71: =IF(A71>$A$8,"",OFFSET(InputIndexPriceData!D$15,CalculationsAndCharts!$A71+$A$11,IF($C$5,8,0),1,1)) -> 292.77 | K71: =IF(A71>$A$8,"",OFFSET(InputIndexPriceData!E$15,CalculationsAndCharts!$A71+$A$11,IF($C$5,8,0),1,1)) -> 289.58 | L71: =IF(A71>$A$8,"",OFFSET(InputIndexPriceData!F$15,CalculationsAndCharts!$A71+$A$11,IF($C$5,8,0),1,1)) -> 291.81 | M71: 0.6653987183 | N71: -0.4795894207 | O71: -0.4876517146 | P71: -48.76517146 | Q71: -0.4196220904 | R71: 0.7663700359 | AA71: 1.6 | AE71: 408.852 | AP71: 949300
A72: 40 | B72: =IF(A72>$A$8,"",OFFSET(InputPriceData!B$15,$A72+$A$11,0,1,1)) -> 2019-10-09 | C72: =IF(A72>$A$8,"",OFFSET(InputPriceData!G$15,CalculationsAndCharts!$A72+$A$11,IF($C$5,8,0),1,1)) -> 1215500 | D72: =IF(A72>$A$8,"",OFFSET(InputPriceData!C$15,CalculationsAndCharts!$A72+$A$11,IF($C$5,8,0),1,1)) -> 186.08 | E72: =IF(A72>$A$8,"",OFFSET(InputPriceData!D$15,CalculationsAndCharts!$A72+$A$11,IF($C$5,8,0),1,1)) -> 191.56 | F72: =IF(A72>$A$8,"",OFFSET(InputPriceData!E$15,CalculationsAndCharts!$A72+$A$11,IF($C$5,8,0),1,1)) -> 185.65 | G72: =IF(A72>$A$8,"",OFFSET(InputPriceData!F$15,CalculationsAndCharts!$A72+$A$11,IF($C$5,8,0),1,1)) -> 189.21 | H72: =IF($A72>$A$8,"",OFFSET(InputIndexPriceData!G$15,CalculationsAndCharts!$A72+$A$11,IF($C$5,8,0),1,1)) -> 62359400 | I72: =IF(A72>$A$8,"",OFFSET(InputIndexPriceData!C$15,CalculationsAndCharts!$A72+$A$11,IF($C$5,8,0),1,1)) -> 289.33 | J72: =IF(A72>$A$8,"",OFFSET(InputIndexPriceData!D$15,CalculationsAndCharts!$A72+$A$11,IF($C$5,8,0),1,1)) -> 290.87 | K72: =IF(A72>$A$8,"",OFFSET(InputIndexPriceData!E$15,CalculationsAndCharts!$A72+$A$11,IF($C$5,8,0),1,1)) -> 288.64 | L72: =IF(A72>$A$8,"",OFFSET(InputIndexPriceData!F$15,CalculationsAndCharts!$A72+$A$11,IF($C$5,8,0),1,1)) -> 289.84 | M72: 0.652808446 | N72: -0.4722220649 | O72: -0.4957140086 | P72: -49.57140086 | Q72: -0.4204755547 | R72: 0.7709199659 | AA72: 1.6 | AE72: 408.852 | AP72: 1215500
A73: 41 | B73: =IF(A73>$A$8,"",OFFSET(InputPriceData!B$15,$A73+$A$11,0,1,1)) -> 2019-10-08 | C73: =IF(A73>$A$8,"",OFFSET(InputPriceData!G$15,CalculationsAndCharts!$A73+$A$11,IF($C$5,8,0),1,1)) -> 1057300 | D73: =IF(A73>$A$8,"",OFFSET(InputPriceData!C$15,CalculationsAndCharts!$A73+$A$11,IF($C$5,8,0),1,1)) -> 183.43 | E73: =IF(A73>$A$8,"",OFFSET(InputPriceData!D$15,CalculationsAndCharts!$A73+$A$11,IF($C$5,8,0),1,1)) -> 186.07 | F73: =IF(A73>$A$8,"",OFFSET(InputPriceData!E$15,CalculationsAndCharts!$A73+$A$11,IF($C$5,8,0),1,1)) -> 181.26 | G73: =IF(A73>$A$8,"",OFFSET(InputPriceData!F$15,CalculationsAndCharts!$A73+$A$11,IF($C$5,8,0),1,1)) -> 184.3 | H73: =IF($A73>$A$8,"",OFFSET(InputIndexPriceData!G$15,CalculationsAndCharts!$A73+$A$11,IF($C$5,8,0),1,1)) -> 95708100 | I73: =IF(A73>$A$8,"",OFFSET(InputIndexPriceData!C$15,CalculationsAndCharts!$A73+$A$11,IF($C$5,8,0),1,1)) -> 289.62 | J73: =IF(A73>$A$8,"",OFFSET(InputIndexPriceData!D$15,CalculationsAndCharts!$A73+$A$11,IF($C$5,8,0),1,1)) -> 290.42 | K73: =IF(A73>$A$8,"",OFFSET(InputIndexPriceData!E$15,CalculationsAndCharts!$A73+$A$11,IF($C$5,8,0),1,1)) -> 287.08 | L73: =IF(A73>$A$8,"",OFFSET(InputIndexPriceData!F$15,CalculationsAndCharts!$A73+$A$11,IF($C$5,8,0),1,1)) -> 287.12 | M73: 0.6418918919 | N73: -0.4901686089 | O73: -0.5192059524 | P73: -51.92059524 | Q73: -0.4232868089 | R73: 0.7752977968 | AA73: 1.6 | AE73: 408.852 | AP73: 1057300
A74: 42 | B74: =IF(A74>$A$8,"",OFFSET(InputPriceData!B$15,$A74+$A$11,0,1,1)) -> 2019-10-07 | C74: =IF(A74>$A$8,"",OFFSET(InputPriceData!G$15,CalculationsAndCharts!$A74+$A$11,IF($C$5,8,0),1,1)) -> 850600 | D74: =IF(A74>$A$8,"",OFFSET(InputPriceData!C$15,CalculationsAndCharts!$A74+$A$11,IF($C$5,8,0),1,1)) -> 177.85 | E74: =IF(A74>$A$8,"",OFFSET(InputPriceData!D$15,CalculationsAndCharts!$A74+$A$11,IF($C$5,8,0),1,1)) -> 186.49 | F74: =IF(A74>$A$8,"",OFFSET(InputPriceData!E$15,CalculationsAndCharts!$A74+$A$11,IF($C$5,8,0),1,1)) -> 177.18 | G74: =IF(A74>$A$8,"",OFFSET(InputPriceData!F$15,CalculationsAndCharts!$A74+$A$11,IF($C$5,8,0),1,1)) -> 184.51 | H74: =IF($A74>$A$8,"",OFFSET(InputIndexPriceData!G$15,CalculationsAndCharts!$A74+$A$11,IF($C$5,8,0),1,1)) -> 59610500 | I74: =IF(A74>$A$8,"",OFFSET(InputIndexPriceData!C$15,CalculationsAndCharts!$A74+$A$11,IF($C$5,8,0),1,1)) -> 292.03 | J74: =IF(A74>$A$8,"",OFFSET(InputIndexPriceData!D$15,CalculationsAndCharts!$A74+$A$11,IF($C$5,8,0),1,1)) -> 293.82 | K74: =IF(A74>$A$8,"",OFFSET(InputIndexPriceData!E$15,CalculationsAndCharts!$A74+$A$11,IF($C$5,8,0),1,1)) -> 291.34 | L74: =IF(A74>$A$8,"",OFFSET(InputIndexPriceData!F$15,CalculationsAndCharts!$A74+$A$11,IF($C$5,8,0),1,1)) -> 291.65 | M74: 0.6326418652 | N74: -0.5335520082 | O74: -0.5482432959 | P74: -54.82432959 | Q74: -0.4300239594 | R74: 0.7798095228 | AA74: 1.6 | AE74: 408.852 | AP74: 850600
A75: 43 | B75: =IF(A75>$A$8,"",OFFSET(InputPriceData!B$15,$A75+$A$11,0,1,1)) -> 2019-10-04 | C75: =IF(A75>$A$8,"",OFFSET(InputPriceData!G$15,CalculationsAndCharts!$A75+$A$11,IF($C$5,8,0),1,1)) -> 862500 | D75: =IF(A75>$A$8,"",OFFSET(InputPriceData!C$15,CalculationsAndCharts!$A75+$A$11,IF($C$5,8,0),1,1)) -> 184.59 | E75: =IF(A75>$A$8,"",OFFSET(InputPriceData!D$15,CalculationsAndCharts!$A75+$A$11,IF($C$5,8,0),1,1)) -> 187.67 | F75: =IF(A75>$A$8,"",OFFSET(InputPriceData!E$15,CalculationsAndCharts!$A75+$A$11,IF($C$5,8,0),1,1)) -> 180.12 | G75: =IF(A75>$A$8,"",OFFSET(InputPriceData!F$15,CalculationsAndCharts!$A75+$A$11,IF($C$5,8,0),1,1)) -> 181.59 | H75: =IF($A75>$A$8,"",OFFSET(InputIndexPriceData!G$15,CalculationsAndCharts!$A75+$A$11,IF($C$5,8,0),1,1)) -> 65091200 | I75: =IF(A75>$A$8,"",OFFSET(InputIndexPriceData!C$15,CalculationsAndCharts!$A75+$A$11,IF($C$5,8,0),1,1)) -> 289.72 | J75: =IF(A75>$A$8,"",OFFSET(InputIndexPriceData!D$15,CalculationsAndCharts!$A75+$A$11,IF($C$5,8,0),1,1)) -> 293.19 | K75: =IF(A75>$A$8,"",OFFSET(InputIndexPriceData!E$15,CalculationsAndCharts!$A75+$A$11,IF($C$5,8,0),1,1)) -> 289.66 | L75: =IF(A75>$A$8,"",OFFSET(InputIndexPriceData!F$15,CalculationsAndCharts!$A75+$A$11,IF($C$5,8,0),1,1)) -> 292.91 | M75: 0.6199515209 | N75: -0.5590032563 | O75: -0.5629345837 | P75: -56.29345837 | Q75: -0.4305772831 | R75: 0.7847650603 | AA75: 1.6 | AE75: 408.852 | AQ75: 862500
A76: 44 | B76: =IF(A76>$A$8,"",OFFSET(InputPriceData!B$15,$A76+$A$11,0,1,1)) -> 2019-10-03 | C76: =IF(A76>$A$8,"",OFFSET(InputPriceData!G$15,CalculationsAndCharts!$A76+$A$11,IF($C$5,8,0),1,1)) -> 777200 | D76: =IF(A76>$A$8,"",OFFSET(InputPriceData!C$15,CalculationsAndCharts!$A76+$A$11,IF($C$5,8,0),1,1)) -> 179.9 | E76: =IF(A76>$A$8,"",OFFSET(InputPriceData!D$15,CalculationsAndCharts!$A76+$A$11,IF($C$5,8,0),1,1)) -> 184.86 | F76: =IF(A76>$A$8,"",OFFSET(InputPriceData!E$15,CalculationsAndCharts!$A76+$A$11,IF($C$5,8,0),1,1)) -> 175.52 | G76: =IF(A76>$A$8,"",OFFSET(InputPriceData!F$15,CalculationsAndCharts!$A76+$A$11,IF($C$5,8,0),1,1)) -> 184.77 | H76: =IF($A76>$A$8,"",OFFSET(InputIndexPriceData!G$15,CalculationsAndCharts!$A76+$A$11,IF($C$5,8,0),1,1)) -> 85278800 | I76: =IF(A76>$A$8,"",OFFSET(InputIndexPriceData!C$15,CalculationsAndCharts!$A76+$A$11,IF($C$5,8,0),1,1)) -> 286.4 | J76: =IF(A76>$A$8,"",OFFSET(InputIndexPriceData!D$15,CalculationsAndCharts!$A76+$A$11,IF($C$5,8,0),1,1)) -> 289.03 | K76: =IF(A76>$A$8,"",OFFSET(InputIndexPriceData!E$15,CalculationsAndCharts!$A76+$A$11,IF($C$5,8,0),1,1)) -> 283.43 | L76: =IF(A76>$A$8,"",OFFSET(InputIndexPriceData!F$15,CalculationsAndCharts!$A76+$A$11,IF($C$5,8,0),1,1)) -> 289 | M76: 0.6393425606 | N76: -0.5460593151 | O76: -0.566865911 | P76: -56.6865911 | Q76: -0.4298119328 | R76: 0.7899239414 | AA76: 1.6 | AE76: 408.852 | AP76: 777200
A77: 45 | B77: =IF(A77>$A$8,"",OFFSET(InputPriceData!B$15,$A77+$A$11,0,1,1)) -> 2019-10-02 | C77: =IF(A77>$A$8,"",OFFSET(InputPriceData!G$15,CalculationsAndCharts!$A77+$A$11,IF($C$5,8,0),1,1)) -> 973200 | D77: =IF(A77>$A$8,"",OFFSET(InputPriceData!C$15,CalculationsAndCharts!$A77+$A$11,IF($C$5,8,0),1,1)) -> 181.44 | E77: =IF(A77>$A$8,"",OFFSET(InputPriceData!D$15,CalculationsAndCharts!$A77+$A$11,IF($C$5,8,0),1,1)) -> 182 | F77: =IF(A77>$A$8,"",OFFSET(InputPriceData!E$15,CalculationsAndCharts!$A77+$A$11,IF($C$5,8,0),1,1)) -> 176.36 | G77: =IF(A77>$A$8,"",OFFSET(InputPriceData!F$15,CalculationsAndCharts!$A77+$A$11,IF($C$5,8,0),1,1)) -> 179.75 | H77: =IF($A77>$A$8,"",OFFSET(InputIndexPriceData!G$15,CalculationsAndCharts!$A77+$A$11,IF($C$5,8,0),1,1)) -> 122539500 | I77: =IF(A77>$A$8,"",OFFSET(InputIndexPriceData!C$15,CalculationsAndCharts!$A77+$A$11,IF($C$5,8,0),1,1)) -> 290.07 | J77: =IF(A77>$A$8,"",OFFSET(InputIndexPriceData!D$15,CalculationsAndCharts!$A77+$A$11,IF($C$5,8,0),1,1)) -> 290.08 | K77: =IF(A77>$A$8,"",OFFSET(InputIndexPriceData!E$15,CalculationsAndCharts!$A77+$A$11,IF($C$5,8,0),1,1)) -> 285.24 | L77: =IF(A77>$A$8,"",OFFSET(InputIndexPriceData!F$15,CalculationsAndCharts!$A77+$A$11,IF($C$5,8,0),1,1)) -> 286.65 | M77: 0.6270713414 | N77: -0.5776826654 | O77: -0.587672507 | P77: -58.7672507 | Q77: -0.4338657009 | R77: 0.7950844038 | AA77: 1.6 | AE77: 408.852 | AQ77: 973200
A78: 46 | B78: =IF(A78>$A$8,"",OFFSET(InputPriceData!B$15,$A78+$A$11,0,1,1)) -> 2019-10-01 | C78: =IF(A78>$A$8,"",OFFSET(InputPriceData!G$15,CalculationsAndCharts!$A78+$A$11,IF($C$5,8,0),1,1)) -> 1110800 | D78: =IF(A78>$A$8,"",OFFSET(InputPriceData!C$15,CalculationsAndCharts!$A78+$A$11,IF($C$5,8,0),1,1)) -> 181.22 | E78: =IF(A78>$A$8,"",OFFSET(InputPriceData!D$15,CalculationsAndCharts!$A78+$A$11,IF($C$5,8,0),1,1)) -> 183.34 | F78: =IF(A78>$A$8,"",OFFSET(InputPriceData!E$15,CalculationsAndCharts!$A78+$A$11,IF($C$5,8,0),1,1)) -> 179.53 | G78: =IF(A78>$A$8,"",OFFSET(InputPriceData!F$15,CalculationsAndCharts!$A78+$A$11,IF($C$5,8,0),1,1)) -> 182.3 | H78: =IF($A78>$A$8,"",OFFSET(InputIndexPriceData!G$15,CalculationsAndCharts!$A78+$A$11,IF($C$5,8,0),1,1)) -> 88242400 | I78: =IF(A78>$A$8,"",OFFSET(InputIndexPriceData!C$15,CalculationsAndCharts!$A78+$A$11,IF($C$5,8,0),1,1)) -> 296.28 | J78: =IF(A78>$A$8,"",OFFSET(InputIndexPriceData!D$15,CalculationsAndCharts!$A78+$A$11,IF($C$5,8,0),1,1)) -> 297 | K78: =IF(A78>$A$8,"",OFFSET(InputIndexPriceData!E$15,CalculationsAndCharts!$A78+$A$11,IF($C$5,8,0),1,1)) -> 291.57 | L78: =IF(A78>$A$8,"",OFFSET(InputIndexPriceData!F$15,CalculationsAndCharts!$A78+$A$11,IF($C$5,8,0),1,1)) -> 291.81 | M78: 0.6247215654 | N78: -0.5720092 | O78: -0.5976623486 | P78: -59.76623486 | Q78: -0.4422566843 | R78: 0.8005322908 | AA78: 1.6 | AE78: 408.852 | AP78: 1110800
A79: 47 | B79: =IF(A79>$A$8,"",OFFSET(InputPriceData!B$15,$A79+$A$11,0,1,1)) -> 2019-09-30 | C79: =IF(A79>$A$8,"",OFFSET(InputPriceData!G$15,CalculationsAndCharts!$A79+$A$11,IF($C$5,8,0),1,1)) -> 948100 | D79: =IF(A79>$A$8,"",OFFSET(InputPriceData!C$15,CalculationsAndCharts!$A79+$A$11,IF($C$5,8,0),1,1)) -> 176.51 | E79: =IF(A79>$A$8,"",OFFSET(InputPriceData!D$15,CalculationsAndCharts!$A79+$A$11,IF($C$5,8,0),1,1)) -> 181.85 | F79: =IF(A79>$A$8,"",OFFSET(InputPriceData!E$15,CalculationsAndCharts!$A79+$A$11,IF($C$5,8,0),1,1)) -> 176.51 | G79: =IF(A79>$A$8,"",OFFSET(InputPriceData!F$15,CalculationsAndCharts!$A79+$A$11,IF($C$5,8,0),1,1)) -> 180.92 | H79: =IF($A79>$A$8,"",OFFSET(InputIndexPriceData!G$15,CalculationsAndCharts!$A79+$A$11,IF($C$5,8,0),1,1)) -> 51662400 | I79: =IF(A79>$A$8,"",OFFSET(InputIndexPriceData!C$15,CalculationsAndCharts!$A79+$A$11,IF($C$5,8,0),1,1)) -> 294.52 | J79: =IF(A79>$A$8,"",OFFSET(InputIndexPriceData!D$15,CalculationsAndCharts!$A79+$A$11,IF($C$5,8,0),1,1)) -> 296.09 | K79: =IF(A79>$A$8,"",OFFSET(InputIndexPriceData!E$15,CalculationsAndCharts!$A79+$A$11,IF($C$5,8,0),1,1)) -> 294.47 | L79: =IF(A79>$A$8,"",OFFSET(InputIndexPriceData!F$15,CalculationsAndCharts!$A79+$A$11,IF($C$5,8,0),1,1)) -> 295.32 | M79: 0.6126235947 | N79: -0.614285681 | O79: -0.6233154971 | P79: -62.33154971 | Q79: -0.4432354505 | R79: 0.8058897879 | AA79: 1.6 | AE79: 408.852 | AP79: 948100
A80: 48 | B80: =IF(A80>$A$8,"",OFFSET(InputPriceData!B$15,$A80+$A$11,0,1,1)) -> 2019-09-27 | C80: =IF(A80>$A$8,"",OFFSET(InputPriceData!G$15,CalculationsAndCharts!$A80+$A$11,IF($C$5,8,0),1,1)) -> 687000 | D80: =IF(A80>$A$8,"",OFFSET(InputPriceData!C$15,CalculationsAndCharts!$A80+$A$11,IF($C$5,8,0),1,1)) -> 179.59 | E80: =IF(A80>$A$8,"",OFFSET(InputPriceData!D$15,CalculationsAndCharts!$A80+$A$11,IF($C$5,8,0),1,1)) -> 181.84 | F80: =IF(A80>$A$8,"",OFFSET(InputPriceData!E$15,CalculationsAndCharts!$A80+$A$11,IF($C$5,8,0),1,1)) -> 175.18 | G80: =IF(A80>$A$8,"",OFFSET(InputPriceData!F$15,CalculationsAndCharts!$A80+$A$11,IF($C$5,8,0),1,1)) -> 175.84 | H80: =IF($A80>$A$8,"",OFFSET(InputIndexPriceData!G$15,CalculationsAndCharts!$A80+$A$11,IF($C$5,8,0),1,1)) -> 84746600 | I80: =IF(A80>$A$8,"",OFFSET(InputIndexPriceData!C$15,CalculationsAndCharts!$A80+$A$11,IF($C$5,8,0),1,1)) -> 296.37 | J80: =IF(A80>$A$8,"",OFFSET(InputIndexPriceData!D$15,CalculationsAndCharts!$A80+$A$11,IF($C$5,8,0),1,1)) -> 296.49 | K80: =IF(A80>$A$8,"",OFFSET(InputIndexPriceData!E$15,CalculationsAndCharts!$A80+$A$11,IF($C$5,8,0),1,1)) -> 292.25 | L80: =IF(A80>$A$8,"",OFFSET(InputIndexPriceData!F$15,CalculationsAndCharts!$A80+$A$11,IF($C$5,8,0),1,1)) -> 293.95 | M80: 0.5981969723 | N80: -0.637760365 | O80: -0.6323453132 | P80: -63.23453132 | Q80: -0.4393477193 | R80: 0.8116643494 | AA80: 1.6 | AE80: 408.852 | AQ80: 687000
A81: 49 | B81: =IF(A81>$A$8,"",OFFSET(InputPriceData!B$15,$A81+$A$11,0,1,1)) -> 2019-09-26 | C81: =IF(A81>$A$8,"",OFFSET(InputPriceData!G$15,CalculationsAndCharts!$A81+$A$11,IF($C$5,8,0),1,1)) -> 1160700 | D81: =IF(A81>$A$8,"",OFFSET(InputPriceData!C$15,CalculationsAndCharts!$A81+$A$11,IF($C$5,8,0),1,1)) -> 183.27 | E81: =IF(A81>$A$8,"",OFFSET(InputPriceData!D$15,CalculationsAndCharts!$A81+$A$11,IF($C$5,8,0),1,1)) -> 185 | F81: =IF(A81>$A$8,"",OFFSET(InputPriceData!E$15,CalculationsAndCharts!$A81+$A$11,IF($C$5,8,0),1,1)) -> 176.63 | G81: =IF(A81>$A$8,"",OFFSET(InputPriceData!F$15,CalculationsAndCharts!$A81+$A$11,IF($C$5,8,0),1,1)) -> 178.99 | H81: =IF($A81>$A$8,"",OFFSET(InputIndexPriceData!G$15,CalculationsAndCharts!$A81+$A$11,IF($C$5,8,0),1,1)) -> 56179700 | I81: =IF(A81>$A$8,"",OFFSET(InputIndexPriceData!C$15,CalculationsAndCharts!$A81+$A$11,IF($C$5,8,0),1,1)) -> 296.17 | J81: =IF(A81>$A$8,"",OFFSET(InputIndexPriceData!D$15,CalculationsAndCharts!$A81+$A$11,IF($C$5,8,0),1,1)) -> 296.4 | K81: =IF(A81>$A$8,"",OFFSET(InputIndexPriceData!E$15,CalculationsAndCharts!$A81+$A$11,IF($C$5,8,0),1,1)) -> 294 | L81: =IF(A81>$A$8,"",OFFSET(InputIndexPriceData!F$15,CalculationsAndCharts!$A81+$A$11,IF($C$5,8,0),1,1)) -> 295.55 | M81: 0.6056166469 | N81: -0.6343961879 | O81: -0.6269302614 | P81: -62.69302614 | Q81: -0.4362074695 | R81: 0.8175947294 | AA81: 1.6 | AE81: 408.852 | AQ81: 1160700
A82: 50 | B82: =IF(A82>$A$8,"",OFFSET(InputPriceData!B$15,$A82+$A$11,0,1,1)) -> 2019-09-25 | C82: =IF(A82>$A$8,"",OFFSET(InputPriceData!G$15,CalculationsAndCharts!$A82+$A$11,IF($C$5,8,0),1,1)) -> 854500 | D82: =IF(A82>$A$8,"",OFFSET(InputPriceData!C$15,CalculationsAndCharts!$A82+$A$11,IF($C$5,8,0),1,1)) -> 184.51 | E82: =IF(A82>$A$8,"",OFFSET(InputPriceData!D$15,CalculationsAndCharts!$A82+$A$11,IF($C$5,8,0),1,1)) -> 184.51 | F82: =IF(A82>$A$8,"",OFFSET(InputPriceData!E$15,CalculationsAndCharts!$A82+$A$11,IF($C$5,8,0),1,1)) -> 180.37 | G82: =IF(A82>$A$8,"",OFFSET(InputPriceData!F$15,CalculationsAndCharts!$A82+$A$11,IF($C$5,8,0),1,1)) -> 183.63 | H82: =IF($A82>$A$8,"",OFFSET(InputIndexPriceData!G$15,CalculationsAndCharts!$A82+$A$11,IF($C$5,8,0),1,1)) -> 71854000 | I82: =IF(A82>$A$8,"",OFFSET(InputIndexPriceData!C$15,CalculationsAndCharts!$A82+$A$11,IF($C$5,8,0),1,1)) -> 294.51 | J82: =IF(A82>$A$8,"",OFFSET(InputIndexPriceData!D$15,CalculationsAndCharts!$A82+$A$11,IF($C$5,8,0),1,1)) -> 296.65 | K82: =IF(A82>$A$8,"",OFFSET(InputIndexPriceData!E$15,CalculationsAndCharts!$A82+$A$11,IF($C$5,8,0),1,1)) -> 292.89 | L82: =IF(A82>$A$8,"",OFFSET(InputIndexPriceData!F$15,CalculationsAndCharts!$A82+$A$11,IF($C$5,8,0),1,1)) -> 296.16 | M82: 0.6200364668 | N82: -0.6133655039 | O82: -0.619464335 | P82: -61.9464335 | Q82: -0.4284565741 | R82: 0.823555902 | AA82: 1.6 | AE82: 408.852 | AP82: =IF(G82>=D82,C82,NA()) ->  | AQ82: =IF(G82<D82,C82,NA()) -> 854500
A83: 51 | B83: =IF(A83>$A$8,"",OFFSET(InputPriceData!B$15,$A83+$A$11,0,1,1)) -> 2019-09-24 | C83: =IF(A83>$A$8,"",OFFSET(InputPriceData!G$15,CalculationsAndCharts!$A83+$A$11,IF($C$5,8,0),1,1)) -> 1810200 | D83: =IF(A83>$A$8,"",OFFSET(InputPriceData!C$15,CalculationsAndCharts!$A83+$A$11,IF($C$5,8,0),1,1)) -> 185.18 | E83: =IF(A83>$A$8,"",OFFSET(InputPriceData!D$15,CalculationsAndCharts!$A83+$A$11,IF($C$5,8,0),1,1)) -> 186.57 | F83: =IF(A83>$A$8,"",OFFSET(InputPriceData!E$15,CalculationsAndCharts!$A83+$A$11,IF($C$5,8,0),1,1)) -> 182.24 | G83: =IF(A83>$A$8,"",OFFSET(InputPriceData!F$15,CalculationsAndCharts!$A83+$A$11,IF($C$5,8,0),1,1)) -> 183.05 | H83: =IF($A83>$A$8,"",OFFSET(InputIndexPriceData!G$15,CalculationsAndCharts!$A83+$A$11,IF($C$5,8,0),1,1)) -> 94869400 | I83: =IF(A83>$A$8,"",OFFSET(InputIndexPriceData!C$15,CalculationsAndCharts!$A83+$A$11,IF($C$5,8,0),1,1)) -> 297.95 | J83: =IF(A83>$A$8,"",OFFSET(InputIndexPriceData!D$15,CalculationsAndCharts!$A83+$A$11,IF($C$5,8,0),1,1)) -> 298.37 | K83: =IF(A83>$A$8,"",OFFSET(InputIndexPriceData!E$15,CalculationsAndCharts!$A83+$A$11,IF($C$5,8,0),1,1)) -> 293.37 | L83: =IF(A83>$A$8,"",OFFSET(InputIndexPriceData!F$15,CalculationsAndCharts!$A83+$A$11,IF($C$5,8,0),1,1)) -> 294.42 | M83: 0.6217308607 | N83: -0.6294087341 | O83: -0.6255631662 | P83: -62.55631662 | Q83: -0.4184856189 | R83: 0.8293886251 | AA83: 1.6 | AE83: 408.852 | AQ83: 1810200
A84: 52 | B84: =IF(A84>$A$8,"",OFFSET(InputPriceData!B$15,$A84+$A$11,0,1,1)) -> 2019-09-23 | C84: =IF(A84>$A$8,"",OFFSET(InputPriceData!G$15,CalculationsAndCharts!$A84+$A$11,IF($C$5,8,0),1,1)) -> 1224800 | D84: =IF(A84>$A$8,"",OFFSET(InputPriceData!C$15,CalculationsAndCharts!$A84+$A$11,IF($C$5,8,0),1,1)) -> 186.37 | E84: =IF(A84>$A$8,"",OFFSET(InputPriceData!D$15,CalculationsAndCharts!$A84+$A$11,IF($C$5,8,0),1,1)) -> 186.83 | F84: =IF(A84>$A$8,"",OFFSET(InputPriceData!E$15,CalculationsAndCharts!$A84+$A$11,IF($C$5,8,0),1,1)) -> 182.51 | G84: =IF(A84>$A$8,"",OFFSET(InputPriceData!F$15,CalculationsAndCharts!$A84+$A$11,IF($C$5,8,0),1,1)) -> 183.89 | H84: =IF($A84>$A$8,"",OFFSET(InputIndexPriceData!G$15,CalculationsAndCharts!$A84+$A$11,IF($C$5,8,0),1,1)) -> 43476800 | I84: =IF(A84>$A$8,"",OFFSET(InputIndexPriceData!C$15,CalculationsAndCharts!$A84+$A$11,IF($C$5,8,0),1,1)) -> 296.09 | J84: =IF(A84>$A$8,"",OFFSET(InputIndexPriceData!D$15,CalculationsAndCharts!$A84+$A$11,IF($C$5,8,0),1,1)) -> 297.54 | K84: =IF(A84>$A$8,"",OFFSET(InputIndexPriceData!E$15,CalculationsAndCharts!$A84+$A$11,IF($C$5,8,0),1,1)) -> 295.82 | L84: =IF(A84>$A$8,"",OFFSET(InputIndexPriceData!F$15,CalculationsAndCharts!$A84+$A$11,IF($C$5,8,0),1,1)) -> 296.75 | M84: 0.6196798652 | N84: -0.6262406141 | O84: -0.6217175982 | P84: -62.17175982 | Q84: -0.4120719991 | R84: 0.835443598 | AA84: 1.6 | AE84: 408.852 | AQ84: 1224800
A85: 53 | B85: =IF(A85>$A$8,"",OFFSET(InputPriceData!B$15,$A85+$A$11,0,1,1)) -> 2019-09-20 | C85: =IF(A85>$A$8,"",OFFSET(InputPriceData!G$15,CalculationsAndCharts!$A85+$A$11,IF($C$5,8,0),1,1)) -> 2782000 | D85: =IF(A85>$A$8,"",OFFSET(InputPriceData!C$15,CalculationsAndCharts!$A85+$A$11,IF($C$5,8,0),1,1)) -> 180.8 | E85: =IF(A85>$A$8,"",OFFSET(InputPriceData!D$15,CalculationsAndCharts!$A85+$A$11,IF($C$5,8,0),1,1)) -> 188.16 | F85: =IF(A85>$A$8,"",OFFSET(InputPriceData!E$15,CalculationsAndCharts!$A85+$A$11,IF($C$5,8,0),1,1)) -> 179.5 | G85: =IF(A85>$A$8,"",OFFSET(InputPriceData!F$15,CalculationsAndCharts!$A85+$A$11,IF($C$5,8,0),1,1)) -> 186.54 | H85: =IF($A85>$A$8,"",OFFSET(InputIndexPriceData!G$15,CalculationsAndCharts!$A85+$A$11,IF($C$5,8,0),1,1)) -> 89565000 | I85: =IF(A85>$A$8,"",OFFSET(InputIndexPriceData!C$15,CalculationsAndCharts!$A85+$A$11,IF($C$5,8,0),1,1)) -> 298.89 | J85: =IF(A85>$A$8,"",OFFSET(InputIndexPriceData!D$15,CalculationsAndCharts!$A85+$A$11,IF($C$5,8,0),1,1)) -> 299.2 | K85: =IF(A85>$A$8,"",OFFSET(InputIndexPriceData!E$15,CalculationsAndCharts!$A85+$A$11,IF($C$5,8,0),1,1)) -> 295.95 | L85: =IF(A85>$A$8,"",OFFSET(InputIndexPriceData!F$15,CalculationsAndCharts!$A85+$A$11,IF($C$5,8,0),1,1)) -> 296.82 | M85: 0.628461694 | N85: -0.6005811348 | O85: -0.6171945823 | P85: -61.71945823 | Q85: -0.4012809537 | R85: 0.8414377281 | AA85: 1.6 | AE85: 408.852 | AP85: 2782000
A86: 54 | B86: =IF(A86>$A$8,"",OFFSET(InputPriceData!B$15,$A86+$A$11,0,1,1)) -> 2019-09-19 | C86: =IF(A86>$A$8,"",OFFSET(InputPriceData!G$15,CalculationsAndCharts!$A86+$A$11,IF($C$5,8,0),1,1)) -> 1119900 | D86: =IF(A86>$A$8,"",OFFSET(InputPriceData!C$15,CalculationsAndCharts!$A86+$A$11,IF($C$5,8,0),1,1)) -> 176 | E86: =IF(A86>$A$8,"",OFFSET(InputPriceData!D$15,CalculationsAndCharts!$A86+$A$11,IF($C$5,8,0),1,1)) -> 180.89 | F86: =IF(A86>$A$8,"",OFFSET(InputPriceData!E$15,CalculationsAndCharts!$A86+$A$11,IF($C$5,8,0),1,1)) -> 175.75 | G86: =IF(A86>$A$8,"",OFFSET(InputPriceData!F$15,CalculationsAndCharts!$A86+$A$11,IF($C$5,8,0),1,1)) -> 180.36 | H86: =IF($A86>$A$8,"",OFFSET(InputIndexPriceData!G$15,CalculationsAndCharts!$A86+$A$11,IF($C$5,8,0),1,1)) -> 76560500 | I86: =IF(A86>$A$8,"",OFFSET(InputIndexPriceData!C$15,CalculationsAndCharts!$A86+$A$11,IF($C$5,8,0),1,1)) -> 298.68 | J86: =IF(A86>$A$8,"",OFFSET(InputIndexPriceData!D$15,CalculationsAndCharts!$A86+$A$11,IF($C$5,8,0),1,1)) -> 299.77 | K86: =IF(A86>$A$8,"",OFFSET(InputIndexPriceData!E$15,CalculationsAndCharts!$A86+$A$11,IF($C$5,8,0),1,1)) -> 297.86 | L86: =IF(A86>$A$8,"",OFFSET(InputIndexPriceData!F$15,CalculationsAndCharts!$A86+$A$11,IF($C$5,8,0),1,1)) -> 298.23 | M86: 0.604768132 | N86: -0.6164903555 | O86: -0.6338080299 | P86: -63.38080299 | Q86: -0.3902620585 | R86: 0.8471859041 | AA86: 1.6 | AE86: 408.852 | AP86: 1119900
A87: 55 | B87: =IF(A87>$A$8,"",OFFSET(InputPriceData!B$15,$A87+$A$11,0,1,1)) -> 2019-09-18 | C87: =IF(A87>$A$8,"",OFFSET(InputPriceData!G$15,CalculationsAndCharts!$A87+$A$11,IF($C$5,8,0),1,1)) -> 952700 | D87: =IF(A87>$A$8,"",OFFSET(InputPriceData!C$15,CalculationsAndCharts!$A87+$A$11,IF($C$5,8,0),1,1)) -> 177.59 | E87: =IF(A87>$A$8,"",OFFSET(InputPriceData!D$15,CalculationsAndCharts!$A87+$A$11,IF($C$5,8,0),1,1)) -> 178.02 | F87: =IF(A87>$A$8,"",OFFSET(InputPriceData!E$15,CalculationsAndCharts!$A87+$A$11,IF($C$5,8,0),1,1)) -> 171.85 | G87: =IF(A87>$A$8,"",OFFSET(InputPriceData!F$15,CalculationsAndCharts!$A87+$A$11,IF($C$5,8,0),1,1)) -> 175.8 | H87: =IF($A87>$A$8,"",OFFSET(InputIndexPriceData!G$15,CalculationsAndCharts!$A87+$A$11,IF($C$5,8,0),1,1)) -> 73375800 | I87: =IF(A87>$A$8,"",OFFSET(InputIndexPriceData!C$15,CalculationsAndCharts!$A87+$A$11,IF($C$5,8,0),1,1)) -> 297.65 | J87: =IF(A87>$A$8,"",OFFSET(InputIndexPriceData!D$15,CalculationsAndCharts!$A87+$A$11,IF($C$5,8,0),1,1)) -> 298.37 | K87: =IF(A87>$A$8,"",OFFSET(InputIndexPriceData!E$15,CalculationsAndCharts!$A87+$A$11,IF($C$5,8,0),1,1)) -> 295.42 | L87: =IF(A87>$A$8,"",OFFSET(InputIndexPriceData!F$15,CalculationsAndCharts!$A87+$A$11,IF($C$5,8,0),1,1)) -> 298.25 | M87: 0.5894383906 | N87: -0.6539801801 | O87: -0.6511257042 | P87: -65.11257042 | Q87: -0.3802937523 | R87: 0.8529138331 | AA87: 1.6 | AE87: 408.852 | AQ87: 952700
A88: 56 | B88: =IF(A88>$A$8,"",OFFSET(InputPriceData!B$15,$A88+$A$11,0,1,1)) -> 2019-09-17 | C88: =IF(A88>$A$8,"",OFFSET(InputPriceData!G$15,CalculationsAndCharts!$A88+$A$11,IF($C$5,8,0),1,1)) -> 575500 | D88: =IF(A88>$A$8,"",OFFSET(InputPriceData!C$15,CalculationsAndCharts!$A88+$A$11,IF($C$5,8,0),1,1)) -> 179.37 | E88: =IF(A88>$A$8,"",OFFSET(InputPriceData!D$15,CalculationsAndCharts!$A88+$A$11,IF($C$5,8,0),1,1)) -> 180.65 | F88: =IF(A88>$A$8,"",OFFSET(InputPriceData!E$15,CalculationsAndCharts!$A88+$A$11,IF($C$5,8,0),1,1)) -> 177.39 | G88: =IF(A88>$A$8,"",OFFSET(InputPriceData!F$15,CalculationsAndCharts!$A88+$A$11,IF($C$5,8,0),1,1)) -> 177.65 | H88: =IF($A88>$A$8,"",OFFSET(InputIndexPriceData!G$15,CalculationsAndCharts!$A88+$A$11,IF($C$5,8,0),1,1)) -> 41475500 | I88: =IF(A88>$A$8,"",OFFSET(InputIndexPriceData!C$15,CalculationsAndCharts!$A88+$A$11,IF($C$5,8,0),1,1)) -> 297.1 | J88: =IF(A88>$A$8,"",OFFSET(InputIndexPriceData!D$15,CalculationsAndCharts!$A88+$A$11,IF($C$5,8,0),1,1)) -> 298.17 | K88: =IF(A88>$A$8,"",OFFSET(InputIndexPriceData!E$15,CalculationsAndCharts!$A88+$A$11,IF($C$5,8,0),1,1)) -> 296.91 | L88: =IF(A88>$A$8,"",OFFSET(InputIndexPriceData!F$15,CalculationsAndCharts!$A88+$A$11,IF($C$5,8,0),1,1)) -> 298.07 | M88: 0.5960009394 | N88: -0.6520127459 | O88: -0.6482712284 | P88: -64.82712284 | Q88: -0.3656914119 | R88: 0.8589600316 | AA88: 1.6 | AE88: 408.852 | AQ88: 575500
A89: 57 | B89: =IF(A89>$A$8,"",OFFSET(InputPriceData!B$15,$A89+$A$11,0,1,1)) -> 2019-09-16 | C89: =IF(A89>$A$8,"",OFFSET(InputPriceData!G$15,CalculationsAndCharts!$A89+$A$11,IF($C$5,8,0),1,1)) -> 1032000 | D89: =IF(A89>$A$8,"",OFFSET(InputPriceData!C$15,CalculationsAndCharts!$A89+$A$11,IF($C$5,8,0),1,1)) -> 176.46 | E89: =IF(A89>$A$8,"",OFFSET(InputPriceData!D$15,CalculationsAndCharts!$A89+$A$11,IF($C$5,8,0),1,1)) -> 179.54 | F89: =IF(A89>$A$8,"",OFFSET(InputPriceData!E$15,CalculationsAndCharts!$A89+$A$11,IF($C$5,8,0),1,1)) -> 176.16 | G89: =IF(A89>$A$8,"",OFFSET(InputPriceData!F$15,CalculationsAndCharts!$A89+$A$11,IF($C$5,8,0),1,1)) -> 179.37 | H89: =IF($A89>$A$8,"",OFFSET(InputIndexPriceData!G$15,CalculationsAndCharts!$A89+$A$11,IF($C$5,8,0),1,1)) -> 58191200 | I89: =IF(A89>$A$8,"",OFFSET(InputIndexPriceData!C$15,CalculationsAndCharts!$A89+$A$11,IF($C$5,8,0),1,1)) -> 297 | J89: =IF(A89>$A$8,"",OFFSET(InputIndexPriceData!D$15,CalculationsAndCharts!$A89+$A$11,IF($C$5,8,0),1,1)) -> 298.29 | K89: =IF(A89>$A$8,"",OFFSET(InputIndexPriceData!E$15,CalculationsAndCharts!$A89+$A$11,IF($C$5,8,0),1,1)) -> 296.62 | L89: =IF(A89>$A$8,"",OFFSET(InputIndexPriceData!F$15,CalculationsAndCharts!$A89+$A$11,IF($C$5,8,0),1,1)) -> 297.32 | M89: 0.6032893852 | N89: -0.6356428746 | O89: -0.6445297109 | P89: -64.45297109 | Q89: -0.3500681007 | R89: 0.8650485137 | AA89: 1.6 | AE89: 408.852 | AP89: 1032000
A90: 58 | B90: =IF(A90>$A$8,"",OFFSET(InputPriceData!B$15,$A90+$A$11,0,1,1)) -> 2019-09-13 | C90: =IF(A90>$A$8,"",OFFSET(InputPriceData!G$15,CalculationsAndCharts!$A90+$A$11,IF($C$5,8,0),1,1)) -> 1210100 | D90: =IF(A90>$A$8,"",OFFSET(InputPriceData!C$15,CalculationsAndCharts!$A90+$A$11,IF($C$5,8,0),1,1)) -> 176.01 | E90: =IF(A90>$A$8,"",OFFSET(InputPriceData!D$15,CalculationsAndCharts!$A90+$A$11,IF($C$5,8,0),1,1)) -> 179.49 | F90: =IF(A90>$A$8,"",OFFSET(InputPriceData!E$15,CalculationsAndCharts!$A90+$A$11,IF($C$5,8,0),1,1)) -> 175 | G90: =IF(A90>$A$8,"",OFFSET(InputPriceData!F$15,CalculationsAndCharts!$A90+$A$11,IF($C$5,8,0),1,1)) -> 177.47 | H90: =IF($A90>$A$8,"",OFFSET(InputIndexPriceData!G$15,CalculationsAndCharts!$A90+$A$11,IF($C$5,8,0),1,1)) -> 62104800 | I90: =IF(A90>$A$8,"",OFFSET(InputIndexPriceData!C$15,CalculationsAndCharts!$A90+$A$11,IF($C$5,8,0),1,1)) -> 298.92 | J90: =IF(A90>$A$8,"",OFFSET(InputIndexPriceData!D$15,CalculationsAndCharts!$A90+$A$11,IF($C$5,8,0),1,1)) -> 299.31 | K90: =IF(A90>$A$8,"",OFFSET(InputIndexPriceData!E$15,CalculationsAndCharts!$A90+$A$11,IF($C$5,8,0),1,1)) -> 297.83 | L90: =IF(A90>$A$8,"",OFFSET(InputIndexPriceData!F$15,CalculationsAndCharts!$A90+$A$11,IF($C$5,8,0),1,1)) -> 298.24 | M90: 0.5950576717 | N90: -0.6561498997 | O90: -0.6534165472 | P90: -65.34165472 | Q90: -0.3337613788 | R90: 0.8710025486 | AA90: 1.6 | AE90: 408.852 | AP90: 1210100
A91: 59 | B91: =IF(A91>$A$8,"",OFFSET(InputPriceData!B$15,$A91+$A$11,0,1,1)) -> 2019-09-12 | C91: =IF(A91>$A$8,"",OFFSET(InputPriceData!G$15,CalculationsAndCharts!$A91+$A$11,IF($C$5,8,0),1,1)) -> 1616800 | D91: =IF(A91>$A$8,"",OFFSET(InputPriceData!C$15,CalculationsAndCharts!$A91+$A$11,IF($C$5,8,0),1,1)) -> 181.65 | E91: =IF(A91>$A$8,"",OFFSET(InputPriceData!D$15,CalculationsAndCharts!$A91+$A$11,IF($C$5,8,0),1,1)) -> 184.55 | F91: =IF(A91>$A$8,"",OFFSET(InputPriceData!E$15,CalculationsAndCharts!$A91+$A$11,IF($C$5,8,0),1,1)) -> 174.06 | G91: =IF(A91>$A$8,"",OFFSET(InputPriceData!F$15,CalculationsAndCharts!$A91+$A$11,IF($C$5,8,0),1,1)) -> 174.62 | H91: =IF($A91>$A$8,"",OFFSET(InputIndexPriceData!G$15,CalculationsAndCharts!$A91+$A$11,IF($C$5,8,0),1,1)) -> 72908700 | I91: =IF(A91>$A$8,"",OFFSET(InputIndexPriceData!C$15,CalculationsAndCharts!$A91+$A$11,IF($C$5,8,0),1,1)) -> 298.4 | J91: =IF(A91>$A$8,"",OFFSET(InputIndexPriceData!D$15,CalculationsAndCharts!$A91+$A$11,IF($C$5,8,0),1,1)) -> 299.6 | K91: =IF(A91>$A$8,"",OFFSET(InputIndexPriceData!E$15,CalculationsAndCharts!$A91+$A$11,IF($C$5,8,0),1,1)) -> 297.57 | L91: =IF(A91>$A$8,"",OFFSET(InputIndexPriceData!F$15,CalculationsAndCharts!$A91+$A$11,IF($C$5,8,0),1,1)) -> 298.44 | M91: 0.5851092347 | N91: -0.6682314369 | O91: -0.6506831947 | P91: -65.06831947 | Q91: -0.3142274921 | R91: 0.8771340063 | AA91: 1.6 | AE91: 408.852 | AQ91: 1616800
A92: 60 | B92: =IF(A92>$A$8,"",OFFSET(InputPriceData!B$15,$A92+$A$11,0,1,1)) -> 2019-09-11 | C92: =IF(A92>$A$8,"",OFFSET(InputPriceData!G$15,CalculationsAndCharts!$A92+$A$11,IF($C$5,8,0),1,1)) -> 1278000 | D92: =IF(A92>$A$8,"",OFFSET(InputPriceData!C$15,CalculationsAndCharts!$A92+$A$11,IF($C$5,8,0),1,1)) -> 177.9 | E92: =IF(A92>$A$8,"",OFFSET(InputPriceData!D$15,CalculationsAndCharts!$A92+$A$11,IF($C$5,8,0),1,1)) -> 181.85 | F92: =IF(A92>$A$8,"",OFFSET(InputPriceData!E$15,CalculationsAndCharts!$A92+$A$11,IF($C$5,8,0),1,1)) -> 175.27 | G92: =IF(A92>$A$8,"",OFFSET(InputPriceData!F$15,CalculationsAndCharts!$A92+$A$11,IF($C$5,8,0),1,1)) -> 179.77 | H92: =IF($A92>$A$8,"",OFFSET(InputIndexPriceData!G$15,CalculationsAndCharts!$A92+$A$11,IF($C$5,8,0),1,1)) -> 68821100 | I92: =IF(A92>$A$8,"",OFFSET(InputIndexPriceData!C$15,CalculationsAndCharts!$A92+$A$11,IF($C$5,8,0),1,1)) -> 295.64 | J92: =IF(A92>$A$8,"",OFFSET(InputIndexPriceData!D$15,CalculationsAndCharts!$A92+$A$11,IF($C$5,8,0),1,1)) -> 297.5 | K92: =IF(A92>$A$8,"",OFFSET(InputIndexPriceData!E$15,CalculationsAndCharts!$A92+$A$11,IF($C$5,8,0),1,1)) -> 294.93 | L92: =IF(A92>$A$8,"",OFFSET(InputIndexPriceData!F$15,CalculationsAndCharts!$A92+$A$11,IF($C$5,8,0),1,1)) -> 297.41 | M92: 0.6044517669 | N92: -0.6364643936 | O92: -0.6331349525 | P92: -63.31349525 | Q92: -0.2907162439 | R92: 0.8833152575 | AA92: 1.6 | AE92: 408.852 | AP92: 1278000
A93: 61 | B93: =IF(A93>$A$8,"",OFFSET(InputPriceData!B$15,$A93+$A$11,0,1,1)) -> 2019-09-10 | C93: =IF(A93>$A$8,"",OFFSET(InputPriceData!G$15,CalculationsAndCharts!$A93+$A$11,IF($C$5,8,0),1,1)) -> 2024500 | D93: =IF(A93>$A$8,"",OFFSET(InputPriceData!C$15,CalculationsAndCharts!$A93+$A$11,IF($C$5,8,0),1,1)) -> 172.89 | E93: =IF(A93>$A$8,"",OFFSET(InputPriceData!D$15,CalculationsAndCharts!$A93+$A$11,IF($C$5,8,0),1,1)) -> 179.35 | F93: =IF(A93>$A$8,"",OFFSET(InputPriceData!E$15,CalculationsAndCharts!$A93+$A$11,IF($C$5,8,0),1,1)) -> 171.32 | G93: =IF(A93>$A$8,"",OFFSET(InputPriceData!F$15,CalculationsAndCharts!$A93+$A$11,IF($C$5,8,0),1,1)) -> 177.8 | H93: =IF($A93>$A$8,"",OFFSET(InputIndexPriceData!G$15,CalculationsAndCharts!$A93+$A$11,IF($C$5,8,0),1,1)) -> 57947100 | I93: =IF(A93>$A$8,"",OFFSET(InputIndexPriceData!C$15,CalculationsAndCharts!$A93+$A$11,IF($C$5,8,0),1,1)) -> 294.54 | J93: =IF(A93>$A$8,"",OFFSET(InputIndexPriceData!D$15,CalculationsAndCharts!$A93+$A$11,IF($C$5,8,0),1,1)) -> 295.38 | K93: =IF(A93>$A$8,"",OFFSET(InputIndexPriceData!E$15,CalculationsAndCharts!$A93+$A$11,IF($C$5,8,0),1,1)) -> 293.17 | L93: =IF(A93>$A$8,"",OFFSET(InputIndexPriceData!F$15,CalculationsAndCharts!$A93+$A$11,IF($C$5,8,0),1,1)) -> 295.31 | M93: 0.602079171 | N93: -0.6343088045 | O93: -0.6298055115 | P93: -62.98055115 | Q93: -0.2700107241 | R93: 0.8892911868 | AA93: 1.6 | AE93: 408.852 | AP93: 2024500
A94: 62 | B94: =IF(A94>$A$8,"",OFFSET(InputPriceData!B$15,$A94+$A$11,0,1,1)) -> 2019-09-09 | C94: =IF(A94>$A$8,"",OFFSET(InputPriceData!G$15,CalculationsAndCharts!$A94+$A$11,IF($C$5,8,0),1,1)) -> 2014900 | D94: =IF(A94>$A$8,"",OFFSET(InputPriceData!C$15,CalculationsAndCharts!$A94+$A$11,IF($C$5,8,0),1,1)) -> 175.93 | E94: =IF(A94>$A$8,"",OFFSET(InputPriceData!D$15,CalculationsAndCharts!$A94+$A$11,IF($C$5,8,0),1,1)) -> 176.2 | F94: =IF(A94>$A$8,"",OFFSET(InputPriceData!E$15,CalculationsAndCharts!$A94+$A$11,IF($C$5,8,0),1,1)) -> 169.84 | G94: =IF(A94>$A$8,"",OFFSET(InputPriceData!F$15,CalculationsAndCharts!$A94+$A$11,IF($C$5,8,0),1,1)) -> 173.16 | H94: =IF($A94>$A$8,"",OFFSET(InputIndexPriceData!G$15,CalculationsAndCharts!$A94+$A$11,IF($C$5,8,0),1,1)) -> 51260300 | I94: =IF(A94>$A$8,"",OFFSET(InputIndexPriceData!C$15,CalculationsAndCharts!$A94+$A$11,IF($C$5,8,0),1,1)) -> 296.31 | J94: =IF(A94>$A$8,"",OFFSET(InputIndexPriceData!D$15,CalculationsAndCharts!$A94+$A$11,IF($C$5,8,0),1,1)) -> 296.41 | K94: =IF(A94>$A$8,"",OFFSET(InputIndexPriceData!E$15,CalculationsAndCharts!$A94+$A$11,IF($C$5,8,0),1,1)) -> 294.35 | L94: =IF(A94>$A$8,"",OFFSET(InputIndexPriceData!F$15,CalculationsAndCharts!$A94+$A$11,IF($C$5,8,0),1,1)) -> 295.38 | M94: 0.5862279098 | N94: -0.6448019297 | O94: -0.6253022184 | P94: -62.53022184 | Q94: -0.2496149642 | R94: 0.8952164371 | AA94: 1.6 | AE94: 408.852 | AQ94: 2014900
A95: 63 | B95: =IF(A95>$A$8,"",OFFSET(InputPriceData!B$15,$A95+$A$11,0,1,1)) -> 2019-09-06 | C95: =IF(A95>$A$8,"",OFFSET(InputPriceData!G$15,CalculationsAndCharts!$A95+$A$11,IF($C$5,8,0),1,1)) -> 1554900 | D95: =IF(A95>$A$8,"",OFFSET(InputPriceData!C$15,CalculationsAndCharts!$A95+$A$11,IF($C$5,8,0),1,1)) -> 178.65 | E95: =IF(A95>$A$8,"",OFFSET(InputPriceData!D$15,CalculationsAndCharts!$A95+$A$11,IF($C$5,8,0),1,1)) -> 179.13 | F95: =IF(A95>$A$8,"",OFFSET(InputPriceData!E$15,CalculationsAndCharts!$A95+$A$11,IF($C$5,8,0),1,1)) -> 174.38 | G95: =IF(A95>$A$8,"",OFFSET(InputPriceData!F$15,CalculationsAndCharts!$A95+$A$11,IF($C$5,8,0),1,1)) -> 175.06 | H95: =IF($A95>$A$8,"",OFFSET(InputIndexPriceData!G$15,CalculationsAndCharts!$A95+$A$11,IF($C$5,8,0),1,1)) -> 49584300 | I95: =IF(A95>$A$8,"",OFFSET(InputIndexPriceData!C$15,CalculationsAndCharts!$A95+$A$11,IF($C$5,8,0),1,1)) -> 295.35 | J95: =IF(A95>$A$8,"",OFFSET(InputIndexPriceData!D$15,CalculationsAndCharts!$A95+$A$11,IF($C$5,8,0),1,1)) -> 295.93 | K95: =IF(A95>$A$8,"",OFFSET(InputIndexPriceData!E$15,CalculationsAndCharts!$A95+$A$11,IF($C$5,8,0),1,1)) -> 294.6 | L95: =IF(A95>$A$8,"",OFFSET(InputIndexPriceData!F$15,CalculationsAndCharts!$A95+$A$11,IF($C$5,8,0),1,1)) -> 295.23 | M95: 0.5929614199 | N95: -0.636171479 | O95: -0.6058025071 | P95: -60.58025071 | Q95: -0.2246408169 | R95: 0.9011152548 | AA95: 1.6 | AE95: 408.852 | AQ95: 1554900
A96: 64 | B96: =IF(A96>$A$8,"",OFFSET(InputPriceData!B$15,$A96+$A$11,0,1,1)) -> 2019-09-05 | C96: =IF(A96>$A$8,"",OFFSET(InputPriceData!G$15,CalculationsAndCharts!$A96+$A$11,IF($C$5,8,0),1,1)) -> 1222200 | D96: =IF(A96>$A$8,"",OFFSET(InputPriceData!C$15,CalculationsAndCharts!$A96+$A$11,IF($C$5,8,0),1,1)) -> 178.73 | E96: =IF(A96>$A$8,"",OFFSET(InputPriceData!D$15,CalculationsAndCharts!$A96+$A$11,IF($C$5,8,0),1,1)) -> 182.36 | F96: =IF(A96>$A$8,"",OFFSET(InputPriceData!E$15,CalculationsAndCharts!$A96+$A$11,IF($C$5,8,0),1,1)) -> 176.86 | G96: =IF(A96>$A$8,"",OFFSET(InputPriceData!F$15,CalculationsAndCharts!$A96+$A$11,IF($C$5,8,0),1,1)) -> 177.11 | H96: =IF($A96>$A$8,"",OFFSET(InputIndexPriceData!G$15,CalculationsAndCharts!$A96+$A$11,IF($C$5,8,0),1,1)) -> 83258100 | I96: =IF(A96>$A$8,"",OFFSET(InputIndexPriceData!C$15,CalculationsAndCharts!$A96+$A$11,IF($C$5,8,0),1,1)) -> 293.98 | J96: =IF(A96>$A$8,"",OFFSET(InputIndexPriceData!D$15,CalculationsAndCharts!$A96+$A$11,IF($C$5,8,0),1,1)) -> 296 | K96: =IF(A96>$A$8,"",OFFSET(InputIndexPriceData!E$15,CalculationsAndCharts!$A96+$A$11,IF($C$5,8,0),1,1)) -> 291.22 | L96: =IF(A96>$A$8,"",OFFSET(InputIndexPriceData!F$15,CalculationsAndCharts!$A96+$A$11,IF($C$5,8,0),1,1)) -> 295 | M96: 0.6003728814 | N96: -0.6019053007 | O96: -0.5754335353 | P96: -57.54335353 | Q96: -0.1906623476 | R96: 0.906973938 | AA96: 1.6 | AE96: 408.852 | AQ96: 1222200
A97: 65 | B97: =IF(A97>$A$8,"",OFFSET(InputPriceData!B$15,$A97+$A$11,0,1,1)) -> 2019-09-04 | C97: =IF(A97>$A$8,"",OFFSET(InputPriceData!G$15,CalculationsAndCharts!$A97+$A$11,IF($C$5,8,0),1,1)) -> 1283900 | D97: =IF(A97>$A$8,"",OFFSET(InputPriceData!C$15,CalculationsAndCharts!$A97+$A$11,IF($C$5,8,0),1,1)) -> 180.35 | E97: =IF(A97>$A$8,"",OFFSET(InputPriceData!D$15,CalculationsAndCharts!$A97+$A$11,IF($C$5,8,0),1,1)) -> 180.72 | F97: =IF(A97>$A$8,"",OFFSET(InputPriceData!E$15,CalculationsAndCharts!$A97+$A$11,IF($C$5,8,0),1,1)) -> 174.24 | G97: =IF(A97>$A$8,"",OFFSET(InputPriceData!F$15,CalculationsAndCharts!$A97+$A$11,IF($C$5,8,0),1,1)) -> 176.38 | H97: =IF($A97>$A$8,"",OFFSET(InputIndexPriceData!G$15,CalculationsAndCharts!$A97+$A$11,IF($C$5,8,0),1,1)) -> 46887300 | I97: =IF(A97>$A$8,"",OFFSET(InputIndexPriceData!C$15,CalculationsAndCharts!$A97+$A$11,IF($C$5,8,0),1,1)) -> 290.36 | J97: =IF(A97>$A$8,"",OFFSET(InputIndexPriceData!D$15,CalculationsAndCharts!$A97+$A$11,IF($C$5,8,0),1,1)) -> 291.28 | K97: =IF(A97>$A$8,"",OFFSET(InputIndexPriceData!E$15,CalculationsAndCharts!$A97+$A$11,IF($C$5,8,0),1,1)) -> 289.54 | L97: =IF(A97>$A$8,"",OFFSET(InputIndexPriceData!F$15,CalculationsAndCharts!$A97+$A$11,IF($C$5,8,0),1,1)) -> 291.26 | M97: =G97/L97 -> 0.6055757742 | N97: -0.596341849 | O97: -0.5489617698 | P97: =O97*100 -> -54.89617698 | Q97: -0.1581408154 | R97: 0.9124813171 | AA97: 1.6 | AB97: =IF(AND($R$4=2,$P97>=0),$AX$34,NA()) ->  | AC97: =IF(AND($R$4=2,$P97<0),$AX$33,NA()) ->  | AE97: 408.852 | AQ97: 1283900
A98: 66 | B98: =IF(A98>$A$8,"",OFFSET(InputPriceData!B$15,$A98+$A$11,0,1,1)) -> 2019-09-03 | C98: =IF(A98>$A$8,"",OFFSET(InputPriceData!G$15,CalculationsAndCharts!$A98+$A$11,IF($C$5,8,0),1,1)) -> 1890200 | D98: =IF(A98>$A$8,"",OFFSET(InputPriceData!C$15,CalculationsAndCharts!$A98+$A$11,IF($C$5,8,0),1,1)) -> 182.23 | E98: =IF(A98>$A$8,"",OFFSET(InputPriceData!D$15,CalculationsAndCharts!$A98+$A$11,IF($C$5,8,0),1,1)) -> 182.5 | F98: =IF(A98>$A$8,"",OFFSET(InputPriceData!E$15,CalculationsAndCharts!$A98+$A$11,IF($C$5,8,0),1,1)) -> 177.25 | G98: =IF(A98>$A$8,"",OFFSET(InputPriceData!F$15,CalculationsAndCharts!$A98+$A$11,IF($C$5,8,0),1,1)) -> 177.91 | H98: =IF($A98>$A$8,"",OFFSET(InputIndexPriceData!G$15,CalculationsAndCharts!$A98+$A$11,IF($C$5,8,0),1,1)) -> 69101400 | I98: =IF(A98>$A$8,"",OFFSET(InputIndexPriceData!C$15,CalculationsAndCharts!$A98+$A$11,IF($C$5,8,0),1,1)) -> 287.82 | J98: =IF(A98>$A$8,"",OFFSET(InputIndexPriceData!D$15,CalculationsAndCharts!$A98+$A$11,IF($C$5,8,0),1,1)) -> 288.82 | K98: =IF(A98>$A$8,"",OFFSET(InputIndexPriceData!E$15,CalculationsAndCharts!$A98+$A$11,IF($C$5,8,0),1,1)) -> 286.53 | L98: =IF(A98>$A$8,"",OFFSET(InputIndexPriceData!F$15,CalculationsAndCharts!$A98+$A$11,IF($C$5,8,0),1,1)) -> 287.99 | M98: 0.6177645057 | N98: =IF(A98<=$A$8-$A$17,LN(M98)-LN(OFFSET(M98,$A$17,0,1,1)),0) -> -0.5119258247 | O98: =IF(A98<=($A$8-$A$17-$A$16),($C$16*N98+$D$16*O99),0) -> -0.5015816906 | P98: -50.15816906 | Q98: =IF(A98<=($A$8-$A$18),CORREL(OFFSET(G98,0,0,$A$18,1),OFFSET(L98,0,0,$A$18,1)),0) -> -0.1353591022 | R98: =IF(A98<=$A$8-$A$17,AVERAGE(OFFSET(M98,0,0,$A$19,1)),0) -> 0.9179682736 | Z98: =IF(AND($R$4=3,$M98>=$R98),$BB$34,NA()) ->  | AA98: =IF(AND($R$4=3,$M98<$R98),$BB$34,NA()) -> 1.6 | AD98: =IF(OR(AND($R$4=3,$M98>=$R98),AND($R$4=2,$P98>=0)),$AZ$34,NA()) ->  | AE98: =IF(OR(AND($R$4=3,$M98<$R98),AND($R$4=2,$P98<0)),$AZ$34,NA()) -> 408.852 | AQ98: 1890200
A99: 67 | B99: =IF(A99>$A$8,"",OFFSET(InputPriceData!B$15,$A99+$A$11,0,1,1)) -> 2019-08-30 | C99: =IF(A99>$A$8,"",OFFSET(InputPriceData!G$15,CalculationsAndCharts!$A99+$A$11,IF($C$5,8,0),1,1)) -> 1679300 | D99: =IF(A99>$A$8,"",OFFSET(InputPriceData!C$15,CalculationsAndCharts!$A99+$A$11,IF($C$5,8,0),1,1)) -> 182 | E99: =IF(A99>$A$8,"",OFFSET(InputPriceData!D$15,CalculationsAndCharts!$A99+$A$11,IF($C$5,8,0),1,1)) -> 186.21 | F99: =IF(A99>$A$8,"",OFFSET(InputPriceData!E$15,CalculationsAndCharts!$A99+$A$11,IF($C$5,8,0),1,1)) -> 180.55 | G99: =IF(A99>$A$8,"",OFFSET(InputPriceData!F$15,CalculationsAndCharts!$A99+$A$11,IF($C$5,8,0),1,1)) -> 183.11 | H99: =IF($A99>$A$8,"",OFFSET(InputIndexPriceData!G$15,CalculationsAndCharts!$A99+$A$11,IF($C$5,8,0),1,1)) -> 62901200 | I99: =IF(A99>$A$8,"",OFFSET(InputIndexPriceData!C$15,CalculationsAndCharts!$A99+$A$11,IF($C$5,8,0),1,1)) -> 291.43 | J99: =IF(A99>$A$8,"",OFFSET(InputIndexPriceData!D$15,CalculationsAndCharts!$A99+$A$11,IF($C$5,8,0),1,1)) -> 291.45 | K99: =IF(A99>$A$8,"",OFFSET(InputIndexPriceData!E$15,CalculationsAndCharts!$A99+$A$11,IF($C$5,8,0),1,1)) -> 288.66 | L99: =IF(A99>$A$8,"",OFFSET(InputIndexPriceData!F$15,CalculationsAndCharts!$A99+$A$11,IF($C$5,8,0),1,1)) -> 289.68 | M99: 0.6321112952 | N99: -0.4895224713 | O99: -0.4912375566 | P99: -49.12375566 | Q99: -0.1228952263 | R99: 0.9225569003 | AA99: 1.6 | AE99: 408.852 | AP99: 1679300
A100: 68 | B100: =IF(A100>$A$8,"",OFFSET(InputPriceData!B$15,$A100+$A$11,0,1,1)) -> 2019-08-29 | C100: =IF(A100>$A$8,"",OFFSET(InputPriceData!G$15,CalculationsAndCharts!$A100+$A$11,IF($C$5,8,0),1,1)) -> 1028100 | D100: =IF(A100>$A$8,"",OFFSET(InputPriceData!C$15,CalculationsAndCharts!$A100+$A$11,IF($C$5,8,0),1,1)) -> 178.46 | E100: =IF(A100>$A$8,"",OFFSET(InputPriceData!D$15,CalculationsAndCharts!$A100+$A$11,IF($C$5,8,0),1,1)) -> 181.25 | F100: =IF(A100>$A$8,"",OFFSET(InputPriceData!E$15,CalculationsAndCharts!$A100+$A$11,IF($C$5,8,0),1,1)) -> 178.3 | G100: =IF(A100>$A$8,"",OFFSET(InputPriceData!F$15,CalculationsAndCharts!$A100+$A$11,IF($C$5,8,0),1,1)) -> 179.95 | H100: =IF($A100>$A$8,"",OFFSET(InputIndexPriceData!G$15,CalculationsAndCharts!$A100+$A$11,IF($C$5,8,0),1,1)) -> 57899400 | I100: =IF(A100>$A$8,"",OFFSET(InputIndexPriceData!C$15,CalculationsAndCharts!$A100+$A$11,IF($C$5,8,0),1,1)) -> 288.96 | J100: =IF(A100>$A$8,"",OFFSET(InputIndexPriceData!D$15,CalculationsAndCharts!$A100+$A$11,IF($C$5,8,0),1,1)) -> 290.38 | K100: =IF(A100>$A$8,"",OFFSET(InputIndexPriceData!E$15,CalculationsAndCharts!$A100+$A$11,IF($C$5,8,0),1,1)) -> 287.86 | L100: =IF(A100>$A$8,"",OFFSET(InputIndexPriceData!F$15,CalculationsAndCharts!$A100+$A$11,IF($C$5,8,0),1,1)) -> 289.81 | M100: 0.6209240537 | N100: -0.5017881027 | O100: -0.4929526419 | P100: -49.29526419 | Q100: -0.1119301451 | R100: 0.9269924739 | AA100: 1.6 | AE100: 408.852 | AP100: 1028100
A101: 69 | B101: =IF(A101>$A$8,"",OFFSET(InputPriceData!B$15,$A101+$A$11,0,1,1)) -> 2019-08-28 | C101: =IF(A101>$A$8,"",OFFSET(InputPriceData!G$15,CalculationsAndCharts!$A101+$A$11,IF($C$5,8,0),1,1)) -> 989500 | D101: =IF(A101>$A$8,"",OFFSET(InputPriceData!C$15,CalculationsAndCharts!$A101+$A$11,IF($C$5,8,0),1,1)) -> 172.5 | E101: =IF(A101>$A$8,"",OFFSET(InputPriceData!D$15,CalculationsAndCharts!$A101+$A$11,IF($C$5,8,0),1,1)) -> 178.83 | F101: =IF(A101>$A$8,"",OFFSET(InputPriceData!E$15,CalculationsAndCharts!$A101+$A$11,IF($C$5,8,0),1,1)) -> 172.11 | G101: =IF(A101>$A$8,"",OFFSET(InputPriceData!F$15,CalculationsAndCharts!$A101+$A$11,IF($C$5,8,0),1,1)) -> 177.31 | H101: =IF($A101>$A$8,"",OFFSET(InputIndexPriceData!G$15,CalculationsAndCharts!$A101+$A$11,IF($C$5,8,0),1,1)) -> 59696700 | I101: =IF(A101>$A$8,"",OFFSET(InputIndexPriceData!C$15,CalculationsAndCharts!$A101+$A$11,IF($C$5,8,0),1,1)) -> 283.43 | J101: =IF(A101>$A$8,"",OFFSET(InputIndexPriceData!D$15,CalculationsAndCharts!$A101+$A$11,IF($C$5,8,0),1,1)) -> 286.33 | K101: =IF(A101>$A$8,"",OFFSET(InputIndexPriceData!E$15,CalculationsAndCharts!$A101+$A$11,IF($C$5,8,0),1,1)) -> 282.55 | L101: =IF(A101>$A$8,"",OFFSET(InputIndexPriceData!F$15,CalculationsAndCharts!$A101+$A$11,IF($C$5,8,0),1,1)) -> 286.16 | M101: 0.6196183953 | N101: -0.4942562094 | O101: -0.484117181 | P101: -48.4117181 | Q101: -0.1021313129 | R101: 0.9314884608 | AA101: 1.6 | AE101: 408.852 | AP101: 989500
A102: 70 | B102: =IF(A102>$A$8,"",OFFSET(InputPriceData!B$15,$A102+$A$11,0,1,1)) -> 2019-08-27 | C102: =IF(A102>$A$8,"",OFFSET(InputPriceData!G$15,CalculationsAndCharts!$A102+$A$11,IF($C$5,8,0),1,1)) -> 874000 | D102: =IF(A102>$A$8,"",OFFSET(InputPriceData!C$15,CalculationsAndCharts!$A102+$A$11,IF($C$5,8,0),1,1)) -> 175.92 | E102: =IF(A102>$A$8,"",OFFSET(InputPriceData!D$15,CalculationsAndCharts!$A102+$A$11,IF($C$5,8,0),1,1)) -> 177.24 | F102: =IF(A102>$A$8,"",OFFSET(InputPriceData!E$15,CalculationsAndCharts!$A102+$A$11,IF($C$5,8,0),1,1)) -> 173.06 | G102: =IF(A102>$A$8,"",OFFSET(InputPriceData!F$15,CalculationsAndCharts!$A102+$A$11,IF($C$5,8,0),1,1)) -> 173.8 | H102: =IF($A102>$A$8,"",OFFSET(InputIndexPriceData!G$15,CalculationsAndCharts!$A102+$A$11,IF($C$5,8,0),1,1)) -> 66668900 | I102: =IF(A102>$A$8,"",OFFSET(InputIndexPriceData!C$15,CalculationsAndCharts!$A102+$A$11,IF($C$5,8,0),1,1)) -> 286.8 | J102: =IF(A102>$A$8,"",OFFSET(InputIndexPriceData!D$15,CalculationsAndCharts!$A102+$A$11,IF($C$5,8,0),1,1)) -> 287.21 | K102: =IF(A102>$A$8,"",OFFSET(InputIndexPriceData!E$15,CalculationsAndCharts!$A102+$A$11,IF($C$5,8,0),1,1)) -> 283.32 | L102: =IF(A102>$A$8,"",OFFSET(InputIndexPriceData!F$15,CalculationsAndCharts!$A102+$A$11,IF($C$5,8,0),1,1)) -> 284.15 | M102: 0.6116487771 | N102: -0.4761218355 | O102: -0.4739781526 | P102: -47.39781526 | Q102: -0.09766371221 | R102: 0.9358896688 | AA102: 1.6 | AE102: 408.852 | AQ102: 874000
A103: 71 | B103: =IF(A103>$A$8,"",OFFSET(InputPriceData!B$15,$A103+$A$11,0,1,1)) -> 2019-08-26 | C103: =IF(A103>$A$8,"",OFFSET(InputPriceData!G$15,CalculationsAndCharts!$A103+$A$11,IF($C$5,8,0),1,1)) -> 784400 | D103: =IF(A103>$A$8,"",OFFSET(InputPriceData!C$15,CalculationsAndCharts!$A103+$A$11,IF($C$5,8,0),1,1)) -> 177.17 | E103: =IF(A103>$A$8,"",OFFSET(InputPriceData!D$15,CalculationsAndCharts!$A103+$A$11,IF($C$5,8,0),1,1)) -> 179.08 | F103: =IF(A103>$A$8,"",OFFSET(InputPriceData!E$15,CalculationsAndCharts!$A103+$A$11,IF($C$5,8,0),1,1)) -> 173.3 | G103: =IF(A103>$A$8,"",OFFSET(InputPriceData!F$15,CalculationsAndCharts!$A103+$A$11,IF($C$5,8,0),1,1)) -> 175.19 | H103: =IF($A103>$A$8,"",OFFSET(InputIndexPriceData!G$15,CalculationsAndCharts!$A103+$A$11,IF($C$5,8,0),1,1)) -> 72423800 | I103: =IF(A103>$A$8,"",OFFSET(InputIndexPriceData!C$15,CalculationsAndCharts!$A103+$A$11,IF($C$5,8,0),1,1)) -> 284.55 | J103: =IF(A103>$A$8,"",OFFSET(InputIndexPriceData!D$15,CalculationsAndCharts!$A103+$A$11,IF($C$5,8,0),1,1)) -> 285.27 | K103: =IF(A103>$A$8,"",OFFSET(InputIndexPriceData!E$15,CalculationsAndCharts!$A103+$A$11,IF($C$5,8,0),1,1)) -> 282.88 | L103: =IF(A103>$A$8,"",OFFSET(InputIndexPriceData!F$15,CalculationsAndCharts!$A103+$A$11,IF($C$5,8,0),1,1)) -> 285.27 | M103: 0.6141199565 | N103: -0.4459131842 | O103: -0.4718344697 | P103: -47.18344697 | Q103: -0.09747059316 | R103: 0.9400340591 | AA103: 1.6 | AE103: 408.852 | AQ103: 784400
A104: 72 | B104: =IF(A104>$A$8,"",OFFSET(InputPriceData!B$15,$A104+$A$11,0,1,1)) -> 2019-08-23 | C104: =IF(A104>$A$8,"",OFFSET(InputPriceData!G$15,CalculationsAndCharts!$A104+$A$11,IF($C$5,8,0),1,1)) -> 1146600 | D104: =IF(A104>$A$8,"",OFFSET(InputPriceData!C$15,CalculationsAndCharts!$A104+$A$11,IF($C$5,8,0),1,1)) -> 177.84 | E104: =IF(A104>$A$8,"",OFFSET(InputPriceData!D$15,CalculationsAndCharts!$A104+$A$11,IF($C$5,8,0),1,1)) -> 179.15 | F104: =IF(A104>$A$8,"",OFFSET(InputPriceData!E$15,CalculationsAndCharts!$A104+$A$11,IF($C$5,8,0),1,1)) -> 173.8 | G104: =IF(A104>$A$8,"",OFFSET(InputPriceData!F$15,CalculationsAndCharts!$A104+$A$11,IF($C$5,8,0),1,1)) -> 175.04 | H104: =IF($A104>$A$8,"",OFFSET(InputIndexPriceData!G$15,CalculationsAndCharts!$A104+$A$11,IF($C$5,8,0),1,1)) -> 149161500 | I104: =IF(A104>$A$8,"",OFFSET(InputIndexPriceData!C$15,CalculationsAndCharts!$A104+$A$11,IF($C$5,8,0),1,1)) -> 288.17 | J104: =IF(A104>$A$8,"",OFFSET(InputIndexPriceData!D$15,CalculationsAndCharts!$A104+$A$11,IF($C$5,8,0),1,1)) -> 289.99 | K104: =IF(A104>$A$8,"",OFFSET(InputIndexPriceData!E$15,CalculationsAndCharts!$A104+$A$11,IF($C$5,8,0),1,1)) -> 280.79 | L104: =IF(A104>$A$8,"",OFFSET(InputIndexPriceData!F$15,CalculationsAndCharts!$A104+$A$11,IF($C$5,8,0),1,1)) -> 282.15 | M104: 0.6203792309 | N104: -0.4856416416 | O104: -0.4977557552 | P104: -49.77557552 | Q104: -0.0948623723 | R104: 0.943868323 | AA104: 1.6 | AE104: 408.852 | AQ104: 1146600
A105: 73 | B105: =IF(A105>$A$8,"",OFFSET(InputPriceData!B$15,$A105+$A$11,0,1,1)) -> 2019-08-22 | C105: =IF(A105>$A$8,"",OFFSET(InputPriceData!G$15,CalculationsAndCharts!$A105+$A$11,IF($C$5,8,0),1,1)) -> 972700 | D105: =IF(A105>$A$8,"",OFFSET(InputPriceData!C$15,CalculationsAndCharts!$A105+$A$11,IF($C$5,8,0),1,1)) -> 177.91 | E105: =IF(A105>$A$8,"",OFFSET(InputPriceData!D$15,CalculationsAndCharts!$A105+$A$11,IF($C$5,8,0),1,1)) -> 181.41 | F105: =IF(A105>$A$8,"",OFFSET(InputPriceData!E$15,CalculationsAndCharts!$A105+$A$11,IF($C$5,8,0),1,1)) -> 177.45 | G105: =IF(A105>$A$8,"",OFFSET(InputPriceData!F$15,CalculationsAndCharts!$A105+$A$11,IF($C$5,8,0),1,1)) -> 178.97 | H105: =IF($A105>$A$8,"",OFFSET(InputIndexPriceData!G$15,CalculationsAndCharts!$A105+$A$11,IF($C$5,8,0),1,1)) -> 51666400 | I105: =IF(A105>$A$8,"",OFFSET(InputIndexPriceData!C$15,CalculationsAndCharts!$A105+$A$11,IF($C$5,8,0),1,1)) -> 290.45 | J105: =IF(A105>$A$8,"",OFFSET(InputIndexPriceData!D$15,CalculationsAndCharts!$A105+$A$11,IF($C$5,8,0),1,1)) -> 291.15 | K105: =IF(A105>$A$8,"",OFFSET(InputIndexPriceData!E$15,CalculationsAndCharts!$A105+$A$11,IF($C$5,8,0),1,1)) -> 287.65 | L105: =IF(A105>$A$8,"",OFFSET(InputIndexPriceData!F$15,CalculationsAndCharts!$A105+$A$11,IF($C$5,8,0),1,1)) -> 289.59 | M105: 0.6180116717 | N105: -0.5044862992 | O105: -0.5098698688 | P105: -50.98698688 | Q105: -0.1000168491 | R105: 0.9481780112 | AA105: 1.6 | AE105: 408.852 | AP105: 972700
A106: 74 | B106: =IF(A106>$A$8,"",OFFSET(InputPriceData!B$15,$A106+$A$11,0,1,1)) -> 2019-08-21 | C106: =IF(A106>$A$8,"",OFFSET(InputPriceData!G$15,CalculationsAndCharts!$A106+$A$11,IF($C$5,8,0),1,1)) -> 620200 | D106: =IF(A106>$A$8,"",OFFSET(InputPriceData!C$15,CalculationsAndCharts!$A106+$A$11,IF($C$5,8,0),1,1)) -> 176.07 | E106: =IF(A106>$A$8,"",OFFSET(InputPriceData!D$15,CalculationsAndCharts!$A106+$A$11,IF($C$5,8,0),1,1)) -> 177.52 | F106: =IF(A106>$A$8,"",OFFSET(InputPriceData!E$15,CalculationsAndCharts!$A106+$A$11,IF($C$5,8,0),1,1)) -> 175.02 | G106: =IF(A106>$A$8,"",OFFSET(InputPriceData!F$15,CalculationsAndCharts!$A106+$A$11,IF($C$5,8,0),1,1)) -> 176.39 | H106: =IF($A106>$A$8,"",OFFSET(InputIndexPriceData!G$15,CalculationsAndCharts!$A106+$A$11,IF($C$5,8,0),1,1)) -> 49524700 | I106: =IF(A106>$A$8,"",OFFSET(InputIndexPriceData!C$15,CalculationsAndCharts!$A106+$A$11,IF($C$5,8,0),1,1)) -> 289.71 | J106: =IF(A106>$A$8,"",OFFSET(InputIndexPriceData!D$15,CalculationsAndCharts!$A106+$A$11,IF($C$5,8,0),1,1)) -> 290.09 | K106: =IF(A106>$A$8,"",OFFSET(InputIndexPriceData!E$15,CalculationsAndCharts!$A106+$A$11,IF($C$5,8,0),1,1)) -> 288.96 | L106: =IF(A106>$A$8,"",OFFSET(InputIndexPriceData!F$15,CalculationsAndCharts!$A106+$A$11,IF($C$5,8,0),1,1)) -> 289.68 | M106: 0.6089132836 | N106: -0.5204632837 | O106: -0.5152534384 | P106: -51.52534384 | Q106: -0.0854662615 | R106: 0.9526835535 | AA106: 1.6 | AE106: 408.852 | AP106: 620200
A107: 75 | B107: =IF(A107>$A$8,"",OFFSET(InputPriceData!B$15,$A107+$A$11,0,1,1)) -> 2019-08-20 | C107: =IF(A107>$A$8,"",OFFSET(InputPriceData!G$15,CalculationsAndCharts!$A107+$A$11,IF($C$5,8,0),1,1)) -> 774500 | D107: =IF(A107>$A$8,"",OFFSET(InputPriceData!C$15,CalculationsAndCharts!$A107+$A$11,IF($C$5,8,0),1,1)) -> 177.24 | E107: =IF(A107>$A$8,"",OFFSET(InputPriceData!D$15,CalculationsAndCharts!$A107+$A$11,IF($C$5,8,0),1,1)) -> 178.16 | F107: =IF(A107>$A$8,"",OFFSET(InputPriceData!E$15,CalculationsAndCharts!$A107+$A$11,IF($C$5,8,0),1,1)) -> 174.3 | G107: =IF(A107>$A$8,"",OFFSET(InputPriceData!F$15,CalculationsAndCharts!$A107+$A$11,IF($C$5,8,0),1,1)) -> 174.5 | H107: =IF($A107>$A$8,"",OFFSET(InputIndexPriceData!G$15,CalculationsAndCharts!$A107+$A$11,IF($C$5,8,0),1,1)) -> 51596400 | I107: =IF(A107>$A$8,"",OFFSET(InputIndexPriceData!C$15,CalculationsAndCharts!$A107+$A$11,IF($C$5,8,0),1,1)) -> 289.01 | J107: =IF(A107>$A$8,"",OFFSET(InputIndexPriceData!D$15,CalculationsAndCharts!$A107+$A$11,IF($C$5,8,0),1,1)) -> 289.59 | K107: =IF(A107>$A$8,"",OFFSET(InputIndexPriceData!E$15,CalculationsAndCharts!$A107+$A$11,IF($C$5,8,0),1,1)) -> 287.21 | L107: =IF(A107>$A$8,"",OFFSET(InputIndexPriceData!F$15,CalculationsAndCharts!$A107+$A$11,IF($C$5,8,0),1,1)) -> 287.34 | M107: 0.6072944943 | N107: -0.5181229745 | O107: -0.510043593 | P107: -51.0043593 | Q107: -0.06762118031 | R107: 0.9573032235 | AA107: 1.6 | AE107: 408.852 | AQ107: 774500
A108: 76 | B108: =IF(A108>$A$8,"",OFFSET(InputPriceData!B$15,$A108+$A$11,0,1,1)) -> 2019-08-19 | C108: =IF(A108>$A$8,"",OFFSET(InputPriceData!G$15,CalculationsAndCharts!$A108+$A$11,IF($C$5,8,0),1,1)) -> 1070200 | D108: =IF(A108>$A$8,"",OFFSET(InputPriceData!C$15,CalculationsAndCharts!$A108+$A$11,IF($C$5,8,0),1,1)) -> 180 | E108: =IF(A108>$A$8,"",OFFSET(InputPriceData!D$15,CalculationsAndCharts!$A108+$A$11,IF($C$5,8,0),1,1)) -> 181.33 | F108: =IF(A108>$A$8,"",OFFSET(InputPriceData!E$15,CalculationsAndCharts!$A108+$A$11,IF($C$5,8,0),1,1)) -> 176.59 | G108: =IF(A108>$A$8,"",OFFSET(InputPriceData!F$15,CalculationsAndCharts!$A108+$A$11,IF($C$5,8,0),1,1)) -> 177.62 | H108: =IF($A108>$A$8,"",OFFSET(InputIndexPriceData!G$15,CalculationsAndCharts!$A108+$A$11,IF($C$5,8,0),1,1)) -> 53571800 | I108: =IF(A108>$A$8,"",OFFSET(InputIndexPriceData!C$15,CalculationsAndCharts!$A108+$A$11,IF($C$5,8,0),1,1)) -> 289.42 | J108: =IF(A108>$A$8,"",OFFSET(InputIndexPriceData!D$15,CalculationsAndCharts!$A108+$A$11,IF($C$5,8,0),1,1)) -> 290.31 | K108: =IF(A108>$A$8,"",OFFSET(InputIndexPriceData!E$15,CalculationsAndCharts!$A108+$A$11,IF($C$5,8,0),1,1)) -> 288.68 | L108: =IF(A108>$A$8,"",OFFSET(InputIndexPriceData!F$15,CalculationsAndCharts!$A108+$A$11,IF($C$5,8,0),1,1)) -> 289.56 | M108: 0.6134134549 | N108: -0.5094028829 | O108: -0.5019642116 | P108: -50.19642116 | Q108: -0.05612180717 | R108: 0.9618840689 | AA108: 1.6 | AE108: 408.852 | AQ108: 1070200
A109: 77 | B109: =IF(A109>$A$8,"",OFFSET(InputPriceData!B$15,$A109+$A$11,0,1,1)) -> 2019-08-16 | C109: =IF(A109>$A$8,"",OFFSET(InputPriceData!G$15,CalculationsAndCharts!$A109+$A$11,IF($C$5,8,0),1,1)) -> 1047200 | D109: =IF(A109>$A$8,"",OFFSET(InputPriceData!C$15,CalculationsAndCharts!$A109+$A$11,IF($C$5,8,0),1,1)) -> 175.93 | E109: =IF(A109>$A$8,"",OFFSET(InputPriceData!D$15,CalculationsAndCharts!$A109+$A$11,IF($C$5,8,0),1,1)) -> 178.34 | F109: =IF(A109>$A$8,"",OFFSET(InputPriceData!E$15,CalculationsAndCharts!$A109+$A$11,IF($C$5,8,0),1,1)) -> 175.46 | G109: =IF(A109>$A$8,"",OFFSET(InputPriceData!F$15,CalculationsAndCharts!$A109+$A$11,IF($C$5,8,0),1,1)) -> 177.29 | H109: =IF($A109>$A$8,"",OFFSET(InputIndexPriceData!G$15,CalculationsAndCharts!$A109+$A$11,IF($C$5,8,0),1,1)) -> 83018300 | I109: =IF(A109>$A$8,"",OFFSET(InputIndexPriceData!C$15,CalculationsAndCharts!$A109+$A$11,IF($C$5,8,0),1,1)) -> 283.77 | J109: =IF(A109>$A$8,"",OFFSET(InputIndexPriceData!D$15,CalculationsAndCharts!$A109+$A$11,IF($C$5,8,0),1,1)) -> 286.59 | K109: =IF(A109>$A$8,"",OFFSET(InputIndexPriceData!E$15,CalculationsAndCharts!$A109+$A$11,IF($C$5,8,0),1,1)) -> 282.01 | L109: =IF(A109>$A$8,"",OFFSET(InputIndexPriceData!F$15,CalculationsAndCharts!$A109+$A$11,IF($C$5,8,0),1,1)) -> 286.12 | M109: 0.6196351181 | N109: -0.4858018101 | O109: -0.4945255403 | P109: -49.45255403 | Q109: -0.03883666965 | R109: 0.9664117221 | AA109: 1.6 | AE109: 408.852 | AP109: 1047200
A110: 78 | B110: =IF(A110>$A$8,"",OFFSET(InputPriceData!B$15,$A110+$A$11,0,1,1)) -> 2019-08-15 | C110: =IF(A110>$A$8,"",OFFSET(InputPriceData!G$15,CalculationsAndCharts!$A110+$A$11,IF($C$5,8,0),1,1)) -> 950800 | D110: =IF(A110>$A$8,"",OFFSET(InputPriceData!C$15,CalculationsAndCharts!$A110+$A$11,IF($C$5,8,0),1,1)) -> 175.61 | E110: =IF(A110>$A$8,"",OFFSET(InputPriceData!D$15,CalculationsAndCharts!$A110+$A$11,IF($C$5,8,0),1,1)) -> 176.78 | F110: =IF(A110>$A$8,"",OFFSET(InputPriceData!E$15,CalculationsAndCharts!$A110+$A$11,IF($C$5,8,0),1,1)) -> 172.62 | G110: =IF(A110>$A$8,"",OFFSET(InputPriceData!F$15,CalculationsAndCharts!$A110+$A$11,IF($C$5,8,0),1,1)) -> 174.37 | H110: =IF($A110>$A$8,"",OFFSET(InputIndexPriceData!G$15,CalculationsAndCharts!$A110+$A$11,IF($C$5,8,0),1,1)) -> 99556600 | I110: =IF(A110>$A$8,"",OFFSET(InputIndexPriceData!C$15,CalculationsAndCharts!$A110+$A$11,IF($C$5,8,0),1,1)) -> 282.18 | J110: =IF(A110>$A$8,"",OFFSET(InputIndexPriceData!D$15,CalculationsAndCharts!$A110+$A$11,IF($C$5,8,0),1,1)) -> 282.94 | K110: =IF(A110>$A$8,"",OFFSET(InputIndexPriceData!E$15,CalculationsAndCharts!$A110+$A$11,IF($C$5,8,0),1,1)) -> 279.72 | L110: =IF(A110>$A$8,"",OFFSET(InputIndexPriceData!F$15,CalculationsAndCharts!$A110+$A$11,IF($C$5,8,0),1,1)) -> 281.96 | M110: 0.6184210526 | N110: -0.5084374817 | O110: -0.5032492705 | P110: -50.32492705 | Q110: -0.02876543386 | R110: 0.9707180334 | AA110: 1.6 | AE110: 408.852 | AQ110: 950800
A111: 79 | B111: =IF(A111>$A$8,"",OFFSET(InputPriceData!B$15,$A111+$A$11,0,1,1)) -> 2019-08-14 | C111: =IF(A111>$A$8,"",OFFSET(InputPriceData!G$15,CalculationsAndCharts!$A111+$A$11,IF($C$5,8,0),1,1)) -> 1149500 | D111: =IF(A111>$A$8,"",OFFSET(InputPriceData!C$15,CalculationsAndCharts!$A111+$A$11,IF($C$5,8,0),1,1)) -> 179.22 | E111: =IF(A111>$A$8,"",OFFSET(InputPriceData!D$15,CalculationsAndCharts!$A111+$A$11,IF($C$5,8,0),1,1)) -> 179.86 | F111: =IF(A111>$A$8,"",OFFSET(InputPriceData!E$15,CalculationsAndCharts!$A111+$A$11,IF($C$5,8,0),1,1)) -> 174.09 | G111: =IF(A111>$A$8,"",OFFSET(InputPriceData!F$15,CalculationsAndCharts!$A111+$A$11,IF($C$5,8,0),1,1)) -> 174.29 | H111: =IF($A111>$A$8,"",OFFSET(InputIndexPriceData!G$15,CalculationsAndCharts!$A111+$A$11,IF($C$5,8,0),1,1)) -> 135622100 | I111: =IF(A111>$A$8,"",OFFSET(InputIndexPriceData!C$15,CalculationsAndCharts!$A111+$A$11,IF($C$5,8,0),1,1)) -> 285.34 | J111: =IF(A111>$A$8,"",OFFSET(InputIndexPriceData!D$15,CalculationsAndCharts!$A111+$A$11,IF($C$5,8,0),1,1)) -> 286.01 | K111: =IF(A111>$A$8,"",OFFSET(InputIndexPriceData!E$15,CalculationsAndCharts!$A111+$A$11,IF($C$5,8,0),1,1)) -> 281.07 | L111: =IF(A111>$A$8,"",OFFSET(InputIndexPriceData!F$15,CalculationsAndCharts!$A111+$A$11,IF($C$5,8,0),1,1)) -> 281.21 | M111: 0.6197859251 | N111: -0.5177776182 | O111: -0.4980610593 | P111: -49.80610593 | Q111: -0.02555825045 | R111: 0.9752716131 | AA111: 1.6 | AE111: 408.852 | AQ111: 1149500
A112: 80 | B112: =IF(A112>$A$8,"",OFFSET(InputPriceData!B$15,$A112+$A$11,0,1,1)) -> 2019-08-13 | C112: =IF(A112>$A$8,"",OFFSET(InputPriceData!G$15,CalculationsAndCharts!$A112+$A$11,IF($C$5,8,0),1,1)) -> 862000 | D112: =IF(A112>$A$8,"",OFFSET(InputPriceData!C$15,CalculationsAndCharts!$A112+$A$11,IF($C$5,8,0),1,1)) -> 178.97 | E112: =IF(A112>$A$8,"",OFFSET(InputPriceData!D$15,CalculationsAndCharts!$A112+$A$11,IF($C$5,8,0),1,1)) -> 183.8 | F112: =IF(A112>$A$8,"",OFFSET(InputPriceData!E$15,CalculationsAndCharts!$A112+$A$11,IF($C$5,8,0),1,1)) -> 178.63 | G112: =IF(A112>$A$8,"",OFFSET(InputPriceData!F$15,CalculationsAndCharts!$A112+$A$11,IF($C$5,8,0),1,1)) -> 182 | H112: =IF($A112>$A$8,"",OFFSET(InputIndexPriceData!G$15,CalculationsAndCharts!$A112+$A$11,IF($C$5,8,0),1,1)) -> 94299800 | I112: =IF(A112>$A$8,"",OFFSET(InputIndexPriceData!C$15,CalculationsAndCharts!$A112+$A$11,IF($C$5,8,0),1,1)) -> 285.02 | J112: =IF(A112>$A$8,"",OFFSET(InputIndexPriceData!D$15,CalculationsAndCharts!$A112+$A$11,IF($C$5,8,0),1,1)) -> 291.37 | K112: =IF(A112>$A$8,"",OFFSET(InputIndexPriceData!E$15,CalculationsAndCharts!$A112+$A$11,IF($C$5,8,0),1,1)) -> 284.64 | L112: =IF(A112>$A$8,"",OFFSET(InputIndexPriceData!F$15,CalculationsAndCharts!$A112+$A$11,IF($C$5,8,0),1,1)) -> 289.78 | M112: 0.6280626682 | N112: -0.4822073657 | O112: -0.4783445005 | P112: -47.83445005 | Q112: -0.02476540212 | R112: 0.9799426896 | AA112: 1.6 | AE112: 408.852 | AP112: 862000
A113: 81 | B113: =IF(A113>$A$8,"",OFFSET(InputPriceData!B$15,$A113+$A$11,0,1,1)) -> 2019-08-12 | C113: =IF(A113>$A$8,"",OFFSET(InputPriceData!G$15,CalculationsAndCharts!$A113+$A$11,IF($C$5,8,0),1,1)) -> 1121300 | D113: =IF(A113>$A$8,"",OFFSET(InputPriceData!C$15,CalculationsAndCharts!$A113+$A$11,IF($C$5,8,0),1,1)) -> 181.26 | E113: =IF(A113>$A$8,"",OFFSET(InputPriceData!D$15,CalculationsAndCharts!$A113+$A$11,IF($C$5,8,0),1,1)) -> 182.77 | F113: =IF(A113>$A$8,"",OFFSET(InputPriceData!E$15,CalculationsAndCharts!$A113+$A$11,IF($C$5,8,0),1,1)) -> 178.6 | G113: =IF(A113>$A$8,"",OFFSET(InputPriceData!F$15,CalculationsAndCharts!$A113+$A$11,IF($C$5,8,0),1,1)) -> 179.68 | H113: =IF($A113>$A$8,"",OFFSET(InputIndexPriceData!G$15,CalculationsAndCharts!$A113+$A$11,IF($C$5,8,0),1,1)) -> 62629500 | I113: =IF(A113>$A$8,"",OFFSET(InputIndexPriceData!C$15,CalculationsAndCharts!$A113+$A$11,IF($C$5,8,0),1,1)) -> 287.22 | J113: =IF(A113>$A$8,"",OFFSET(InputIndexPriceData!D$15,CalculationsAndCharts!$A113+$A$11,IF($C$5,8,0),1,1)) -> 288.85 | K113: =IF(A113>$A$8,"",OFFSET(InputIndexPriceData!E$15,CalculationsAndCharts!$A113+$A$11,IF($C$5,8,0),1,1)) -> 284.3 | L113: =IF(A113>$A$8,"",OFFSET(InputIndexPriceData!F$15,CalculationsAndCharts!$A113+$A$11,IF($C$5,8,0),1,1)) -> 285.34 | M113: 0.6297049134 | N113: -0.4867524503 | O113: -0.4744816353 | P113: -47.44816353 | Q113: -0.001761090226 | R113: 0.9842668704 | AA113: 1.6 | AE113: 408.852 | AQ113: 1121300
A114: 82 | B114: =IF(A114>$A$8,"",OFFSET(InputPriceData!B$15,$A114+$A$11,0,1,1)) -> 2019-08-09 | C114: =IF(A114>$A$8,"",OFFSET(InputPriceData!G$15,CalculationsAndCharts!$A114+$A$11,IF($C$5,8,0),1,1)) -> 1079600 | D114: =IF(A114>$A$8,"",OFFSET(InputPriceData!C$15,CalculationsAndCharts!$A114+$A$11,IF($C$5,8,0),1,1)) -> 186.14 | E114: =IF(A114>$A$8,"",OFFSET(InputPriceData!D$15,CalculationsAndCharts!$A114+$A$11,IF($C$5,8,0),1,1)) -> 189.37 | F114: =IF(A114>$A$8,"",OFFSET(InputPriceData!E$15,CalculationsAndCharts!$A114+$A$11,IF($C$5,8,0),1,1)) -> 183.06 | G114: =IF(A114>$A$8,"",OFFSET(InputPriceData!F$15,CalculationsAndCharts!$A114+$A$11,IF($C$5,8,0),1,1)) -> 183.33 | H114: =IF($A114>$A$8,"",OFFSET(InputIndexPriceData!G$15,CalculationsAndCharts!$A114+$A$11,IF($C$5,8,0),1,1)) -> 93730000 | I114: =IF(A114>$A$8,"",OFFSET(InputIndexPriceData!C$15,CalculationsAndCharts!$A114+$A$11,IF($C$5,8,0),1,1)) -> 289.81 | J114: =IF(A114>$A$8,"",OFFSET(InputIndexPriceData!D$15,CalculationsAndCharts!$A114+$A$11,IF($C$5,8,0),1,1)) -> 290.46 | K114: =IF(A114>$A$8,"",OFFSET(InputIndexPriceData!E$15,CalculationsAndCharts!$A114+$A$11,IF($C$5,8,0),1,1)) -> 286.91 | L114: =IF(A114>$A$8,"",OFFSET(InputIndexPriceData!F$15,CalculationsAndCharts!$A114+$A$11,IF($C$5,8,0),1,1)) -> 288.86 | M114: 0.6346673129 | N114: -0.4899939469 | O114: -0.4622108203 | P114: -46.22108203 | Q114: 0.017900505 | R114: 0.9886539811 | AA114: 1.6 | AE114: 408.852 | AQ114: 1079600
A115: 83 | B115: =IF(A115>$A$8,"",OFFSET(InputPriceData!B$15,$A115+$A$11,0,1,1)) -> 2019-08-08 | C115: =IF(A115>$A$8,"",OFFSET(InputPriceData!G$15,CalculationsAndCharts!$A115+$A$11,IF($C$5,8,0),1,1)) -> 1137800 | D115: =IF(A115>$A$8,"",OFFSET(InputPriceData!C$15,CalculationsAndCharts!$A115+$A$11,IF($C$5,8,0),1,1)) -> 185.2 | E115: =IF(A115>$A$8,"",OFFSET(InputPriceData!D$15,CalculationsAndCharts!$A115+$A$11,IF($C$5,8,0),1,1)) -> 189.75 | F115: =IF(A115>$A$8,"",OFFSET(InputPriceData!E$15,CalculationsAndCharts!$A115+$A$11,IF($C$5,8,0),1,1)) -> 185.2 | G115: =IF(A115>$A$8,"",OFFSET(InputPriceData!F$15,CalculationsAndCharts!$A115+$A$11,IF($C$5,8,0),1,1)) -> 188.28 | H115: =IF($A115>$A$8,"",OFFSET(InputIndexPriceData!G$15,CalculationsAndCharts!$A115+$A$11,IF($C$5,8,0),1,1)) -> 87713900 | I115: =IF(A115>$A$8,"",OFFSET(InputIndexPriceData!C$15,CalculationsAndCharts!$A115+$A$11,IF($C$5,8,0),1,1)) -> 286.88 | J115: =IF(A115>$A$8,"",OFFSET(InputIndexPriceData!D$15,CalculationsAndCharts!$A115+$A$11,IF($C$5,8,0),1,1)) -> 290.84 | K115: =IF(A115>$A$8,"",OFFSET(InputIndexPriceData!E$15,CalculationsAndCharts!$A115+$A$11,IF($C$5,8,0),1,1)) -> 286.27 | L115: =IF(A115>$A$8,"",OFFSET(InputIndexPriceData!F$15,CalculationsAndCharts!$A115+$A$11,IF($C$5,8,0),1,1)) -> 290.84 | M115: 0.6473662495 | N115: -0.4468382759 | O115: -0.4344276936 | P115: -43.44276936 | Q115: 0.04892688988 | R115: 0.9931129163 | AA115: 1.6 | AE115: 408.852 | AP115: 1137800
A116: 84 | B116: =IF(A116>$A$8,"",OFFSET(InputPriceData!B$15,$A116+$A$11,0,1,1)) -> 2019-08-07 | C116: =IF(A116>$A$8,"",OFFSET(InputPriceData!G$15,CalculationsAndCharts!$A116+$A$11,IF($C$5,8,0),1,1)) -> 2025100 | D116: =IF(A116>$A$8,"",OFFSET(InputPriceData!C$15,CalculationsAndCharts!$A116+$A$11,IF($C$5,8,0),1,1)) -> 186.13 | E116: =IF(A116>$A$8,"",OFFSET(InputPriceData!D$15,CalculationsAndCharts!$A116+$A$11,IF($C$5,8,0),1,1)) -> 186.13 | F116: =IF(A116>$A$8,"",OFFSET(InputPriceData!E$15,CalculationsAndCharts!$A116+$A$11,IF($C$5,8,0),1,1)) -> 181.95 | G116: =IF(A116>$A$8,"",OFFSET(InputPriceData!F$15,CalculationsAndCharts!$A116+$A$11,IF($C$5,8,0),1,1)) -> 183.9 | H116: =IF($A116>$A$8,"",OFFSET(InputIndexPriceData!G$15,CalculationsAndCharts!$A116+$A$11,IF($C$5,8,0),1,1)) -> 140572300 | I116: =IF(A116>$A$8,"",OFFSET(InputIndexPriceData!C$15,CalculationsAndCharts!$A116+$A$11,IF($C$5,8,0),1,1)) -> 281.71 | J116: =IF(A116>$A$8,"",OFFSET(InputIndexPriceData!D$15,CalculationsAndCharts!$A116+$A$11,IF($C$5,8,0),1,1)) -> 286.09 | K116: =IF(A116>$A$8,"",OFFSET(InputIndexPriceData!E$15,CalculationsAndCharts!$A116+$A$11,IF($C$5,8,0),1,1)) -> 279.37 | L116: =IF(A116>$A$8,"",OFFSET(InputIndexPriceData!F$15,CalculationsAndCharts!$A116+$A$11,IF($C$5,8,0),1,1)) -> 285.24 | M116: 0.6447202356 | N116: -0.4598358249 | O116: -0.4220171113 | P116: -42.20171113 | Q116: 0.08622205762 | R116: 0.9971651517 | AA116: 1.6 | AE116: 408.852 | AQ116: 2025100
A117: 85 | B117: =IF(A117>$A$8,"",OFFSET(InputPriceData!B$15,$A117+$A$11,0,1,1)) -> 2019-08-06 | C117: =IF(A117>$A$8,"",OFFSET(InputPriceData!G$15,CalculationsAndCharts!$A117+$A$11,IF($C$5,8,0),1,1)) -> 1216300 | D117: =IF(A117>$A$8,"",OFFSET(InputPriceData!C$15,CalculationsAndCharts!$A117+$A$11,IF($C$5,8,0),1,1)) -> 189.07 | E117: =IF(A117>$A$8,"",OFFSET(InputPriceData!D$15,CalculationsAndCharts!$A117+$A$11,IF($C$5,8,0),1,1)) -> 192.33 | F117: =IF(A117>$A$8,"",OFFSET(InputPriceData!E$15,CalculationsAndCharts!$A117+$A$11,IF($C$5,8,0),1,1)) -> 186.51 | G117: =IF(A117>$A$8,"",OFFSET(InputPriceData!F$15,CalculationsAndCharts!$A117+$A$11,IF($C$5,8,0),1,1)) -> 188.44 | H117: =IF($A117>$A$8,"",OFFSET(InputIndexPriceData!G$15,CalculationsAndCharts!$A117+$A$11,IF($C$5,8,0),1,1)) -> 120711700 | I117: =IF(A117>$A$8,"",OFFSET(InputIndexPriceData!C$15,CalculationsAndCharts!$A117+$A$11,IF($C$5,8,0),1,1)) -> 283.2 | J117: =IF(A117>$A$8,"",OFFSET(InputIndexPriceData!D$15,CalculationsAndCharts!$A117+$A$11,IF($C$5,8,0),1,1)) -> 285.31 | K117: =IF(A117>$A$8,"",OFFSET(InputIndexPriceData!E$15,CalculationsAndCharts!$A117+$A$11,IF($C$5,8,0),1,1)) -> 281.59 | L117: =IF(A117>$A$8,"",OFFSET(InputIndexPriceData!F$15,CalculationsAndCharts!$A117+$A$11,IF($C$5,8,0),1,1)) -> 285.08 | M117: 0.6610074365 | N117: -0.4038197477 | O117: -0.3841983976 | P117: -38.41983976 | Q117: 0.1072119492 | R117: 1.001347337 | AA117: 1.6 | AE117: 408.852 | AQ117: 1216300
A118: 86 | B118: =IF(A118>$A$8,"",OFFSET(InputPriceData!B$15,$A118+$A$11,0,1,1)) -> 2019-08-05 | C118: =IF(A118>$A$8,"",OFFSET(InputPriceData!G$15,CalculationsAndCharts!$A118+$A$11,IF($C$5,8,0),1,1)) -> 2319800 | D118: =IF(A118>$A$8,"",OFFSET(InputPriceData!C$15,CalculationsAndCharts!$A118+$A$11,IF($C$5,8,0),1,1)) -> 194.4 | E118: =IF(A118>$A$8,"",OFFSET(InputPriceData!D$15,CalculationsAndCharts!$A118+$A$11,IF($C$5,8,0),1,1)) -> 194.4 | F118: =IF(A118>$A$8,"",OFFSET(InputPriceData!E$15,CalculationsAndCharts!$A118+$A$11,IF($C$5,8,0),1,1)) -> 186.29 | G118: =IF(A118>$A$8,"",OFFSET(InputPriceData!F$15,CalculationsAndCharts!$A118+$A$11,IF($C$5,8,0),1,1)) -> 188.37 | H118: =IF($A118>$A$8,"",OFFSET(InputIndexPriceData!G$15,CalculationsAndCharts!$A118+$A$11,IF($C$5,8,0),1,1)) -> 178745400 | I118: =IF(A118>$A$8,"",OFFSET(InputIndexPriceData!C$15,CalculationsAndCharts!$A118+$A$11,IF($C$5,8,0),1,1)) -> 285.36 | J118: =IF(A118>$A$8,"",OFFSET(InputIndexPriceData!D$15,CalculationsAndCharts!$A118+$A$11,IF($C$5,8,0),1,1)) -> 285.48 | K118: =IF(A118>$A$8,"",OFFSET(InputIndexPriceData!E$15,CalculationsAndCharts!$A118+$A$11,IF($C$5,8,0),1,1)) -> 279.05 | L118: =IF(A118>$A$8,"",OFFSET(InputIndexPriceData!F$15,CalculationsAndCharts!$A118+$A$11,IF($C$5,8,0),1,1)) -> 281.13 | M118: 0.6700458862 | N118: -0.3758035294 | O118: -0.3645770475 | P118: -36.45770475 | Q118: 0.1283865735 | R118: 1.005001489 | AA118: 1.6 | AE118: 408.852 | AQ118: 2319800
A119: 87 | B119: =IF(A119>$A$8,"",OFFSET(InputPriceData!B$15,$A119+$A$11,0,1,1)) -> 2019-08-02 | C119: =IF(A119>$A$8,"",OFFSET(InputPriceData!G$15,CalculationsAndCharts!$A119+$A$11,IF($C$5,8,0),1,1)) -> 1715800 | D119: =IF(A119>$A$8,"",OFFSET(InputPriceData!C$15,CalculationsAndCharts!$A119+$A$11,IF($C$5,8,0),1,1)) -> 201.55 | E119: =IF(A119>$A$8,"",OFFSET(InputPriceData!D$15,CalculationsAndCharts!$A119+$A$11,IF($C$5,8,0),1,1)) -> 205.4 | F119: =IF(A119>$A$8,"",OFFSET(InputPriceData!E$15,CalculationsAndCharts!$A119+$A$11,IF($C$5,8,0),1,1)) -> 198.68 | G119: =IF(A119>$A$8,"",OFFSET(InputPriceData!F$15,CalculationsAndCharts!$A119+$A$11,IF($C$5,8,0),1,1)) -> 199.38 | H119: =IF($A119>$A$8,"",OFFSET(InputIndexPriceData!G$15,CalculationsAndCharts!$A119+$A$11,IF($C$5,8,0),1,1)) -> 116749700 | I119: =IF(A119>$A$8,"",OFFSET(InputIndexPriceData!C$15,CalculationsAndCharts!$A119+$A$11,IF($C$5,8,0),1,1)) -> 291.07 | J119: =IF(A119>$A$8,"",OFFSET(InputIndexPriceData!D$15,CalculationsAndCharts!$A119+$A$11,IF($C$5,8,0),1,1)) -> 291.34 | K119: =IF(A119>$A$8,"",OFFSET(InputIndexPriceData!E$15,CalculationsAndCharts!$A119+$A$11,IF($C$5,8,0),1,1)) -> 288.15 | L119: =IF(A119>$A$8,"",OFFSET(InputIndexPriceData!F$15,CalculationsAndCharts!$A119+$A$11,IF($C$5,8,0),1,1)) -> 289.85 | M119: 0.6878730378 | N119: -0.3638494796 | O119: -0.3533505657 | P119: -35.33505657 | Q119: 0.1410858097 | R119: 1.008397587 | AA119: 1.6 | AE119: 408.852 | AQ119: 1715800
A120: 88 | B120: =IF(A120>$A$8,"",OFFSET(InputPriceData!B$15,$A120+$A$11,0,1,1)) -> 2019-08-01 | C120: =IF(A120>$A$8,"",OFFSET(InputPriceData!G$15,CalculationsAndCharts!$A120+$A$11,IF($C$5,8,0),1,1)) -> 1859000 | D120: =IF(A120>$A$8,"",OFFSET(InputPriceData!C$15,CalculationsAndCharts!$A120+$A$11,IF($C$5,8,0),1,1)) -> 209.09 | E120: =IF(A120>$A$8,"",OFFSET(InputPriceData!D$15,CalculationsAndCharts!$A120+$A$11,IF($C$5,8,0),1,1)) -> 209.99 | F120: =IF(A120>$A$8,"",OFFSET(InputPriceData!E$15,CalculationsAndCharts!$A120+$A$11,IF($C$5,8,0),1,1)) -> 200.26 | G120: =IF(A120>$A$8,"",OFFSET(InputPriceData!F$15,CalculationsAndCharts!$A120+$A$11,IF($C$5,8,0),1,1)) -> 202.35 | H120: =IF($A120>$A$8,"",OFFSET(InputIndexPriceData!G$15,CalculationsAndCharts!$A120+$A$11,IF($C$5,8,0),1,1)) -> 142646600 | I120: =IF(A120>$A$8,"",OFFSET(InputIndexPriceData!C$15,CalculationsAndCharts!$A120+$A$11,IF($C$5,8,0),1,1)) -> 294.78 | J120: =IF(A120>$A$8,"",OFFSET(InputIndexPriceData!D$15,CalculationsAndCharts!$A120+$A$11,IF($C$5,8,0),1,1)) -> 298.02 | K120: =IF(A120>$A$8,"",OFFSET(InputIndexPriceData!E$15,CalculationsAndCharts!$A120+$A$11,IF($C$5,8,0),1,1)) -> 291.18 | L120: =IF(A120>$A$8,"",OFFSET(InputIndexPriceData!F$15,CalculationsAndCharts!$A120+$A$11,IF($C$5,8,0),1,1)) -> 292.05 | M120: 0.6928608115 | N120: -0.3521295124 | O120: -0.3428516518 | P120: -34.28516518 | Q120: 0.1761257589 | R120: 1.01175179 | AA120: 1.6 | AE120: 408.852 | AQ120: 1859000
A121: 89 | B121: =IF(A121>$A$8,"",OFFSET(InputPriceData!B$15,$A121+$A$11,0,1,1)) -> 2019-07-31 | C121: =IF(A121>$A$8,"",OFFSET(InputPriceData!G$15,CalculationsAndCharts!$A121+$A$11,IF($C$5,8,0),1,1)) -> 2970400 | D121: =IF(A121>$A$8,"",OFFSET(InputPriceData!C$15,CalculationsAndCharts!$A121+$A$11,IF($C$5,8,0),1,1)) -> 208 | E121: =IF(A121>$A$8,"",OFFSET(InputPriceData!D$15,CalculationsAndCharts!$A121+$A$11,IF($C$5,8,0),1,1)) -> 214.5 | F121: =IF(A121>$A$8,"",OFFSET(InputPriceData!E$15,CalculationsAndCharts!$A121+$A$11,IF($C$5,8,0),1,1)) -> 206.27 | G121: =IF(A121>$A$8,"",OFFSET(InputPriceData!F$15,CalculationsAndCharts!$A121+$A$11,IF($C$5,8,0),1,1)) -> 209.08 | H121: =IF($A121>$A$8,"",OFFSET(InputIndexPriceData!G$15,CalculationsAndCharts!$A121+$A$11,IF($C$5,8,0),1,1)) -> 103121300 | I121: =IF(A121>$A$8,"",OFFSET(InputIndexPriceData!C$15,CalculationsAndCharts!$A121+$A$11,IF($C$5,8,0),1,1)) -> 298.14 | J121: =IF(A121>$A$8,"",OFFSET(InputIndexPriceData!D$15,CalculationsAndCharts!$A121+$A$11,IF($C$5,8,0),1,1)) -> 298.35 | K121: =IF(A121>$A$8,"",OFFSET(InputIndexPriceData!E$15,CalculationsAndCharts!$A121+$A$11,IF($C$5,8,0),1,1)) -> 292.41 | L121: =IF(A121>$A$8,"",OFFSET(InputIndexPriceData!F$15,CalculationsAndCharts!$A121+$A$11,IF($C$5,8,0),1,1)) -> 294.61 | M121: 0.709683989 | N121: -0.32219662 | O121: -0.3335737912 | P121: -33.35737912 | Q121: 0.2147052052 | R121: 1.015001251 | AA121: 1.6 | AE121: 408.852 | AP121: 2970400
A122: 90 | B122: =IF(A122>$A$8,"",OFFSET(InputPriceData!B$15,$A122+$A$11,0,1,1)) -> 2019-07-30 | C122: =IF(A122>$A$8,"",OFFSET(InputPriceData!G$15,CalculationsAndCharts!$A122+$A$11,IF($C$5,8,0),1,1)) -> 2281300 | D122: =IF(A122>$A$8,"",OFFSET(InputPriceData!C$15,CalculationsAndCharts!$A122+$A$11,IF($C$5,8,0),1,1)) -> 194.65 | E122: =IF(A122>$A$8,"",OFFSET(InputPriceData!D$15,CalculationsAndCharts!$A122+$A$11,IF($C$5,8,0),1,1)) -> 204.05 | F122: =IF(A122>$A$8,"",OFFSET(InputPriceData!E$15,CalculationsAndCharts!$A122+$A$11,IF($C$5,8,0),1,1)) -> 194.02 | G122: =IF(A122>$A$8,"",OFFSET(InputPriceData!F$15,CalculationsAndCharts!$A122+$A$11,IF($C$5,8,0),1,1)) -> 203.25 | H122: =IF($A122>$A$8,"",OFFSET(InputIndexPriceData!G$15,CalculationsAndCharts!$A122+$A$11,IF($C$5,8,0),1,1)) -> 45849000 | I122: =IF(A122>$A$8,"",OFFSET(InputIndexPriceData!C$15,CalculationsAndCharts!$A122+$A$11,IF($C$5,8,0),1,1)) -> 297.07 | J122: =IF(A122>$A$8,"",OFFSET(InputIndexPriceData!D$15,CalculationsAndCharts!$A122+$A$11,IF($C$5,8,0),1,1)) -> 298.32 | K122: =IF(A122>$A$8,"",OFFSET(InputIndexPriceData!E$15,CalculationsAndCharts!$A122+$A$11,IF($C$5,8,0),1,1)) -> 296.65 | L122: =IF(A122>$A$8,"",OFFSET(InputIndexPriceData!F$15,CalculationsAndCharts!$A122+$A$11,IF($C$5,8,0),1,1)) -> 297.87 | M122: 0.682344647 | N122: -0.3824341526 | O122: -0.3449509624 | P122: -34.49509624 | Q122: 0.2668495736 | R122: 1.017998926 | AA122: 1.6 | AE122: 408.852 | AP122: 2281300
A123: 91 | B123: =IF(A123>$A$8,"",OFFSET(InputPriceData!B$15,$A123+$A$11,0,1,1)) -> 2019-07-29 | C123: =IF(A123>$A$8,"",OFFSET(InputPriceData!G$15,CalculationsAndCharts!$A123+$A$11,IF($C$5,8,0),1,1)) -> 3145500 | D123: =IF(A123>$A$8,"",OFFSET(InputPriceData!C$15,CalculationsAndCharts!$A123+$A$11,IF($C$5,8,0),1,1)) -> 199.18 | E123: =IF(A123>$A$8,"",OFFSET(InputPriceData!D$15,CalculationsAndCharts!$A123+$A$11,IF($C$5,8,0),1,1)) -> 199.64 | F123: =IF(A123>$A$8,"",OFFSET(InputPriceData!E$15,CalculationsAndCharts!$A123+$A$11,IF($C$5,8,0),1,1)) -> 189.6 | G123: =IF(A123>$A$8,"",OFFSET(InputPriceData!F$15,CalculationsAndCharts!$A123+$A$11,IF($C$5,8,0),1,1)) -> 196.05 | H123: =IF($A123>$A$8,"",OFFSET(InputIndexPriceData!G$15,CalculationsAndCharts!$A123+$A$11,IF($C$5,8,0),1,1)) -> 38126500 | I123: =IF(A123>$A$8,"",OFFSET(InputIndexPriceData!C$15,CalculationsAndCharts!$A123+$A$11,IF($C$5,8,0),1,1)) -> 299.02 | J123: =IF(A123>$A$8,"",OFFSET(InputIndexPriceData!D$15,CalculationsAndCharts!$A123+$A$11,IF($C$5,8,0),1,1)) -> 299.15 | K123: =IF(A123>$A$8,"",OFFSET(InputIndexPriceData!E$15,CalculationsAndCharts!$A123+$A$11,IF($C$5,8,0),1,1)) -> 298 | L123: =IF(A123>$A$8,"",OFFSET(InputIndexPriceData!F$15,CalculationsAndCharts!$A123+$A$11,IF($C$5,8,0),1,1)) -> 298.61 | M123: 0.6565419778 | N123: -0.377132187 | O123: -0.3074677722 | P123: -30.74677722 | Q123: 0.3406252245 | R123: 1.021530805 | AA123: 1.6 | AE123: 408.852 | AQ123: 3145500
A124: 92 | B124: =IF(A124>$A$8,"",OFFSET(InputPriceData!B$15,$A124+$A$11,0,1,1)) -> 2019-07-26 | C124: =IF(A124>$A$8,"",OFFSET(InputPriceData!G$15,CalculationsAndCharts!$A124+$A$11,IF($C$5,8,0),1,1)) -> 2954100 | D124: =IF(A124>$A$8,"",OFFSET(InputPriceData!C$15,CalculationsAndCharts!$A124+$A$11,IF($C$5,8,0),1,1)) -> 203.26 | E124: =IF(A124>$A$8,"",OFFSET(InputPriceData!D$15,CalculationsAndCharts!$A124+$A$11,IF($C$5,8,0),1,1)) -> 203.52 | F124: =IF(A124>$A$8,"",OFFSET(InputPriceData!E$15,CalculationsAndCharts!$A124+$A$11,IF($C$5,8,0),1,1)) -> 195.71 | G124: =IF(A124>$A$8,"",OFFSET(InputPriceData!F$15,CalculationsAndCharts!$A124+$A$11,IF($C$5,8,0),1,1)) -> 198.84 | H124: =IF($A124>$A$8,"",OFFSET(InputIndexPriceData!G$15,CalculationsAndCharts!$A124+$A$11,IF($C$5,8,0),1,1)) -> 45084100 | I124: =IF(A124>$A$8,"",OFFSET(InputIndexPriceData!C$15,CalculationsAndCharts!$A124+$A$11,IF($C$5,8,0),1,1)) -> 297.91 | J124: =IF(A124>$A$8,"",OFFSET(InputIndexPriceData!D$15,CalculationsAndCharts!$A124+$A$11,IF($C$5,8,0),1,1)) -> 299.37 | K124: =IF(A124>$A$8,"",OFFSET(InputIndexPriceData!E$15,CalculationsAndCharts!$A124+$A$11,IF($C$5,8,0),1,1)) -> 297.77 | L124: =IF(A124>$A$8,"",OFFSET(InputIndexPriceData!F$15,CalculationsAndCharts!$A124+$A$11,IF($C$5,8,0),1,1)) -> 299.15 | M124: 0.6646832693 | N124: -0.337440601 | O124: -0.2378033573 | P124: -23.78033573 | Q124: 0.4230254686 | R124: 1.024872582 | AA124: 1.6 | AE124: 408.852 | AQ124: 2954100
A125: 93 | B125: =IF(A125>$A$8,"",OFFSET(InputPriceData!B$15,$A125+$A$11,0,1,1)) -> 2019-07-25 | C125: =IF(A125>$A$8,"",OFFSET(InputPriceData!G$15,CalculationsAndCharts!$A125+$A$11,IF($C$5,8,0),1,1)) -> 9535000 | D125: =IF(A125>$A$8,"",OFFSET(InputPriceData!C$15,CalculationsAndCharts!$A125+$A$11,IF($C$5,8,0),1,1)) -> 219.28 | E125: =IF(A125>$A$8,"",OFFSET(InputPriceData!D$15,CalculationsAndCharts!$A125+$A$11,IF($C$5,8,0),1,1)) -> 219.71 | F125: =IF(A125>$A$8,"",OFFSET(InputPriceData!E$15,CalculationsAndCharts!$A125+$A$11,IF($C$5,8,0),1,1)) -> 197.11 | G125: =IF(A125>$A$8,"",OFFSET(InputPriceData!F$15,CalculationsAndCharts!$A125+$A$11,IF($C$5,8,0),1,1)) -> 200.9 | H125: =IF($A125>$A$8,"",OFFSET(InputIndexPriceData!G$15,CalculationsAndCharts!$A125+$A$11,IF($C$5,8,0),1,1)) -> 55394100 | I125: =IF(A125>$A$8,"",OFFSET(InputIndexPriceData!C$15,CalculationsAndCharts!$A125+$A$11,IF($C$5,8,0),1,1)) -> 298.09 | J125: =IF(A125>$A$8,"",OFFSET(InputIndexPriceData!D$15,CalculationsAndCharts!$A125+$A$11,IF($C$5,8,0),1,1)) -> 298.15 | K125: =IF(A125>$A$8,"",OFFSET(InputIndexPriceData!E$15,CalculationsAndCharts!$A125+$A$11,IF($C$5,8,0),1,1)) -> 296.28 | L125: =IF(A125>$A$8,"",OFFSET(InputIndexPriceData!F$15,CalculationsAndCharts!$A125+$A$11,IF($C$5,8,0),1,1)) -> 297.16 | M125: 0.6760667654 | N125: -0.2990344834 | O125: -0.1381661136 | P125: -13.81661136 | Q125: 0.5036391242 | R125: 1.027836747 | AA125: 1.6 | AE125: 408.852 | AQ125: 9535000
A126: 94 | B126: =IF(A126>$A$8,"",OFFSET(InputPriceData!B$15,$A126+$A$11,0,1,1)) -> 2019-07-24 | C126: =IF(A126>$A$8,"",OFFSET(InputPriceData!G$15,CalculationsAndCharts!$A126+$A$11,IF($C$5,8,0),1,1)) -> 2407700 | D126: =IF(A126>$A$8,"",OFFSET(InputPriceData!C$15,CalculationsAndCharts!$A126+$A$11,IF($C$5,8,0),1,1)) -> 272 | E126: =IF(A126>$A$8,"",OFFSET(InputPriceData!D$15,CalculationsAndCharts!$A126+$A$11,IF($C$5,8,0),1,1)) -> 279.95 | F126: =IF(A126>$A$8,"",OFFSET(InputPriceData!E$15,CalculationsAndCharts!$A126+$A$11,IF($C$5,8,0),1,1)) -> 270.11 | G126: =IF(A126>$A$8,"",OFFSET(InputPriceData!F$15,CalculationsAndCharts!$A126+$A$11,IF($C$5,8,0),1,1)) -> 275.16 | H126: =IF($A126>$A$8,"",OFFSET(InputIndexPriceData!G$15,CalculationsAndCharts!$A126+$A$11,IF($C$5,8,0),1,1)) -> 47213200 | I126: =IF(A126>$A$8,"",OFFSET(InputIndexPriceData!C$15,CalculationsAndCharts!$A126+$A$11,IF($C$5,8,0),1,1)) -> 296.36 | J126: =IF(A126>$A$8,"",OFFSET(InputIndexPriceData!D$15,CalculationsAndCharts!$A126+$A$11,IF($C$5,8,0),1,1)) -> 298.59 | K126: =IF(A126>$A$8,"",OFFSET(InputIndexPriceData!E$15,CalculationsAndCharts!$A126+$A$11,IF($C$5,8,0),1,1)) -> 296.26 | L126: =IF(A126>$A$8,"",OFFSET(InputIndexPriceData!F$15,CalculationsAndCharts!$A126+$A$11,IF($C$5,8,0),1,1)) -> 298.59 | M126: 0.9215311966 | N126: 0.01264354971 | O126: 0.02270225615 | P126: 2.270225615 | Q126: 0.5826400213 | R126: 1.030455049 | AA126: 1.6 | AE126: 408.852 | AP126: 2407700
A127: 95 | B127: =IF(A127>$A$8,"",OFFSET(InputPriceData!B$15,$A127+$A$11,0,1,1)) -> 2019-07-23 | C127: =IF(A127>$A$8,"",OFFSET(InputPriceData!G$15,CalculationsAndCharts!$A127+$A$11,IF($C$5,8,0),1,1)) -> 900400 | D127: =IF(A127>$A$8,"",OFFSET(InputPriceData!C$15,CalculationsAndCharts!$A127+$A$11,IF($C$5,8,0),1,1)) -> 274.88 | E127: =IF(A127>$A$8,"",OFFSET(InputPriceData!D$15,CalculationsAndCharts!$A127+$A$11,IF($C$5,8,0),1,1)) -> 276.14 | F127: =IF(A127>$A$8,"",OFFSET(InputPriceData!E$15,CalculationsAndCharts!$A127+$A$11,IF($C$5,8,0),1,1)) -> 269.29 | G127: =IF(A127>$A$8,"",OFFSET(InputPriceData!F$15,CalculationsAndCharts!$A127+$A$11,IF($C$5,8,0),1,1)) -> 272.96 | H127: =IF($A127>$A$8,"",OFFSET(InputIndexPriceData!G$15,CalculationsAndCharts!$A127+$A$11,IF($C$5,8,0),1,1)) -> 44564500 | I127: =IF(A127>$A$8,"",OFFSET(InputIndexPriceData!C$15,CalculationsAndCharts!$A127+$A$11,IF($C$5,8,0),1,1)) -> 296.31 | J127: =IF(A127>$A$8,"",OFFSET(InputIndexPriceData!D$15,CalculationsAndCharts!$A127+$A$11,IF($C$5,8,0),1,1)) -> 297.19 | K127: =IF(A127>$A$8,"",OFFSET(InputIndexPriceData!E$15,CalculationsAndCharts!$A127+$A$11,IF($C$5,8,0),1,1)) -> 295.4 | L127: =IF(A127>$A$8,"",OFFSET(InputIndexPriceData!F$15,CalculationsAndCharts!$A127+$A$11,IF($C$5,8,0),1,1)) -> 297.19 | M127: 0.9184696659 | N127: 0.02332665749 | O127: 0.0327609626 | P127: 3.27609626 | Q127: 0.6098761734 | R127: 1.030326404 | AA127: 1.6 | AE127: 408.852 | AQ127: 900400
A128: 96 | B128: =IF(A128>$A$8,"",OFFSET(InputPriceData!B$15,$A128+$A$11,0,1,1)) -> 2019-07-22 | C128: =IF(A128>$A$8,"",OFFSET(InputPriceData!G$15,CalculationsAndCharts!$A128+$A$11,IF($C$5,8,0),1,1)) -> 799400 | D128: =IF(A128>$A$8,"",OFFSET(InputPriceData!C$15,CalculationsAndCharts!$A128+$A$11,IF($C$5,8,0),1,1)) -> 281.43 | E128: =IF(A128>$A$8,"",OFFSET(InputPriceData!D$15,CalculationsAndCharts!$A128+$A$11,IF($C$5,8,0),1,1)) -> 283.26 | F128: =IF(A128>$A$8,"",OFFSET(InputPriceData!E$15,CalculationsAndCharts!$A128+$A$11,IF($C$5,8,0),1,1)) -> 274.01 | G128: =IF(A128>$A$8,"",OFFSET(InputPriceData!F$15,CalculationsAndCharts!$A128+$A$11,IF($C$5,8,0),1,1)) -> 274.47 | H128: =IF($A128>$A$8,"",OFFSET(InputIndexPriceData!G$15,CalculationsAndCharts!$A128+$A$11,IF($C$5,8,0),1,1)) -> 43638100 | I128: =IF(A128>$A$8,"",OFFSET(InputIndexPriceData!C$15,CalculationsAndCharts!$A128+$A$11,IF($C$5,8,0),1,1)) -> 294.79 | J128: =IF(A128>$A$8,"",OFFSET(InputIndexPriceData!D$15,CalculationsAndCharts!$A128+$A$11,IF($C$5,8,0),1,1)) -> 295.67 | K128: =IF(A128>$A$8,"",OFFSET(InputIndexPriceData!E$15,CalculationsAndCharts!$A128+$A$11,IF($C$5,8,0),1,1)) -> 294.23 | L128: =IF(A128>$A$8,"",OFFSET(InputIndexPriceData!F$15,CalculationsAndCharts!$A128+$A$11,IF($C$5,8,0),1,1)) -> 295.08 | M128: 0.9301545344 | N128: 0.01844996887 | O128: 0.04219526771 | P128: 4.219526771 | Q128: 0.6357753579 | R128: 1.030091105 | AA128: 1.6 | AE128: 408.852 | AQ128: 799400
A129: 97 | B129: =IF(A129>$A$8,"",OFFSET(InputPriceData!B$15,$A129+$A$11,0,1,1)) -> 2019-07-19 | C129: =IF(A129>$A$8,"",OFFSET(InputPriceData!G$15,CalculationsAndCharts!$A129+$A$11,IF($C$5,8,0),1,1)) -> 951900 | D129: =IF(A129>$A$8,"",OFFSET(InputPriceData!C$15,CalculationsAndCharts!$A129+$A$11,IF($C$5,8,0),1,1)) -> 284.57 | E129: =IF(A129>$A$8,"",OFFSET(InputPriceData!D$15,CalculationsAndCharts!$A129+$A$11,IF($C$5,8,0),1,1)) -> 288.36 | F129: =IF(A129>$A$8,"",OFFSET(InputPriceData!E$15,CalculationsAndCharts!$A129+$A$11,IF($C$5,8,0),1,1)) -> 280 | G129: =IF(A129>$A$8,"",OFFSET(InputPriceData!F$15,CalculationsAndCharts!$A129+$A$11,IF($C$5,8,0),1,1)) -> 281.21 | H129: =IF($A129>$A$8,"",OFFSET(InputIndexPriceData!G$15,CalculationsAndCharts!$A129+$A$11,IF($C$5,8,0),1,1)) -> 58678600 | I129: =IF(A129>$A$8,"",OFFSET(InputIndexPriceData!C$15,CalculationsAndCharts!$A129+$A$11,IF($C$5,8,0),1,1)) -> 297.2 | J129: =IF(A129>$A$8,"",OFFSET(InputIndexPriceData!D$15,CalculationsAndCharts!$A129+$A$11,IF($C$5,8,0),1,1)) -> 297.23 | K129: =IF(A129>$A$8,"",OFFSET(InputIndexPriceData!E$15,CalculationsAndCharts!$A129+$A$11,IF($C$5,8,0),1,1)) -> 294.17 | L129: =IF(A129>$A$8,"",OFFSET(InputIndexPriceData!F$15,CalculationsAndCharts!$A129+$A$11,IF($C$5,8,0),1,1)) -> 294.36 | M129: 0.9553268107 | N129: 0.04370532539 | O129: 0.06594056654 | P129: 6.594056654 | Q129: 0.6545523259 | R129: 1.029902172 | AA129: 1.6 | AE129: 408.852 | AQ129: 951900
A130: 98 | B130: =IF(A130>$A$8,"",OFFSET(InputPriceData!B$15,$A130+$A$11,0,1,1)) -> 2019-07-18 | C130: =IF(A130>$A$8,"",OFFSET(InputPriceData!G$15,CalculationsAndCharts!$A130+$A$11,IF($C$5,8,0),1,1)) -> 1346000 | D130: =IF(A130>$A$8,"",OFFSET(InputPriceData!C$15,CalculationsAndCharts!$A130+$A$11,IF($C$5,8,0),1,1)) -> 283.47 | E130: =IF(A130>$A$8,"",OFFSET(InputPriceData!D$15,CalculationsAndCharts!$A130+$A$11,IF($C$5,8,0),1,1)) -> 288.81 | F130: =IF(A130>$A$8,"",OFFSET(InputPriceData!E$15,CalculationsAndCharts!$A130+$A$11,IF($C$5,8,0),1,1)) -> 281.51 | G130: =IF(A130>$A$8,"",OFFSET(InputPriceData!F$15,CalculationsAndCharts!$A130+$A$11,IF($C$5,8,0),1,1)) -> 283.37 | H130: =IF($A130>$A$8,"",OFFSET(InputIndexPriceData!G$15,CalculationsAndCharts!$A130+$A$11,IF($C$5,8,0),1,1)) -> 51392600 | I130: =IF(A130>$A$8,"",OFFSET(InputIndexPriceData!C$15,CalculationsAndCharts!$A130+$A$11,IF($C$5,8,0),1,1)) -> 294.38 | J130: =IF(A130>$A$8,"",OFFSET(InputIndexPriceData!D$15,CalculationsAndCharts!$A130+$A$11,IF($C$5,8,0),1,1)) -> 296.42 | K130: =IF(A130>$A$8,"",OFFSET(InputIndexPriceData!E$15,CalculationsAndCharts!$A130+$A$11,IF($C$5,8,0),1,1)) -> 293.89 | L130: =IF(A130>$A$8,"",OFFSET(InputIndexPriceData!F$15,CalculationsAndCharts!$A130+$A$11,IF($C$5,8,0),1,1)) -> 296 | M130: 0.9573310811 | N130: 0.0723124988 | O130: 0.08817580769 | P130: 8.817580769 | Q130: 0.6723498932 | R130: 1.029448243 | AA130: 1.6 | AE130: 408.852 | AQ130: 1346000
A131: 99 | B131: =IF(A131>$A$8,"",OFFSET(InputPriceData!B$15,$A131+$A$11,0,1,1)) -> 2019-07-17 | C131: =IF(A131>$A$8,"",OFFSET(InputPriceData!G$15,CalculationsAndCharts!$A131+$A$11,IF($C$5,8,0),1,1)) -> 525600 | D131: =IF(A131>$A$8,"",OFFSET(InputPriceData!C$15,CalculationsAndCharts!$A131+$A$11,IF($C$5,8,0),1,1)) -> 281.68 | E131: =IF(A131>$A$8,"",OFFSET(InputPriceData!D$15,CalculationsAndCharts!$A131+$A$11,IF($C$5,8,0),1,1)) -> 286.28 | F131: =IF(A131>$A$8,"",OFFSET(InputPriceData!E$15,CalculationsAndCharts!$A131+$A$11,IF($C$5,8,0),1,1)) -> 281 | G131: =IF(A131>$A$8,"",OFFSET(InputPriceData!F$15,CalculationsAndCharts!$A131+$A$11,IF($C$5,8,0),1,1)) -> 283.91 | H131: =IF($A131>$A$8,"",OFFSET(InputIndexPriceData!G$15,CalculationsAndCharts!$A131+$A$11,IF($C$5,8,0),1,1)) -> 36036300 | I131: =IF(A131>$A$8,"",OFFSET(InputIndexPriceData!C$15,CalculationsAndCharts!$A131+$A$11,IF($C$5,8,0),1,1)) -> 296.91 | J131: =IF(A131>$A$8,"",OFFSET(InputIndexPriceData!D$15,CalculationsAndCharts!$A131+$A$11,IF($C$5,8,0),1,1)) -> 297.09 | K131: =IF(A131>$A$8,"",OFFSET(InputIndexPriceData!E$15,CalculationsAndCharts!$A131+$A$11,IF($C$5,8,0),1,1)) -> 294.92 | L131: =IF(A131>$A$8,"",OFFSET(InputIndexPriceData!F$15,CalculationsAndCharts!$A131+$A$11,IF($C$5,8,0),1,1)) -> 294.92 | M131: 0.9626678421 | N131: 0.1162770984 | O131: 0.1040391166 | P131: 10.40391166 | Q131: 0.691437009 | R131: 1.028706207 | AA131: 1.6 | AE131: 408.852 | AP131: 525600
A132: 100 | B132: =IF(A132>$A$8,"",OFFSET(InputPriceData!B$15,$A132+$A$11,0,1,1)) -> 2019-07-16 | C132: =IF(A132>$A$8,"",OFFSET(InputPriceData!G$15,CalculationsAndCharts!$A132+$A$11,IF($C$5,8,0),1,1)) -> 366600 | D132: =IF(A132>$A$8,"",OFFSET(InputPriceData!C$15,CalculationsAndCharts!$A132+$A$11,IF($C$5,8,0),1,1)) -> 284.65 | E132: =IF(A132>$A$8,"",OFFSET(InputPriceData!D$15,CalculationsAndCharts!$A132+$A$11,IF($C$5,8,0),1,1)) -> 284.9 | F132: =IF(A132>$A$8,"",OFFSET(InputPriceData!E$15,CalculationsAndCharts!$A132+$A$11,IF($C$5,8,0),1,1)) -> 279.99 | G132: =IF(A132>$A$8,"",OFFSET(InputPriceData!F$15,CalculationsAndCharts!$A132+$A$11,IF($C$5,8,0),1,1)) -> 281.07 | H132: =IF($A132>$A$8,"",OFFSET(InputIndexPriceData!G$15,CalculationsAndCharts!$A132+$A$11,IF($C$5,8,0),1,1)) -> 36650100 | I132: =IF(A132>$A$8,"",OFFSET(InputIndexPriceData!C$15,CalculationsAndCharts!$A132+$A$11,IF($C$5,8,0),1,1)) -> 297.8 | J132: =IF(A132>$A$8,"",OFFSET(InputIndexPriceData!D$15,CalculationsAndCharts!$A132+$A$11,IF($C$5,8,0),1,1)) -> 298.03 | K132: =IF(A132>$A$8,"",OFFSET(InputIndexPriceData!E$15,CalculationsAndCharts!$A132+$A$11,IF($C$5,8,0),1,1)) -> 296.61 | L132: =IF(A132>$A$8,"",OFFSET(InputIndexPriceData!F$15,CalculationsAndCharts!$A132+$A$11,IF($C$5,8,0),1,1)) -> 296.94 | M132: 0.9465548596 | N132: 0.1017902971 | O132: 0.09180113473 | P132: 9.180113473 | Q132: 0.7102889478 | R132: 1.027532057 | AA132: 1.6 | AE132: 408.852 | AQ132: 366600
A133: 101 | B133: =IF(A133>$A$8,"",OFFSET(InputPriceData!B$15,$A133+$A$11,0,1,1)) -> 2019-07-15 | C133: =IF(A133>$A$8,"",OFFSET(InputPriceData!G$15,CalculationsAndCharts!$A133+$A$11,IF($C$5,8,0),1,1)) -> 490200 | D133: =IF(A133>$A$8,"",OFFSET(InputPriceData!C$15,CalculationsAndCharts!$A133+$A$11,IF($C$5,8,0),1,1)) -> 283.57 | E133: =IF(A133>$A$8,"",OFFSET(InputPriceData!D$15,CalculationsAndCharts!$A133+$A$11,IF($C$5,8,0),1,1)) -> 286.91 | F133: =IF(A133>$A$8,"",OFFSET(InputPriceData!E$15,CalculationsAndCharts!$A133+$A$11,IF($C$5,8,0),1,1)) -> 280.56 | G133: =IF(A133>$A$8,"",OFFSET(InputPriceData!F$15,CalculationsAndCharts!$A133+$A$11,IF($C$5,8,0),1,1)) -> 284.3 | H133: =IF($A133>$A$8,"",OFFSET(InputIndexPriceData!G$15,CalculationsAndCharts!$A133+$A$11,IF($C$5,8,0),1,1)) -> 33900000 | I133: =IF(A133>$A$8,"",OFFSET(InputIndexPriceData!C$15,CalculationsAndCharts!$A133+$A$11,IF($C$5,8,0),1,1)) -> 298.28 | J133: =IF(A133>$A$8,"",OFFSET(InputIndexPriceData!D$15,CalculationsAndCharts!$A133+$A$11,IF($C$5,8,0),1,1)) -> 298.28 | K133: =IF(A133>$A$8,"",OFFSET(InputIndexPriceData!E$15,CalculationsAndCharts!$A133+$A$11,IF($C$5,8,0),1,1)) -> 297.35 | L133: =IF(A133>$A$8,"",OFFSET(InputIndexPriceData!F$15,CalculationsAndCharts!$A133+$A$11,IF($C$5,8,0),1,1)) -> 297.9 | M133: 0.9543470963 | N133: 0.1153719036 | O133: 0.08181197238 | P133: 8.181197238 | Q133: 0.7320758765 | R133: 1.026514184 | AA133: 1.6 | AE133: 408.852 | AP133: 490200
A134: 102 | B134: =IF(A134>$A$8,"",OFFSET(InputPriceData!B$15,$A134+$A$11,0,1,1)) -> 2019-07-12 | C134: =IF(A134>$A$8,"",OFFSET(InputPriceData!G$15,CalculationsAndCharts!$A134+$A$11,IF($C$5,8,0),1,1)) -> 524200 | D134: =IF(A134>$A$8,"",OFFSET(InputPriceData!C$15,CalculationsAndCharts!$A134+$A$11,IF($C$5,8,0),1,1)) -> 284.02 | E134: =IF(A134>$A$8,"",OFFSET(InputPriceData!D$15,CalculationsAndCharts!$A134+$A$11,IF($C$5,8,0),1,1)) -> 285.17 | F134: =IF(A134>$A$8,"",OFFSET(InputPriceData!E$15,CalculationsAndCharts!$A134+$A$11,IF($C$5,8,0),1,1)) -> 278.73 | G134: =IF(A134>$A$8,"",OFFSET(InputPriceData!F$15,CalculationsAndCharts!$A134+$A$11,IF($C$5,8,0),1,1)) -> 283.91 | H134: =IF($A134>$A$8,"",OFFSET(InputIndexPriceData!G$15,CalculationsAndCharts!$A134+$A$11,IF($C$5,8,0),1,1)) -> 40326000 | I134: =IF(A134>$A$8,"",OFFSET(InputIndexPriceData!C$15,CalculationsAndCharts!$A134+$A$11,IF($C$5,8,0),1,1)) -> 297.01 | J134: =IF(A134>$A$8,"",OFFSET(InputIndexPriceData!D$15,CalculationsAndCharts!$A134+$A$11,IF($C$5,8,0),1,1)) -> 297.88 | K134: =IF(A134>$A$8,"",OFFSET(InputIndexPriceData!E$15,CalculationsAndCharts!$A134+$A$11,IF($C$5,8,0),1,1)) -> 296.67 | L134: =IF(A134>$A$8,"",OFFSET(InputIndexPriceData!F$15,CalculationsAndCharts!$A134+$A$11,IF($C$5,8,0),1,1)) -> 297.8 | M134: 0.9533579584 | N134: 0.08735901154 | O134: 0.04825204117 | P134: 4.825204117 | Q134: 0.7503134721 | R134: 1.025358732 | AA134: 1.6 | AE134: 408.852 | AQ134: 524200
A135: 103 | B135: =IF(A135>$A$8,"",OFFSET(InputPriceData!B$15,$A135+$A$11,0,1,1)) -> 2019-07-11 | C135: =IF(A135>$A$8,"",OFFSET(InputPriceData!G$15,CalculationsAndCharts!$A135+$A$11,IF($C$5,8,0),1,1)) -> 610800 | D135: =IF(A135>$A$8,"",OFFSET(InputPriceData!C$15,CalculationsAndCharts!$A135+$A$11,IF($C$5,8,0),1,1)) -> 290 | E135: =IF(A135>$A$8,"",OFFSET(InputPriceData!D$15,CalculationsAndCharts!$A135+$A$11,IF($C$5,8,0),1,1)) -> 290.78 | F135: =IF(A135>$A$8,"",OFFSET(InputPriceData!E$15,CalculationsAndCharts!$A135+$A$11,IF($C$5,8,0),1,1)) -> 280.15 | G135: =IF(A135>$A$8,"",OFFSET(InputPriceData!F$15,CalculationsAndCharts!$A135+$A$11,IF($C$5,8,0),1,1)) -> 282.59 | H135: =IF($A135>$A$8,"",OFFSET(InputIndexPriceData!G$15,CalculationsAndCharts!$A135+$A$11,IF($C$5,8,0),1,1)) -> 50826100 | I135: =IF(A135>$A$8,"",OFFSET(InputIndexPriceData!C$15,CalculationsAndCharts!$A135+$A$11,IF($C$5,8,0),1,1)) -> 296.49 | J135: =IF(A135>$A$8,"",OFFSET(InputIndexPriceData!D$15,CalculationsAndCharts!$A135+$A$11,IF($C$5,8,0),1,1)) -> 296.74 | K135: =IF(A135>$A$8,"",OFFSET(InputIndexPriceData!E$15,CalculationsAndCharts!$A135+$A$11,IF($C$5,8,0),1,1)) -> 295.38 | L135: =IF(A135>$A$8,"",OFFSET(InputIndexPriceData!F$15,CalculationsAndCharts!$A135+$A$11,IF($C$5,8,0),1,1)) -> 296.48 | M135: 0.9531502968 | N135: 0.01952390819 | O135: 0.009145070808 | P135: 0.9145070808 | Q135: 0.7669034601 | R135: 1.024472618 | AA135: 1.6 | AE135: 408.852 | AQ135: 610800
A136: 104 | B136: =IF(A136>$A$8,"",OFFSET(InputPriceData!B$15,$A136+$A$11,0,1,1)) -> 2019-07-10 | C136: =IF(A136>$A$8,"",OFFSET(InputPriceData!G$15,CalculationsAndCharts!$A136+$A$11,IF($C$5,8,0),1,1)) -> 1010800 | D136: =IF(A136>$A$8,"",OFFSET(InputPriceData!C$15,CalculationsAndCharts!$A136+$A$11,IF($C$5,8,0),1,1)) -> 278.2 | E136: =IF(A136>$A$8,"",OFFSET(InputPriceData!D$15,CalculationsAndCharts!$A136+$A$11,IF($C$5,8,0),1,1)) -> 287.95 | F136: =IF(A136>$A$8,"",OFFSET(InputPriceData!E$15,CalculationsAndCharts!$A136+$A$11,IF($C$5,8,0),1,1)) -> 278.2 | G136: =IF(A136>$A$8,"",OFFSET(InputPriceData!F$15,CalculationsAndCharts!$A136+$A$11,IF($C$5,8,0),1,1)) -> 286.65 | H136: =IF($A136>$A$8,"",OFFSET(InputIndexPriceData!G$15,CalculationsAndCharts!$A136+$A$11,IF($C$5,8,0),1,1)) -> 58448500 | I136: =IF(A136>$A$8,"",OFFSET(InputIndexPriceData!C$15,CalculationsAndCharts!$A136+$A$11,IF($C$5,8,0),1,1)) -> 295.55 | J136: =IF(A136>$A$8,"",OFFSET(InputIndexPriceData!D$15,CalculationsAndCharts!$A136+$A$11,IF($C$5,8,0),1,1)) -> 296.82 | K136: =IF(A136>$A$8,"",OFFSET(InputIndexPriceData!E$15,CalculationsAndCharts!$A136+$A$11,IF($C$5,8,0),1,1)) -> 294.96 | L136: =IF(A136>$A$8,"",OFFSET(InputIndexPriceData!F$15,CalculationsAndCharts!$A136+$A$11,IF($C$5,8,0),1,1)) -> 295.78 | M136: 0.9691324633 | N136: 0.01269652129 | O136: -0.001233766575 | P136: -0.1233766575 | Q136: 0.7825198734 | R136: 1.024267854 | AA136: 1.6 | AE136: 408.852 | AP136: 1010800
A137: 105 | B137: =IF(A137>$A$8,"",OFFSET(InputPriceData!B$15,$A137+$A$11,0,1,1)) -> 2019-07-09 | C137: =IF(A137>$A$8,"",OFFSET(InputPriceData!G$15,CalculationsAndCharts!$A137+$A$11,IF($C$5,8,0),1,1)) -> 509800 | D137: =IF(A137>$A$8,"",OFFSET(InputPriceData!C$15,CalculationsAndCharts!$A137+$A$11,IF($C$5,8,0),1,1)) -> 269.63 | E137: =IF(A137>$A$8,"",OFFSET(InputPriceData!D$15,CalculationsAndCharts!$A137+$A$11,IF($C$5,8,0),1,1)) -> 275.92 | F137: =IF(A137>$A$8,"",OFFSET(InputPriceData!E$15,CalculationsAndCharts!$A137+$A$11,IF($C$5,8,0),1,1)) -> 269.63 | G137: =IF(A137>$A$8,"",OFFSET(InputPriceData!F$15,CalculationsAndCharts!$A137+$A$11,IF($C$5,8,0),1,1)) -> 275.41 | H137: =IF($A137>$A$8,"",OFFSET(InputIndexPriceData!G$15,CalculationsAndCharts!$A137+$A$11,IF($C$5,8,0),1,1)) -> 41101300 | I137: =IF(A137>$A$8,"",OFFSET(InputIndexPriceData!C$15,CalculationsAndCharts!$A137+$A$11,IF($C$5,8,0),1,1)) -> 292.74 | J137: =IF(A137>$A$8,"",OFFSET(InputIndexPriceData!D$15,CalculationsAndCharts!$A137+$A$11,IF($C$5,8,0),1,1)) -> 294.7 | K137: =IF(A137>$A$8,"",OFFSET(InputIndexPriceData!E$15,CalculationsAndCharts!$A137+$A$11,IF($C$5,8,0),1,1)) -> 292.68 | L137: =IF(A137>$A$8,"",OFFSET(InputIndexPriceData!F$15,CalculationsAndCharts!$A137+$A$11,IF($C$5,8,0),1,1)) -> 294.38 | M137: 0.9355594809 | N137: -0.01202115632 | O137: -0.01516405444 | P137: -1.516405444 | Q137: 0.7965684062 | R137: 1.024132001 | AA137: 1.6 | AE137: 408.852 | AP137: 509800
A138: 106 | B138: =IF(A138>$A$8,"",OFFSET(InputPriceData!B$15,$A138+$A$11,0,1,1)) -> 2019-07-08 | C138: =IF(A138>$A$8,"",OFFSET(InputPriceData!G$15,CalculationsAndCharts!$A138+$A$11,IF($C$5,8,0),1,1)) -> 573400 | D138: =IF(A138>$A$8,"",OFFSET(InputPriceData!C$15,CalculationsAndCharts!$A138+$A$11,IF($C$5,8,0),1,1)) -> 270.5 | E138: =IF(A138>$A$8,"",OFFSET(InputPriceData!D$15,CalculationsAndCharts!$A138+$A$11,IF($C$5,8,0),1,1)) -> 273.89 | F138: =IF(A138>$A$8,"",OFFSET(InputPriceData!E$15,CalculationsAndCharts!$A138+$A$11,IF($C$5,8,0),1,1)) -> 268.89 | G138: =IF(A138>$A$8,"",OFFSET(InputPriceData!F$15,CalculationsAndCharts!$A138+$A$11,IF($C$5,8,0),1,1)) -> 272.24 | H138: =IF($A138>$A$8,"",OFFSET(InputIndexPriceData!G$15,CalculationsAndCharts!$A138+$A$11,IF($C$5,8,0),1,1)) -> 45841800 | I138: =IF(A138>$A$8,"",OFFSET(InputIndexPriceData!C$15,CalculationsAndCharts!$A138+$A$11,IF($C$5,8,0),1,1)) -> 294.2 | J138: =IF(A138>$A$8,"",OFFSET(InputIndexPriceData!D$15,CalculationsAndCharts!$A138+$A$11,IF($C$5,8,0),1,1)) -> 295.44 | K138: =IF(A138>$A$8,"",OFFSET(InputIndexPriceData!E$15,CalculationsAndCharts!$A138+$A$11,IF($C$5,8,0),1,1)) -> 293.42 | L138: =IF(A138>$A$8,"",OFFSET(InputIndexPriceData!F$15,CalculationsAndCharts!$A138+$A$11,IF($C$5,8,0),1,1)) -> 294.01 | M138: 0.9259548995 | N138: -0.0176932561 | O138: -0.01830695257 | P138: -1.830695257 | Q138: 0.8131091768 | R138: 1.024257716 | AA138: 1.6 | AE138: 408.852 | AP138: 573400
A139: 107 | B139: =IF(A139>$A$8,"",OFFSET(InputPriceData!B$15,$A139+$A$11,0,1,1)) -> 2019-07-05 | C139: =IF(A139>$A$8,"",OFFSET(InputPriceData!G$15,CalculationsAndCharts!$A139+$A$11,IF($C$5,8,0),1,1)) -> 661400 | D139: =IF(A139>$A$8,"",OFFSET(InputPriceData!C$15,CalculationsAndCharts!$A139+$A$11,IF($C$5,8,0),1,1)) -> 274.11 | E139: =IF(A139>$A$8,"",OFFSET(InputPriceData!D$15,CalculationsAndCharts!$A139+$A$11,IF($C$5,8,0),1,1)) -> 276.94 | F139: =IF(A139>$A$8,"",OFFSET(InputPriceData!E$15,CalculationsAndCharts!$A139+$A$11,IF($C$5,8,0),1,1)) -> 268.66 | G139: =IF(A139>$A$8,"",OFFSET(InputPriceData!F$15,CalculationsAndCharts!$A139+$A$11,IF($C$5,8,0),1,1)) -> 273.29 | H139: =IF($A139>$A$8,"",OFFSET(InputIndexPriceData!G$15,CalculationsAndCharts!$A139+$A$11,IF($C$5,8,0),1,1)) -> 51677300 | I139: =IF(A139>$A$8,"",OFFSET(InputIndexPriceData!C$15,CalculationsAndCharts!$A139+$A$11,IF($C$5,8,0),1,1)) -> 294.62 | J139: =IF(A139>$A$8,"",OFFSET(InputIndexPriceData!D$15,CalculationsAndCharts!$A139+$A$11,IF($C$5,8,0),1,1)) -> 295.81 | K139: =IF(A139>$A$8,"",OFFSET(InputIndexPriceData!E$15,CalculationsAndCharts!$A139+$A$11,IF($C$5,8,0),1,1)) -> 293.21 | L139: =IF(A139>$A$8,"",OFFSET(InputIndexPriceData!F$15,CalculationsAndCharts!$A139+$A$11,IF($C$5,8,0),1,1)) -> 295.63 | M139: 0.9244325677 | N139: -0.02484633591 | O139: -0.01892064904 | P139: -1.892064904 | Q139: 0.8298646677 | R139: 1.024441371 | AA139: 1.6 | AE139: 408.852 | AQ139: 661400
A140: 108 | B140: =IF(A140>$A$8,"",OFFSET(InputPriceData!B$15,$A140+$A$11,0,1,1)) -> 2019-07-03 | C140: =IF(A140>$A$8,"",OFFSET(InputPriceData!G$15,CalculationsAndCharts!$A140+$A$11,IF($C$5,8,0),1,1)) -> 588000 | D140: =IF(A140>$A$8,"",OFFSET(InputPriceData!C$15,CalculationsAndCharts!$A140+$A$11,IF($C$5,8,0),1,1)) -> 272.33 | E140: =IF(A140>$A$8,"",OFFSET(InputPriceData!D$15,CalculationsAndCharts!$A140+$A$11,IF($C$5,8,0),1,1)) -> 277.47 | F140: =IF(A140>$A$8,"",OFFSET(InputPriceData!E$15,CalculationsAndCharts!$A140+$A$11,IF($C$5,8,0),1,1)) -> 271.38 | G140: =IF(A140>$A$8,"",OFFSET(InputPriceData!F$15,CalculationsAndCharts!$A140+$A$11,IF($C$5,8,0),1,1)) -> 275 | H140: =IF($A140>$A$8,"",OFFSET(InputIndexPriceData!G$15,CalculationsAndCharts!$A140+$A$11,IF($C$5,8,0),1,1)) -> 40898900 | I140: =IF(A140>$A$8,"",OFFSET(InputIndexPriceData!C$15,CalculationsAndCharts!$A140+$A$11,IF($C$5,8,0),1,1)) -> 294.37 | J140: =IF(A140>$A$8,"",OFFSET(InputIndexPriceData!D$15,CalculationsAndCharts!$A140+$A$11,IF($C$5,8,0),1,1)) -> 295.99 | K140: =IF(A140>$A$8,"",OFFSET(InputIndexPriceData!E$15,CalculationsAndCharts!$A140+$A$11,IF($C$5,8,0),1,1)) -> 294.21 | L140: =IF(A140>$A$8,"",OFFSET(InputIndexPriceData!F$15,CalculationsAndCharts!$A140+$A$11,IF($C$5,8,0),1,1)) -> 295.97 | M140: 0.9291482245 | N140: -0.02883472904 | O140: -0.01299496216 | P140: -1.299496216 | Q140: 0.8460278806 | R140: 1.024699776 | AA140: 1.6 | AE140: 408.852 | AP140: 588000
A141: 109 | B141: =IF(A141>$A$8,"",OFFSET(InputPriceData!B$15,$A141+$A$11,0,1,1)) -> 2019-07-02 | C141: =IF(A141>$A$8,"",OFFSET(InputPriceData!G$15,CalculationsAndCharts!$A141+$A$11,IF($C$5,8,0),1,1)) -> 897800 | D141: =IF(A141>$A$8,"",OFFSET(InputPriceData!C$15,CalculationsAndCharts!$A141+$A$11,IF($C$5,8,0),1,1)) -> 272.65 | E141: =IF(A141>$A$8,"",OFFSET(InputPriceData!D$15,CalculationsAndCharts!$A141+$A$11,IF($C$5,8,0),1,1)) -> 276.22 | F141: =IF(A141>$A$8,"",OFFSET(InputPriceData!E$15,CalculationsAndCharts!$A141+$A$11,IF($C$5,8,0),1,1)) -> 269.57 | G141: =IF(A141>$A$8,"",OFFSET(InputPriceData!F$15,CalculationsAndCharts!$A141+$A$11,IF($C$5,8,0),1,1)) -> 270.9 | H141: =IF($A141>$A$8,"",OFFSET(InputIndexPriceData!G$15,CalculationsAndCharts!$A141+$A$11,IF($C$5,8,0),1,1)) -> 61504500 | I141: =IF(A141>$A$8,"",OFFSET(InputIndexPriceData!C$15,CalculationsAndCharts!$A141+$A$11,IF($C$5,8,0),1,1)) -> 292.81 | J141: =IF(A141>$A$8,"",OFFSET(InputIndexPriceData!D$15,CalculationsAndCharts!$A141+$A$11,IF($C$5,8,0),1,1)) -> 293.68 | K141: =IF(A141>$A$8,"",OFFSET(InputIndexPriceData!E$15,CalculationsAndCharts!$A141+$A$11,IF($C$5,8,0),1,1)) -> 291.89 | L141: =IF(A141>$A$8,"",OFFSET(InputIndexPriceData!F$15,CalculationsAndCharts!$A141+$A$11,IF($C$5,8,0),1,1)) -> 293.62 | M141: 0.9226210749 | N141: -0.004885953401 | O141: 0.002844804711 | P141: 0.2844804711 | Q141: 0.8582382517 | R141: 1.025001796 | AA141: 1.6 | AE141: 408.852 | AQ141: 897800
A142: 110 | B142: =IF(A142>$A$8,"",OFFSET(InputPriceData!B$15,$A142+$A$11,0,1,1)) -> 2019-07-01 | C142: =IF(A142>$A$8,"",OFFSET(InputPriceData!G$15,CalculationsAndCharts!$A142+$A$11,IF($C$5,8,0),1,1)) -> 1230700 | D142: =IF(A142>$A$8,"",OFFSET(InputPriceData!C$15,CalculationsAndCharts!$A142+$A$11,IF($C$5,8,0),1,1)) -> 280.64 | E142: =IF(A142>$A$8,"",OFFSET(InputPriceData!D$15,CalculationsAndCharts!$A142+$A$11,IF($C$5,8,0),1,1)) -> 283.33 | F142: =IF(A142>$A$8,"",OFFSET(InputPriceData!E$15,CalculationsAndCharts!$A142+$A$11,IF($C$5,8,0),1,1)) -> 271.25 | G142: =IF(A142>$A$8,"",OFFSET(InputPriceData!F$15,CalculationsAndCharts!$A142+$A$11,IF($C$5,8,0),1,1)) -> 271.68 | H142: =IF($A142>$A$8,"",OFFSET(InputIndexPriceData!G$15,CalculationsAndCharts!$A142+$A$11,IF($C$5,8,0),1,1)) -> 79107500 | I142: =IF(A142>$A$8,"",OFFSET(InputIndexPriceData!C$15,CalculationsAndCharts!$A142+$A$11,IF($C$5,8,0),1,1)) -> 293.87 | J142: =IF(A142>$A$8,"",OFFSET(InputIndexPriceData!D$15,CalculationsAndCharts!$A142+$A$11,IF($C$5,8,0),1,1)) -> 294.11 | K142: =IF(A142>$A$8,"",OFFSET(InputIndexPriceData!E$15,CalculationsAndCharts!$A142+$A$11,IF($C$5,8,0),1,1)) -> 291.54 | L142: =IF(A142>$A$8,"",OFFSET(InputIndexPriceData!F$15,CalculationsAndCharts!$A142+$A$11,IF($C$5,8,0),1,1)) -> 292.86 | M142: 0.9276787544 | N142: 0.009307221159 | O142: 0.01057556282 | P142: 1.057556282 | Q142: 0.8673753295 | R142: 1.025052006 | AA142: 1.6 | AE142: 408.852 | AQ142: 1230700
A143: 111 | B143: =IF(A143>$A$8,"",OFFSET(InputPriceData!B$15,$A143+$A$11,0,1,1)) -> 2019-06-28 | C143: =IF(A143>$A$8,"",OFFSET(InputPriceData!G$15,CalculationsAndCharts!$A143+$A$11,IF($C$5,8,0),1,1)) -> 1413700 | D143: =IF(A143>$A$8,"",OFFSET(InputPriceData!C$15,CalculationsAndCharts!$A143+$A$11,IF($C$5,8,0),1,1)) -> 270.05 | E143: =IF(A143>$A$8,"",OFFSET(InputPriceData!D$15,CalculationsAndCharts!$A143+$A$11,IF($C$5,8,0),1,1)) -> 274.17 | F143: =IF(A143>$A$8,"",OFFSET(InputPriceData!E$15,CalculationsAndCharts!$A143+$A$11,IF($C$5,8,0),1,1)) -> 263.7 | G143: =IF(A143>$A$8,"",OFFSET(InputPriceData!F$15,CalculationsAndCharts!$A143+$A$11,IF($C$5,8,0),1,1)) -> 273.7 | H143: =IF($A143>$A$8,"",OFFSET(InputIndexPriceData!G$15,CalculationsAndCharts!$A143+$A$11,IF($C$5,8,0),1,1)) -> 59350900 | I143: =IF(A143>$A$8,"",OFFSET(InputIndexPriceData!C$15,CalculationsAndCharts!$A143+$A$11,IF($C$5,8,0),1,1)) -> 289.81 | J143: =IF(A143>$A$8,"",OFFSET(InputIndexPriceData!D$15,CalculationsAndCharts!$A143+$A$11,IF($C$5,8,0),1,1)) -> 290.77 | K143: =IF(A143>$A$8,"",OFFSET(InputIndexPriceData!E$15,CalculationsAndCharts!$A143+$A$11,IF($C$5,8,0),1,1)) -> 289.25 | L143: =IF(A143>$A$8,"",OFFSET(InputIndexPriceData!F$15,CalculationsAndCharts!$A143+$A$11,IF($C$5,8,0),1,1)) -> 290.23 | M143: 0.9430451711 | N143: 0.01520228042 | O143: 0.01184390449 | P143: 1.184390449 | Q143: 0.8747285158 | R143: 1.024956516 | AA143: 1.6 | AE143: 408.852 | AP143: 1413700
A144: 112 | B144: =IF(A144>$A$8,"",OFFSET(InputPriceData!B$15,$A144+$A$11,0,1,1)) -> 2019-06-27 | C144: =IF(A144>$A$8,"",OFFSET(InputPriceData!G$15,CalculationsAndCharts!$A144+$A$11,IF($C$5,8,0),1,1)) -> 1001200 | D144: =IF(A144>$A$8,"",OFFSET(InputPriceData!C$15,CalculationsAndCharts!$A144+$A$11,IF($C$5,8,0),1,1)) -> 269.08 | E144: =IF(A144>$A$8,"",OFFSET(InputPriceData!D$15,CalculationsAndCharts!$A144+$A$11,IF($C$5,8,0),1,1)) -> 273.42 | F144: =IF(A144>$A$8,"",OFFSET(InputPriceData!E$15,CalculationsAndCharts!$A144+$A$11,IF($C$5,8,0),1,1)) -> 268.29 | G144: =IF(A144>$A$8,"",OFFSET(InputPriceData!F$15,CalculationsAndCharts!$A144+$A$11,IF($C$5,8,0),1,1)) -> 269.95 | H144: =IF($A144>$A$8,"",OFFSET(InputIndexPriceData!G$15,CalculationsAndCharts!$A144+$A$11,IF($C$5,8,0),1,1)) -> 40355200 | I144: =IF(A144>$A$8,"",OFFSET(InputIndexPriceData!C$15,CalculationsAndCharts!$A144+$A$11,IF($C$5,8,0),1,1)) -> 288.55 | J144: =IF(A144>$A$8,"",OFFSET(InputIndexPriceData!D$15,CalculationsAndCharts!$A144+$A$11,IF($C$5,8,0),1,1)) -> 289.3 | K144: =IF(A144>$A$8,"",OFFSET(InputIndexPriceData!E$15,CalculationsAndCharts!$A144+$A$11,IF($C$5,8,0),1,1)) -> 288.14 | L144: =IF(A144>$A$8,"",OFFSET(InputIndexPriceData!F$15,CalculationsAndCharts!$A144+$A$11,IF($C$5,8,0),1,1)) -> 288.74 | M144: 0.9349241532 | N144: -0.001158532692 | O144: 0.008485528552 | P144: 0.8485528552 | Q144: 0.8789008713 | R144: 1.024798427 | AA144: 1.6 | AE144: 408.852 | AP144: 1001200
A145: 113 | B145: =IF(A145>$A$8,"",OFFSET(InputPriceData!B$15,$A145+$A$11,0,1,1)) -> 2019-06-26 | C145: =IF(A145>$A$8,"",OFFSET(InputPriceData!G$15,CalculationsAndCharts!$A145+$A$11,IF($C$5,8,0),1,1)) -> 1563500 | D145: =IF(A145>$A$8,"",OFFSET(InputPriceData!C$15,CalculationsAndCharts!$A145+$A$11,IF($C$5,8,0),1,1)) -> 277.24 | E145: =IF(A145>$A$8,"",OFFSET(InputPriceData!D$15,CalculationsAndCharts!$A145+$A$11,IF($C$5,8,0),1,1)) -> 277.24 | F145: =IF(A145>$A$8,"",OFFSET(InputPriceData!E$15,CalculationsAndCharts!$A145+$A$11,IF($C$5,8,0),1,1)) -> 267.36 | G145: =IF(A145>$A$8,"",OFFSET(InputPriceData!F$15,CalculationsAndCharts!$A145+$A$11,IF($C$5,8,0),1,1)) -> 268.08 | H145: =IF($A145>$A$8,"",OFFSET(InputIndexPriceData!G$15,CalculationsAndCharts!$A145+$A$11,IF($C$5,8,0),1,1)) -> 51584900 | I145: =IF(A145>$A$8,"",OFFSET(InputIndexPriceData!C$15,CalculationsAndCharts!$A145+$A$11,IF($C$5,8,0),1,1)) -> 288.99 | J145: =IF(A145>$A$8,"",OFFSET(InputIndexPriceData!D$15,CalculationsAndCharts!$A145+$A$11,IF($C$5,8,0),1,1)) -> 289.54 | K145: =IF(A145>$A$8,"",OFFSET(InputIndexPriceData!E$15,CalculationsAndCharts!$A145+$A$11,IF($C$5,8,0),1,1)) -> 287.6 | L145: =IF(A145>$A$8,"",OFFSET(InputIndexPriceData!F$15,CalculationsAndCharts!$A145+$A$11,IF($C$5,8,0),1,1)) -> 287.72 | M145: 0.9317391909 | N145: -0.005198448775 | O145: 0.0181295898 | P145: 1.81295898 | Q145: 0.8822088845 | R145: 1.024810469 | AA145: 1.6 | AE145: 408.852 | AQ145: 1563500
A146: 114 | B146: =IF(A146>$A$8,"",OFFSET(InputPriceData!B$15,$A146+$A$11,0,1,1)) -> 2019-06-25 | C146: =IF(A146>$A$8,"",OFFSET(InputPriceData!G$15,CalculationsAndCharts!$A146+$A$11,IF($C$5,8,0),1,1)) -> 991000 | D146: =IF(A146>$A$8,"",OFFSET(InputPriceData!C$15,CalculationsAndCharts!$A146+$A$11,IF($C$5,8,0),1,1)) -> 282.27 | E146: =IF(A146>$A$8,"",OFFSET(InputPriceData!D$15,CalculationsAndCharts!$A146+$A$11,IF($C$5,8,0),1,1)) -> 283.87 | F146: =IF(A146>$A$8,"",OFFSET(InputPriceData!E$15,CalculationsAndCharts!$A146+$A$11,IF($C$5,8,0),1,1)) -> 274.86 | G146: =IF(A146>$A$8,"",OFFSET(InputPriceData!F$15,CalculationsAndCharts!$A146+$A$11,IF($C$5,8,0),1,1)) -> 276.02 | H146: =IF($A146>$A$8,"",OFFSET(InputIndexPriceData!G$15,CalculationsAndCharts!$A146+$A$11,IF($C$5,8,0),1,1)) -> 82028700 | I146: =IF(A146>$A$8,"",OFFSET(InputIndexPriceData!C$15,CalculationsAndCharts!$A146+$A$11,IF($C$5,8,0),1,1)) -> 290.92 | J146: =IF(A146>$A$8,"",OFFSET(InputIndexPriceData!D$15,CalculationsAndCharts!$A146+$A$11,IF($C$5,8,0),1,1)) -> 290.95 | K146: =IF(A146>$A$8,"",OFFSET(InputIndexPriceData!E$15,CalculationsAndCharts!$A146+$A$11,IF($C$5,8,0),1,1)) -> 287.89 | L146: =IF(A146>$A$8,"",OFFSET(InputIndexPriceData!F$15,CalculationsAndCharts!$A146+$A$11,IF($C$5,8,0),1,1)) -> 288.01 | M146: 0.9583695011 | N146: 0.0287734287 | O146: 0.04145762837 | P146: 4.145762837 | Q146: 0.8837609053 | R146: 1.024864427 | AA146: 1.6 | AE146: 408.852 | AP146: =IF(G146>=D146,C146,NA()) ->  | AQ146: =IF(G146<D146,C146,NA()) -> 991000
A147: 115 | B147: =IF(A147>$A$8,"",OFFSET(InputPriceData!B$15,$A147+$A$11,0,1,1)) -> 2019-06-24 | C147: =IF(A147>$A$8,"",OFFSET(InputPriceData!G$15,CalculationsAndCharts!$A147+$A$11,IF($C$5,8,0),1,1)) -> 1074200 | D147: =IF(A147>$A$8,"",OFFSET(InputPriceData!C$15,CalculationsAndCharts!$A147+$A$11,IF($C$5,8,0),1,1)) -> 283.5 | E147: =IF(A147>$A$8,"",OFFSET(InputPriceData!D$15,CalculationsAndCharts!$A147+$A$11,IF($C$5,8,0),1,1)) -> 286.75 | F147: =IF(A147>$A$8,"",OFFSET(InputPriceData!E$15,CalculationsAndCharts!$A147+$A$11,IF($C$5,8,0),1,1)) -> 279.46 | G147: =IF(A147>$A$8,"",OFFSET(InputPriceData!F$15,CalculationsAndCharts!$A147+$A$11,IF($C$5,8,0),1,1)) -> 282.16 | H147: =IF($A147>$A$8,"",OFFSET(InputIndexPriceData!G$15,CalculationsAndCharts!$A147+$A$11,IF($C$5,8,0),1,1)) -> 47582700 | I147: =IF(A147>$A$8,"",OFFSET(InputIndexPriceData!C$15,CalculationsAndCharts!$A147+$A$11,IF($C$5,8,0),1,1)) -> 291.44 | J147: =IF(A147>$A$8,"",OFFSET(InputIndexPriceData!D$15,CalculationsAndCharts!$A147+$A$11,IF($C$5,8,0),1,1)) -> 291.79 | K147: =IF(A147>$A$8,"",OFFSET(InputIndexPriceData!E$15,CalculationsAndCharts!$A147+$A$11,IF($C$5,8,0),1,1)) -> 290.69 | L147: =IF(A147>$A$8,"",OFFSET(InputIndexPriceData!F$15,CalculationsAndCharts!$A147+$A$11,IF($C$5,8,0),1,1)) -> 290.86 | M147: 0.9700887025 | N147: 0.03877597775 | O147: 0.05414182803 | P147: 5.414182803 | Q147: 0.8863429461 | R147: 1.024562398 | AA147: 1.6 | AE147: 408.852 | AQ147: 1074200
A148: 116 | B148: =IF(A148>$A$8,"",OFFSET(InputPriceData!B$15,$A148+$A$11,0,1,1)) -> 2019-06-21 | C148: =IF(A148>$A$8,"",OFFSET(InputPriceData!G$15,CalculationsAndCharts!$A148+$A$11,IF($C$5,8,0),1,1)) -> 1497400 | D148: =IF(A148>$A$8,"",OFFSET(InputPriceData!C$15,CalculationsAndCharts!$A148+$A$11,IF($C$5,8,0),1,1)) -> 294.91 | E148: =IF(A148>$A$8,"",OFFSET(InputPriceData!D$15,CalculationsAndCharts!$A148+$A$11,IF($C$5,8,0),1,1)) -> 294.91 | F148: =IF(A148>$A$8,"",OFFSET(InputPriceData!E$15,CalculationsAndCharts!$A148+$A$11,IF($C$5,8,0),1,1)) -> 283.15 | G148: =IF(A148>$A$8,"",OFFSET(InputPriceData!F$15,CalculationsAndCharts!$A148+$A$11,IF($C$5,8,0),1,1)) -> 283.56 | H148: =IF($A148>$A$8,"",OFFSET(InputIndexPriceData!G$15,CalculationsAndCharts!$A148+$A$11,IF($C$5,8,0),1,1)) -> 83309500 | I148: =IF(A148>$A$8,"",OFFSET(InputIndexPriceData!C$15,CalculationsAndCharts!$A148+$A$11,IF($C$5,8,0),1,1)) -> 291.35 | J148: =IF(A148>$A$8,"",OFFSET(InputIndexPriceData!D$15,CalculationsAndCharts!$A148+$A$11,IF($C$5,8,0),1,1)) -> 292.72 | K148: =IF(A148>$A$8,"",OFFSET(InputIndexPriceData!E$15,CalculationsAndCharts!$A148+$A$11,IF($C$5,8,0),1,1)) -> 290.98 | L148: =IF(A148>$A$8,"",OFFSET(InputIndexPriceData!F$15,CalculationsAndCharts!$A148+$A$11,IF($C$5,8,0),1,1)) -> 291.22 | M148: 0.9736968615 | N148: 0.02949998273 | O148: 0.06950767831 | P148: 6.950767831 | Q148: 0.8910590232 | R148: 1.02415244 | AA148: 1.6 | AE148: 408.852 | AQ148: 1497400
A149: 117 | B149: =IF(A149>$A$8,"",OFFSET(InputPriceData!B$15,$A149+$A$11,0,1,1)) -> 2019-06-20 | C149: =IF(A149>$A$8,"",OFFSET(InputPriceData!G$15,CalculationsAndCharts!$A149+$A$11,IF($C$5,8,0),1,1)) -> 768600 | D149: =IF(A149>$A$8,"",OFFSET(InputPriceData!C$15,CalculationsAndCharts!$A149+$A$11,IF($C$5,8,0),1,1)) -> 302.03 | E149: =IF(A149>$A$8,"",OFFSET(InputPriceData!D$15,CalculationsAndCharts!$A149+$A$11,IF($C$5,8,0),1,1)) -> 302.03 | F149: =IF(A149>$A$8,"",OFFSET(InputPriceData!E$15,CalculationsAndCharts!$A149+$A$11,IF($C$5,8,0),1,1)) -> 294.3 | G149: =IF(A149>$A$8,"",OFFSET(InputPriceData!F$15,CalculationsAndCharts!$A149+$A$11,IF($C$5,8,0),1,1)) -> 295.67 | H149: =IF($A149>$A$8,"",OFFSET(InputIndexPriceData!G$15,CalculationsAndCharts!$A149+$A$11,IF($C$5,8,0),1,1)) -> 116570000 | I149: =IF(A149>$A$8,"",OFFSET(InputIndexPriceData!C$15,CalculationsAndCharts!$A149+$A$11,IF($C$5,8,0),1,1)) -> 291.82 | J149: =IF(A149>$A$8,"",OFFSET(InputIndexPriceData!D$15,CalculationsAndCharts!$A149+$A$11,IF($C$5,8,0),1,1)) -> 292.08 | K149: =IF(A149>$A$8,"",OFFSET(InputIndexPriceData!E$15,CalculationsAndCharts!$A149+$A$11,IF($C$5,8,0),1,1)) -> 288.95 | L149: =IF(A149>$A$8,"",OFFSET(InputIndexPriceData!F$15,CalculationsAndCharts!$A149+$A$11,IF($C$5,8,0),1,1)) -> 291.64 | M149: 1.013818406 | N149: 0.09617600238 | O149: 0.1095153739 | P149: 10.95153739 | Q149: 0.895684564 | R149: 1.023837946 | AA149: 1.6 | AE149: 408.852 | AQ149: 768600
A150: 118 | B150: =IF(A150>$A$8,"",OFFSET(InputPriceData!B$15,$A150+$A$11,0,1,1)) -> 2019-06-19 | C150: =IF(A150>$A$8,"",OFFSET(InputPriceData!G$15,CalculationsAndCharts!$A150+$A$11,IF($C$5,8,0),1,1)) -> 988800 | D150: =IF(A150>$A$8,"",OFFSET(InputPriceData!C$15,CalculationsAndCharts!$A150+$A$11,IF($C$5,8,0),1,1)) -> 290.3 | E150: =IF(A150>$A$8,"",OFFSET(InputPriceData!D$15,CalculationsAndCharts!$A150+$A$11,IF($C$5,8,0),1,1)) -> 298.17 | F150: =IF(A150>$A$8,"",OFFSET(InputPriceData!E$15,CalculationsAndCharts!$A150+$A$11,IF($C$5,8,0),1,1)) -> 287.13 | G150: =IF(A150>$A$8,"",OFFSET(InputPriceData!F$15,CalculationsAndCharts!$A150+$A$11,IF($C$5,8,0),1,1)) -> 296.84 | H150: =IF($A150>$A$8,"",OFFSET(InputIndexPriceData!G$15,CalculationsAndCharts!$A150+$A$11,IF($C$5,8,0),1,1)) -> 78674400 | I150: =IF(A150>$A$8,"",OFFSET(InputIndexPriceData!C$15,CalculationsAndCharts!$A150+$A$11,IF($C$5,8,0),1,1)) -> 288.38 | J150: =IF(A150>$A$8,"",OFFSET(InputIndexPriceData!D$15,CalculationsAndCharts!$A150+$A$11,IF($C$5,8,0),1,1)) -> 289.46 | K150: =IF(A150>$A$8,"",OFFSET(InputIndexPriceData!E$15,CalculationsAndCharts!$A150+$A$11,IF($C$5,8,0),1,1)) -> 287.31 | L150: =IF(A150>$A$8,"",OFFSET(InputIndexPriceData!F$15,CalculationsAndCharts!$A150+$A$11,IF($C$5,8,0),1,1)) -> 288.88 | M150: 1.027554694 | N150: 0.1226955324 | O150: 0.1228547454 | P150: 12.28547454 | Q150: 0.897956733 | R150: 1.022805024 | Z150: 1.6 | AD150: 408.852 | AP150: 988800
A151: 119 | B151: =IF(A151>$A$8,"",OFFSET(InputPriceData!B$15,$A151+$A$11,0,1,1)) -> 2019-06-18 | C151: =IF(A151>$A$8,"",OFFSET(InputPriceData!G$15,CalculationsAndCharts!$A151+$A$11,IF($C$5,8,0),1,1)) -> 1099300 | D151: =IF(A151>$A$8,"",OFFSET(InputPriceData!C$15,CalculationsAndCharts!$A151+$A$11,IF($C$5,8,0),1,1)) -> 293.23 | E151: =IF(A151>$A$8,"",OFFSET(InputPriceData!D$15,CalculationsAndCharts!$A151+$A$11,IF($C$5,8,0),1,1)) -> 297.05 | F151: =IF(A151>$A$8,"",OFFSET(InputPriceData!E$15,CalculationsAndCharts!$A151+$A$11,IF($C$5,8,0),1,1)) -> 288.95 | G151: =IF(A151>$A$8,"",OFFSET(InputPriceData!F$15,CalculationsAndCharts!$A151+$A$11,IF($C$5,8,0),1,1)) -> 290.06 | H151: =IF($A151>$A$8,"",OFFSET(InputIndexPriceData!G$15,CalculationsAndCharts!$A151+$A$11,IF($C$5,8,0),1,1)) -> 85434800 | I151: =IF(A151>$A$8,"",OFFSET(InputIndexPriceData!C$15,CalculationsAndCharts!$A151+$A$11,IF($C$5,8,0),1,1)) -> 287.23 | J151: =IF(A151>$A$8,"",OFFSET(InputIndexPriceData!D$15,CalculationsAndCharts!$A151+$A$11,IF($C$5,8,0),1,1)) -> 289.38 | K151: =IF(A151>$A$8,"",OFFSET(InputIndexPriceData!E$15,CalculationsAndCharts!$A151+$A$11,IF($C$5,8,0),1,1)) -> 286.84 | L151: =IF(A151>$A$8,"",OFFSET(InputIndexPriceData!F$15,CalculationsAndCharts!$A151+$A$11,IF($C$5,8,0),1,1)) -> 288.23 | M151: 1.006349096 | N151: 0.1081669525 | O151: 0.1230139583 | P151: 12.30139583 | Q151: 0.8995683717 | R151: 1.021486705 | AA151: 1.6 | AE151: 408.852 | AQ151: 1099300
A152: 120 | B152: =IF(A152>$A$8,"",OFFSET(InputPriceData!B$15,$A152+$A$11,0,1,1)) -> 2019-06-17 | C152: =IF(A152>$A$8,"",OFFSET(InputPriceData!G$15,CalculationsAndCharts!$A152+$A$11,IF($C$5,8,0),1,1)) -> 2348600 | D152: =IF(A152>$A$8,"",OFFSET(InputPriceData!C$15,CalculationsAndCharts!$A152+$A$11,IF($C$5,8,0),1,1)) -> 306.66 | E152: =IF(A152>$A$8,"",OFFSET(InputPriceData!D$15,CalculationsAndCharts!$A152+$A$11,IF($C$5,8,0),1,1)) -> 306.66 | F152: =IF(A152>$A$8,"",OFFSET(InputPriceData!E$15,CalculationsAndCharts!$A152+$A$11,IF($C$5,8,0),1,1)) -> 282.4 | G152: =IF(A152>$A$8,"",OFFSET(InputPriceData!F$15,CalculationsAndCharts!$A152+$A$11,IF($C$5,8,0),1,1)) -> 288.68 | H152: =IF($A152>$A$8,"",OFFSET(InputIndexPriceData!G$15,CalculationsAndCharts!$A152+$A$11,IF($C$5,8,0),1,1)) -> 39205700 | I152: =IF(A152>$A$8,"",OFFSET(InputIndexPriceData!C$15,CalculationsAndCharts!$A152+$A$11,IF($C$5,8,0),1,1)) -> 285.39 | J152: =IF(A152>$A$8,"",OFFSET(InputIndexPriceData!D$15,CalculationsAndCharts!$A152+$A$11,IF($C$5,8,0),1,1)) -> 286.08 | K152: =IF(A152>$A$8,"",OFFSET(InputIndexPriceData!E$15,CalculationsAndCharts!$A152+$A$11,IF($C$5,8,0),1,1)) -> 285.06 | L152: =IF(A152>$A$8,"",OFFSET(InputIndexPriceData!F$15,CalculationsAndCharts!$A152+$A$11,IF($C$5,8,0),1,1)) -> 285.24 | M152: 1.01206002 | N152: 0.1044106093 | O152: 0.1378609642 | P152: 13.78609642 | Q152: 0.9013077467 | R152: 1.020340336 | AA152: 1.6 | AE152: 408.852 | AQ152: 2348600
A153: 121 | B153: =IF(A153>$A$8,"",OFFSET(InputPriceData!B$15,$A153+$A$11,0,1,1)) -> 2019-06-14 | C153: =IF(A153>$A$8,"",OFFSET(InputPriceData!G$15,CalculationsAndCharts!$A153+$A$11,IF($C$5,8,0),1,1)) -> 482700 | D153: =IF(A153>$A$8,"",OFFSET(InputPriceData!C$15,CalculationsAndCharts!$A153+$A$11,IF($C$5,8,0),1,1)) -> 312.08 | E153: =IF(A153>$A$8,"",OFFSET(InputPriceData!D$15,CalculationsAndCharts!$A153+$A$11,IF($C$5,8,0),1,1)) -> 312.08 | F153: =IF(A153>$A$8,"",OFFSET(InputPriceData!E$15,CalculationsAndCharts!$A153+$A$11,IF($C$5,8,0),1,1)) -> 305.02 | G153: =IF(A153>$A$8,"",OFFSET(InputPriceData!F$15,CalculationsAndCharts!$A153+$A$11,IF($C$5,8,0),1,1)) -> 305.7 | H153: =IF($A153>$A$8,"",OFFSET(InputIndexPriceData!G$15,CalculationsAndCharts!$A153+$A$11,IF($C$5,8,0),1,1)) -> 52324700 | I153: =IF(A153>$A$8,"",OFFSET(InputIndexPriceData!C$15,CalculationsAndCharts!$A153+$A$11,IF($C$5,8,0),1,1)) -> 285.13 | J153: =IF(A153>$A$8,"",OFFSET(InputIndexPriceData!D$15,CalculationsAndCharts!$A153+$A$11,IF($C$5,8,0),1,1)) -> 285.8 | K153: =IF(A153>$A$8,"",OFFSET(InputIndexPriceData!E$15,CalculationsAndCharts!$A153+$A$11,IF($C$5,8,0),1,1)) -> 284.3 | L153: =IF(A153>$A$8,"",OFFSET(InputIndexPriceData!F$15,CalculationsAndCharts!$A153+$A$11,IF($C$5,8,0),1,1)) -> 285.13 | M153: 1.072142531 | N153: 0.1655626074 | O153: 0.1713113191 | P153: 17.13113191 | Q153: 0.9020665493 | R153: 1.019225443 | Z153: 1.6 | AD153: 408.852 | AQ153: 482700
A154: 122 | B154: =IF(A154>$A$8,"",OFFSET(InputPriceData!B$15,$A154+$A$11,0,1,1)) -> 2019-06-13 | C154: =IF(A154>$A$8,"",OFFSET(InputPriceData!G$15,CalculationsAndCharts!$A154+$A$11,IF($C$5,8,0),1,1)) -> 483300 | D154: =IF(A154>$A$8,"",OFFSET(InputPriceData!C$15,CalculationsAndCharts!$A154+$A$11,IF($C$5,8,0),1,1)) -> 312.82 | E154: =IF(A154>$A$8,"",OFFSET(InputPriceData!D$15,CalculationsAndCharts!$A154+$A$11,IF($C$5,8,0),1,1)) -> 313.88 | F154: =IF(A154>$A$8,"",OFFSET(InputPriceData!E$15,CalculationsAndCharts!$A154+$A$11,IF($C$5,8,0),1,1)) -> 307.26 | G154: =IF(A154>$A$8,"",OFFSET(InputPriceData!F$15,CalculationsAndCharts!$A154+$A$11,IF($C$5,8,0),1,1)) -> 311.07 | H154: =IF($A154>$A$8,"",OFFSET(InputIndexPriceData!G$15,CalculationsAndCharts!$A154+$A$11,IF($C$5,8,0),1,1)) -> 48945200 | I154: =IF(A154>$A$8,"",OFFSET(InputIndexPriceData!C$15,CalculationsAndCharts!$A154+$A$11,IF($C$5,8,0),1,1)) -> 285.27 | J154: =IF(A154>$A$8,"",OFFSET(InputIndexPriceData!D$15,CalculationsAndCharts!$A154+$A$11,IF($C$5,8,0),1,1)) -> 285.84 | K154: =IF(A154>$A$8,"",OFFSET(InputIndexPriceData!E$15,CalculationsAndCharts!$A154+$A$11,IF($C$5,8,0),1,1)) -> 284.5 | L154: =IF(A154>$A$8,"",OFFSET(InputIndexPriceData!F$15,CalculationsAndCharts!$A154+$A$11,IF($C$5,8,0),1,1)) -> 285.45 | M154: 1.089753022 | N154: 0.173483713 | O154: 0.1770600309 | P154: 17.70600309 | Q154: 0.9019447548 | R154: 1.017407766 | Z154: 1.6 | AD154: 408.852 | AQ154: 483300
A155: 123 | B155: =IF(A155>$A$8,"",OFFSET(InputPriceData!B$15,$A155+$A$11,0,1,1)) -> 2019-06-12 | C155: =IF(A155>$A$8,"",OFFSET(InputPriceData!G$15,CalculationsAndCharts!$A155+$A$11,IF($C$5,8,0),1,1)) -> 439100 | D155: =IF(A155>$A$8,"",OFFSET(InputPriceData!C$15,CalculationsAndCharts!$A155+$A$11,IF($C$5,8,0),1,1)) -> 309.3 | E155: =IF(A155>$A$8,"",OFFSET(InputPriceData!D$15,CalculationsAndCharts!$A155+$A$11,IF($C$5,8,0),1,1)) -> 312.17 | F155: =IF(A155>$A$8,"",OFFSET(InputPriceData!E$15,CalculationsAndCharts!$A155+$A$11,IF($C$5,8,0),1,1)) -> 304.65 | G155: =IF(A155>$A$8,"",OFFSET(InputPriceData!F$15,CalculationsAndCharts!$A155+$A$11,IF($C$5,8,0),1,1)) -> 312 | H155: =IF($A155>$A$8,"",OFFSET(InputIndexPriceData!G$15,CalculationsAndCharts!$A155+$A$11,IF($C$5,8,0),1,1)) -> 46984700 | I155: =IF(A155>$A$8,"",OFFSET(InputIndexPriceData!C$15,CalculationsAndCharts!$A155+$A$11,IF($C$5,8,0),1,1)) -> 284.52 | J155: =IF(A155>$A$8,"",OFFSET(InputIndexPriceData!D$15,CalculationsAndCharts!$A155+$A$11,IF($C$5,8,0),1,1)) -> 285.13 | K155: =IF(A155>$A$8,"",OFFSET(InputIndexPriceData!E$15,CalculationsAndCharts!$A155+$A$11,IF($C$5,8,0),1,1)) -> 283.72 | L155: =IF(A155>$A$8,"",OFFSET(InputIndexPriceData!F$15,CalculationsAndCharts!$A155+$A$11,IF($C$5,8,0),1,1)) -> 284.28 | M155: 1.097509498 | N155: 0.1757560525 | O155: 0.1806363487 | P155: 18.06363487 | Q155: 0.9018443225 | R155: 1.015479277 | Z155: 1.6 | AD155: 408.852 | AP155: 439100
